Workbook

Sheet Январь
A1: КАРТОЧКА АНАЛИТИЧЕСКОГО УЧЕТА КАССОВЫХ РАСХОДОВ
A3: ЯНВАРЬ
A5: Статьи | C5: ВР | D5: Вед. | E5: Р/ПР | F5: ЦС | G5: ВР | H5: Утверждено на год | I5: Квартал | J5: Профинансировано на начало месяца | K5: Остаток на счете на начало месяца | L5: Поступило за месяц | M5: 2022-01-18 | N5: 2022-01-28 | AJ5: Расход за месяц | AK5: 2022-01-18 | AL5: 2022-01-28 | BH5: Профинансировано с начала года | BI5: Расход с начала года | BJ5: Остаток на счете на конец месяца | BK5: Остаток лимита год | BL5: Справочно:
BL6: профинансировано за 1 квартал | BM6: остаток лимита 1 квартала
C8: субвенция | D8: 807 | E8: 07 02 | F8: 02 П 02 С9903 | G8: 111 | BN8: 1
A9: 211 | B9: оплата труда | C9: субвенция | D9: =D8 -> 807 | E9: =E8 -> 07 02 | F9: =F8 -> 02 П 02 С9903 | G9: 111 | H9: =SUM(H10:H11) -> 44000000 | I9: =SUM(I10:I11) -> 0 | J9: 0 | K9: 0 | L9: 3500000 | M9: 1000000 | N9: 2500000 | O9: 0 | P9: 0 | Q9: 0 | R9: 0 | S9: 0 | T9: 0 | U9: 0 | V9: 0 | W9: 0 | X9: 0 | Y9: 0 | Z9: 0 | AA9: 0 | AB9: 0 | AC9: 0 | AD9: 0 | AE9: 0 | AF9: 0 | AG9: 0 | AH9: 0 | AI9: 0 | AJ9: 960000 | AK9: 960000 | AL9: 0 | AM9: 0 | AN9: 0 | AO9: 0 | AP9: 0 | AQ9: 0 | AR9: 0 | AS9: 0 | AT9: 0 | AU9: 0 | AV9: 0 | AW9: 0 | AX9: 0 | AY9: 0 | AZ9: 0 | BA9: 0 | BB9: 0 | BC9: 0 | BD9: 0 | BE9: 0 | BF9: 0 | BG9: 0 | BH9: =J9+L9 -> 3500000 | BI9: =AJ9 -> 960000 | BJ9: =K9+L9-AJ9 -> 2540000 | BK9: =H9-BH9 -> 40500000 | BL9: 0 | BM9: 0
A10: 211 | B10: ФОТ | C10: =C9 -> субвенция | D10: =D9 -> 807 | E10: 07 02 | F10: 02 П 02 С9903 | G10: 111 | H10: =44050000-50000 -> 44000000 | L10: =SUM(M10:AI10) -> 3500000 | M10: 1000000 | N10: 2500000 | AJ10: =SUM(AK10:BG10) -> 960000 | AK10: 960000 | BH10: =J10+L10 -> 3500000 | BI10: =AJ10 -> 960000 | BJ10: =K10+L10-AJ10 -> 2540000 | BK10: =H10-BH10 -> 40500000
A11: 212 | C11: =C10 -> субвенция | D11: 807 | E11: 07 02 | F11: 02 П 02 С9903 | G11: 111 | L11: =SUM(M11:AI11) -> 0 | AJ11: =SUM(AK11:BG11) -> 0 | BH11: 0 | BI11: 0 | BJ11: 0 | BK11: 0
A12: 266 | B12: Всего проч. | C12: субвенция | D12: 807 | E12: 07 02 | F12: 02 П 02 С9903 | G12: 111 | H12: =SUM(H13:H18) -> 100000 | I12: =SUM(I13:I18) -> 0 | J12: 0 | K12: 0 | L12: 0 | M12: 0 | N12: 0 | O12: 0 | P12: 0 | Q12: 0 | R12: 0 | S12: 0 | T12: 0 | U12: 0 | V12: 0 | W12: 0 | X12: 0 | Y12: 0 | Z12: 0 | AA12: 0 | AB12: 0 | AC12: 0 | AD12: 0 | AE12: 0 | AF12: 0 | AG12: 0 | AH12: 0 | AI12: 0 | AJ12: 0 | AK12: 0 | AL12: 0 | AM12: 0 | AN12: 0 | AO12: 0 | AP12: 0 | AQ12: 0 | AR12: 0 | AS12: 0 | AT12: 0 | AU12: 0 | AV12: 0 | AW12: 0 | AX12: 0 | AY12: 0 | AZ12: 0 | BA12: 0 | BB12: 0 | BC12: 0 | BD12: 0 | BE12: 0 | BF12: 0 | BG12: 0 | BH12: 0 | BI12: 0 | BJ12: 0 | BK12: 100000 | BL12: 0 | BM12: 0
A13: 266 | B13: 3 дня б/л | C13: субвенция | D13: 807 | E13: 07 02 | F13: 02 П 02 С9903 | G13: 111 | H13: =50000+50000 -> 100000 | L13: =SUM(M13:AI13) -> 0 | AJ13: =SUM(AK13:BG13) -> 0 | BH13: 0 | BI13: 0 | BJ13: 0 | BK13: 100000
C14: субвенция | D14: 807 | E14: 07 02 | F14: 02 П 02 С9903 | G14: 111 | L14: 0 | AJ14: 0 | BH14: 0 | BI14: 0 | BJ14: 0 | BK14: 0
A15: 266 | B15: до 3-х лет | C15: субвенция | D15: 807 | E15: 07 02 | F15: 02 П 02 С9903 | G15: 112 | L15: 0 | AJ15: 0 | BH15: 0 | BI15: 0 | BJ15: 0 | BK15: 0
C16: субвенция | D16: 807 | E16: 07 02 | F16: 02 П 02 С9903 | G16: 112 | L16: 0 | AJ16: 0 | BH16: 0 | BI16: 0 | BJ16: 0 | BK16: 0
C17: субвенция | D17: 807 | E17: 07 02 | F17: 02 П 02 С9903 | G17: 112 | L17: 0 | AJ17: 0 | BH17: 0 | BI17: 0 | BJ17: 0 | BK17: 0
C18: субвенция | D18: 807 | E18: 07 02 | F18: 02 П 02 С9903 | G18: 112 | L18: 0 | AJ18: 0 | BH18: 0 | BI18: 0 | BJ18: 0 | BK18: 0
A19: 213 | B19: Страховые взносы | C19: субвенция | D19: 807 | E19: 07 02 | F19: 02 П 02 С9903 | G19: 119 | H19: =SUM(H20:H21) -> 13252600 | I19: =SUM(I20:I21) -> 0 | J19: 0 | K19: 0 | L19: 1000000 | M19: 0 | N19: 1000000 | O19: 0 | P19: 0 | Q19: 0 | R19: 0 | S19: 0 | T19: 0 | U19: 0 | V19: 0 | W19: 0 | X19: 0 | Y19: 0 | Z19: 0 | AA19: 0 | AB19: 0 | AC19: 0 | AD19: 0 | AE19: 0 | AF19: 0 | AG19: 0 | AH19: 0 | AI19: 0 | AJ19: 0 | AK19: 0 | AL19: 0 | AM19: 0 | AN19: 0 | AO19: 0 | AP19: 0 | AQ19: 0 | AR19: 0 | AS19: 0 | AT19: 0 | AU19: 0 | AV19: 0 | AW19: 0 | AX19: 0 | AY19: 0 | AZ19: 0 | BA19: 0 | BB19: 0 | BC19: 0 | BD19: 0 | BE19: 0 | BF19: 0 | BG19: 0 | BH19: 1000000 | BI19: 0 | BJ19: 1000000 | BK19: 12252600 | BL19: 0 | BM19: 0
A20: 213 | B20: страховые взносы | C20: субвенция | D20: 807 | E20: 07 02 | F20: 02 П 02 С9903 | G20: 119 | H20: 13252600 | L20: =SUM(M20:AI20) -> 1000000 | N20: 1000000 | AJ20: =SUM(AK20:BG20) -> 0 | BH20: 1000000 | BI20: 0 | BJ20: 1000000 | BK20: 12252600
C21: субвенция | D21: 807 | E21: 07 02 | F21: 02 П 02 С9903 | G21: 119 | L21: =SUM(M21:AI21) -> 0 | AJ21: =SUM(AK21:BG21) -> 0 | BH21: 0 | BI21: 0 | BJ21: 0 | BK21: 0
A22: 221 | B22: услуги связи | C22: субвенция | D22: 807 | E22: 07 02 | F22: 02 П 02 С9903 | G22: 244 | H22: 64400 | L22: =SUM(M22:AI22) -> 2721.6 | N22: 2721.6 | AJ22: =SUM(AK22:BG22) -> 2721.6 | AL22: 2721.6 | BH22: 2721.6 | BI22: 2721.6 | BJ22: 0 | BK22: 61678.4
A23: 222 | B23: Всего тран. | C23: субвенция | D23: 807 | E23: 07 02 | F23: 02 П 02 С9903 | G23: =G22 -> 244 | H23: =SUM(H24:H25) -> 113100 | I23: =SUM(I24:I25) -> 0 | J23: 0 | K23: 0 | L23: 16500 | M23: 0 | N23: 16500 | O23: 0 | P23: 0 | Q23: 0 | R23: 0 | S23: 0 | T23: 0 | U23: 0 | V23: 0 | W23: 0 | X23: 0 | Y23: 0 | Z23: 0 | AA23: 0 | AB23: 0 | AC23: 0 | AD23: 0 | AE23: 0 | AF23: 0 | AG23: 0 | AH23: 0 | AI23: 0 | AJ23: 16500 | AK23: 0 | AL23: 16500 | AM23: 0 | AN23: 0 | AO23: 0 | AP23: 0 | AQ23: 0 | AR23: 0 | AS23: 0 | AT23: 0 | AU23: 0 | AV23: 0 | AW23: 0 | AX23: 0 | AY23: 0 | AZ23: 0 | BA23: 0 | BB23: 0 | BC23: 0 | BD23: 0 | BE23: 0 | BF23: 0 | BG23: 0 | BH23: 16500 | BI23: 16500 | BJ23: 0 | BK23: 96600 | BL23: 0 | BM23: 0
A24: 222 | B24: проезд команд. | C24: субвенция | D24: 807 | E24: 07 02 | F24: 02 П 02 С9903 | G24: =G23 -> 244 | L24: =SUM(M24:AI24) -> 0 | AJ24: =SUM(AK24:BG24) -> 0 | BH24: 0 | BI24: 0 | BJ24: 0 | BK24: 0
A25: 222 | B25: транспортные услуги | C25: субвенция | D25: 807 | E25: 07 02 | F25: 02 П 02 С9903 | G25: 244 | H25: 113100 | L25: =SUM(M25:AI25) -> 16500 | N25: 16500 | AJ25: =SUM(AK25:BG25) -> 16500 | AL25: 16500 | BH25: 16500 | BI25: 16500 | BJ25: 0 | BK25: 96600
A26: 212 | B26: прочие несоц. Выплаты | C26: субвенция | D26: =D25 -> 807 | E26: =E25 -> 07 02 | F26: =F25 -> 02 П 02 С9903 | G26: =G18 -> 112 | H26: =SUM(H27:H30) -> 3800 | I26: =SUM(I27:I30) -> 0 | J26: 0 | K26: 0 | L26: 0 | M26: 0 | N26: 0 | O26: 0 | P26: 0 | Q26: 0 | R26: 0 | S26: 0 | T26: 0 | U26: 0 | V26: 0 | W26: 0 | X26: 0 | Y26: 0 | Z26: 0 | AA26: 0 | AB26: 0 | AC26: 0 | AD26: 0 | AE26: 0 | AF26: 0 | AG26: 0 | AH26: 0 | AI26: 0 | AJ26: 0 | AK26: 0 | AL26: 0 | AM26: 0 | AN26: 0 | AO26: 0 | AP26: 0 | AQ26: 0 | AR26: 0 | AS26: 0 | AT26: 0 | AU26: 0 | AV26: 0 | AW26: 0 | AX26: 0 | AY26: 0 | AZ26: 0 | BA26: 0 | BB26: 0 | BC26: 0 | BD26: 0 | BE26: 0 | BF26: 0 | BG26: 0 | BH26: 0 | BI26: 0 | BJ26: 0 | BK26: 3800 | BL26: 0 | BM26: 0
A27: 212 | B27: прочие несоц. выплаты | C27: субвенция | D27: 807 | E27: 07 02 | F27: 02 П 02 С9903 | G27: 112 | H27: 3800 | L27: =SUM(M27:AI27) -> 0 | AJ27: =SUM(AK27:BG27) -> 0 | BH27: 0 | BI27: 0 | BJ27: 0 | BK27: 3800
B28: потребление газа | C28: субвенция | D28: 807 | E28: 07 02 | F28: 02 П 02 С9903 | G28: =G25 -> 244 | L28: =SUM(M28:AI28) -> 0 | AJ28: =SUM(AK28:BG28) -> 0 | BH28: 0 | BI28: 0 | BJ28: 0 | BK28: 0
B29: электроэнергия | C29: субвенция | D29: 807 | E29: 07 02 | F29: 02 П 02 С9903 | G29: 244 | L29: =SUM(M29:AI29) -> 0 | AJ29: =SUM(AK29:BG29) -> 0 | BH29: 0 | BI29: 0 | BJ29: 0 | BK29: 0
B30: водоснабжение | C30: субвенция | D30: 807 | E30: 07 02 | F30: 02 П 02 С9903 | G30: 244 | L30: =SUM(M30:AI30) -> 0 | AJ30: =SUM(AK30:BG30) -> 0 | BH30: 0 | BI30: 0 | BJ30: 0 | BK30: 0
A31: 224 | B31: аренда | C31: субвенция | D31: 807 | E31: 07 02 | F31: 02 П 02 С9903 | G31: 244 | L31: =SUM(M31:AI31) -> 0 | AJ31: =SUM(AK31:BG31) -> 0 | BH31: 0 | BI31: 0 | BJ31: 0 | BK31: 0
A32: 225 | B32: Всего содер. Имущ. | C32: субвенция | D32: 807 | E32: 07 02 | F32: 02 П 02 С9903 | G32: 244 | H32: =SUM(H33:H35) -> 112600 | I32: =SUM(I33:I35) -> 0 | J32: 0 | K32: 0 | L32: 0 | M32: 0 | N32: 0 | O32: 0 | P32: 0 | Q32: 0 | R32: 0 | S32: 0 | T32: 0 | U32: 0 | V32: 0 | W32: 0 | X32: 0 | Y32: 0 | Z32: 0 | AA32: 0 | AB32: 0 | AC32: 0 | AD32: 0 | AE32: 0 | AF32: 0 | AG32: 0 | AH32: 0 | AI32: 0 | AJ32: 0 | AK32: 0 | AL32: 0 | AM32: 0 | AN32: 0 | AO32: 0 | AP32: 0 | AQ32: 0 | AR32: 0 | AS32: 0 | AT32: 0 | AU32: 0 | AV32: 0 | AW32: 0 | AX32: 0 | AY32: 0 | AZ32: 0 | BA32: 0 | BB32: 0 | BC32: 0 | BD32: 0 | BE32: 0 | BF32: 0 | BG32: 0 | BH32: 0 | BI32: 0 | BJ32: 0 | BK32: 112600 | BL32: 0 | BM32: 0
A33: 225 | B33: работы и услуги на содержание имущества | C33: субвенция | D33: 807 | E33: 07 02 | F33: 02 П 02 С9903 | G33: 244 | H33: 112600 | L33: =SUM(M33:AI33) -> 0 | AJ33: =SUM(AK33:BG33) -> 0 | BH33: 0 | BI33: 0 | BJ33: 0 | BK33: 112600
B34: вывоз мусора | C34: субвенция | D34: 807 | E34: 07 02 | F34: 02 П 02 С9903 | G34: 244 | L34: =SUM(M34:AI34) -> 0 | AJ34: =SUM(AK34:BG34) -> 0 | BH34: 0 | BI34: 0 | BJ34: 0 | BK34: 0
B35: прочие ком. услуги | C35: субвенция | D35: 807 | E35: 07 02 | F35: 02 П 02 С9903 | G35: 244 | L35: =SUM(M35:AI35) -> 0 | AJ35: =SUM(AK35:BG35) -> 0 | BH35: 0 | BI35: 0 | BJ35: 0 | BK35: 0
A36: 226 | B36: Прочие услуги | C36: субвенция | D36: 807 | E36: 07 02 | F36: 02 П 02 С9903 | G36: 244 | H36: =SUM(H37:H38) -> 462500 | I36: =SUM(I37:I38) -> 0 | J36: 0 | K36: 0 | L36: 81977.29 | M36: 0 | N36: 81977.29 | O36: 0 | P36: 0 | Q36: 0 | R36: 0 | S36: 0 | T36: 0 | U36: 0 | V36: 0 | W36: 0 | X36: 0 | Y36: 0 | Z36: 0 | AA36: 0 | AB36: 0 | AC36: 0 | AD36: 0 | AE36: 0 | AF36: 0 | AG36: 0 | AH36: 0 | AI36: 0 | AJ36: 81977.29 | AK36: 0 | AL36: 81977.29 | AM36: 0 | AN36: 0 | AO36: 0 | AP36: 0 | AQ36: 0 | AR36: 0 | AS36: 0 | AT36: 0 | AU36: 0 | AV36: 0 | AW36: 0 | AX36: 0 | AY36: 0 | AZ36: 0 | BA36: 0 | BB36: 0 | BC36: 0 | BD36: 0 | BE36: 0 | BF36: 0 | BG36: 0 | BH36: 81977.29 | BI36: 81977.29 | BJ36: 0 | BK36: 380522.71 | BL36: 0 | BM36: 0
A37: 226 | B37: прочие услуги | C37: субвенция | D37: 807 | E37: 07 02 | F37: 02 П 02 С9903 | G37: 244 | H37: =229600+180000+52900 -> 462500 | L37: =SUM(M37:AI37) -> 81977.29 | N37: 81977.29 | AJ37: =SUM(AK37:BG37) -> 81977.29 | AL37: 81977.29 | BH37: 81977.29 | BI37: 81977.29 | BJ37: 0 | BK37: 380522.71
B38: проч. услуги | C38: субвенция | D38: 807 | E38: 07 02 | F38: 02 П 02 С9903 | G38: 244 | L38: 0 | AJ38: 0 | BH38: 0 | BI38: 0 | BJ38: 0 | BK38: 0
A39: 241 | B39: Содержание гостиницы | C39: субвенция | D39: 807 | E39: 07 02 | F39: 02 П 02 С9903 | G39: 244 | L39: 0 | AJ39: 0 | BH39: 0 | BI39: 0 | BJ39: 0 | BK39: 0
A40: 252 | B40: Переч. наднац. орг. | C40: субвенция | D40: 807 | E40: 07 02 | F40: 02 П 02 С9903 | G40: 244 | L40: 0 | AJ40: 0 | BH40: 0 | BI40: 0 | BJ40: 0 | BK40: 0
A41: 253 | B41: перечисл. междунар. орган | C41: субвенция | D41: 807 | E41: 07 02 | F41: 02 П 02 С9903 | G41: 244 | L41: 0 | AJ41: 0 | BH41: 0 | BI41: 0 | BJ41: 0 | BK41: 0
A42: 261 | B42: Пособие по соц. Страх. населения | C42: субвенция | D42: 807 | E42: 07 02 | F42: 02 П 02 С9903 | G42: 244 | L42: 0 | AJ42: 0 | BH42: 0 | BI42: 0 | BJ42: 0 | BK42: 0
A43: 262 | B43: Пособие по соц. пом. населению | C43: субвенция | D43: 807 | E43: 07 02 | F43: 02 П 02 С9903 | G43: 244 | H43: =SUM(H44:H46) -> 0 | I43: =SUM(I44:I46) -> 0 | J43: 0 | K43: 0 | L43: 0 | M43: 0 | N43: 0 | O43: 0 | P43: 0 | Q43: 0 | R43: 0 | S43: 0 | T43: 0 | U43: 0 | V43: 0 | W43: 0 | X43: 0 | Y43: 0 | Z43: 0 | AA43: 0 | AB43: 0 | AC43: 0 | AD43: 0 | AE43: 0 | AF43: 0 | AG43: 0 | AH43: 0 | AI43: 0 | AJ43: 0 | AK43: 0 | AL43: 0 | AM43: 0 | AN43: 0 | AO43: 0 | AP43: 0 | AQ43: 0 | AR43: 0 | AS43: 0 | AT43: 0 | AU43: 0 | AV43: 0 | AW43: 0 | AX43: 0 | AY43: 0 | AZ43: 0 | BA43: 0 | BB43: 0 | BC43: 0 | BD43: 0 | BE43: 0 | BF43: 0 | BG43: 0 | BH43: 0 | BI43: 0 | BJ43: 0 | BK43: 0 | BL43: =SUM(BL44:BL46) -> 0 | BM43: 0
A44: 262.01 | B44: льгота по к/услугам | C44: субвенция | D44: 807 | E44: 07 02 | F44: 02 П 02 С9903 | G44: 244 | L44: =SUM(M44:AI44) -> 0 | AJ44: =SUM(AK44:BG44) -> 0 | BH44: 0 | BI44: 0 | BJ44: 0 | BK44: 0
A45: 262.02 | B45: прочее | C45: субвенция | D45: 807 | E45: 07 02 | F45: 02 П 02 С9903 | G45: 244 | L45: =SUM(M45:AI45) -> 0 | AJ45: =SUM(AK45:BG45) -> 0 | BH45: 0 | BI45: 0 | BJ45: 0 | BK45: 0
A46: 262.03 | B46: прочее | C46: субвенция | D46: 807 | E46: 07 02 | F46: 02 П 02 С9903 | G46: 244 | L46: =SUM(M46:AI46) -> 0 | AJ46: =SUM(AK46:BG46) -> 0 | BH46: 0 | BI46: 0 | BJ46: 0 | BK46: 0
A47: 263 | B47: Соц. пособ. Выпл. орган. сектора гос. управ. | C47: субвенция | D47: 807 | E47: 07 02 | F47: 02 П 02 С9903 | G47: 244 | L47: =SUM(M47:AI47) -> 0 | AJ47: =SUM(AK47:BG47) -> 0 | BH47: 0 | BI47: 0 | BJ47: 0 | BK47: 0
A48: 296 | B48: Прочие расходы | C48: субвенция | D48: 807 | E48: 07 02 | F48: 02 П 02 С9903 | G48: 244 | H48: =SUM(H49:H50) -> 26900 | I48: =SUM(I49:I50) -> 0 | J48: 0 | K48: 0 | L48: 0 | M48: 0 | N48: 0 | O48: 0 | P48: 0 | Q48: 0 | R48: 0 | S48: 0 | T48: 0 | U48: 0 | V48: 0 | W48: 0 | X48: 0 | Y48: 0 | Z48: 0 | AA48: 0 | AB48: 0 | AC48: 0 | AD48: 0 | AE48: 0 | AF48: 0 | AG48: 0 | AH48: 0 | AI48: 0 | AJ48: 0 | AK48: 0 | AL48: 0 | AM48: 0 | AN48: 0 | AO48: 0 | AP48: 0 | AQ48: 0 | AR48: 0 | AS48: 0 | AT48: 0 | AU48: 0 | AV48: 0 | AW48: 0 | AX48: 0 | AY48: 0 | AZ48: 0 | BA48: 0 | BB48: 0 | BC48: 0 | BD48: 0 | BE48: 0 | BF48: 0 | BG48: 0 | BH48: 0 | BI48: 0 | BJ48: 0 | BK48: 26900 | BL48: 0 | BM48: 0
A49: 296 | B49: Налог на имущество | C49: субвенция | D49: 807 | E49: 07 02 | F49: 02 П 02 С9903 | G49: 244 | L49: =SUM(M49:AI49) -> 0 | AJ49: =SUM(AK49:BG49) -> 0 | BH49: 0 | BI49: 0 | BJ49: 0 | BK49: 0
A50: 296 | B50: проч. расходы | C50: субвенция | D50: 807 | E50: 07 02 | F50: 02 П 02 С9903 | G50: 350 | H50: =27200-300 -> 26900 | L50: =SUM(M50:AI50) -> 0 | AJ50: =SUM(AK50:BG50) -> 0 | BH50: 0 | BI50: 0 | BJ50: 0 | BK50: 26900
A51: 310 | B51: Увеличение ст-ти ОС | C51: субвенция | D51: 807 | E51: 07 02 | F51: 02 П 02 С9903 | G51: =G49 -> 244 | H51: =SUM(H52:H55) -> 208000 | I51: =SUM(I52:I55) -> 0 | J51: 0 | K51: 0 | L51: 0 | M51: 0 | N51: 0 | O51: 0 | P51: 0 | Q51: 0 | R51: 0 | S51: 0 | T51: 0 | U51: 0 | V51: 0 | W51: 0 | X51: 0 | Y51: 0 | Z51: 0 | AA51: 0 | AB51: 0 | AC51: 0 | AD51: 0 | AE51: 0 | AF51: 0 | AG51: 0 | AH51: 0 | AI51: 0 | AJ51: 0 | AK51: 0 | AL51: 0 | AM51: 0 | AN51: 0 | AO51: 0 | AP51: 0 | AQ51: 0 | AR51: 0 | AS51: 0 | AT51: 0 | AU51: 0 | AV51: 0 | AW51: 0 | AX51: 0 | AY51: 0 | AZ51: 0 | BA51: 0 | BB51: 0 | BC51: 0 | BD51: 0 | BE51: 0 | BF51: 0 | BG51: 0 | BH51: 0 | BI51: 0 | BJ51: 0 | BK51: 208000 | BL51: 0 | BM51: 0
A52: 310 | B52: увеличение ст-ти ОС | C52: субвенция | D52: 807 | E52: 07 02 | F52: 02 П 02 С9903 | G52: 244 | H52: =108100+300+99600 -> 208000 | L52: =SUM(M52:AI52) -> 0 | AJ52: =SUM(AK52:BG52) -> 0 | BH52: 0 | BI52: 0 | BJ52: 0 | BK52: 208000
B53: расх. матер больше года | C53: субвенция | D53: 807 | E53: 07 02 | F53: 02 П 02 С9903 | G53: 244 | L53: =SUM(M53:AI53) -> 0 | AJ53: =SUM(AK53:BG53) -> 0 | BH53: 0 | BI53: 0 | BJ53: 0 | BK53: 0
B54: приобретение предм. дл. польз. | C54: субвенция | D54: 807 | E54: 07 02 | F54: 02 П 02 С9903 | G54: 244 | L54: =SUM(M54:AI54) -> 0 | AJ54: =SUM(AK54:BG54) -> 0 | BH54: 0 | BI54: 0 | BJ54: 0 | BK54: 0
B55: капитальное стр-во | C55: субвенция | D55: 807 | E55: 07 02 | F55: 02 П 02 С9903 | G55: 244 | L55: =SUM(M55:AI55) -> 0 | AJ55: =SUM(AK55:BG55) -> 0 | BH55: 0 | BI55: 0 | BJ55: 0 | BK55: 0
A56: 320 | B56: Увеличение ст-ти немат. активов | C56: субвенция | D56: 807 | E56: 07 02 | F56: 02 П 02 С9903 | G56: 244 | L56: =SUM(M56:AI56) -> 0 | AJ56: =SUM(AK56:BG56) -> 0 | BH56: 0 | BI56: 0 | BJ56: 0 | BK56: 0
A57: 340 | B57: Увеличение мат. запасов | C57: субвенция | D57: 807 | E57: 07 02 | F57: 02 П 02 С9903 | G57: 244 | H57: =SUM(H58:H62) -> 6993100 | I57: =SUM(I58:I62) -> 0 | J57: 0 | K57: 0 | L57: 551836 | M57: 0 | N57: 551836 | O57: 0 | P57: 0 | Q57: 0 | R57: 0 | S57: 0 | T57: 0 | U57: 0 | V57: 0 | W57: 0 | X57: 0 | Y57: 0 | Z57: 0 | AA57: 0 | AB57: 0 | AC57: 0 | AD57: 0 | AE57: 0 | AF57: 0 | AG57: 0 | AH57: 0 | AI57: 0 | AJ57: 551836 | AK57: 0 | AL57: 551836 | AM57: 0 | AN57: 0 | AO57: 0 | AP57: 0 | AQ57: 0 | AR57: 0 | AS57: 0 | AT57: 0 | AU57: 0 | AV57: 0 | AW57: 0 | AX57: 0 | AY57: 0 | AZ57: 0 | BA57: 0 | BB57: 0 | BC57: 0 | BD57: 0 | BE57: 0 | BF57: 0 | BG57: 0 | BH57: 551836 | BI57: 551836 | BJ57: 0 | BK57: 6441264 | BL57: 0 | BM57: 0
A58: 341 | B58: медикаменды | C58: субвенция | D58: 807 | E58: 07 02 | F58: 02 П 02 С9903 | G58: 244 | H58: 6000 | L58: =SUM(M58:AI58) -> 0 | AJ58: =SUM(AK58:BG58) -> 0 | BH58: 0 | BI58: 0 | BJ58: 0 | BK58: 6000
A59: 342 | B59: продукты питания | C59: субвенция | D59: 807 | E59: 07 02 | F59: 02 П 02 С9903 | G59: 244 | H59: =6744900-500000-383400-52900 -> 5808600 | L59: =SUM(M59:AI59) -> 513456 | N59: 513456 | AJ59: =SUM(AK59:BG59) -> 513456 | AL59: 513456 | BH59: 513456 | BI59: 513456 | BJ59: 0 | BK59: 5295144
A60: 345 | B60: мягкий инвентарь | C60: субвенция | D60: 807 | E60: 07 02 | F60: 02 П 02 С9903 | G60: 244 | H60: =225200-225200 -> 0 | L60: =SUM(M60:AI60) -> 0 | AJ60: =SUM(AK60:BG60) -> 0 | BH60: 0 | BI60: 0 | BJ60: 0 | BK60: 0
A61: 346 | B61: материал.запасы | C61: субвенция | D61: 807 | E61: 07 02 | F61: 02 П 02 С9903 | G61: 244 | H61: =349500-3500+725200+103800 -> 1175000 | L61: =SUM(M61:AI61) -> 38380 | N61: 38380 | AJ61: =SUM(AK61:BG61) -> 38380 | AL61: 38380 | BH61: 38380 | BI61: 38380 | BJ61: 0 | BK61: 1136620
A62: 349 | B62: МЗ однократного использования | C62: субвенция | D62: 807 | E62: 07 02 | F62: 02 П 02 С9903 | G62: 244 | H62: 3500 | L62: =SUM(M62:AI62) -> 0 | AJ62: =SUM(AK62:BG62) -> 0 | BH62: 0 | BI62: 0 | BJ62: 0 | BK62: 3500
A63: ИТОГО | B63: Итого расходов | C63: субвенция | D63: 807 | E63: 07 02 | F63: 02 П 02 С9903 | G63: 244 | H63: =H9+H12+H19+H22+H23+H26+H31+H32+H36+H39+H40+H41+H42+H43+H47+H48+H51+H56+H57 -> 65337000 | I63: =I9+I12+I19+I22+I23+I26+I31+I32+I36+I39+I40+I41+I42+I43+I47+I48+I51+I56+I57 -> 0 | J63: 0 | K63: 0 | L63: 5153034.89 | M63: 1000000 | N63: 4153034.89 | O63: 0 | P63: 0 | Q63: 0 | R63: 0 | S63: 0 | T63: 0 | U63: 0 | V63: 0 | W63: 0 | X63: 0 | Y63: 0 | Z63: 0 | AA63: 0 | AB63: 0 | AC63: 0 | AD63: 0 | AE63: 0 | AF63: 0 | AG63: 0 | AH63: 0 | AI63: 0 | AJ63: 1613034.89 | AK63: 960000 | AL63: 653034.89 | AM63: 0 | AN63: 0 | AO63: 0 | AP63: 0 | AQ63: 0 | AR63: 0 | AS63: 0 | AT63: 0 | AU63: 0 | AV63: 0 | AW63: 0 | AX63: 0 | AY63: 0 | AZ63: 0 | BA63: 0 | BB63: 0 | BC63: 0 | BD63: 0 | BE63: 0 | BF63: 0 | BG63: 0 | BH63: 5153034.89 | BI63: 1613034.89 | BJ63: 3540000 | BK63: 60183965.11 | BL63: 0 | BM63: 0
C64: местный | D64: 807 | E64: 07 02 | F64: 02 П 02 М9903 | G64: 244 | BN64: =BN8+1 -> 2
A65: 211 | B65: оплата труда | C65: =C64 -> местный | D65: =D64 -> 807 | E65: =E64 -> 07 02 | F65: =F64 -> 02 П 02 М9903 | G65: =G64 -> 244 | H65: =SUM(H66:H67) -> 0 | I65: =SUM(I66:I67) -> 0 | J65: 0 | K65: 0 | L65: 0 | M65: 0 | N65: 0 | O65: 0 | P65: 0 | Q65: 0 | R65: 0 | S65: 0 | T65: 0 | U65: 0 | V65: 0 | W65: 0 | X65: 0 | Y65: 0 | Z65: 0 | AA65: 0 | AB65: 0 | AC65: 0 | AD65: 0 | AE65: 0 | AF65: 0 | AG65: 0 | AH65: 0 | AI65: 0 | AJ65: 0 | AK65: 0 | AL65: 0 | AM65: 0 | AN65: 0 | AO65: 0 | AP65: 0 | AQ65: 0 | AR65: 0 | AS65: 0 | AT65: 0 | AU65: 0 | AV65: 0 | AW65: 0 | AX65: 0 | AY65: 0 | AZ65: 0 | BA65: 0 | BB65: 0 | BC65: 0 | BD65: 0 | BE65: 0 | BF65: 0 | BG65: 0 | BH65: =J65+L65 -> 0 | BI65: =AJ65 -> 0 | BJ65: =K65+L65-AJ65 -> 0 | BK65: =H65-BH65 -> 0 | BL65: 0 | BM65: 0
A66: 211.01 | B66: Основная з/пл | C66: =C65 -> местный | D66: =D65 -> 807 | E66: =E65 -> 07 02 | F66: =F65 -> 02 П 02 М9903 | G66: =G65 -> 244 | L66: =SUM(M66:AI66) -> 0 | AJ66: =SUM(AK66:BG66) -> 0 | BH66: 0 | BI66: 0 | BJ66: 0 | BK66: 0
A67: 211.02 | B67: Кл. руководство | C67: =C66 -> местный | D67: 807 | E67: 07 02 | F67: 02 П 02 М9903 | G67: 244 | L67: =SUM(M67:AI67) -> 0 | AJ67: =SUM(AK67:BG67) -> 0 | BH67: 0 | BI67: 0 | BJ67: 0 | BK67: 0
A68: 212 | B68: Всего проч. | C68: местный | D68: 807 | E68: 07 02 | F68: 02 П 02 М9903 | G68: 244 | H68: =SUM(H69:H74) -> 0 | I68: =SUM(I69:I74) -> 0 | J68: 0 | K68: 0 | L68: 0 | M68: 0 | N68: 0 | O68: 0 | P68: 0 | Q68: 0 | R68: 0 | S68: 0 | T68: 0 | U68: 0 | V68: 0 | W68: 0 | X68: 0 | Y68: 0 | Z68: 0 | AA68: 0 | AB68: 0 | AC68: 0 | AD68: 0 | AE68: 0 | AF68: 0 | AG68: 0 | AH68: 0 | AI68: 0 | AJ68: 0 | AK68: 0 | AL68: 0 | AM68: 0 | AN68: 0 | AO68: 0 | AP68: 0 | AQ68: 0 | AR68: 0 | AS68: 0 | AT68: 0 | AU68: 0 | AV68: 0 | AW68: 0 | AX68: 0 | AY68: 0 | AZ68: 0 | BA68: 0 | BB68: 0 | BC68: 0 | BD68: 0 | BE68: 0 | BF68: 0 | BG68: 0 | BH68: 0 | BI68: 0 | BJ68: 0 | BK68: 0 | BL68: 0 | BM68: 0
A69: 212.01 | B69: суточные | C69: местный | D69: 807 | E69: 07 02 | F69: 02 П 02 М9903 | G69: 244 | L69: =SUM(M69:AI69) -> 0 | AJ69: =SUM(AK69:BG69) -> 0 | BH69: 0 | BI69: 0 | BJ69: 0 | BK69: 0
A70: 212.02 | B70: книги | C70: местный | D70: 807 | E70: 07 02 | F70: 02 П 02 М9903 | G70: 244 | L70: 0 | AJ70: 0 | BH70: 0 | BI70: 0 | BJ70: 0 | BK70: 0
A71: 212.03 | B71: СКЛ | C71: местный | D71: 807 | E71: 07 02 | F71: 02 П 02 М9903 | G71: 244 | L71: 0 | AJ71: 0 | BH71: 0 | BI71: 0 | BJ71: 0 | BK71: 0
A72: 212.04 | B72: проезд в отпуск | C72: местный | D72: 807 | E72: 07 02 | F72: 02 П 02 М9903 | G72: 244 | L72: 0 | AJ72: 0 | BH72: 0 | BI72: 0 | BJ72: 0 | BK72: 0
A73: 212.05 | B73: соц.помощь | C73: местный | D73: 807 | E73: 07 02 | F73: 02 П 02 М9903 | G73: 244 | L73: 0 | AJ73: 0 | BH73: 0 | BI73: 0 | BJ73: 0 | BK73: 0
A74: 212.06 | B74: СКЛ | C74: местный | D74: 807 | E74: 07 02 | F74: 02 П 02 М9903 | G74: 244 | L74: 0 | AJ74: 0 | BH74: 0 | BI74: 0 | BJ74: 0 | BK74: 0
A75: 213 | B75: ЕСН | C75: местный | D75: 807 | E75: 07 02 | F75: 02 П 02 М9903 | G75: 244 | H75: =SUM(H76:H77) -> 0 | I75: =SUM(I76:I77) -> 0 | J75: 0 | K75: 0 | L75: 0 | M75: 0 | N75: 0 | O75: 0 | P75: 0 | Q75: 0 | R75: 0 | S75: 0 | T75: 0 | U75: 0 | V75: 0 | W75: 0 | X75: 0 | Y75: 0 | Z75: 0 | AA75: 0 | AB75: 0 | AC75: 0 | AD75: 0 | AE75: 0 | AF75: 0 | AG75: 0 | AH75: 0 | AI75: 0 | AJ75: 0 | AK75: 0 | AL75: 0 | AM75: 0 | AN75: 0 | AO75: 0 | AP75: 0 | AQ75: 0 | AR75: 0 | AS75: 0 | AT75: 0 | AU75: 0 | AV75: 0 | AW75: 0 | AX75: 0 | AY75: 0 | AZ75: 0 | BA75: 0 | BB75: 0 | BC75: 0 | BD75: 0 | BE75: 0 | BF75: 0 | BG75: 0 | BH75: 0 | BI75: 0 | BJ75: 0 | BK75: 0 | BL75: 0 | BM75: 0
A76: 213.01 | B76: ЕСН основ. | C76: местный | D76: 807 | E76: 07 02 | F76: 02 П 02 М9903 | G76: 244 | L76: =SUM(M76:AI76) -> 0 | AJ76: =SUM(AK76:BG76) -> 0 | BH76: 0 | BI76: 0 | BJ76: 0 | BK76: 0
A77: 213.02 | B77: ЕСН кл. рук. | C77: местный | D77: 807 | E77: 07 02 | F77: 02 П 02 М9903 | G77: 244 | L77: =SUM(M77:AI77) -> 0 | AJ77: =SUM(AK77:BG77) -> 0 | BH77: 0 | BI77: 0 | BJ77: 0 | BK77: 0
A78: 221 | B78: связь | C78: местный | D78: 807 | E78: 07 02 | F78: 02 П 02 М9903 | G78: 244 | L78: =SUM(M78:AI78) -> 0 | AJ78: =SUM(AK78:BG78) -> 0 | BH78: 0 | BI78: 0 | BJ78: 0 | BK78: 0
A79: 222 | B79: Всего тран. | C79: местный | D79: 807 | E79: 07 02 | F79: 02 П 02 М9903 | G79: 244 | H79: =SUM(H80:H81) -> 0 | I79: =SUM(I80:I81) -> 0 | J79: 0 | K79: 0 | L79: 0 | M79: 0 | N79: 0 | O79: 0 | P79: 0 | Q79: 0 | R79: 0 | S79: 0 | T79: 0 | U79: 0 | V79: 0 | W79: 0 | X79: 0 | Y79: 0 | Z79: 0 | AA79: 0 | AB79: 0 | AC79: 0 | AD79: 0 | AE79: 0 | AF79: 0 | AG79: 0 | AH79: 0 | AI79: 0 | AJ79: 0 | AK79: 0 | AL79: 0 | AM79: 0 | AN79: 0 | AO79: 0 | AP79: 0 | AQ79: 0 | AR79: 0 | AS79: 0 | AT79: 0 | AU79: 0 | AV79: 0 | AW79: 0 | AX79: 0 | AY79: 0 | AZ79: 0 | BA79: 0 | BB79: 0 | BC79: 0 | BD79: 0 | BE79: 0 | BF79: 0 | BG79: 0 | BH79: 0 | BI79: 0 | BJ79: 0 | BK79: 0 | BL79: 0 | BM79: 0
A80: 222.01 | B80: проезд команд. | C80: местный | D80: 807 | E80: 07 02 | F80: 02 П 02 М9903 | G80: 244 | L80: =SUM(M80:AI80) -> 0 | AJ80: =SUM(AK80:BG80) -> 0 | BH80: 0 | BI80: 0 | BJ80: 0 | BK80: 0
A81: 222.02 | B81: транспортные усл | C81: местный | D81: 807 | E81: 07 02 | F81: 02 П 02 М9903 | G81: 244 | L81: =SUM(M81:AI81) -> 0 | AJ81: =SUM(AK81:BG81) -> 0 | BH81: 0 | BI81: 0 | BJ81: 0 | BK81: 0
A82: 223 | B82: Всего ком. усл. | C82: местный | D82: 807 | E82: 07 02 | F82: 02 П 02 М9903 | G82: 244 | H82: =SUM(H83:H86) -> 14937100 | I82: =SUM(I83:I86) -> 0 | J82: 0 | K82: 0 | L82: 2145245.39 | M82: 0 | N82: 2145245.39 | O82: 0 | P82: 0 | Q82: 0 | R82: 0 | S82: 0 | T82: 0 | U82: 0 | V82: 0 | W82: 0 | X82: 0 | Y82: 0 | Z82: 0 | AA82: 0 | AB82: 0 | AC82: 0 | AD82: 0 | AE82: 0 | AF82: 0 | AG82: 0 | AH82: 0 | AI82: 0 | AJ82: 2145245.39 | AK82: 0 | AL82: 2145245.39 | AM82: 0 | AN82: 0 | AO82: 0 | AP82: 0 | AQ82: 0 | AR82: 0 | AS82: 0 | AT82: 0 | AU82: 0 | AV82: 0 | AW82: 0 | AX82: 0 | AY82: 0 | AZ82: 0 | BA82: 0 | BB82: 0 | BC82: 0 | BD82: 0 | BE82: 0 | BF82: 0 | BG82: 0 | BH82: 2145245.39 | BI82: 2145245.39 | BJ82: 0 | BK82: 12791854.61 | BL82: 0 | BM82: 0
A83: 223 | B83: Водоснабжение 244 | C83: местный | D83: 807 | E83: 07 02 | F83: 02 П 02 М9903 | G83: 244 | H83: =7103300 -> 7103300 | L83: =SUM(M83:AI83) -> 78593.31 | N83: 78593.31 | AJ83: =SUM(AK83:BG83) -> 78593.31 | AL83: 78593.31 | BH83: 78593.31 | BI83: 78593.31 | BJ83: 0 | BK83: 7024706.69
A84: 223 | B84: Энерго ресурсы 247 | C84: местный | D84: 807 | E84: 07 02 | F84: 02 П 02 М9903 | G84: 247 | H84: =9000000-1068600-97600 -> 7833800 | L84: =SUM(M84:AI84) -> 2066652.08 | N84: 2066652.08 | AJ84: =SUM(AK84:BG84) -> 2066652.08 | AL84: 2066652.08 | BH84: 2066652.08 | BI84: 2066652.08 | BJ84: 0 | BK84: 5767147.92
A85: 223.03 | B85: электроэнергия | C85: местный | D85: 807 | E85: 07 02 | F85: 02 П 02 М9903 | G85: =G83 -> 244 | L85: =SUM(M85:AI85) -> 0 | AJ85: =SUM(AK85:BG85) -> 0 | BH85: 0 | BI85: 0 | BJ85: 0 | BK85: 0
A86: 223.04 | B86: водоснабжение | C86: местный | D86: 807 | E86: 07 02 | F86: 02 П 02 М9903 | G86: 244 | L86: =SUM(M86:AI86) -> 0 | AJ86: =SUM(AK86:BG86) -> 0 | BH86: 0 | BI86: 0 | BJ86: 0 | BK86: 0
A87: 224 | B87: аренда | C87: местный | D87: 807 | E87: 07 02 | F87: 02 П 02 М9903 | G87: 244 | L87: =SUM(M87:AI87) -> 0 | AJ87: =SUM(AK87:BG87) -> 0 | BH87: 0 | BI87: 0 | BJ87: 0 | BK87: 0
A88: 225 | B88: Всего содер. Имущ. | C88: местный | D88: 807 | E88: 07 02 | F88: 02 П 02 М9903 | G88: 244 | H88: =SUM(H89:H91) -> 88000 | I88: =SUM(I89:I91) -> 0 | J88: 0 | K88: 0 | L88: 0 | M88: 0 | N88: 0 | O88: 0 | P88: 0 | Q88: 0 | R88: 0 | S88: 0 | T88: 0 | U88: 0 | V88: 0 | W88: 0 | X88: 0 | Y88: 0 | Z88: 0 | AA88: 0 | AB88: 0 | AC88: 0 | AD88: 0 | AE88: 0 | AF88: 0 | AG88: 0 | AH88: 0 | AI88: 0 | AJ88: 0 | AK88: 0 | AL88: 0 | AM88: 0 | AN88: 0 | AO88: 0 | AP88: 0 | AQ88: 0 | AR88: 0 | AS88: 0 | AT88: 0 | AU88: 0 | AV88: 0 | AW88: 0 | AX88: 0 | AY88: 0 | AZ88: 0 | BA88: 0 | BB88: 0 | BC88: 0 | BD88: 0 | BE88: 0 | BF88: 0 | BG88: 0 | BH88: 0 | BI88: 0 | BJ88: 0 | BK88: 88000 | BL88: 0 | BM88: 0
A89: 225 | B89: работы и услуги на содержание имущества | C89: местный | D89: 807 | E89: 07 02 | F89: 02 П 02 М9903 | G89: 244 | H89: 88000 | L89: =SUM(M89:AI89) -> 0 | AJ89: =SUM(AK89:BG89) -> 0 | BH89: 0 | BI89: 0 | BJ89: 0 | BK89: 88000
A90: 225.02 | B90: вывоз мусора | C90: местный | D90: 807 | E90: 07 02 | F90: 02 П 02 М9903 | G90: 244 | L90: =SUM(M90:AI90) -> 0 | AJ90: =SUM(AK90:BG90) -> 0 | BH90: 0 | BI90: 0 | BJ90: 0 | BK90: 0
A91: 225.03 | B91: прочие ком. услуги | C91: местный | D91: 807 | E91: 07 02 | F91: 02 П 02 М9903 | G91: 244 | L91: =SUM(M91:AI91) -> 0 | AJ91: =SUM(AK91:BG91) -> 0 | BH91: 0 | BI91: 0 | BJ91: 0 | BK91: 0
A92: 226 | B92: Прочие услуги | C92: местный | D92: 807 | E92: 07 02 | F92: 02 П 02 М9903 | G92: 244 | H92: =SUM(H93:H94) -> 8000 | I92: =SUM(I93:I94) -> 0 | J92: 0 | K92: 0 | L92: 0 | M92: 0 | N92: 0 | O92: 0 | P92: 0 | Q92: 0 | R92: 0 | S92: 0 | T92: 0 | U92: 0 | V92: 0 | W92: 0 | X92: 0 | Y92: 0 | Z92: 0 | AA92: 0 | AB92: 0 | AC92: 0 | AD92: 0 | AE92: 0 | AF92: 0 | AG92: 0 | AH92: 0 | AI92: 0 | AJ92: 0 | AK92: 0 | AL92: 0 | AM92: 0 | AN92: 0 | AO92: 0 | AP92: 0 | AQ92: 0 | AR92: 0 | AS92: 0 | AT92: 0 | AU92: 0 | AV92: 0 | AW92: 0 | AX92: 0 | AY92: 0 | AZ92: 0 | BA92: 0 | BB92: 0 | BC92: 0 | BD92: 0 | BE92: 0 | BF92: 0 | BG92: 0 | BH92: 0 | BI92: 0 | BJ92: 0 | BK92: 8000 | BL92: 0 | BM92: 0
A93: 226 | B93: прочие услуги | C93: местный | D93: 807 | E93: 07 02 | F93: 02 П 02 М9903 | G93: 244 | H93: 8000 | L93: =SUM(M93:AI93) -> 0 | AJ93: =SUM(AK93:BG93) -> 0 | BH93: 0 | BI93: 0 | BJ93: 0 | BK93: 8000
A94: 226.02 | B94: проч. услуги | C94: местный | D94: 807 | E94: 07 02 | F94: 02 П 02 М9903 | G94: 244 | L94: 0 | AJ94: 0 | BH94: 0 | BI94: 0 | BJ94: 0 | BK94: 0
A95: 241 | B95: Содержание гостиницы | C95: местный | D95: 807 | E95: 07 02 | F95: 02 П 02 М9903 | G95: 244 | L95: 0 | AJ95: 0 | BH95: 0 | BI95: 0 | BJ95: 0 | BK95: 0
A96: 252 | B96: Переч. наднац. орг. | C96: местный | D96: 807 | E96: 07 02 | F96: 02 П 02 М9903 | G96: 244 | L96: 0 | AJ96: 0 | BH96: 0 | BI96: 0 | BJ96: 0 | BK96: 0
A97: 253 | B97: перечисл. междунар. орган | C97: местный | D97: 807 | E97: 07 02 | F97: 02 П 02 М9903 | G97: 244 | L97: 0 | AJ97: 0 | BH97: 0 | BI97: 0 | BJ97: 0 | BK97: 0
A98: 261 | B98: Пособие по соц. Страх. населения | C98: местный | D98: 807 | E98: 07 02 | F98: 02 П 02 М9903 | G98: 244 | L98: 0 | AJ98: 0 | BH98: 0 | BI98: 0 | BJ98: 0 | BK98: 0
A99: 262 | B99: Пособие по соц. пом. населению | C99: местный | D99: 807 | E99: 07 02 | F99: 02 П 02 М9903 | G99: 244 | H99: =SUM(H100:H102) -> 0 | I99: =SUM(I100:I102) -> 0 | J99: 0 | K99: 0 | L99: 0 | M99: 0 | N99: 0 | O99: 0 | P99: 0 | Q99: 0 | R99: 0 | S99: 0 | T99: 0 | U99: 0 | V99: 0 | W99: 0 | X99: 0 | Y99: 0 | Z99: 0 | AA99: 0 | AB99: 0 | AC99: 0 | AD99: 0 | AE99: 0 | AF99: 0 | AG99: 0 | AH99: 0 | AI99: 0 | AJ99: 0 | AK99: 0 | AL99: 0 | AM99: 0 | AN99: 0 | AO99: 0 | AP99: 0 | AQ99: 0 | AR99: 0 | AS99: 0 | AT99: 0 | AU99: 0 | AV99: 0 | AW99: 0 | AX99: 0 | AY99: 0 | AZ99: 0 | BA99: 0 | BB99: 0 | BC99: 0 | BD99: 0 | BE99: 0 | BF99: 0 | BG99: 0 | BH99: 0 | BI99: 0 | BJ99: 0 | BK99: 0 | BL99: =SUM(BL100:BL102) -> 0 | BM99: =SUM(BM100:BM102) -> 0
A100: 262.01 | B100: льгота по к/услугам | C100: местный | D100: 807 | E100: 07 02 | F100: 02 П 02 М9903 | G100: 244 | L100: =SUM(M100:AI100) -> 0 | AJ100: =SUM(AK100:BG100) -> 0 | BH100: 0 | BI100: 0 | BJ100: 0 | BK100: 0
A101: 262.02 | B101: прочее | C101: местный | D101: 807 | E101: 07 02 | F101: 02 П 02 М9903 | G101: 244 | L101: =SUM(M101:AI101) -> 0 | AJ101: =SUM(AK101:BG101) -> 0 | BH101: 0 | BI101: 0 | BJ101: 0 | BK101: 0
A102: 262.03 | B102: прочее | C102: местный | D102: 807 | E102: 07 02 | F102: 02 П 02 М9903 | G102: 244 | L102: =SUM(M102:AI102) -> 0 | AJ102: =SUM(AK102:BG102) -> 0 | BH102: 0 | BI102: 0 | BJ102: 0 | BK102: 0
A103: 263 | B103: Соц. пособ. Выпл. орган. сектора гос. управ. | C103: местный | D103: 807 | E103: 07 02 | F103: 02 П 02 М9903 | G103: 851 | L103: =SUM(M103:AI103) -> 0 | AJ103: =SUM(AK103:BG103) -> 0 | BH103: 0 | BI103: 0 | BJ103: 0 | BK103: 0
A104: 291 | B104: Прочие расходы | C104: местный | D104: 807 | E104: 07 02 | F104: 02 П 02 М9903 | G104: 851 | H104: =SUM(H105:H106) -> 2152200 | I104: =SUM(I105:I106) -> 0 | J104: 0 | K104: 0 | L104: 0 | M104: 0 | N104: 0 | O104: 0 | P104: 0 | Q104: 0 | R104: 0 | S104: 0 | T104: 0 | U104: 0 | V104: 0 | W104: 0 | X104: 0 | Y104: 0 | Z104: 0 | AA104: 0 | AB104: 0 | AC104: 0 | AD104: 0 | AE104: 0 | AF104: 0 | AG104: 0 | AH104: 0 | AI104: 0 | AJ104: 0 | AK104: 0 | AL104: 0 | AM104: 0 | AN104: 0 | AO104: 0 | AP104: 0 | AQ104: 0 | AR104: 0 | AS104: 0 | AT104: 0 | AU104: 0 | AV104: 0 | AW104: 0 | AX104: 0 | AY104: 0 | AZ104: 0 | BA104: 0 | BB104: 0 | BC104: 0 | BD104: 0 | BE104: 0 | BF104: 0 | BG104: 0 | BH104: 0 | BI104: 0 | BJ104: 0 | BK104: 2152200 | BL104: 0 | BM104: 0
A105: 291 | B105: Налог на имущество | C105: местный | D105: 807 | E105: 07 02 | F105: 02 П 02 М9903 | G105: 851 | H105: =2152200-3200 -> 2149000 | L105: =SUM(M105:AI105) -> 0 | AJ105: =SUM(AK105:BG105) -> 0 | BH105: 0 | BI105: 0 | BJ105: 0 | BK105: 2149000
A106: 291 | B106: транспортный налог | C106: местный | D106: 807 | E106: 07 02 | F106: 02 П 02 М9903 | G106: 852 | H106: 3200 | L106: =SUM(M106:AI106) -> 0 | AJ106: =SUM(AK106:BG106) -> 0 | BH106: 0 | BI106: 0 | BJ106: 0 | BK106: 3200
A107: 310 | B107: Увеличение ст-ти ОС | C107: местный | D107: 807 | E107: 07 02 | F107: 02 П 02 М9903 | G107: 244 | H107: =SUM(H108:H111) -> 0 | I107: =SUM(I108:I111) -> 0 | J107: 0 | K107: 0 | L107: 0 | M107: 0 | N107: 0 | O107: 0 | P107: 0 | Q107: 0 | R107: 0 | S107: 0 | T107: 0 | U107: 0 | V107: 0 | W107: 0 | X107: 0 | Y107: 0 | Z107: 0 | AA107: 0 | AB107: 0 | AC107: 0 | AD107: 0 | AE107: 0 | AF107: 0 | AG107: 0 | AH107: 0 | AI107: 0 | AJ107: 0 | AK107: 0 | AL107: 0 | AM107: 0 | AN107: 0 | AO107: 0 | AP107: 0 | AQ107: 0 | AR107: 0 | AS107: 0 | AT107: 0 | AU107: 0 | AV107: 0 | AW107: 0 | AX107: 0 | AY107: 0 | AZ107: 0 | BA107: 0 | BB107: 0 | BC107: 0 | BD107: 0 | BE107: 0 | BF107: 0 | BG107: 0 | BH107: 0 | BI107: 0 | BJ107: 0 | BK107: 0 | BL107: 0 | BM107: 0
A108: 292 | B108: штрафы | C108: местный | D108: 807 | E108: 07 02 | F108: 02 П 02 М9903 | G108: 853 | L108: =SUM(M108:AI108) -> 0 | AJ108: =SUM(AK108:BG108) -> 0 | BH108: 0 | BI108: 0 | BJ108: 0 | BK108: 0
A109: 310.02 | B109: расх. матер больше года | C109: местный | D109: 807 | E109: 07 02 | F109: 02 П 02 М9903 | G109: 244 | L109: =SUM(M109:AI109) -> 0 | AJ109: =SUM(AK109:BG109) -> 0 | BH109: 0 | BI109: 0 | BJ109: 0 | BK109: 0
A110: 310.03 | B110: приобретение предм. дл. польз. | C110: местный | D110: 807 | E110: 07 02 | F110: 02 П 02 М9903 | G110: 244 | L110: =SUM(M110:AI110) -> 0 | AJ110: =SUM(AK110:BG110) -> 0 | BH110: 0 | BI110: 0 | BJ110: 0 | BK110: 0
A111: 310.04 | B111: капитальное стр-во | C111: местный | D111: 807 | E111: 07 02 | F111: 02 П 02 М9903 | G111: 244 | L111: =SUM(M111:AI111) -> 0 | AJ111: =SUM(AK111:BG111) -> 0 | BH111: 0 | BI111: 0 | BJ111: 0 | BK111: 0
A112: 320 | B112: Увеличение ст-ти немат. активов | C112: местный | D112: 807 | E112: 07 02 | F112: 02 П 02 М9903 | G112: 244 | L112: =SUM(M112:AI112) -> 0 | AJ112: =SUM(AK112:BG112) -> 0 | BH112: 0 | BI112: 0 | BJ112: 0 | BK112: 0
A113: 340 | B113: Увеличение мат. запасов | C113: местный | D113: 807 | E113: 07 02 | F113: 02 П 02 М9903 | G113: 244 | H113: =SUM(H114:H118) -> 0 | I113: =SUM(I114:I118) -> 0 | J113: 0 | K113: 0 | L113: 0 | M113: 0 | N113: 0 | O113: 0 | P113: 0 | Q113: 0 | R113: 0 | S113: 0 | T113: 0 | U113: 0 | V113: 0 | W113: 0 | X113: 0 | Y113: 0 | Z113: 0 | AA113: 0 | AB113: 0 | AC113: 0 | AD113: 0 | AE113: 0 | AF113: 0 | AG113: 0 | AH113: 0 | AI113: 0 | AJ113: 0 | AK113: 0 | AL113: 0 | AM113: 0 | AN113: 0 | AO113: 0 | AP113: 0 | AQ113: 0 | AR113: 0 | AS113: 0 | AT113: 0 | AU113: 0 | AV113: 0 | AW113: 0 | AX113: 0 | AY113: 0 | AZ113: 0 | BA113: 0 | BB113: 0 | BC113: 0 | BD113: 0 | BE113: 0 | BF113: 0 | BG113: 0 | BH113: 0 | BI113: 0 | BJ113: 0 | BK113: 0 | BL113: 0 | BM113: 0
A114: 341 | B114: медикаменды | C114: местный | D114: 807 | E114: 07 02 | F114: 02 П 02 М9903 | G114: 244 | L114: =SUM(M114:AI114) -> 0 | AJ114: =SUM(AK114:BG114) -> 0 | BH114: 0 | BI114: 0 | BJ114: 0 | BK114: 0
A115: 345 | C115: местный | D115: 807 | E115: 07 02 | F115: 02 П 02 М9903 | G115: 244 | L115: =SUM(M115:AI115) -> 0 | AJ115: =SUM(AK115:BG115) -> 0 | BH115: 0 | BI115: 0 | BJ115: 0 | BK115: 0
A116: 346 | C116: местный | D116: 807 | E116: 07 02 | F116: 02 П 02 М9903 | G116: =G115 -> 244 | L116: =SUM(M116:AI116) -> 0 | AJ116: =SUM(AK116:BG116) -> 0 | BH116: 0 | BI116: 0 | BJ116: 0 | BK116: 0
A117: 347 | B117: материал.запасы | C117: местный | D117: 807 | E117: 07 02 | F117: 02 П 02 М9903 | G117: 244 | L117: =SUM(M117:AI117) -> 0 | AJ117: =SUM(AK117:BG117) -> 0 | BH117: 0 | BI117: 0 | BJ117: 0 | BK117: 0
A118: 349 | C118: местный | D118: 807 | E118: 07 02 | F118: 02 П 02 М9903 | G118: =G117 -> 244 | L118: =SUM(M118:AI118) -> 0 | AJ118: =SUM(AK118:BG118) -> 0 | BH118: 0 | BI118: 0 | BJ118: 0 | BK118: 0
A119: ИТОГО | B119: Итого расходов | C119: местный | D119: 807 | E119: 07 02 | F119: 02 П 02 М9903 | G119: 244 | H119: =H65+H68+H75+H78+H79+H82+H87+H88+H92+H95+H96+H97+H98+H99+H103+H104+H107+H112+H113 -> 17185300 | I119: =I65+I68+I75+I78+I79+I82+I87+I88+I92+I95+I96+I97+I98+I99+I103+I104+I107+I112+I113 -> 0 | J119: 0 | K119: 0 | L119: 2145245.39 | M119: 0 | N119: 2145245.39 | O119: 0 | P119: 0 | Q119: 0 | R119: 0 | S119: 0 | T119: 0 | U119: 0 | V119: 0 | W119: 0 | X119: 0 | Y119: 0 | Z119: 0 | AA119: 0 | AB119: 0 | AC119: 0 | AD119: 0 | AE119: 0 | AF119: 0 | AG119: 0 | AH119: 0 | AI119: 0 | AJ119: 2145245.39 | AK119: 0 | AL119: 2145245.39 | AM119: 0 | AN119: 0 | AO119: 0 | AP119: 0 | AQ119: 0 | AR119: 0 | AS119: 0 | AT119: 0 | AU119: 0 | AV119: 0 | AW119: 0 | AX119: 0 | AY119: 0 | AZ119: 0 | BA119: 0 | BB119: 0 | BC119: 0 | BD119: 0 | BE119: 0 | BF119: 0 | BG119: 0 | BH119: 2145245.39 | BI119: 2145245.39 | BJ119: 0 | BK119: 15040054.61 | BL119: 0 | BM119: 0
B120: Учебники | C120: 26020 | D120: 807 | E120: 07 09 | F120: 02 1 04 80130 | G120: 244 | BN120: =BN64+1 -> 3
A121: 211 | B121: оплата труда | C121: =C120 -> 26020 | D121: =D120 -> 807 | E121: =E120 -> 07 09 | F121: =F120 -> 02 1 04 80130 | G121: =G120 -> 244 | H121: =SUM(H122:H123) -> 0 | I121: =SUM(I122:I123) -> 0 | J121: 0 | K121: 0 | L121: 0 | M121: 0 | N121: 0 | O121: 0 | P121: 0 | Q121: 0 | R121: 0 | S121: 0 | T121: 0 | U121: 0 | V121: 0 | W121: 0 | X121: 0 | Y121: 0 | Z121: 0 | AA121: 0 | AB121: 0 | AC121: 0 | AD121: 0 | AE121: 0 | AF121: 0 | AG121: 0 | AH121: 0 | AI121: 0 | AJ121: 0 | AK121: 0 | AL121: 0 | AM121: 0 | AN121: 0 | AO121: 0 | AP121: 0 | AQ121: 0 | AR121: 0 | AS121: 0 | AT121: 0 | AU121: 0 | AV121: 0 | AW121: 0 | AX121: 0 | AY121: 0 | AZ121: 0 | BA121: 0 | BB121: 0 | BC121: 0 | BD121: 0 | BE121: 0 | BF121: 0 | BG121: 0 | BH121: =J121+L121 -> 0 | BI121: =AJ121 -> 0 | BJ121: =K121+L121-AJ121 -> 0 | BK121: =H121-BH121 -> 0 | BL121: 0 | BM121: 0
A122: 211.01 | B122: Основная з/пл | C122: =C121 -> 26020 | D122: =D121 -> 807 | E122: =E121 -> 07 09 | F122: =F121 -> 02 1 04 80130 | G122: 244 | L122: =SUM(M122:AI122) -> 0 | AJ122: =SUM(AK122:BG122) -> 0 | BH122: 0 | BI122: 0 | BJ122: 0 | BK122: 0
A123: 211.02 | B123: Кл. руководство | C123: =C122 -> 26020 | D123: 807 | E123: 07 09 | F123: 02 1 04 80130 | G123: 244 | L123: =SUM(M123:AI123) -> 0 | AJ123: =SUM(AK123:BG123) -> 0 | BH123: 0 | BI123: 0 | BJ123: 0 | BK123: 0
A124: 212 | B124: Всего проч. | C124: 26020 | D124: 807 | E124: 07 09 | F124: 02 1 04 80130 | G124: 244 | H124: =SUM(H125:H130) -> 0 | I124: =SUM(I125:I130) -> 0 | J124: 0 | K124: 0 | L124: 0 | M124: 0 | N124: 0 | O124: 0 | P124: 0 | Q124: 0 | R124: 0 | S124: 0 | T124: 0 | U124: 0 | V124: 0 | W124: 0 | X124: 0 | Y124: 0 | Z124: 0 | AA124: 0 | AB124: 0 | AC124: 0 | AD124: 0 | AE124: 0 | AF124: 0 | AG124: 0 | AH124: 0 | AI124: 0 | AJ124: 0 | AK124: 0 | AL124: 0 | AM124: 0 | AN124: 0 | AO124: 0 | AP124: 0 | AQ124: 0 | AR124: 0 | AS124: 0 | AT124: 0 | AU124: 0 | AV124: 0 | AW124: 0 | AX124: 0 | AY124: 0 | AZ124: 0 | BA124: 0 | BB124: 0 | BC124: 0 | BD124: 0 | BE124: 0 | BF124: 0 | BG124: 0 | BH124: 0 | BI124: 0 | BJ124: 0 | BK124: 0 | BL124: 0 | BM124: 0
A125: 212.01 | B125: суточные | C125: 26020 | D125: 807 | E125: 07 09 | F125: 02 1 04 80130 | G125: 244 | L125: =SUM(M125:AI125) -> 0 | AJ125: =SUM(AK125:BG125) -> 0 | BH125: 0 | BI125: 0 | BJ125: 0 | BK125: 0
A126: 212.02 | B126: книги | C126: 26020 | D126: 807 | E126: 07 09 | F126: 02 1 04 80130 | G126: 244 | L126: 0 | AJ126: 0 | BH126: 0 | BI126: 0 | BJ126: 0 | BK126: 0
A127: 212.03 | B127: СКЛ | C127: 26020 | D127: 807 | E127: 07 09 | F127: 02 1 04 80130 | G127: 244 | L127: 0 | AJ127: 0 | BH127: 0 | BI127: 0 | BJ127: 0 | BK127: 0
A128: 212.04 | B128: проезд в отпуск | C128: 26020 | D128: 807 | E128: 07 09 | F128: 02 1 04 80130 | G128: 244 | L128: 0 | AJ128: 0 | BH128: 0 | BI128: 0 | BJ128: 0 | BK128: 0
A129: 212.05 | B129: соц.помощь | C129: 26020 | D129: 807 | E129: 07 09 | F129: 02 1 04 80130 | G129: 244 | L129: 0 | AJ129: 0 | BH129: 0 | BI129: 0 | BJ129: 0 | BK129: 0
A130: 212.06 | B130: СКЛ | C130: 26020 | D130: 807 | E130: 07 09 | F130: 02 1 04 80130 | G130: 244 | L130: 0 | AJ130: 0 | BH130: 0 | BI130: 0 | BJ130: 0 | BK130: 0
A131: 213 | B131: ЕСН | C131: 26020 | D131: 807 | E131: 07 09 | F131: 02 1 04 80130 | G131: 244 | H131: =SUM(H132:H133) -> 0 | I131: =SUM(I132:I133) -> 0 | J131: 0 | K131: 0 | L131: 0 | M131: 0 | N131: 0 | O131: 0 | P131: 0 | Q131: 0 | R131: 0 | S131: 0 | T131: 0 | U131: 0 | V131: 0 | W131: 0 | X131: 0 | Y131: 0 | Z131: 0 | AA131: 0 | AB131: 0 | AC131: 0 | AD131: 0 | AE131: 0 | AF131: 0 | AG131: 0 | AH131: 0 | AI131: 0 | AJ131: 0 | AK131: 0 | AL131: 0 | AM131: 0 | AN131: 0 | AO131: 0 | AP131: 0 | AQ131: 0 | AR131: 0 | AS131: 0 | AT131: 0 | AU131: 0 | AV131: 0 | AW131: 0 | AX131: 0 | AY131: 0 | AZ131: 0 | BA131: 0 | BB131: 0 | BC131: 0 | BD131: 0 | BE131: 0 | BF131: 0 | BG131: 0 | BH131: 0 | BI131: 0 | BJ131: 0 | BK131: 0 | BL131: 0 | BM131: 0
A132: 213.01 | B132: ЕСН основ. | C132: 26020 | D132: 807 | E132: 07 09 | F132: 02 1 04 80130 | G132: 244 | L132: =SUM(M132:AI132) -> 0 | AJ132: =SUM(AK132:BG132) -> 0 | BH132: 0 | BI132: 0 | BJ132: 0 | BK132: 0
A133: 213.02 | B133: ЕСН кл. рук. | C133: 26020 | D133: 807 | E133: 07 09 | F133: 02 1 04 80130 | G133: 244 | L133: =SUM(M133:AI133) -> 0 | AJ133: =SUM(AK133:BG133) -> 0 | BH133: 0 | BI133: 0 | BJ133: 0 | BK133: 0
A134: 221 | B134: связь | C134: 26020 | D134: 807 | E134: 07 09 | F134: 02 1 04 80130 | G134: 244 | L134: =SUM(M134:AI134) -> 0 | AJ134: =SUM(AK134:BG134) -> 0 | BH134: 0 | BI134: 0 | BJ134: 0 | BK134: 0
A135: 222 | B135: Всего тран. | C135: 26020 | D135: 807 | E135: 07 09 | F135: 02 1 04 80130 | G135: 244 | H135: =SUM(H136:H137) -> 0 | I135: =SUM(I136:I137) -> 0 | J135: 0 | K135: 0 | L135: 0 | M135: 0 | N135: 0 | O135: 0 | P135: 0 | Q135: 0 | R135: 0 | S135: 0 | T135: 0 | U135: 0 | V135: 0 | W135: 0 | X135: 0 | Y135: 0 | Z135: 0 | AA135: 0 | AB135: 0 | AC135: 0 | AD135: 0 | AE135: 0 | AF135: 0 | AG135: 0 | AH135: 0 | AI135: 0 | AJ135: 0 | AK135: 0 | AL135: 0 | AM135: 0 | AN135: 0 | AO135: 0 | AP135: 0 | AQ135: 0 | AR135: 0 | AS135: 0 | AT135: 0 | AU135: 0 | AV135: 0 | AW135: 0 | AX135: 0 | AY135: 0 | AZ135: 0 | BA135: 0 | BB135: 0 | BC135: 0 | BD135: 0 | BE135: 0 | BF135: 0 | BG135: 0 | BH135: 0 | BI135: 0 | BJ135: 0 | BK135: 0 | BL135: 0 | BM135: 0
A136: 222.01 | B136: проезд команд. | C136: 26020 | D136: 807 | E136: 07 09 | F136: 02 1 04 80130 | G136: 244 | L136: =SUM(M136:AI136) -> 0 | AJ136: =SUM(AK136:BG136) -> 0 | BH136: 0 | BI136: 0 | BJ136: 0 | BK136: 0
A137: 222.02 | B137: транспортные усл | C137: 26020 | D137: 807 | E137: 07 09 | F137: 02 1 04 80130 | G137: 244 | L137: =SUM(M137:AI137) -> 0 | AJ137: =SUM(AK137:BG137) -> 0 | BH137: 0 | BI137: 0 | BJ137: 0 | BK137: 0
A138: 223 | B138: Всего ком. усл. | C138: 26020 | D138: 807 | E138: 07 09 | F138: 02 1 04 80130 | G138: 244 | H138: =SUM(H139:H142) -> 0 | I138: =SUM(I139:I142) -> 0 | J138: 0 | K138: 0 | L138: 0 | M138: 0 | N138: 0 | O138: 0 | P138: 0 | Q138: 0 | R138: 0 | S138: 0 | T138: 0 | U138: 0 | V138: 0 | W138: 0 | X138: 0 | Y138: 0 | Z138: 0 | AA138: 0 | AB138: 0 | AC138: 0 | AD138: 0 | AE138: 0 | AF138: 0 | AG138: 0 | AH138: 0 | AI138: 0 | AJ138: 0 | AK138: 0 | AL138: 0 | AM138: 0 | AN138: 0 | AO138: 0 | AP138: 0 | AQ138: 0 | AR138: 0 | AS138: 0 | AT138: 0 | AU138: 0 | AV138: 0 | AW138: 0 | AX138: 0 | AY138: 0 | AZ138: 0 | BA138: 0 | BB138: 0 | BC138: 0 | BD138: 0 | BE138: 0 | BF138: 0 | BG138: 0 | BH138: 0 | BI138: 0 | BJ138: 0 | BK138: 0 | BL138: 0 | BM138: 0
A139: 223.01 | B139: отопление | C139: 26020 | D139: 807 | E139: 07 09 | F139: 02 1 04 80130 | G139: 244 | L139: =SUM(M139:AI139) -> 0 | AJ139: =SUM(AK139:BG139) -> 0 | BH139: 0 | BI139: 0 | BJ139: 0 | BK139: 0
A140: 223.02 | B140: потребление газа | C140: 26020 | D140: 807 | E140: 07 09 | F140: 02 1 04 80130 | G140: 244 | L140: =SUM(M140:AI140) -> 0 | AJ140: =SUM(AK140:BG140) -> 0 | BH140: 0 | BI140: 0 | BJ140: 0 | BK140: 0
A141: 223.03 | B141: электроэнергия | C141: 26020 | D141: 807 | E141: 07 09 | F141: 02 1 04 80130 | G141: 244 | L141: =SUM(M141:AI141) -> 0 | AJ141: =SUM(AK141:BG141) -> 0 | BH141: 0 | BI141: 0 | BJ141: 0 | BK141: 0
A142: 223.04 | B142: водоснабжение | C142: 26020 | D142: 807 | E142: 07 09 | F142: 02 1 04 80130 | G142: 244 | L142: =SUM(M142:AI142) -> 0 | AJ142: =SUM(AK142:BG142) -> 0 | BH142: 0 | BI142: 0 | BJ142: 0 | BK142: 0
A143: 224 | B143: аренда | C143: 26020 | D143: 807 | E143: 07 09 | F143: 02 1 04 80130 | G143: 244 | L143: =SUM(M143:AI143) -> 0 | AJ143: =SUM(AK143:BG143) -> 0 | BH143: 0 | BI143: 0 | BJ143: 0 | BK143: 0
A144: 225 | B144: Всего содер. Имущ. | C144: 26020 | D144: 807 | E144: 07 09 | F144: 02 1 04 80130 | G144: 244 | H144: =SUM(H145:H147) -> 0 | I144: =SUM(I145:I147) -> 0 | J144: 0 | K144: 0 | L144: 0 | M144: 0 | N144: 0 | O144: 0 | P144: 0 | Q144: 0 | R144: 0 | S144: 0 | T144: 0 | U144: 0 | V144: 0 | W144: 0 | X144: 0 | Y144: 0 | Z144: 0 | AA144: 0 | AB144: 0 | AC144: 0 | AD144: 0 | AE144: 0 | AF144: 0 | AG144: 0 | AH144: 0 | AI144: 0 | AJ144: 0 | AK144: 0 | AL144: 0 | AM144: 0 | AN144: 0 | AO144: 0 | AP144: 0 | AQ144: 0 | AR144: 0 | AS144: 0 | AT144: 0 | AU144: 0 | AV144: 0 | AW144: 0 | AX144: 0 | AY144: 0 | AZ144: 0 | BA144: 0 | BB144: 0 | BC144: 0 | BD144: 0 | BE144: 0 | BF144: 0 | BG144: 0 | BH144: 0 | BI144: 0 | BJ144: 0 | BK144: 0 | BL144: 0 | BM144: 0
A145: 225.01 | B145: ремонт зд. и сооруж. | C145: 26020 | D145: 807 | E145: 07 09 | F145: 02 1 04 80130 | G145: 244 | L145: =SUM(M145:AI145) -> 0 | AJ145: =SUM(AK145:BG145) -> 0 | BH145: 0 | BI145: 0 | BJ145: 0 | BK145: 0
A146: 225.02 | B146: вывоз мусора | C146: 26020 | D146: 807 | E146: 07 09 | F146: 02 1 04 80130 | G146: 244 | L146: =SUM(M146:AI146) -> 0 | AJ146: =SUM(AK146:BG146) -> 0 | BH146: 0 | BI146: 0 | BJ146: 0 | BK146: 0
A147: 225.03 | B147: прочие ком. услуги | C147: 26020 | D147: 807 | E147: 07 09 | F147: 02 1 04 80130 | G147: 244 | L147: =SUM(M147:AI147) -> 0 | AJ147: =SUM(AK147:BG147) -> 0 | BH147: 0 | BI147: 0 | BJ147: 0 | BK147: 0
A148: 226 | B148: Прочие услуги | C148: 26020 | D148: 807 | E148: 07 09 | F148: 02 1 04 80130 | G148: 244 | H148: =SUM(H149:H150) -> 0 | I148: =SUM(I149:I150) -> 0 | J148: 0 | K148: 0 | L148: 0 | M148: 0 | N148: 0 | O148: 0 | P148: 0 | Q148: 0 | R148: 0 | S148: 0 | T148: 0 | U148: 0 | V148: 0 | W148: 0 | X148: 0 | Y148: 0 | Z148: 0 | AA148: 0 | AB148: 0 | AC148: 0 | AD148: 0 | AE148: 0 | AF148: 0 | AG148: 0 | AH148: 0 | AI148: 0 | AJ148: 0 | AK148: 0 | AL148: 0 | AM148: 0 | AN148: 0 | AO148: 0 | AP148: 0 | AQ148: 0 | AR148: 0 | AS148: 0 | AT148: 0 | AU148: 0 | AV148: 0 | AW148: 0 | AX148: 0 | AY148: 0 | AZ148: 0 | BA148: 0 | BB148: 0 | BC148: 0 | BD148: 0 | BE148: 0 | BF148: 0 | BG148: 0 | BH148: 0 | BI148: 0 | BJ148: 0 | BK148: 0 | BL148: 0 | BM148: 0
A149: 226.01 | B149: Коман. (проживание) | C149: 26020 | D149: 807 | E149: 07 09 | F149: 02 1 04 80130 | G149: 244 | L149: =SUM(M149:AI149) -> 0 | AJ149: =SUM(AK149:BG149) -> 0 | BH149: 0 | BI149: 0 | BJ149: 0 | BK149: 0
A150: 226.02 | B150: проч. услуги | C150: 26020 | D150: 807 | E150: 07 09 | F150: 02 1 04 80130 | G150: 244 | L150: 0 | AJ150: 0 | BH150: 0 | BI150: 0 | BJ150: 0 | BK150: 0
A151: 241 | B151: Содержание гостиницы | C151: 26020 | D151: 807 | E151: 07 09 | F151: 02 1 04 80130 | G151: 244 | L151: 0 | AJ151: 0 | BH151: 0 | BI151: 0 | BJ151: 0 | BK151: 0
A152: 252 | B152: Переч. наднац. орг. | C152: 26020 | D152: 807 | E152: 07 09 | F152: 02 1 04 80130 | G152: 244 | L152: 0 | AJ152: 0 | BH152: 0 | BI152: 0 | BJ152: 0 | BK152: 0
A153: 253 | B153: перечисл. междунар. орган | C153: 26020 | D153: 807 | E153: 07 09 | F153: 02 1 04 80130 | G153: 244 | L153: 0 | AJ153: 0 | BH153: 0 | BI153: 0 | BJ153: 0 | BK153: 0
A154: 261 | B154: Пособие по соц. Страх. населения | C154: 26020 | D154: 807 | E154: 07 09 | F154: 02 1 04 80130 | G154: 244 | L154: 0 | AJ154: 0 | BH154: 0 | BI154: 0 | BJ154: 0 | BK154: 0
A155: 267 | B155: Пособие по соц. пом. населению | C155: 26020 | D155: 807 | E155: 07 09 | F155: 02 1 04 80130 | G155: 244 | H155: =SUM(H156:H158) -> 0 | I155: =SUM(I156:I158) -> 0 | J155: 0 | K155: 0 | L155: 0 | M155: 0 | N155: 0 | O155: 0 | P155: 0 | Q155: 0 | R155: 0 | S155: 0 | T155: 0 | U155: 0 | V155: 0 | W155: 0 | X155: 0 | Y155: 0 | Z155: 0 | AA155: 0 | AB155: 0 | AC155: 0 | AD155: 0 | AE155: 0 | AF155: 0 | AG155: 0 | AH155: 0 | AI155: 0 | AJ155: 0 | AK155: 0 | AL155: 0 | AM155: 0 | AN155: 0 | AO155: 0 | AP155: 0 | AQ155: 0 | AR155: 0 | AS155: 0 | AT155: 0 | AU155: 0 | AV155: 0 | AW155: 0 | AX155: 0 | AY155: 0 | AZ155: 0 | BA155: 0 | BB155: 0 | BC155: 0 | BD155: 0 | BE155: 0 | BF155: 0 | BG155: 0 | BH155: 0 | BI155: 0 | BJ155: 0 | BK155: 0 | BL155: =SUM(BL156:BL158) -> 0 | BM155: =SUM(BM156:BM158) -> 0
A156: 267 | B156: льгота по к/услугам | C156: 26020 | D156: 807 | E156: 07 09 | F156: 02 1 04 80130 | G156: 244 | L156: =SUM(M156:AI156) -> 0 | AJ156: =SUM(AK156:BG156) -> 0 | BH156: 0 | BI156: 0 | BJ156: 0 | BK156: 0
B157: прочее | C157: 26020 | D157: 807 | E157: 07 09 | F157: 02 1 04 80130 | G157: 244 | L157: =SUM(M157:AI157) -> 0 | AJ157: =SUM(AK157:BG157) -> 0 | BH157: 0 | BI157: 0 | BJ157: 0 | BK157: 0
B158: прочее | C158: 26020 | D158: 807 | E158: 07 09 | F158: 02 1 04 80130 | G158: 244 | L158: =SUM(M158:AI158) -> 0 | AJ158: =SUM(AK158:BG158) -> 0 | BH158: 0 | BI158: 0 | BJ158: 0 | BK158: 0
A159: 263 | B159: Соц. пособ. Выпл. орган. сектора гос. управ. | C159: 26020 | D159: 807 | E159: 07 09 | F159: 02 1 04 80130 | G159: 244 | L159: =SUM(M159:AI159) -> 0 | AJ159: =SUM(AK159:BG159) -> 0 | BH159: 0 | BI159: 0 | BJ159: 0 | BK159: 0
A160: 290 | B160: Прочие расходы | C160: 26020 | D160: 807 | E160: 07 09 | F160: 02 1 04 80130 | H160: =SUM(H161:H162) -> 0 | I160: =SUM(I161:I162) -> 0 | J160: 0 | K160: 0 | L160: 0 | M160: 0 | N160: 0 | O160: 0 | P160: 0 | Q160: 0 | R160: 0 | S160: 0 | T160: 0 | U160: 0 | V160: 0 | W160: 0 | X160: 0 | Y160: 0 | Z160: 0 | AA160: 0 | AB160: 0 | AC160: 0 | AD160: 0 | AE160: 0 | AF160: 0 | AG160: 0 | AH160: 0 | AI160: 0 | AJ160: 0 | AK160: 0 | AL160: 0 | AM160: 0 | AN160: 0 | AO160: 0 | AP160: 0 | AQ160: 0 | AR160: 0 | AS160: 0 | AT160: 0 | AU160: 0 | AV160: 0 | AW160: 0 | AX160: 0 | AY160: 0 | AZ160: 0 | BA160: 0 | BB160: 0 | BC160: 0 | BD160: 0 | BE160: 0 | BF160: 0 | BG160: 0 | BH160: 0 | BI160: 0 | BJ160: 0 | BK160: 0 | BL160: 0 | BM160: 0
A161: 290.03 | B161: Налог на имущество | C161: 26020 | D161: 807 | E161: 07 09 | F161: 02 1 04 80130 | G161: 851 | L161: =SUM(M161:AI161) -> 0 | AJ161: =SUM(AK161:BG161) -> 0 | BH161: 0 | BI161: 0 | BJ161: 0 | BK161: 0
A162: 290.02 | B162: проч. расходы | C162: 26020 | D162: 807 | E162: 07 09 | F162: 02 1 04 80130 | G162: 852 | L162: =SUM(M162:AI162) -> 0 | AJ162: =SUM(AK162:BG162) -> 0 | BH162: 0 | BI162: 0 | BJ162: 0 | BK162: 0
A163: 310 | B163: Увеличение ст-ти ОС(26020) | C163: 26020 | D163: 807 | E163: 07 09 | F163: 02 1 04 80130 | G163: 244 | H163: =SUM(H164:H167) -> 20000 | I163: =SUM(I164:I167) -> 0 | J163: 0 | K163: 0 | L163: 0 | M163: 0 | N163: 0 | O163: 0 | P163: 0 | Q163: 0 | R163: 0 | S163: 0 | T163: 0 | U163: 0 | V163: 0 | W163: 0 | X163: 0 | Y163: 0 | Z163: 0 | AA163: 0 | AB163: 0 | AC163: 0 | AD163: 0 | AE163: 0 | AF163: 0 | AG163: 0 | AH163: 0 | AI163: 0 | AJ163: 0 | AK163: 0 | AL163: 0 | AM163: 0 | AN163: 0 | AO163: 0 | AP163: 0 | AQ163: 0 | AR163: 0 | AS163: 0 | AT163: 0 | AU163: 0 | AV163: 0 | AW163: 0 | AX163: 0 | AY163: 0 | AZ163: 0 | BA163: 0 | BB163: 0 | BC163: 0 | BD163: 0 | BE163: 0 | BF163: 0 | BG163: 0 | BH163: 0 | BI163: 0 | BJ163: 0 | BK163: 20000 | BL163: 0 | BM163: 0
A164: 310 | B164: учебники | C164: 26020 | D164: 807 | E164: 07 09 | F164: 02 1 04 80130 | G164: 244 | H164: 20000 | L164: =SUM(M164:AI164) -> 0 | AJ164: =SUM(AK164:BG164) -> 0 | BH164: 0 | BI164: 0 | BJ164: 0 | BK164: 20000
A165: 310.02 | B165: расх. матер больше года | C165: 26020 | D165: 807 | E165: 07 09 | F165: 02 1 04 80130 | G165: 244 | L165: =SUM(M165:AI165) -> 0 | AJ165: =SUM(AK165:BG165) -> 0 | BH165: 0 | BI165: 0 | BJ165: 0 | BK165: 0
A166: 310.03 | B166: приобретение предм. дл. польз. | C166: 26020 | D166: 807 | E166: 07 09 | F166: 02 1 04 80130 | G166: 244 | L166: =SUM(M166:AI166) -> 0 | AJ166: =SUM(AK166:BG166) -> 0 | BH166: 0 | BI166: 0 | BJ166: 0 | BK166: 0
A167: 310.04 | B167: капитальное стр-во | C167: 26020 | D167: 807 | E167: 07 09 | F167: 02 1 04 80130 | G167: 244 | L167: =SUM(M167:AI167) -> 0 | AJ167: =SUM(AK167:BG167) -> 0 | BH167: 0 | BI167: 0 | BJ167: 0 | BK167: 0
A168: 320 | B168: Увеличение ст-ти немат. активов | C168: 26020 | D168: 807 | E168: 07 09 | F168: 02 1 04 80130 | G168: 244 | L168: =SUM(M168:AI168) -> 0 | AJ168: =SUM(AK168:BG168) -> 0 | BH168: 0 | BI168: 0 | BJ168: 0 | BK168: 0
A169: 340 | B169: Увеличение мат. запасов | C169: 26020 | D169: 807 | E169: 07 09 | F169: 02 1 04 80130 | G169: 244 | H169: =SUM(H170:H174) -> 0 | I169: =SUM(I170:I174) -> 0 | J169: 0 | K169: 0 | L169: 0 | M169: 0 | N169: 0 | O169: 0 | P169: 0 | Q169: 0 | R169: 0 | S169: 0 | T169: 0 | U169: 0 | V169: 0 | W169: 0 | X169: 0 | Y169: 0 | Z169: 0 | AA169: 0 | AB169: 0 | AC169: 0 | AD169: 0 | AE169: 0 | AF169: 0 | AG169: 0 | AH169: 0 | AI169: 0 | AJ169: 0 | AK169: 0 | AL169: 0 | AM169: 0 | AN169: 0 | AO169: 0 | AP169: 0 | AQ169: 0 | AR169: 0 | AS169: 0 | AT169: 0 | AU169: 0 | AV169: 0 | AW169: 0 | AX169: 0 | AY169: 0 | AZ169: 0 | BA169: 0 | BB169: 0 | BC169: 0 | BD169: 0 | BE169: 0 | BF169: 0 | BG169: 0 | BH169: 0 | BI169: 0 | BJ169: 0 | BK169: 0 | BL169: 0 | BM169: 0
A170: 340.01 | B170: медикаменды | C170: 26020 | D170: 807 | E170: 07 09 | F170: 02 1 04 80130 | G170: 244 | L170: =SUM(M170:AI170) -> 0 | AJ170: =SUM(AK170:BG170) -> 0 | BH170: 0 | BI170: 0 | BJ170: 0 | BK170: 0
A171: 340.02 | B171: продукты питания | C171: 26020 | D171: 807 | E171: 07 09 | F171: 02 1 04 80130 | G171: 244 | L171: =SUM(M171:AI171) -> 0 | AJ171: =SUM(AK171:BG171) -> 0 | BH171: 0 | BI171: 0 | BJ171: 0 | BK171: 0
A172: 340.03 | B172: ГСМ | C172: 26020 | D172: 807 | E172: 07 09 | F172: 02 1 04 80130 | G172: 244 | L172: =SUM(M172:AI172) -> 0 | AJ172: =SUM(AK172:BG172) -> 0 | BH172: 0 | BI172: 0 | BJ172: 0 | BK172: 0
A173: 340.04 | B173: Оплата котел. топлива | C173: 26020 | D173: 807 | E173: 07 09 | F173: 02 1 04 80130 | G173: 244 | L173: =SUM(M173:AI173) -> 0 | AJ173: =SUM(AK173:BG173) -> 0 | BH173: 0 | BI173: 0 | BJ173: 0 | BK173: 0
A174: 340.05 | B174: Прочее | C174: 26020 | D174: 807 | E174: 07 09 | F174: 02 1 04 80130 | G174: 244 | L174: =SUM(M174:AI174) -> 0 | AJ174: =SUM(AK174:BG174) -> 0 | BH174: 0 | BI174: 0 | BJ174: 0 | BK174: 0
A175: ИТОГО | B175: Итого расходов | C175: 26020 | D175: 807 | E175: 07 09 | F175: 02 1 04 80130 | G175: 244 | H175: =H121+H124+H131+H134+H135+H138+H143+H144+H148+H151+H152+H153+H154+H155+H159+H160+H163+H168+H169 -> 20000 | I175: =I121+I124+I131+I134+I135+I138+I143+I144+I148+I151+I152+I153+I154+I155+I159+I160+I163+I168+I169 -> 0 | J175: 0 | K175: 0 | L175: 0 | M175: 0 | N175: 0 | O175: 0 | P175: 0 | Q175: 0 | R175: 0 | S175: 0 | T175: 0 | U175: 0 | V175: 0 | W175: 0 | X175: 0 | Y175: 0 | Z175: 0 | AA175: 0 | AB175: 0 | AC175: 0 | AD175: 0 | AE175: 0 | AF175: 0 | AG175: 0 | AH175: 0 | AI175: 0 | AJ175: 0 | AK175: 0 | AL175: 0 | AM175: 0 | AN175: 0 | AO175: 0 | AP175: 0 | AQ175: 0 | AR175: 0 | AS175: 0 | AT175: 0 | AU175: 0 | AV175: 0 | AW175: 0 | AX175: 0 | AY175: 0 | AZ175: 0 | BA175: 0 | BB175: 0 | BC175: 0 | BD175: 0 | BE175: 0 | BF175: 0 | BG175: 0 | BH175: 0 | BI175: 0 | BJ175: 0 | BK175: 20000 | BL175: 0 | BM175: 0
B176: Питание 1-4 класс | C176: 22-53040 | D176: 807 | E176: 07 02 | F176: 02 П 02 R3040 | G176: 244 | BN176: =BN120+1 -> 4
A177: 211 | B177: оплата труда | C177: =C176 -> 22-53040 | D177: =D176 -> 807 | E177: =E176 -> 07 02 | F177: =F176 -> 02 П 02 R3040 | G177: =G176 -> 244 | H177: =SUM(H178:H179) -> 0 | I177: =SUM(I178:I179) -> 0 | J177: 0 | K177: 0 | L177: 0 | M177: 0 | N177: 0 | O177: 0 | P177: 0 | Q177: 0 | R177: 0 | S177: 0 | T177: 0 | U177: 0 | V177: 0 | W177: 0 | X177: 0 | Y177: 0 | Z177: 0 | AA177: 0 | AB177: 0 | AC177: 0 | AD177: 0 | AE177: 0 | AF177: 0 | AG177: 0 | AH177: 0 | AI177: 0 | AJ177: 0 | AK177: 0 | AL177: 0 | AM177: 0 | AN177: 0 | AO177: 0 | AP177: 0 | AQ177: 0 | AR177: 0 | AS177: 0 | AT177: 0 | AU177: 0 | AV177: 0 | AW177: 0 | AX177: 0 | AY177: 0 | AZ177: 0 | BA177: 0 | BB177: 0 | BC177: 0 | BD177: 0 | BE177: 0 | BF177: 0 | BG177: 0 | BH177: =J177+L177 -> 0 | BI177: =AJ177 -> 0 | BJ177: =K177+L177-AJ177 -> 0 | BK177: =H177-BH177 -> 0 | BL177: 0 | BM177: 0
A178: 211.01 | B178: Основная з/пл | C178: =C177 -> 22-53040 | D178: 807 | E178: 07 02 | F178: 02 П 02 R3040 | G178: 244 | L178: =SUM(M178:AI178) -> 0 | AJ178: =SUM(AK178:BG178) -> 0 | BH178: 0 | BI178: 0 | BJ178: 0 | BK178: 0
A179: 211.02 | B179: Кл. руководство | C179: =C178 -> 22-53040 | D179: 807 | E179: 07 02 | F179: 02 П 02 R3040 | G179: 244 | L179: =SUM(M179:AI179) -> 0 | AJ179: =SUM(AK179:BG179) -> 0 | BH179: 0 | BI179: 0 | BJ179: 0 | BK179: 0
A180: 214 | B180: Всего проч. | C180: 22-53040 | D180: 807 | E180: 07 02 | F180: 02 П 02 R3040 | G180: 244 | H180: =SUM(H181:H186) -> 0 | I180: =SUM(I181:I186) -> 0 | J180: 0 | K180: 0 | L180: 0 | M180: 0 | N180: 0 | O180: 0 | P180: 0 | Q180: 0 | R180: 0 | S180: 0 | T180: 0 | U180: 0 | V180: 0 | W180: 0 | X180: 0 | Y180: 0 | Z180: 0 | AA180: 0 | AB180: 0 | AC180: 0 | AD180: 0 | AE180: 0 | AF180: 0 | AG180: 0 | AH180: 0 | AI180: 0 | AJ180: 0 | AK180: 0 | AL180: 0 | AM180: 0 | AN180: 0 | AO180: 0 | AP180: 0 | AQ180: 0 | AR180: 0 | AS180: 0 | AT180: 0 | AU180: 0 | AV180: 0 | AW180: 0 | AX180: 0 | AY180: 0 | AZ180: 0 | BA180: 0 | BB180: 0 | BC180: 0 | BD180: 0 | BE180: 0 | BF180: 0 | BG180: 0 | BH180: 0 | BI180: 0 | BJ180: 0 | BK180: 0 | BL180: 0 | BM180: 0
B181: суточные | C181: 22-53040 | D181: 807 | E181: 07 02 | F181: 02 П 02 R3040 | G181: 244 | L181: =SUM(M181:AI181) -> 0 | AJ181: =SUM(AK181:BG181) -> 0 | BH181: 0 | BI181: 0 | BJ181: 0 | BK181: 0
B182: книги | C182: 22-53040 | D182: 807 | E182: 07 02 | F182: 02 П 02 R3040 | G182: 244 | L182: 0 | AJ182: 0 | BH182: 0 | BI182: 0 | BJ182: 0 | BK182: 0
A183: 214 | B183: завоз вывоз кадров | C183: 22-53040 | D183: 807 | E183: 07 02 | F183: 02 П 02 R3040 | G183: 244 | L183: 0 | AJ183: 0 | BH183: 0 | BI183: 0 | BJ183: 0 | BK183: 0
A184: 214 | B184: проезд в отпуск | C184: 22-53040 | D184: 807 | E184: 07 02 | F184: 02 П 02 R3040 | G184: 244 | L184: 0 | AJ184: 0 | BH184: 0 | BI184: 0 | BJ184: 0 | BK184: 0
B185: соц.помощь | C185: 22-53040 | D185: 807 | E185: 07 02 | F185: 02 П 02 R3040 | G185: 244 | L185: 0 | AJ185: 0 | BH185: 0 | BI185: 0 | BJ185: 0 | BK185: 0
B186: СКЛ | C186: 22-53040 | D186: 807 | E186: 07 02 | F186: 02 П 02 R3040 | G186: 244 | L186: 0 | AJ186: 0 | BH186: 0 | BI186: 0 | BJ186: 0 | BK186: 0
A187: 213 | B187: ЕСН | C187: 22-53040 | D187: 807 | E187: 07 02 | F187: 02 П 02 R3040 | G187: 244 | H187: =SUM(H188:H189) -> 0 | I187: =SUM(I188:I189) -> 0 | J187: 0 | K187: 0 | L187: 0 | M187: 0 | N187: 0 | O187: 0 | P187: 0 | Q187: 0 | R187: 0 | S187: 0 | T187: 0 | U187: 0 | V187: 0 | W187: 0 | X187: 0 | Y187: 0 | Z187: 0 | AA187: 0 | AB187: 0 | AC187: 0 | AD187: 0 | AE187: 0 | AF187: 0 | AG187: 0 | AH187: 0 | AI187: 0 | AJ187: 0 | AK187: 0 | AL187: 0 | AM187: 0 | AN187: 0 | AO187: 0 | AP187: 0 | AQ187: 0 | AR187: 0 | AS187: 0 | AT187: 0 | AU187: 0 | AV187: 0 | AW187: 0 | AX187: 0 | AY187: 0 | AZ187: 0 | BA187: 0 | BB187: 0 | BC187: 0 | BD187: 0 | BE187: 0 | BF187: 0 | BG187: 0 | BH187: 0 | BI187: 0 | BJ187: 0 | BK187: 0 | BL187: 0 | BM187: 0
A188: 213.01 | B188: ЕСН основ. | C188: 22-53040 | D188: 807 | E188: 07 02 | F188: 02 П 02 R3040 | G188: 244 | L188: =SUM(M188:AI188) -> 0 | AJ188: =SUM(AK188:BG188) -> 0 | BH188: 0 | BI188: 0 | BJ188: 0 | BK188: 0
A189: 213.02 | B189: ЕСН кл. рук. | C189: 22-53040 | D189: 807 | E189: 07 02 | F189: 02 П 02 R3040 | G189: 244 | L189: =SUM(M189:AI189) -> 0 | AJ189: =SUM(AK189:BG189) -> 0 | BH189: 0 | BI189: 0 | BJ189: 0 | BK189: 0
A190: 221 | B190: связь | C190: 22-53040 | D190: 807 | E190: 07 02 | F190: 02 П 02 R3040 | G190: 244 | L190: =SUM(M190:AI190) -> 0 | AJ190: =SUM(AK190:BG190) -> 0 | BH190: 0 | BI190: 0 | BJ190: 0 | BK190: 0
A191: 222 | B191: Всего тран. | C191: 22-53040 | D191: 807 | E191: 07 02 | F191: 02 П 02 R3040 | G191: 244 | H191: =SUM(H192:H193) -> 0 | I191: =SUM(I192:I193) -> 0 | J191: 0 | K191: 0 | L191: 0 | M191: 0 | N191: 0 | O191: 0 | P191: 0 | Q191: 0 | R191: 0 | S191: 0 | T191: 0 | U191: 0 | V191: 0 | W191: 0 | X191: 0 | Y191: 0 | Z191: 0 | AA191: 0 | AB191: 0 | AC191: 0 | AD191: 0 | AE191: 0 | AF191: 0 | AG191: 0 | AH191: 0 | AI191: 0 | AJ191: 0 | AK191: 0 | AL191: 0 | AM191: 0 | AN191: 0 | AO191: 0 | AP191: 0 | AQ191: 0 | AR191: 0 | AS191: 0 | AT191: 0 | AU191: 0 | AV191: 0 | AW191: 0 | AX191: 0 | AY191: 0 | AZ191: 0 | BA191: 0 | BB191: 0 | BC191: 0 | BD191: 0 | BE191: 0 | BF191: 0 | BG191: 0 | BH191: 0 | BI191: 0 | BJ191: 0 | BK191: 0 | BL191: 0 | BM191: 0
A192: 222.01 | B192: проезд команд. | C192: 22-53040 | D192: 807 | E192: 07 02 | F192: 02 П 02 R3040 | G192: 244 | L192: =SUM(M192:AI192) -> 0 | AJ192: =SUM(AK192:BG192) -> 0 | BH192: 0 | BI192: 0 | BJ192: 0 | BK192: 0
A193: 222.02 | B193: транспортные усл | C193: 22-53040 | D193: 807 | E193: 07 02 | F193: 02 П 02 R3040 | G193: 244 | L193: =SUM(M193:AI193) -> 0 | AJ193: =SUM(AK193:BG193) -> 0 | BH193: 0 | BI193: 0 | BJ193: 0 | BK193: 0
A194: 223 | B194: Всего ком. усл. | C194: 22-53040 | D194: 807 | E194: 07 02 | F194: 02 П 02 R3040 | G194: 244 | H194: =SUM(H195:H198) -> 0 | I194: =SUM(I195:I198) -> 0 | J194: 0 | K194: 0 | L194: 0 | M194: 0 | N194: 0 | O194: 0 | P194: 0 | Q194: 0 | R194: 0 | S194: 0 | T194: 0 | U194: 0 | V194: 0 | W194: 0 | X194: 0 | Y194: 0 | Z194: 0 | AA194: 0 | AB194: 0 | AC194: 0 | AD194: 0 | AE194: 0 | AF194: 0 | AG194: 0 | AH194: 0 | AI194: 0 | AJ194: 0 | AK194: 0 | AL194: 0 | AM194: 0 | AN194: 0 | AO194: 0 | AP194: 0 | AQ194: 0 | AR194: 0 | AS194: 0 | AT194: 0 | AU194: 0 | AV194: 0 | AW194: 0 | AX194: 0 | AY194: 0 | AZ194: 0 | BA194: 0 | BB194: 0 | BC194: 0 | BD194: 0 | BE194: 0 | BF194: 0 | BG194: 0 | BH194: 0 | BI194: 0 | BJ194: 0 | BK194: 0 | BL194: 0 | BM194: 0
A195: 223.01 | B195: отопление | C195: 22-53040 | D195: 807 | E195: 07 02 | F195: 02 П 02 R3040 | G195: 244 | L195: =SUM(M195:AI195) -> 0 | AJ195: =SUM(AK195:BG195) -> 0 | BH195: 0 | BI195: 0 | BJ195: 0 | BK195: 0
A196: 223.02 | B196: потребление газа | C196: 22-53040 | D196: 807 | E196: 07 02 | F196: 02 П 02 R3040 | G196: 244 | L196: =SUM(M196:AI196) -> 0 | AJ196: =SUM(AK196:BG196) -> 0 | BH196: 0 | BI196: 0 | BJ196: 0 | BK196: 0
A197: 223.03 | B197: электроэнергия | C197: 22-53040 | D197: 807 | E197: 07 02 | F197: 02 П 02 R3040 | G197: 244 | L197: =SUM(M197:AI197) -> 0 | AJ197: =SUM(AK197:BG197) -> 0 | BH197: 0 | BI197: 0 | BJ197: 0 | BK197: 0
A198: 223.04 | B198: водоснабжение | C198: 22-53040 | D198: 807 | E198: 07 02 | F198: 02 П 02 R3040 | G198: 244 | L198: =SUM(M198:AI198) -> 0 | AJ198: =SUM(AK198:BG198) -> 0 | BH198: 0 | BI198: 0 | BJ198: 0 | BK198: 0
A199: 224 | B199: аренда | C199: 22-53040 | D199: 807 | E199: 07 02 | F199: 02 П 02 R3040 | G199: 244 | L199: =SUM(M199:AI199) -> 0 | AJ199: =SUM(AK199:BG199) -> 0 | BH199: 0 | BI199: 0 | BJ199: 0 | BK199: 0
A200: 225 | B200: Всего содер. Имущ. | C200: 22-53040 | D200: 807 | E200: 07 02 | F200: 02 П 02 R3040 | G200: 244 | H200: =SUM(H201:H203) -> 0 | I200: =SUM(I201:I203) -> 0 | J200: 0 | K200: 0 | L200: 0 | M200: 0 | N200: 0 | O200: 0 | P200: 0 | Q200: 0 | R200: 0 | S200: 0 | T200: 0 | U200: 0 | V200: 0 | W200: 0 | X200: 0 | Y200: 0 | Z200: 0 | AA200: 0 | AB200: 0 | AC200: 0 | AD200: 0 | AE200: 0 | AF200: 0 | AG200: 0 | AH200: 0 | AI200: 0 | AJ200: 0 | AK200: 0 | AL200: 0 | AM200: 0 | AN200: 0 | AO200: 0 | AP200: 0 | AQ200: 0 | AR200: 0 | AS200: 0 | AT200: 0 | AU200: 0 | AV200: 0 | AW200: 0 | AX200: 0 | AY200: 0 | AZ200: 0 | BA200: 0 | BB200: 0 | BC200: 0 | BD200: 0 | BE200: 0 | BF200: 0 | BG200: 0 | BH200: 0 | BI200: 0 | BJ200: 0 | BK200: 0 | BL200: 0 | BM200: 0
A201: 225.01 | B201: ремонт зд. и сооруж. | C201: 22-53040 | D201: 807 | E201: 07 02 | F201: 02 П 02 R3040 | G201: 244 | L201: =SUM(M201:AI201) -> 0 | AJ201: =SUM(AK201:BG201) -> 0 | BH201: 0 | BI201: 0 | BJ201: 0 | BK201: 0
A202: 225.02 | B202: вывоз мусора | C202: 22-53040 | D202: 807 | E202: 07 02 | F202: 02 П 02 R3040 | G202: 244 | L202: =SUM(M202:AI202) -> 0 | AJ202: =SUM(AK202:BG202) -> 0 | BH202: 0 | BI202: 0 | BJ202: 0 | BK202: 0
A203: 225.03 | B203: прочие ком. услуги | C203: 22-53040 | D203: 807 | E203: 07 02 | F203: 02 П 02 R3040 | G203: 244 | L203: =SUM(M203:AI203) -> 0 | AJ203: =SUM(AK203:BG203) -> 0 | BH203: 0 | BI203: 0 | BJ203: 0 | BK203: 0
... 922 more rows

Sheet Февраль
A1: КАРТОЧКА АНАЛИТИЧЕСКОГО УЧЕТА КАССОВЫХ РАСХОДОВ
A3: ФЕВРАЛЬ
A5: Статьи | C5: Подразделение | D5: ГЛ | E5: РП | F5: ЦС | G5: ВР | H5: Утверждено на год | I5: Квартал | J5: Профинансировано на начало месяца | K5: Остаток на счете на начало месяца | L5: Поступило за месяц | M5: 2022-02-10 | N5: 2022-02-11 | O5: 2022-02-18 | P5: 2022-02-24 | AJ5: Расход за месяц | AK5: 2022-02-03 | AL5: 2022-02-03 | AM5: 2022-02-15 | AN5: 2022-02-17 | AO5: 2022-02-18 | AP5: 2022-02-22 | BH5: Профинансировано с начала года | BI5: Расход с начала года | BJ5: Остаток на счете на конец месяца | BK5: Остаток лимита год | BL5: Справочно:
BL6: профинансировано за 1 квартал | BM6: остаток лимита 1 квартала
C8: =Январь!C8 -> субвенция | D8: =Январь!D8 -> 807 | E8: =Январь!E8 -> 07 02 | F8: =Январь!F8 -> 02 П 02 С9903 | G8: =Январь!G8 -> 111 | BN8: 1
A9: 211 | B9: оплата труда | C9: =C8 -> субвенция | D9: =D8 -> 807 | E9: 07 02 | F9: 02 П 02 С9903 | G9: 111 | H9: =Январь!H9 -> 44000000 | I9: =Январь!I9 -> 0 | J9: =Январь!BH9 -> 3500000 | K9: =Январь!BJ9 -> 2540000 | L9: =SUM(L10:L11) -> 5500000 | M9: 3500000 | N9: 0 | O9: 0 | P9: 2000000 | Q9: 0 | R9: 0 | S9: 0 | T9: 0 | U9: 0 | V9: 0 | W9: 0 | X9: 0 | Y9: 0 | Z9: 0 | AA9: 0 | AB9: 0 | AC9: 0 | AD9: 0 | AE9: 0 | AF9: 0 | AG9: 0 | AH9: 0 | AI9: 0 | AJ9: 3454908.37 | AK9: 2670418.19 | AL9: -82376.06 | AM9: 82376.06 | AN9: -50509.82 | AO9: 835000 | AP9: 0 | AQ9: 0 | AR9: 0 | AS9: 0 | AT9: 0 | AU9: 0 | AV9: 0 | AW9: 0 | AX9: 0 | AY9: 0 | AZ9: 0 | BA9: 0 | BB9: 0 | BC9: 0 | BD9: 0 | BE9: 0 | BF9: 0 | BG9: 0 | BH9: =J9+L9 -> 9000000 | BI9: =AJ9+Январь!BI9 -> 4414908.37 | BJ9: =K9+L9-AJ9 -> 4585091.63 | BK9: =H9-BH9 -> 35000000 | BL9: 0 | BM9: =I9-BH9 -> -9000000 | BO9: 4 | BP9: =BJ63+BJ119 -> 6017812.98
A10: 211.01 | B10: Основная з/пл | C10: субвенция | D10: 807 | E10: 07 02 | F10: 02 П 02 С9903 | G10: 111 | H10: =Январь!H10 -> 44000000 | I10: =Январь!I10 -> 0 | J10: =Январь!BH10 -> 3500000 | K10: =Январь!BJ10 -> 2540000 | L10: =SUM(M10:AI10) -> 5500000 | M10: 3500000 | P10: 2000000 | AJ10: =SUM(AK10:BG10) -> 3454908.37 | AK10: 2670418.19 | AL10: -82376.06 | AM10: 82376.06 | AN10: -50509.82 | AO10: 835000 | BH10: =J10+L10 -> 9000000 | BI10: =AJ10+Январь!BI10 -> 4414908.37 | BJ10: =K10+L10-AJ10 -> 4585091.63 | BK10: =H10-BH10 -> 35000000 | BM10: =I10-BH10 -> -9000000 | BO10: 5 | BP10: =BJ175+BJ231+BJ343+BJ287+BJ399 -> 0
A11: 211.02 | B11: Кл. руководство | C11: субвенция | D11: 807 | E11: 07 02 | F11: 02 П 02 С9903 | G11: 111 | H11: =Январь!H11 -> 0 | I11: =Январь!I11 -> 0 | J11: =Январь!BH11 -> 0 | K11: =Январь!BJ11 -> 0 | L11: =SUM(M11:AI11) -> 0 | AJ11: =SUM(AK11:BG11) -> 0 | BH11: 0 | BI11: =AJ11+Январь!BI11 -> 0 | BJ11: 0 | BK11: 0 | BM11: 0
A12: 266 | B12: Всего проч. | C12: субвенция | D12: 807 | E12: 07 02 | F12: 02 П 02 С9903 | G12: 111 | H12: =Январь!H12 -> 100000 | I12: =Январь!I12 -> 0 | J12: =Январь!BH12 -> 0 | K12: =Январь!BJ12 -> 0 | L12: =SUM(L13:L18) -> 23795.16 | M12: 0 | N12: 0 | O12: 0 | P12: 23795.16 | Q12: 0 | R12: 0 | S12: 0 | T12: 0 | U12: 0 | V12: 0 | W12: 0 | X12: 0 | Y12: 0 | Z12: 0 | AA12: 0 | AB12: 0 | AC12: 0 | AD12: 0 | AE12: 0 | AF12: 0 | AG12: 0 | AH12: 0 | AI12: 0 | AJ12: 0 | AK12: 0 | AL12: 0 | AM12: 0 | AN12: 0 | AO12: 0 | AP12: 0 | AQ12: 0 | AR12: 0 | AS12: 0 | AT12: 0 | AU12: 0 | AV12: 0 | AW12: 0 | AX12: 0 | AY12: 0 | AZ12: 0 | BA12: 0 | BB12: 0 | BC12: 0 | BD12: 0 | BE12: 0 | BF12: 0 | BG12: 0 | BH12: 23795.16 | BI12: =AJ12+Январь!BI12 -> 0 | BJ12: 23795.16 | BK12: 76204.84 | BL12: 0 | BM12: -23795.16
A13: 266 | B13: б/л | C13: субвенция | D13: 807 | E13: 07 02 | F13: 02 П 02 С9903 | G13: 111 | H13: =Январь!H13 -> 100000 | I13: =Январь!I13 -> 0 | J13: =Январь!BH13 -> 0 | K13: =Январь!BJ13 -> 0 | L13: =SUM(M13:AI13) -> 23795.16 | P13: 23795.16 | AJ13: =SUM(AK13:BG13) -> 0 | BH13: 23795.16 | BI13: =AJ13+Январь!BI13 -> 0 | BJ13: 23795.16 | BK13: 76204.84 | BM13: -23795.16
A14: 212.02 | B14: книги | C14: субвенция | D14: 807 | E14: 07 02 | F14: 02 П 02 С9903 | G14: 111 | H14: =Январь!H14 -> 0 | I14: =Январь!I14 -> 0 | J14: =Январь!BH14 -> 0 | K14: =Январь!BJ14 -> 0 | L14: 0 | AJ14: 0 | BH14: 0 | BI14: =AJ14+Январь!BI14 -> 0 | BJ14: 0 | BK14: 0 | BM14: 0
A15: 266 | B15: до 3-х лет | C15: субвенция | D15: 807 | E15: 07 02 | F15: 02 П 02 С9903 | G15: 112 | H15: =Январь!H15 -> 0 | I15: =Январь!I15 -> 0 | J15: =Январь!BH15 -> 0 | K15: =Январь!BJ15 -> 0 | L15: 0 | AJ15: 0 | BH15: 0 | BI15: =AJ15+Январь!BI15 -> 0 | BJ15: 0 | BK15: 0 | BM15: 0
A16: 212.04 | B16: проезд в отпуск | C16: субвенция | D16: 807 | E16: 07 02 | F16: 02 П 02 С9903 | G16: 112 | H16: =Январь!H16 -> 0 | I16: =Январь!I16 -> 0 | J16: =Январь!BH16 -> 0 | K16: =Январь!BJ16 -> 0 | L16: 0 | AJ16: 0 | BH16: 0 | BI16: =AJ16+Январь!BI16 -> 0 | BJ16: 0 | BK16: 0 | BM16: 0
A17: 212.05 | B17: соц.помощь | C17: субвенция | D17: 807 | E17: 07 02 | F17: 02 П 02 С9903 | G17: 112 | H17: =Январь!H17 -> 0 | I17: =Январь!I17 -> 0 | J17: =Январь!BH17 -> 0 | K17: =Январь!BJ17 -> 0 | L17: 0 | AJ17: 0 | BH17: 0 | BI17: =AJ17+Январь!BI17 -> 0 | BJ17: 0 | BK17: 0 | BM17: 0
A18: 212.06 | B18: СКЛ | C18: субвенция | D18: 807 | E18: 07 02 | F18: 02 П 02 С9903 | G18: 112 | H18: =Январь!H18 -> 0 | I18: =Январь!I18 -> 0 | J18: =Январь!BH18 -> 0 | K18: =Январь!BJ18 -> 0 | L18: 0 | AJ18: 0 | BH18: 0 | BI18: =AJ18+Январь!BI18 -> 0 | BJ18: 0 | BK18: 0 | BM18: 0
A19: 213 | B19: ЕСН | C19: субвенция | D19: 807 | E19: 07 02 | F19: 02 П 02 С9903 | G19: 119 | H19: =Январь!H19 -> 13252600 | I19: =Январь!I19 -> 0 | J19: =Январь!BH19 -> 1000000 | K19: =Январь!BJ19 -> 1000000 | L19: =SUM(L20:L21) -> 1200000 | M19: 200000 | N19: 0 | O19: 0 | P19: 1000000 | Q19: 0 | R19: 0 | S19: 0 | T19: 0 | U19: 0 | V19: 0 | W19: 0 | X19: 0 | Y19: 0 | Z19: 0 | AA19: 0 | AB19: 0 | AC19: 0 | AD19: 0 | AE19: 0 | AF19: 0 | AG19: 0 | AH19: 0 | AI19: 0 | AJ19: 1079819.25 | AK19: 1079819.25 | AL19: 0 | AM19: 0 | AN19: 0 | AO19: 0 | AP19: 0 | AQ19: 0 | AR19: 0 | AS19: 0 | AT19: 0 | AU19: 0 | AV19: 0 | AW19: 0 | AX19: 0 | AY19: 0 | AZ19: 0 | BA19: 0 | BB19: 0 | BC19: 0 | BD19: 0 | BE19: 0 | BF19: 0 | BG19: 0 | BH19: 2200000 | BI19: =AJ19+Январь!BI19 -> 1079819.25 | BJ19: 1120180.75 | BK19: 11052600 | BL19: 0 | BM19: -2200000
A20: 213.01 | B20: ЕСН основ. | C20: субвенция | D20: 807 | E20: 07 02 | F20: 02 П 02 С9903 | G20: 119 | H20: =Январь!H20 -> 13252600 | I20: =Январь!I20 -> 0 | J20: =Январь!BH20 -> 1000000 | K20: =Январь!BJ20 -> 1000000 | L20: =SUM(M20:AI20) -> 1200000 | M20: 200000 | P20: 1000000 | AJ20: =SUM(AK20:BG20) -> 1079819.25 | AK20: 1079819.25 | BH20: 2200000 | BI20: =AJ20+Январь!BI20 -> 1079819.25 | BJ20: 1120180.75 | BK20: 11052600 | BM20: -2200000
A21: 213.02 | B21: ЕСН кл. рук. | C21: субвенция | D21: 807 | E21: 07 02 | F21: 02 П 02 С9903 | G21: 119 | H21: =Январь!H21 -> 0 | I21: =Январь!I21 -> 0 | J21: =Январь!BH21 -> 0 | K21: =Январь!BJ21 -> 0 | L21: =SUM(M21:AI21) -> 0 | AJ21: =SUM(AK21:BG21) -> 0 | BH21: 0 | BI21: =AJ21+Январь!BI21 -> 0 | BJ21: 0 | BK21: 0 | BM21: 0
A22: 221 | B22: связь | C22: субвенция | D22: 807 | E22: 07 02 | F22: 02 П 02 С9903 | G22: 244 | H22: =Январь!H22 -> 64400 | I22: =Январь!I22 -> 0 | J22: =Январь!BH22 -> 2721.6 | K22: =Январь!BJ22 -> 0 | L22: =SUM(M22:AI22) -> 2721.6 | O22: 2721.6 | AJ22: =SUM(AK22:BG22) -> 0 | BH22: 5443.2 | BI22: =AJ22+Январь!BI22 -> 2721.6 | BJ22: 2721.6 | BK22: 58956.8 | BM22: -5443.2
A23: 222 | B23: Всего тран. | C23: субвенция | D23: 807 | E23: 07 02 | F23: 02 П 02 С9903 | G23: 244 | H23: =Январь!H23 -> 113100 | I23: =Январь!I23 -> 0 | J23: =Январь!BH23 -> 16500 | K23: =Январь!BJ23 -> 0 | L23: =SUM(L24:L25) -> 16500 | M23: 0 | N23: 0 | O23: 16500 | P23: 0 | Q23: 0 | R23: 0 | S23: 0 | T23: 0 | U23: 0 | V23: 0 | W23: 0 | X23: 0 | Y23: 0 | Z23: 0 | AA23: 0 | AB23: 0 | AC23: 0 | AD23: 0 | AE23: 0 | AF23: 0 | AG23: 0 | AH23: 0 | AI23: 0 | AJ23: 0 | AK23: 0 | AL23: 0 | AM23: 0 | AN23: 0 | AO23: 0 | AP23: 0 | AQ23: 0 | AR23: 0 | AS23: 0 | AT23: 0 | AU23: 0 | AV23: 0 | AW23: 0 | AX23: 0 | AY23: 0 | AZ23: 0 | BA23: 0 | BB23: 0 | BC23: 0 | BD23: 0 | BE23: 0 | BF23: 0 | BG23: 0 | BH23: 33000 | BI23: =AJ23+Январь!BI23 -> 16500 | BJ23: 16500 | BK23: 80100 | BL23: 0 | BM23: -33000
A24: 222.01 | B24: проезд команд. | C24: субвенция | D24: 807 | E24: 07 02 | F24: 02 П 02 С9903 | G24: 244 | H24: =Январь!H24 -> 0 | I24: =Январь!I24 -> 0 | J24: =Январь!BH24 -> 0 | K24: =Январь!BJ24 -> 0 | L24: =SUM(M24:AI24) -> 0 | AJ24: =SUM(AK24:BG24) -> 0 | BH24: 0 | BI24: =AJ24+Январь!BI24 -> 0 | BJ24: 0 | BK24: 0 | BM24: 0
A25: 222.02 | B25: транспортные усл | C25: субвенция | D25: =D24 -> 807 | E25: 07 02 | F25: 02 П 02 С9903 | G25: 244 | H25: =Январь!H25 -> 113100 | I25: =Январь!I25 -> 0 | J25: =Январь!BH25 -> 16500 | K25: =Январь!BJ25 -> 0 | L25: =SUM(M25:AI25) -> 16500 | O25: 16500 | AJ25: =SUM(AK25:BG25) -> 0 | BH25: 33000 | BI25: =AJ25+Январь!BI25 -> 16500 | BJ25: 16500 | BK25: 80100 | BM25: -33000
A26: 212 | B26: прочие выплаты | C26: субвенция | D26: 807 | E26: 07 02 | F26: 02 П 02 С9903 | G26: 244 | H26: =Январь!H26 -> 3800 | I26: =Январь!I26 -> 0 | J26: =Январь!BH26 -> 0 | K26: =Январь!BJ26 -> 0 | L26: =SUM(L27:L30) -> 0 | M26: 0 | N26: 0 | O26: 0 | P26: 0 | Q26: 0 | R26: 0 | S26: 0 | T26: 0 | U26: 0 | V26: 0 | W26: 0 | X26: 0 | Y26: 0 | Z26: 0 | AA26: 0 | AB26: 0 | AC26: 0 | AD26: 0 | AE26: 0 | AF26: 0 | AG26: 0 | AH26: 0 | AI26: 0 | AJ26: 0 | AK26: 0 | AL26: 0 | AM26: 0 | AN26: 0 | AO26: 0 | AP26: 0 | AQ26: 0 | AR26: 0 | AS26: 0 | AT26: 0 | AU26: 0 | AV26: 0 | AW26: 0 | AX26: 0 | AY26: 0 | AZ26: 0 | BA26: 0 | BB26: 0 | BC26: 0 | BD26: 0 | BE26: 0 | BF26: 0 | BG26: 0 | BH26: 0 | BI26: =AJ26+Январь!BI26 -> 0 | BJ26: 0 | BK26: 3800 | BL26: 0 | BM26: 0
A27: 212 | B27: прочие выплаты | C27: =C26 -> субвенция | D27: 807 | E27: 07 02 | F27: 02 П 02 С9903 | G27: 244 | H27: =Январь!H27 -> 3800 | I27: =Январь!I27 -> 0 | J27: =Январь!BH27 -> 0 | K27: =Январь!BJ27 -> 0 | L27: =SUM(M27:AI27) -> 0 | AJ27: =SUM(AK27:BG27) -> 0 | BH27: 0 | BI27: =AJ27+Январь!BI27 -> 0 | BJ27: 0 | BK27: 3800 | BM27: 0
A28: 223.02 | B28: потребление газа | C28: субвенция | D28: 807 | E28: 07 02 | F28: 02 П 02 С9903 | G28: 244 | H28: =Январь!H28 -> 0 | I28: =Январь!I28 -> 0 | J28: =Январь!BH28 -> 0 | K28: =Январь!BJ28 -> 0 | L28: =SUM(M28:AI28) -> 0 | AJ28: =SUM(AK28:BG28) -> 0 | BH28: 0 | BI28: =AJ28+Январь!BI28 -> 0 | BJ28: 0 | BK28: 0 | BM28: 0
A29: 223.03 | B29: электроэнергия | C29: субвенция | D29: 807 | E29: 07 02 | F29: 02 П 02 С9903 | G29: 244 | H29: =Январь!H29 -> 0 | I29: =Январь!I29 -> 0 | J29: =Январь!BH29 -> 0 | K29: =Январь!BJ29 -> 0 | L29: =SUM(M29:AI29) -> 0 | AJ29: =SUM(AK29:BG29) -> 0 | BH29: 0 | BI29: =AJ29+Январь!BI29 -> 0 | BJ29: 0 | BK29: 0 | BM29: 0
A30: 223.04 | B30: водоснабжение | C30: субвенция | D30: 807 | E30: 07 02 | F30: 02 П 02 С9903 | G30: 244 | H30: =Январь!H30 -> 0 | I30: =Январь!I30 -> 0 | J30: =Январь!BH30 -> 0 | K30: =Январь!BJ30 -> 0 | L30: =SUM(M30:AI30) -> 0 | AJ30: =SUM(AK30:BG30) -> 0 | BH30: 0 | BI30: =AJ30+Январь!BI30 -> 0 | BJ30: 0 | BK30: 0 | BM30: 0
A31: 224 | B31: аренда | C31: субвенция | D31: 807 | E31: 07 02 | F31: 02 П 02 С9903 | G31: 244 | H31: =Январь!H31 -> 0 | I31: =Январь!I31 -> 0 | J31: =Январь!BH31 -> 0 | K31: =Январь!BJ31 -> 0 | L31: =SUM(M31:AI31) -> 0 | AJ31: =SUM(AK31:BG31) -> 0 | BH31: 0 | BI31: =AJ31+Январь!BI31 -> 0 | BJ31: 0 | BK31: 0 | BM31: 0
A32: 225 | B32: Всего содер. Имущ. | C32: субвенция | D32: 807 | E32: 07 02 | F32: 02 П 02 С9903 | G32: 244 | H32: =Январь!H32 -> 112600 | I32: =Январь!I32 -> 0 | J32: =Январь!BH32 -> 0 | K32: =Январь!BJ32 -> 0 | L32: =SUM(L33:L35) -> 0 | M32: 0 | N32: 0 | O32: 0 | P32: 0 | Q32: 0 | R32: 0 | S32: 0 | T32: 0 | U32: 0 | V32: 0 | W32: 0 | X32: 0 | Y32: 0 | Z32: 0 | AA32: 0 | AB32: 0 | AC32: 0 | AD32: 0 | AE32: 0 | AF32: 0 | AG32: 0 | AH32: 0 | AI32: 0 | AJ32: 0 | AK32: 0 | AL32: 0 | AM32: 0 | AN32: 0 | AO32: 0 | AP32: 0 | AQ32: 0 | AR32: 0 | AS32: 0 | AT32: 0 | AU32: 0 | AV32: 0 | AW32: 0 | AX32: 0 | AY32: 0 | AZ32: 0 | BA32: 0 | BB32: 0 | BC32: 0 | BD32: 0 | BE32: 0 | BF32: 0 | BG32: 0 | BH32: 0 | BI32: =AJ32+Январь!BI32 -> 0 | BJ32: 0 | BK32: 112600 | BL32: 0 | BM32: 0
A33: 225.01 | B33: ремонт зд. и сооруж. | C33: субвенция | D33: 807 | E33: 07 02 | F33: 02 П 02 С9903 | G33: 244 | H33: =Январь!H33 -> 112600 | I33: =Январь!I33 -> 0 | J33: =Январь!BH33 -> 0 | K33: =Январь!BJ33 -> 0 | L33: =SUM(M33:AI33) -> 0 | AJ33: =SUM(AK33:BG33) -> 0 | BH33: 0 | BI33: =AJ33+Январь!BI33 -> 0 | BJ33: 0 | BK33: 112600 | BM33: 0
A34: 225.02 | B34: вывоз мусора | C34: субвенция | D34: 807 | E34: 07 02 | F34: 02 П 02 С9903 | G34: 244 | H34: =Январь!H34 -> 0 | I34: =Январь!I34 -> 0 | J34: =Январь!BH34 -> 0 | K34: =Январь!BJ34 -> 0 | L34: =SUM(M34:AI34) -> 0 | AJ34: =SUM(AK34:BG34) -> 0 | BH34: 0 | BI34: =AJ34+Январь!BI34 -> 0 | BJ34: 0 | BK34: 0 | BM34: 0
A35: 225.03 | B35: прочие ком. услуги | C35: субвенция | D35: 807 | E35: 07 02 | F35: 02 П 02 С9903 | G35: 244 | H35: =Январь!H35 -> 0 | I35: =Январь!I35 -> 0 | J35: =Январь!BH35 -> 0 | K35: =Январь!BJ35 -> 0 | L35: =SUM(M35:AI35) -> 0 | AJ35: =SUM(AK35:BG35) -> 0 | BH35: 0 | BI35: =AJ35+Январь!BI35 -> 0 | BJ35: 0 | BK35: 0 | BM35: 0
A36: 226 | B36: Прочие услуги | C36: субвенция | D36: 807 | E36: 07 02 | F36: 02 П 02 С9903 | G36: 244 | H36: =Январь!H36 -> 462500 | I36: =Январь!I36 -> 0 | J36: =Январь!BH36 -> 81977.29 | K36: =Январь!BJ36 -> 0 | L36: =SUM(L37:L38) -> 90994 | M36: 3922 | N36: 0 | O36: 87072 | P36: 0 | Q36: 0 | R36: 0 | S36: 0 | T36: 0 | U36: 0 | V36: 0 | W36: 0 | X36: 0 | Y36: 0 | Z36: 0 | AA36: 0 | AB36: 0 | AC36: 0 | AD36: 0 | AE36: 0 | AF36: 0 | AG36: 0 | AH36: 0 | AI36: 0 | AJ36: 3922 | AK36: 0 | AL36: 0 | AM36: 3922 | AN36: 0 | AO36: 0 | AP36: 0 | AQ36: 0 | AR36: 0 | AS36: 0 | AT36: 0 | AU36: 0 | AV36: 0 | AW36: 0 | AX36: 0 | AY36: 0 | AZ36: 0 | BA36: 0 | BB36: 0 | BC36: 0 | BD36: 0 | BE36: 0 | BF36: 0 | BG36: 0 | BH36: 172971.29 | BI36: =AJ36+Январь!BI36 -> 85899.29 | BJ36: 87072 | BK36: 289528.71 | BL36: 0 | BM36: -172971.29
A37: 226.01 | B37: Коман. (проживание) | C37: субвенция | D37: 807 | E37: 07 02 | F37: 02 П 02 С9903 | G37: 244 | H37: =Январь!H37 -> 462500 | I37: =Январь!I37 -> 0 | J37: =Январь!BH37 -> 81977.29 | K37: =Январь!BJ37 -> 0 | L37: =SUM(M37:AI37) -> 90994 | M37: 3922 | O37: 87072 | AJ37: =SUM(AK37:BG37) -> 3922 | AM37: 3922 | BH37: 172971.29 | BI37: =AJ37+Январь!BI37 -> 85899.29 | BJ37: 87072 | BK37: 289528.71 | BM37: -172971.29
A38: 226.02 | B38: проч. услуги | C38: субвенция | D38: 807 | E38: 07 02 | F38: 02 П 02 С9903 | G38: 244 | H38: =Январь!H38 -> 0 | I38: =Январь!I38 -> 0 | J38: =Январь!BH38 -> 0 | K38: =Январь!BJ38 -> 0 | L38: 0 | AJ38: 0 | BH38: 0 | BI38: =AJ38+Январь!BI38 -> 0 | BJ38: 0 | BK38: 0 | BM38: 0
A39: 241 | B39: Содержание гостиницы | C39: субвенция | D39: 807 | E39: 07 02 | F39: 02 П 02 С9903 | G39: 244 | H39: =Январь!H39 -> 0 | I39: =Январь!I39 -> 0 | J39: =Январь!BH39 -> 0 | K39: =Январь!BJ39 -> 0 | L39: 0 | AJ39: 0 | BH39: 0 | BI39: =AJ39+Январь!BI39 -> 0 | BJ39: 0 | BK39: 0 | BM39: 0
A40: 252 | B40: Переч. наднац. орг. | C40: субвенция | D40: 807 | E40: 07 02 | F40: 02 П 02 С9903 | G40: 244 | H40: =Январь!H40 -> 0 | I40: =Январь!I40 -> 0 | J40: =Январь!BH40 -> 0 | K40: =Январь!BJ40 -> 0 | L40: 0 | AJ40: 0 | BH40: 0 | BI40: =AJ40+Январь!BI40 -> 0 | BJ40: 0 | BK40: 0 | BM40: 0
A41: 253 | B41: перечисл. междунар. орган | C41: субвенция | D41: 807 | E41: 07 02 | F41: 02 П 02 С9903 | G41: 244 | H41: =Январь!H41 -> 0 | I41: =Январь!I41 -> 0 | J41: =Январь!BH41 -> 0 | K41: =Январь!BJ41 -> 0 | L41: 0 | AJ41: 0 | BH41: 0 | BI41: =AJ41+Январь!BI41 -> 0 | BJ41: 0 | BK41: 0 | BM41: 0
A42: 261 | B42: Пособие по соц. Страх. населения | C42: субвенция | D42: 807 | E42: 07 02 | F42: 02 П 02 С9903 | G42: 244 | H42: =Январь!H42 -> 0 | I42: =Январь!I42 -> 0 | J42: =Январь!BH42 -> 0 | K42: =Январь!BJ42 -> 0 | L42: 0 | AJ42: 0 | BH42: 0 | BI42: =AJ42+Январь!BI42 -> 0 | BJ42: 0 | BK42: 0 | BM42: 0
A43: 262 | B43: Пособие по соц. пом. населению | C43: =C42 -> субвенция | D43: 807 | E43: 07 02 | F43: 02 П 02 С9903 | G43: 244 | H43: =Январь!H43 -> 0 | I43: =Январь!I43 -> 0 | J43: =Январь!BH43 -> 0 | K43: =Январь!BJ43 -> 0 | L43: =SUM(L44:L46) -> 0 | M43: 0 | N43: 0 | O43: 0 | P43: 0 | Q43: 0 | R43: 0 | S43: 0 | T43: 0 | U43: 0 | V43: 0 | W43: 0 | X43: 0 | Y43: 0 | Z43: 0 | AA43: 0 | AB43: 0 | AC43: 0 | AD43: 0 | AE43: 0 | AF43: 0 | AG43: 0 | AH43: 0 | AI43: 0 | AJ43: 0 | AK43: 0 | AL43: 0 | AM43: 0 | AN43: 0 | AO43: 0 | AP43: 0 | AQ43: 0 | AR43: 0 | AS43: 0 | AT43: 0 | AU43: 0 | AV43: 0 | AW43: 0 | AX43: 0 | AY43: 0 | AZ43: 0 | BA43: 0 | BB43: 0 | BC43: 0 | BD43: 0 | BE43: 0 | BF43: 0 | BG43: 0 | BH43: 0 | BI43: =AJ43+Январь!BI43 -> 0 | BJ43: 0 | BK43: 0 | BL43: =SUM(BL44:BL46) -> 0 | BM43: 0
A44: 262.01 | B44: льгота по к/услугам | C44: субвенция | D44: 807 | E44: 07 02 | F44: 02 П 02 С9903 | G44: 244 | H44: =Январь!H44 -> 0 | I44: =Январь!I44 -> 0 | J44: =Январь!BH44 -> 0 | K44: =Январь!BJ44 -> 0 | L44: =SUM(M44:AI44) -> 0 | AJ44: =SUM(AK44:BG44) -> 0 | BH44: 0 | BI44: =AJ44+Январь!BI44 -> 0 | BJ44: 0 | BK44: 0 | BM44: 0
A45: 262.02 | B45: прочее | C45: субвенция | D45: 807 | E45: 07 02 | F45: 02 П 02 С9903 | G45: 244 | H45: =Январь!H45 -> 0 | I45: =Январь!I45 -> 0 | J45: =Январь!BH45 -> 0 | K45: =Январь!BJ45 -> 0 | L45: =SUM(M45:AI45) -> 0 | AJ45: =SUM(AK45:BG45) -> 0 | BH45: 0 | BI45: =AJ45+Январь!BI45 -> 0 | BJ45: 0 | BK45: 0 | BM45: 0
A46: 262.03 | B46: прочее | C46: субвенция | D46: 807 | E46: 07 02 | F46: 02 П 02 С9903 | G46: 244 | H46: =Январь!H46 -> 0 | I46: =Январь!I46 -> 0 | J46: =Январь!BH46 -> 0 | K46: =Январь!BJ46 -> 0 | L46: =SUM(M46:AI46) -> 0 | AJ46: =SUM(AK46:BG46) -> 0 | BH46: 0 | BI46: =AJ46+Январь!BI46 -> 0 | BJ46: 0 | BK46: 0 | BM46: 0
A47: 263 | B47: Соц. пособ. Выпл. орган. сектора гос. управ. | C47: субвенция | D47: 807 | E47: 07 02 | F47: 02 П 02 С9903 | G47: 244 | H47: =Январь!H47 -> 0 | I47: =Январь!I47 -> 0 | J47: =Январь!BH47 -> 0 | K47: =Январь!BJ47 -> 0 | L47: =SUM(M47:AI47) -> 0 | AJ47: =SUM(AK47:BG47) -> 0 | BH47: 0 | BI47: =AJ47+Январь!BI47 -> 0 | BJ47: 0 | BK47: 0 | BM47: 0
A48: 290 | B48: Прочие расходы | C48: субвенция | D48: 807 | E48: 07 02 | F48: 02 П 02 С9903 | G48: 244 | H48: =Январь!H48 -> 26900 | I48: =Январь!I48 -> 0 | J48: =Январь!BH48 -> 0 | K48: =Январь!BJ48 -> 0 | L48: =SUM(L49:L50) -> 0 | M48: 0 | N48: 0 | O48: 0 | P48: 0 | Q48: 0 | R48: 0 | S48: 0 | T48: 0 | U48: 0 | V48: 0 | W48: 0 | X48: 0 | Y48: 0 | Z48: 0 | AA48: 0 | AB48: 0 | AC48: 0 | AD48: 0 | AE48: 0 | AF48: 0 | AG48: 0 | AH48: 0 | AI48: 0 | AJ48: 0 | AK48: 0 | AL48: 0 | AM48: 0 | AN48: 0 | AO48: 0 | AP48: 0 | AQ48: 0 | AR48: 0 | AS48: 0 | AT48: 0 | AU48: 0 | AV48: 0 | AW48: 0 | AX48: 0 | AY48: 0 | AZ48: 0 | BA48: 0 | BB48: 0 | BC48: 0 | BD48: 0 | BE48: 0 | BF48: 0 | BG48: 0 | BH48: 0 | BI48: =AJ48+Январь!BI48 -> 0 | BJ48: 0 | BK48: 26900 | BL48: 0 | BM48: 0
A49: 290.03 | B49: Налог на имущество | C49: субвенция | D49: 807 | E49: 07 02 | F49: 02 П 02 С9903 | G49: 244 | H49: =Январь!H49 -> 0 | I49: =Январь!I49 -> 0 | J49: =Январь!BH49 -> 0 | K49: =Январь!BJ49 -> 0 | L49: =SUM(M49:AI49) -> 0 | AJ49: =SUM(AK49:BG49) -> 0 | BH49: 0 | BI49: =AJ49+Январь!BI49 -> 0 | BJ49: 0 | BK49: 0 | BM49: 0
A50: 290.02 | B50: проч. расходы | C50: субвенция | D50: 807 | E50: 07 02 | F50: 02 П 02 С9903 | G50: 244 | H50: =Январь!H50 -> 26900 | I50: =Январь!I50 -> 0 | J50: =Январь!BH50 -> 0 | K50: =Январь!BJ50 -> 0 | L50: =SUM(M50:AI50) -> 0 | AJ50: =SUM(AK50:BG50) -> 0 | BH50: 0 | BI50: =AJ50+Январь!BI50 -> 0 | BJ50: 0 | BK50: 26900 | BM50: 0
A51: 310 | B51: Увеличение ст-ти ОС | C51: субвенция | D51: 807 | E51: 07 02 | F51: 02 П 02 С9903 | G51: 244 | H51: =Январь!H51 -> 208000 | I51: =Январь!I51 -> 0 | J51: =Январь!BH51 -> 0 | K51: =Январь!BJ51 -> 0 | L51: =SUM(L52:L55) -> 57469 | M51: 57469 | N51: 0 | O51: 0 | P51: 0 | Q51: 0 | R51: 0 | S51: 0 | T51: 0 | U51: 0 | V51: 0 | W51: 0 | X51: 0 | Y51: 0 | Z51: 0 | AA51: 0 | AB51: 0 | AC51: 0 | AD51: 0 | AE51: 0 | AF51: 0 | AG51: 0 | AH51: 0 | AI51: 0 | AJ51: 57469 | AK51: 0 | AL51: 0 | AM51: 57469 | AN51: 0 | AO51: 0 | AP51: 0 | AQ51: 0 | AR51: 0 | AS51: 0 | AT51: 0 | AU51: 0 | AV51: 0 | AW51: 0 | AX51: 0 | AY51: 0 | AZ51: 0 | BA51: 0 | BB51: 0 | BC51: 0 | BD51: 0 | BE51: 0 | BF51: 0 | BG51: 0 | BH51: 57469 | BI51: =AJ51+Январь!BI51 -> 57469 | BJ51: 0 | BK51: 150531 | BL51: 0 | BM51: -57469
A52: 310.01 | B52: Увеличение ст-ти ОС | C52: субвенция | D52: 807 | E52: 07 02 | F52: 02 П 02 С9903 | G52: 244 | H52: =Январь!H52 -> 208000 | I52: =Январь!I52 -> 0 | J52: =Январь!BH52 -> 0 | K52: =Январь!BJ52 -> 0 | L52: =SUM(M52:AI52) -> 57469 | M52: 57469 | AJ52: =SUM(AK52:BG52) -> 57469 | AM52: 57469 | BH52: 57469 | BI52: =AJ52+Январь!BI52 -> 57469 | BJ52: 0 | BK52: 150531 | BM52: -57469
A53: 310.02 | B53: расх. матер больше года | C53: субвенция | D53: 807 | E53: 07 02 | F53: 02 П 02 С9903 | G53: 244 | H53: =Январь!H53 -> 0 | I53: =Январь!I53 -> 0 | J53: =Январь!BH53 -> 0 | K53: =Январь!BJ53 -> 0 | L53: =SUM(M53:AI53) -> 0 | AJ53: =SUM(AK53:BG53) -> 0 | BH53: 0 | BI53: =AJ53+Январь!BI53 -> 0 | BJ53: 0 | BK53: 0 | BM53: 0
A54: 310.03 | B54: приобретение предм. дл. польз. | C54: субвенция | D54: 807 | E54: 07 02 | F54: 02 П 02 С9903 | G54: 244 | H54: =Январь!H54 -> 0 | I54: =Январь!I54 -> 0 | J54: =Январь!BH54 -> 0 | K54: =Январь!BJ54 -> 0 | L54: =SUM(M54:AI54) -> 0 | AJ54: =SUM(AK54:BG54) -> 0 | BH54: 0 | BI54: =AJ54+Январь!BI54 -> 0 | BJ54: 0 | BK54: 0 | BM54: 0
A55: 310.04 | B55: капитальное стр-во | C55: субвенция | D55: 807 | E55: 07 02 | F55: 02 П 02 С9903 | G55: 244 | H55: =Январь!H55 -> 0 | I55: =Январь!I55 -> 0 | J55: =Январь!BH55 -> 0 | K55: =Январь!BJ55 -> 0 | L55: =SUM(M55:AI55) -> 0 | AJ55: =SUM(AK55:BG55) -> 0 | BH55: 0 | BI55: =AJ55+Январь!BI55 -> 0 | BJ55: 0 | BK55: 0 | BM55: 0
A56: 320 | B56: Увеличение ст-ти немат. активов | C56: субвенция | D56: 807 | E56: 07 02 | F56: 02 П 02 С9903 | G56: 244 | H56: =Январь!H56 -> 0 | I56: =Январь!I56 -> 0 | J56: =Январь!BH56 -> 0 | K56: =Январь!BJ56 -> 0 | L56: =SUM(M56:AI56) -> 0 | AJ56: =SUM(AK56:BG56) -> 0 | BH56: 0 | BI56: =AJ56+Январь!BI56 -> 0 | BJ56: 0 | BK56: 0 | BM56: 0
A57: 340 | B57: Увеличение мат. запасов | C57: субвенция | D57: 807 | E57: 07 02 | F57: 02 П 02 С9903 | G57: 244 | H57: =Январь!H57 -> 6993100 | I57: =Январь!I57 -> 0 | J57: =Январь!BH57 -> 551836 | K57: =Январь!BJ57 -> 0 | L57: =SUM(L58:L62) -> 661084.64 | M57: 478632.8 | N57: 0 | O57: 182451.84 | P57: 0 | Q57: 0 | R57: 0 | S57: 0 | T57: 0 | U57: 0 | V57: 0 | W57: 0 | X57: 0 | Y57: 0 | Z57: 0 | AA57: 0 | AB57: 0 | AC57: 0 | AD57: 0 | AE57: 0 | AF57: 0 | AG57: 0 | AH57: 0 | AI57: 0 | AJ57: 478632.8 | AK57: 0 | AL57: 0 | AM57: 67839 | AN57: 410793.8 | AO57: 0 | AP57: 0 | AQ57: 0 | AR57: 0 | AS57: 0 | AT57: 0 | AU57: 0 | AV57: 0 | AW57: 0 | AX57: 0 | AY57: 0 | AZ57: 0 | BA57: 0 | BB57: 0 | BC57: 0 | BD57: 0 | BE57: 0 | BF57: 0 | BG57: 0 | BH57: 1212920.64 | BI57: =AJ57+Январь!BI57 -> 1030468.8 | BJ57: 182451.84 | BK57: 5780179.36 | BL57: 0 | BM57: -1212920.64
A58: 341 | B58: медикаменды | C58: субвенция | D58: 807 | E58: 07 02 | F58: 02 П 02 С9903 | G58: 244 | H58: =Январь!H58 -> 6000 | I58: =Январь!I58 -> 0 | J58: =Январь!BH58 -> 0 | K58: =Январь!BJ58 -> 0 | L58: =SUM(M58:AI58) -> 0 | AJ58: =SUM(AK58:BG58) -> 0 | BH58: 0 | BI58: =AJ58+Январь!BI58 -> 0 | BJ58: 0 | BK58: 6000 | BM58: 0
A59: 342 | B59: продукты питания | C59: =C58 -> субвенция | D59: 807 | E59: 07 02 | F59: 02 П 02 С9903 | G59: 244 | H59: =Январь!H59 -> 5808600 | I59: =Январь!I59 -> 0 | J59: =Январь!BH59 -> 513456 | K59: =Январь!BJ59 -> 0 | L59: =SUM(M59:AI59) -> 589822.7 | M59: 410793.8 | O59: 179028.9 | AJ59: =SUM(AK59:BG59) -> 410793.8 | AN59: 410793.8 | BH59: 1103278.7 | BI59: =AJ59+Январь!BI59 -> 924249.8 | BJ59: 179028.9 | BK59: 4705321.3 | BM59: -1103278.7
A60: 345 | B60: мягкий инвентарь | C60: субвенция | D60: 807 | E60: 07 02 | F60: 02 П 02 С9903 | G60: 244 | H60: =Январь!H60 -> 0 | I60: =Январь!I60 -> 0 | J60: =Январь!BH60 -> 0 | K60: =Январь!BJ60 -> 0 | L60: =SUM(M60:AI60) -> 0 | AJ60: =SUM(AK60:BG60) -> 0 | BH60: 0 | BI60: =AJ60+Январь!BI60 -> 0 | BJ60: 0 | BK60: 0 | BM60: 0
A61: 346 | B61: тмц | C61: субвенция | D61: 807 | E61: 07 02 | F61: 02 П 02 С9903 | G61: 244 | H61: =Январь!H61 -> 1175000 | I61: =Январь!I61 -> 0 | J61: =Январь!BH61 -> 38380 | K61: =Январь!BJ61 -> 0 | L61: =SUM(M61:AI61) -> 67839 | M61: 67839 | AJ61: =SUM(AK61:BG61) -> 67839 | AM61: 67839 | BH61: 106219 | BI61: =AJ61+Январь!BI61 -> 106219 | BJ61: 0 | BK61: 1068781 | BM61: -106219
A62: 349 | B62: однократное | C62: субвенция | D62: 807 | E62: 07 02 | F62: 02 П 02 С9903 | G62: 244 | H62: =Январь!H62 -> 3500 | I62: =Январь!I62 -> 0 | J62: =Январь!BH62 -> 0 | K62: =Январь!BJ62 -> 0 | L62: =SUM(M62:AI62) -> 3422.94 | O62: 3422.94 | AJ62: =SUM(AK62:BG62) -> 0 | BH62: 3422.94 | BI62: =AJ62+Январь!BI62 -> 0 | BJ62: 3422.94 | BK62: 77.06 | BM62: -3422.94
A63: ИТОГО | B63: Итого расходов | C63: субвенция | D63: 807 | E63: 07 02 | F63: 02 П 02 С9903 | G63: 244 | H63: =Январь!H63 -> 65337000 | I63: =Январь!I63 -> 0 | J63: =Январь!BH63 -> 5153034.89 | K63: =Январь!BJ63 -> 3540000 | L63: =L9+L12+L19+L22+L23+L26+L31+L32+L36+L39+L40+L41+L42+L43+L47+L48+L51+L56+L57 -> 7552564.4 | M63: =M9+M12+M19+M22+M23+M26+M31+M32+M36+M39+M40+M41+M42+M43+M47+M48+M51+M56+M57 -> 4240023.8 | N63: 0 | O63: 288745.44 | P63: 3023795.16 | Q63: 0 | R63: 0 | S63: 0 | T63: 0 | U63: 0 | V63: 0 | W63: 0 | X63: 0 | Y63: 0 | Z63: 0 | AA63: 0 | AB63: 0 | AC63: 0 | AD63: 0 | AE63: 0 | AF63: 0 | AG63: 0 | AH63: 0 | AI63: 0 | AJ63: 5074751.42 | AK63: 3750237.44 | AL63: -82376.06 | AM63: 211606.06 | AN63: 360283.98 | AO63: 835000 | AP63: 0 | AQ63: 0 | AR63: 0 | AS63: 0 | AT63: 0 | AU63: 0 | AV63: 0 | AW63: 0 | AX63: 0 | AY63: 0 | AZ63: 0 | BA63: 0 | BB63: 0 | BC63: 0 | BD63: 0 | BE63: 0 | BF63: 0 | BG63: 0 | BH63: 12705599.29 | BI63: =AJ63+Январь!BI63 -> 6687786.31 | BJ63: 6017812.98 | BK63: 52631400.71 | BL63: 0 | BM63: -12705599.29
C64: =Январь!C64 -> местный | D64: =Январь!D64 -> 807 | E64: =Январь!E64 -> 07 02 | F64: =Январь!F64 -> 02 П 02 М9903 | G64: =Январь!G64 -> 244 | BN64: =BN8+1 -> 2
A65: 211 | B65: оплата труда | C65: =C64 -> местный | D65: =D64 -> 807 | E65: 07 02 | F65: 02 П 02 М9903 | G65: 244 | H65: =Январь!H65 -> 0 | I65: =Январь!I65 -> 0 | J65: =Январь!BH65 -> 0 | K65: =Январь!BJ65 -> 0 | L65: =SUM(L66:L67) -> 0 | M65: 0 | N65: 0 | O65: 0 | P65: 0 | Q65: 0 | R65: 0 | S65: 0 | T65: 0 | U65: 0 | V65: 0 | W65: 0 | X65: 0 | Y65: 0 | Z65: 0 | AA65: 0 | AB65: 0 | AC65: 0 | AD65: 0 | AE65: 0 | AF65: 0 | AG65: 0 | AH65: 0 | AI65: 0 | AJ65: 0 | AK65: 0 | AL65: 0 | AM65: 0 | AN65: 0 | AO65: 0 | AP65: 0 | AQ65: 0 | AR65: 0 | AS65: 0 | AT65: 0 | AU65: 0 | AV65: 0 | AW65: 0 | AX65: 0 | AY65: 0 | AZ65: 0 | BA65: 0 | BB65: 0 | BC65: 0 | BD65: 0 | BE65: 0 | BF65: 0 | BG65: 0 | BH65: =J65+L65 -> 0 | BI65: =AJ65+Январь!BI65 -> 0 | BJ65: =K65+L65-AJ65 -> 0 | BK65: =H65-BH65 -> 0 | BL65: =SUM(BL66:BL67) -> 0 | BM65: =I65-BH65 -> 0
A66: 211.01 | B66: Основная з/пл | C66: местный | D66: 807 | E66: 07 02 | F66: 02 П 02 М9903 | G66: 244 | H66: =Январь!H66 -> 0 | I66: =Январь!I66 -> 0 | J66: =Январь!BH66 -> 0 | K66: =Январь!BJ66 -> 0 | L66: =SUM(M66:AI66) -> 0 | AJ66: =SUM(AK66:BG66) -> 0 | BH66: =J66+L66 -> 0 | BI66: =AJ66+Январь!BI66 -> 0 | BJ66: 0 | BK66: 0 | BM66: =I66-BH66 -> 0
A67: 211.02 | B67: Кл. руководство | C67: местный | D67: 807 | E67: 07 02 | F67: 02 П 02 М9903 | G67: 244 | H67: =Январь!H67 -> 0 | I67: =Январь!I67 -> 0 | J67: =Январь!BH67 -> 0 | K67: =Январь!BJ67 -> 0 | L67: =SUM(M67:AI67) -> 0 | AJ67: =SUM(AK67:BG67) -> 0 | BH67: 0 | BI67: =AJ67+Январь!BI67 -> 0 | BJ67: 0 | BK67: 0 | BM67: 0
A68: 212 | B68: Всего проч. | C68: местный | D68: 807 | E68: 07 02 | F68: 02 П 02 М9903 | G68: 244 | H68: =Январь!H68 -> 0 | I68: =Январь!I68 -> 0 | J68: =Январь!BH68 -> 0 | K68: =Январь!BJ68 -> 0 | L68: =SUM(L69:L74) -> 0 | M68: 0 | N68: 0 | O68: 0 | P68: 0 | Q68: 0 | R68: 0 | S68: 0 | T68: 0 | U68: 0 | V68: 0 | W68: 0 | X68: 0 | Y68: 0 | Z68: 0 | AA68: 0 | AB68: 0 | AC68: 0 | AD68: 0 | AE68: 0 | AF68: 0 | AG68: 0 | AH68: 0 | AI68: 0 | AJ68: 0 | AK68: 0 | AL68: 0 | AM68: 0 | AN68: 0 | AO68: 0 | AP68: 0 | AQ68: 0 | AR68: 0 | AS68: 0 | AT68: 0 | AU68: 0 | AV68: 0 | AW68: 0 | AX68: 0 | AY68: 0 | AZ68: 0 | BA68: 0 | BB68: 0 | BC68: 0 | BD68: 0 | BE68: 0 | BF68: 0 | BG68: 0 | BH68: 0 | BI68: =AJ68+Январь!BI68 -> 0 | BJ68: 0 | BK68: 0 | BL68: =SUM(BL69:BL74) -> 0 | BM68: 0
A69: 212.01 | B69: суточные | C69: местный | D69: 807 | E69: 07 02 | F69: 02 П 02 М9903 | G69: 244 | H69: =Январь!H69 -> 0 | I69: =Январь!I69 -> 0 | J69: =Январь!BH69 -> 0 | K69: =Январь!BJ69 -> 0 | L69: =SUM(M69:AI69) -> 0 | AJ69: =SUM(AK69:BG69) -> 0 | BH69: 0 | BI69: =AJ69+Январь!BI69 -> 0 | BJ69: 0 | BK69: 0 | BM69: 0
A70: 212.02 | B70: книги | C70: местный | D70: 807 | E70: 07 02 | F70: 02 П 02 М9903 | G70: 244 | H70: =Январь!H70 -> 0 | I70: =Январь!I70 -> 0 | J70: =Январь!BH70 -> 0 | K70: =Январь!BJ70 -> 0 | L70: 0 | AJ70: 0 | BH70: 0 | BI70: =AJ70+Январь!BI70 -> 0 | BJ70: 0 | BK70: 0 | BM70: 0
A71: 212.03 | B71: СКЛ | C71: местный | D71: 807 | E71: 07 02 | F71: 02 П 02 М9903 | G71: 244 | H71: =Январь!H71 -> 0 | I71: =Январь!I71 -> 0 | J71: =Январь!BH71 -> 0 | K71: =Январь!BJ71 -> 0 | L71: 0 | AJ71: 0 | BH71: 0 | BI71: =AJ71+Январь!BI71 -> 0 | BJ71: 0 | BK71: 0 | BM71: 0
A72: 212.04 | B72: проезд в отпуск | C72: местный | D72: 807 | E72: 07 02 | F72: 02 П 02 М9903 | G72: 244 | H72: =Январь!H72 -> 0 | I72: =Январь!I72 -> 0 | J72: =Январь!BH72 -> 0 | K72: =Январь!BJ72 -> 0 | L72: 0 | AJ72: 0 | BH72: 0 | BI72: =AJ72+Январь!BI72 -> 0 | BJ72: 0 | BK72: 0 | BM72: 0
A73: 212.05 | B73: соц.помощь | C73: местный | D73: 807 | E73: 07 02 | F73: 02 П 02 М9903 | G73: 244 | H73: =Январь!H73 -> 0 | I73: =Январь!I73 -> 0 | J73: =Январь!BH73 -> 0 | K73: =Январь!BJ73 -> 0 | L73: 0 | AJ73: 0 | BH73: 0 | BI73: =AJ73+Январь!BI73 -> 0 | BJ73: 0 | BK73: 0 | BM73: 0
A74: 212.06 | B74: СКЛ | C74: местный | D74: 807 | E74: 07 02 | F74: 02 П 02 М9903 | G74: 244 | H74: =Январь!H74 -> 0 | I74: =Январь!I74 -> 0 | J74: =Январь!BH74 -> 0 | K74: =Январь!BJ74 -> 0 | L74: 0 | AJ74: 0 | BH74: 0 | BI74: =AJ74+Январь!BI74 -> 0 | BJ74: 0 | BK74: 0 | BM74: 0
A75: 213 | B75: ЕСН | C75: местный | D75: 807 | E75: 07 02 | F75: 02 П 02 М9903 | G75: 244 | H75: =Январь!H75 -> 0 | I75: =Январь!I75 -> 0 | J75: =Январь!BH75 -> 0 | K75: =Январь!BJ75 -> 0 | L75: =SUM(L76:L77) -> 0 | M75: 0 | N75: 0 | O75: 0 | P75: 0 | Q75: 0 | R75: 0 | S75: 0 | T75: 0 | U75: 0 | V75: 0 | W75: 0 | X75: 0 | Y75: 0 | Z75: 0 | AA75: 0 | AB75: 0 | AC75: 0 | AD75: 0 | AE75: 0 | AF75: 0 | AG75: 0 | AH75: 0 | AI75: 0 | AJ75: 0 | AK75: 0 | AL75: 0 | AM75: 0 | AN75: 0 | AO75: 0 | AP75: 0 | AQ75: 0 | AR75: 0 | AS75: 0 | AT75: 0 | AU75: 0 | AV75: 0 | AW75: 0 | AX75: 0 | AY75: 0 | AZ75: 0 | BA75: 0 | BB75: 0 | BC75: 0 | BD75: 0 | BE75: 0 | BF75: 0 | BG75: 0 | BH75: 0 | BI75: =AJ75+Январь!BI75 -> 0 | BJ75: 0 | BK75: 0 | BL75: =SUM(BL76:BL77) -> 0 | BM75: 0
A76: 213.01 | B76: ЕСН основ. | C76: местный | D76: 807 | E76: 07 02 | F76: 02 П 02 М9903 | G76: 244 | H76: =Январь!H76 -> 0 | I76: =Январь!I76 -> 0 | J76: =Январь!BH76 -> 0 | K76: =Январь!BJ76 -> 0 | L76: =SUM(M76:AI76) -> 0 | AJ76: =SUM(AK76:BG76) -> 0 | BH76: 0 | BI76: =AJ76+Январь!BI76 -> 0 | BJ76: 0 | BK76: 0 | BM76: 0
A77: 213.02 | B77: ЕСН кл. рук. | C77: местный | D77: 807 | E77: 07 02 | F77: 02 П 02 М9903 | G77: 244 | H77: =Январь!H77 -> 0 | I77: =Январь!I77 -> 0 | J77: =Январь!BH77 -> 0 | K77: =Январь!BJ77 -> 0 | L77: =SUM(M77:AI77) -> 0 | AJ77: =SUM(AK77:BG77) -> 0 | BH77: 0 | BI77: =AJ77+Январь!BI77 -> 0 | BJ77: 0 | BK77: 0 | BM77: 0
A78: 221 | B78: связь | C78: местный | D78: 807 | E78: 07 02 | F78: 02 П 02 М9903 | G78: 244 | H78: =Январь!H78 -> 0 | I78: =Январь!I78 -> 0 | J78: =Январь!BH78 -> 0 | K78: =Январь!BJ78 -> 0 | L78: =SUM(M78:AI78) -> 0 | AJ78: =SUM(AK78:BG78) -> 0 | BH78: 0 | BI78: =AJ78+Январь!BI78 -> 0 | BJ78: 0 | BK78: 0 | BM78: 0
A79: 222 | B79: Всего тран. | C79: местный | D79: 807 | E79: 07 02 | F79: 02 П 02 М9903 | G79: 244 | H79: =Январь!H79 -> 0 | I79: =Январь!I79 -> 0 | J79: =Январь!BH79 -> 0 | K79: =Январь!BJ79 -> 0 | L79: =SUM(L80:L81) -> 0 | M79: 0 | N79: 0 | O79: 0 | P79: 0 | Q79: 0 | R79: 0 | S79: 0 | T79: 0 | U79: 0 | V79: 0 | W79: 0 | X79: 0 | Y79: 0 | Z79: 0 | AA79: 0 | AB79: 0 | AC79: 0 | AD79: 0 | AE79: 0 | AF79: 0 | AG79: 0 | AH79: 0 | AI79: 0 | AJ79: 0 | AK79: 0 | AL79: 0 | AM79: 0 | AN79: 0 | AO79: 0 | AP79: 0 | AQ79: 0 | AR79: 0 | AS79: 0 | AT79: 0 | AU79: 0 | AV79: 0 | AW79: 0 | AX79: 0 | AY79: 0 | AZ79: 0 | BA79: 0 | BB79: 0 | BC79: 0 | BD79: 0 | BE79: 0 | BF79: 0 | BG79: 0 | BH79: 0 | BI79: =AJ79+Январь!BI79 -> 0 | BJ79: 0 | BK79: 0 | BL79: =SUM(BL80:BL81) -> 0 | BM79: 0
A80: 222.01 | B80: проезд команд. | C80: местный | D80: 807 | E80: 07 02 | F80: 02 П 02 М9903 | G80: 244 | H80: =Январь!H80 -> 0 | I80: =Январь!I80 -> 0 | J80: =Январь!BH80 -> 0 | K80: =Январь!BJ80 -> 0 | L80: =SUM(M80:AI80) -> 0 | AJ80: =SUM(AK80:BG80) -> 0 | BH80: 0 | BI80: =AJ80+Январь!BI80 -> 0 | BJ80: 0 | BK80: 0 | BM80: 0
A81: 222.02 | B81: транспортные усл | C81: местный | D81: =D80 -> 807 | E81: 07 02 | F81: 02 П 02 М9903 | G81: 244 | H81: =Январь!H81 -> 0 | I81: =Январь!I81 -> 0 | J81: =Январь!BH81 -> 0 | K81: =Январь!BJ81 -> 0 | L81: =SUM(M81:AI81) -> 0 | AJ81: =SUM(AK81:BG81) -> 0 | BH81: 0 | BI81: =AJ81+Январь!BI81 -> 0 | BJ81: 0 | BK81: 0 | BM81: 0
A82: 223 | B82: Всего ком. усл. | C82: местный | D82: 807 | E82: 07 02 | F82: 02 П 02 М9903 | G82: 244 | H82: =Январь!H82 -> 14937100 | I82: =Январь!I82 -> 0 | J82: =Январь!BH82 -> 2145245.39 | K82: =Январь!BJ82 -> 0 | L82: =SUM(L83:L86) -> 1455525.29 | M82: 1455525.29 | N82: 0 | O82: 0 | P82: 0 | Q82: 0 | R82: 0 | S82: 0 | T82: 0 | U82: 0 | V82: 0 | W82: 0 | X82: 0 | Y82: 0 | Z82: 0 | AA82: 0 | AB82: 0 | AC82: 0 | AD82: 0 | AE82: 0 | AF82: 0 | AG82: 0 | AH82: 0 | AI82: 0 | AJ82: 1455525.29 | AK82: 0 | AL82: 0 | AM82: 1314737.5 | AN82: 0 | AO82: 0 | AP82: 140787.79 | AQ82: 0 | AR82: 0 | AS82: 0 | AT82: 0 | AU82: 0 | AV82: 0 | AW82: 0 | AX82: 0 | AY82: 0 | AZ82: 0 | BA82: 0 | BB82: 0 | BC82: 0 | BD82: 0 | BE82: 0 | BF82: 0 | BG82: 0 | BH82: 3600770.68 | BI82: =AJ82+Январь!BI82 -> 3600770.68 | BJ82: 0 | BK82: 11336329.32 | BL82: =SUM(BL83:BL86) -> 0 | BM82: -3600770.68
A83: 223.01 | B83: водоснабжение | C83: =C82 -> местный | D83: 807 | E83: 07 02 | F83: 02 П 02 М9903 | G83: 244 | H83: =Январь!H83 -> 7103300 | I83: =Январь!I83 -> 0 | J83: =Январь!BH83 -> 78593.31 | K83: =Январь!BJ83 -> 0 | L83: =SUM(M83:AI83) -> 40185.6 | M83: 40185.6 | AJ83: =SUM(AK83:BG83) -> 40185.6 | AM83: 40185.6 | BH83: 118778.91 | BI83: =AJ83+Январь!BI83 -> 118778.91 | BJ83: 0 | BK83: 6984521.09 | BM83: -118778.91
A84: 223.02 | B84: теплоэнергия | C84: местный | D84: 807 | E84: 07 02 | F84: 02 П 02 М9903 | G84: 244 | H84: =Январь!H84 -> 7833800 | I84: =Январь!I84 -> 0 | J84: =Январь!BH84 -> 2066652.08 | K84: =Январь!BJ84 -> 0 | L84: =SUM(M84:AI84) -> 1415339.69 | M84: 1415339.69 | AJ84: =SUM(AK84:BG84) -> 1415339.69 | AM84: 1274551.9 | AP84: 140787.79 | BH84: 3481991.77 | BI84: =AJ84+Январь!BI84 -> 3481991.77 | BJ84: 0 | BK84: 4351808.23 | BM84: -3481991.77
A85: 223.03 | B85: электроэнергия | C85: местный | D85: 807 | E85: 07 02 | F85: 02 П 02 М9903 | G85: 244 | H85: =Январь!H85 -> 0 | I85: =Январь!I85 -> 0 | J85: =Январь!BH85 -> 0 | K85: =Январь!BJ85 -> 0 | L85: =SUM(M85:AI85) -> 0 | AJ85: =SUM(AK85:BG85) -> 0 | BH85: 0 | BI85: =AJ85+Январь!BI85 -> 0 | BJ85: 0 | BK85: 0 | BM85: 0
A86: 223.04 | B86: водоснабжение | C86: местный | D86: 807 | E86: 07 02 | F86: 02 П 02 М9903 | G86: 244 | H86: =Январь!H86 -> 0 | I86: =Январь!I86 -> 0 | J86: =Январь!BH86 -> 0 | K86: =Январь!BJ86 -> 0 | L86: =SUM(M86:AI86) -> 0 | AJ86: =SUM(AK86:BG86) -> 0 | BH86: 0 | BI86: =AJ86+Январь!BI86 -> 0 | BJ86: 0 | BK86: 0 | BM86: 0
A87: 224 | B87: аренда | C87: местный | D87: 807 | E87: 07 02 | F87: 02 П 02 М9903 | G87: 244 | H87: =Январь!H87 -> 0 | I87: =Январь!I87 -> 0 | J87: =Январь!BH87 -> 0 | K87: =Январь!BJ87 -> 0 | L87: =SUM(M87:AI87) -> 0 | AJ87: =SUM(AK87:BG87) -> 0 | BH87: 0 | BI87: =AJ87+Январь!BI87 -> 0 | BJ87: 0 | BK87: 0 | BM87: 0
A88: 225 | B88: Всего содер. Имущ. | C88: местный | D88: 807 | E88: 07 02 | F88: 02 П 02 М9903 | G88: 244 | H88: =Январь!H88 -> 88000 | I88: =Январь!I88 -> 0 | J88: =Январь!BH88 -> 0 | K88: =Январь!BJ88 -> 0 | L88: =SUM(L89:L91) -> 0 | M88: 0 | N88: 0 | O88: 0 | P88: 0 | Q88: 0 | R88: 0 | S88: 0 | T88: 0 | U88: 0 | V88: 0 | W88: 0 | X88: 0 | Y88: 0 | Z88: 0 | AA88: 0 | AB88: 0 | AC88: 0 | AD88: 0 | AE88: 0 | AF88: 0 | AG88: 0 | AH88: 0 | AI88: 0 | AJ88: 0 | AK88: 0 | AL88: 0 | AM88: 0 | AN88: 0 | AO88: 0 | AP88: 0 | AQ88: 0 | AR88: 0 | AS88: 0 | AT88: 0 | AU88: 0 | AV88: 0 | AW88: 0 | AX88: 0 | AY88: 0 | AZ88: 0 | BA88: 0 | BB88: 0 | BC88: 0 | BD88: 0 | BE88: 0 | BF88: 0 | BG88: 0 | BH88: 0 | BI88: =AJ88+Январь!BI88 -> 0 | BJ88: 0 | BK88: 88000 | BL88: =SUM(BL89:BL91) -> 0 | BM88: 0
A89: 225.01 | B89: ремонт зд. и сооруж. | C89: местный | D89: 807 | E89: 07 02 | F89: 02 П 02 М9903 | G89: 244 | H89: =Январь!H89 -> 88000 | I89: =Январь!I89 -> 0 | J89: =Январь!BH89 -> 0 | K89: =Январь!BJ89 -> 0 | L89: =SUM(M89:AI89) -> 0 | AJ89: =SUM(AK89:BG89) -> 0 | BH89: 0 | BI89: =AJ89+Январь!BI89 -> 0 | BJ89: 0 | BK89: 88000 | BM89: 0
A90: 225.02 | B90: вывоз мусора | C90: местный | D90: 807 | E90: 07 02 | F90: 02 П 02 М9903 | G90: 244 | H90: =Январь!H90 -> 0 | I90: =Январь!I90 -> 0 | J90: =Январь!BH90 -> 0 | K90: =Январь!BJ90 -> 0 | L90: =SUM(M90:AI90) -> 0 | AJ90: =SUM(AK90:BG90) -> 0 | BH90: 0 | BI90: =AJ90+Январь!BI90 -> 0 | BJ90: 0 | BK90: 0 | BM90: 0
A91: 225.03 | B91: прочие ком. услуги | C91: местный | D91: 807 | E91: 07 02 | F91: 02 П 02 М9903 | G91: 244 | H91: =Январь!H91 -> 0 | I91: =Январь!I91 -> 0 | J91: =Январь!BH91 -> 0 | K91: =Январь!BJ91 -> 0 | L91: =SUM(M91:AI91) -> 0 | AJ91: =SUM(AK91:BG91) -> 0 | BH91: 0 | BI91: =AJ91+Январь!BI91 -> 0 | BJ91: 0 | BK91: 0 | BM91: 0
A92: 226 | B92: Прочие услуги | C92: местный | D92: 807 | E92: 07 02 | F92: 02 П 02 М9903 | G92: 244 | H92: =Январь!H92 -> 8000 | I92: =Январь!I92 -> 0 | J92: =Январь!BH92 -> 0 | K92: =Январь!BJ92 -> 0 | L92: =SUM(L93:L94) -> 0 | M92: 0 | N92: 0 | O92: 0 | P92: 0 | Q92: 0 | R92: 0 | S92: 0 | T92: 0 | U92: 0 | V92: 0 | W92: 0 | X92: 0 | Y92: 0 | Z92: 0 | AA92: 0 | AB92: 0 | AC92: 0 | AD92: 0 | AE92: 0 | AF92: 0 | AG92: 0 | AH92: 0 | AI92: 0 | AJ92: 0 | AK92: 0 | AL92: 0 | AM92: 0 | AN92: 0 | AO92: 0 | AP92: 0 | AQ92: 0 | AR92: 0 | AS92: 0 | AT92: 0 | AU92: 0 | AV92: 0 | AW92: 0 | AX92: 0 | AY92: 0 | AZ92: 0 | BA92: 0 | BB92: 0 | BC92: 0 | BD92: 0 | BE92: 0 | BF92: 0 | BG92: 0 | BH92: 0 | BI92: =AJ92+Январь!BI92 -> 0 | BJ92: 0 | BK92: 8000 | BL92: =SUM(BL93:BL94) -> 0 | BM92: 0
A93: 226.01 | B93: Коман. (проживание) | C93: местный | D93: 807 | E93: 07 02 | F93: 02 П 02 М9903 | G93: 244 | H93: =Январь!H93 -> 8000 | I93: =Январь!I93 -> 0 | J93: =Январь!BH93 -> 0 | K93: =Январь!BJ93 -> 0 | L93: =SUM(M93:AI93) -> 0 | AJ93: =SUM(AK93:BG93) -> 0 | BH93: 0 | BI93: =AJ93+Январь!BI93 -> 0 | BJ93: 0 | BK93: 8000 | BM93: 0
A94: 226.02 | B94: проч. услуги | C94: местный | D94: 807 | E94: 07 02 | F94: 02 П 02 М9903 | G94: 244 | H94: =Январь!H94 -> 0 | I94: =Январь!I94 -> 0 | J94: =Январь!BH94 -> 0 | K94: =Январь!BJ94 -> 0 | L94: 0 | AJ94: 0 | BH94: 0 | BI94: =AJ94+Январь!BI94 -> 0 | BJ94: 0 | BK94: 0 | BM94: 0
A95: 241 | B95: Содержание гостиницы | C95: местный | D95: 807 | E95: 07 02 | F95: 02 П 02 М9903 | G95: 244 | H95: =Январь!H95 -> 0 | I95: =Январь!I95 -> 0 | J95: =Январь!BH95 -> 0 | K95: =Январь!BJ95 -> 0 | L95: 0 | AJ95: 0 | BH95: 0 | BI95: =AJ95+Январь!BI95 -> 0 | BJ95: 0 | BK95: 0 | BM95: 0
A96: 252 | B96: Переч. наднац. орг. | C96: местный | D96: 807 | E96: 07 02 | F96: 02 П 02 М9903 | G96: 244 | H96: =Январь!H96 -> 0 | I96: =Январь!I96 -> 0 | J96: =Январь!BH96 -> 0 | K96: =Январь!BJ96 -> 0 | L96: 0 | AJ96: 0 | BH96: 0 | BI96: =AJ96+Январь!BI96 -> 0 | BJ96: 0 | BK96: 0 | BM96: 0
A97: 253 | B97: перечисл. междунар. орган | C97: местный | D97: 807 | E97: 07 02 | F97: 02 П 02 М9903 | G97: 244 | H97: =Январь!H97 -> 0 | I97: =Январь!I97 -> 0 | J97: =Январь!BH97 -> 0 | K97: =Январь!BJ97 -> 0 | L97: 0 | AJ97: 0 | BH97: 0 | BI97: =AJ97+Январь!BI97 -> 0 | BJ97: 0 | BK97: 0 | BM97: 0
A98: 261 | B98: Пособие по соц. Страх. населения | C98: местный | D98: 807 | E98: 07 02 | F98: 02 П 02 М9903 | G98: 244 | H98: =Январь!H98 -> 0 | I98: =Январь!I98 -> 0 | J98: =Январь!BH98 -> 0 | K98: =Январь!BJ98 -> 0 | L98: 0 | AJ98: 0 | BH98: 0 | BI98: =AJ98+Январь!BI98 -> 0 | BJ98: 0 | BK98: 0 | BM98: 0
A99: 262 | B99: Пособие по соц. пом. населению | C99: =C98 -> местный | D99: 807 | E99: 07 02 | F99: 02 П 02 М9903 | G99: 244 | H99: =Январь!H99 -> 0 | I99: =Январь!I99 -> 0 | J99: =Январь!BH99 -> 0 | K99: =Январь!BJ99 -> 0 | L99: =SUM(L100:L102) -> 0 | M99: 0 | N99: 0 | O99: 0 | P99: 0 | Q99: 0 | R99: 0 | S99: 0 | T99: 0 | U99: 0 | V99: 0 | W99: 0 | X99: 0 | Y99: 0 | Z99: 0 | AA99: 0 | AB99: 0 | AC99: 0 | AD99: 0 | AE99: 0 | AF99: 0 | AG99: 0 | AH99: 0 | AI99: 0 | AJ99: 0 | AK99: 0 | AL99: 0 | AM99: 0 | AN99: 0 | AO99: 0 | AP99: 0 | AQ99: 0 | AR99: 0 | AS99: 0 | AT99: 0 | AU99: 0 | AV99: 0 | AW99: 0 | AX99: 0 | AY99: 0 | AZ99: 0 | BA99: 0 | BB99: 0 | BC99: 0 | BD99: 0 | BE99: 0 | BF99: 0 | BG99: 0 | BH99: 0 | BI99: =AJ99+Январь!BI99 -> 0 | BJ99: 0 | BK99: 0 | BL99: =SUM(BL100:BL102) -> 0 | BM99: 0
A100: 262.01 | B100: льгота по к/услугам | C100: местный | D100: 807 | E100: 07 02 | F100: 02 П 02 М9903 | G100: 244 | H100: =Январь!H100 -> 0 | I100: =Январь!I100 -> 0 | J100: =Январь!BH100 -> 0 | K100: =Январь!BJ100 -> 0 | L100: =SUM(M100:AI100) -> 0 | AJ100: =SUM(AK100:BG100) -> 0 | BH100: 0 | BI100: =AJ100+Январь!BI100 -> 0 | BJ100: 0 | BK100: 0 | BM100: 0
A101: 262.02 | B101: прочее | C101: местный | D101: 807 | E101: 07 02 | F101: 02 П 02 М9903 | G101: 244 | H101: =Январь!H101 -> 0 | I101: =Январь!I101 -> 0 | J101: =Январь!BH101 -> 0 | K101: =Январь!BJ101 -> 0 | L101: =SUM(M101:AI101) -> 0 | AJ101: =SUM(AK101:BG101) -> 0 | BH101: 0 | BI101: =AJ101+Январь!BI101 -> 0 | BJ101: 0 | BK101: 0 | BM101: 0
A102: 262.03 | B102: прочее | C102: местный | D102: 807 | E102: 07 02 | F102: 02 П 02 М9903 | G102: 244 | H102: =Январь!H102 -> 0 | I102: =Январь!I102 -> 0 | J102: =Январь!BH102 -> 0 | K102: =Январь!BJ102 -> 0 | L102: =SUM(M102:AI102) -> 0 | AJ102: =SUM(AK102:BG102) -> 0 | BH102: 0 | BI102: =AJ102+Январь!BI102 -> 0 | BJ102: 0 | BK102: 0 | BM102: 0
A103: 263 | B103: Соц. пособ. Выпл. орган. сектора гос. управ. | C103: местный | D103: 807 | E103: 07 02 | F103: 02 П 02 М9903 | G103: 244 | H103: =Январь!H103 -> 0 | I103: =Январь!I103 -> 0 | J103: =Январь!BH103 -> 0 | K103: =Январь!BJ103 -> 0 | L103: =SUM(M103:AI103) -> 0 | AJ103: =SUM(AK103:BG103) -> 0 | BH103: 0 | BI103: =AJ103+Январь!BI103 -> 0 | BJ103: 0 | BK103: 0 | BM103: 0
A104: 291 | B104: Прочие расходы | C104: местный | D104: 807 | E104: 07 02 | F104: 02 П 02 М9903 | G104: 851 | H104: =Январь!H104 -> 2152200 | I104: =Январь!I104 -> 0 | J104: =Январь!BH104 -> 0 | K104: =Январь!BJ104 -> 0 | L104: =SUM(L105:L106) -> 523682 | M104: 523682 | N104: 0 | O104: =SUM(O105:O106) -> 0 | P104: 0 | Q104: 0 | R104: 0 | S104: 0 | T104: 0 | U104: 0 | V104: 0 | W104: 0 | X104: 0 | Y104: 0 | Z104: 0 | AA104: 0 | AB104: 0 | AC104: 0 | AD104: 0 | AE104: 0 | AF104: 0 | AG104: 0 | AH104: 0 | AI104: 0 | AJ104: 523682 | AK104: 0 | AL104: 0 | AM104: 523682 | AN104: 0 | AO104: 0 | AP104: 0 | AQ104: 0 | AR104: 0 | AS104: 0 | AT104: 0 | AU104: 0 | AV104: 0 | AW104: 0 | AX104: 0 | AY104: 0 | AZ104: 0 | BA104: 0 | BB104: 0 | BC104: 0 | BD104: 0 | BE104: 0 | BF104: 0 | BG104: 0 | BH104: 523682 | BI104: =AJ104+Январь!BI104 -> 523682 | BJ104: 0 | BK104: 1628518 | BL104: =SUM(BL105:BL106) -> 0 | BM104: -523682
A105: 291 | B105: Налог на имущество | C105: местный | D105: 807 | E105: 07 02 | F105: 02 П 02 М9903 | G105: 851 | H105: =Январь!H105 -> 2149000 | I105: =Январь!I105 -> 0 | J105: =Январь!BH105 -> 0 | K105: =Январь!BJ105 -> 0 | L105: =SUM(M105:AI105) -> 520549 | M105: 520549 | AJ105: =SUM(AK105:BG105) -> 520549 | AM105: 520549 | BH105: 520549 | BI105: =AJ105+Январь!BI105 -> 520549 | BJ105: 0 | BK105: 1628451 | BM105: -520549
A106: 291 | B106: проч. расходы | C106: местный | D106: 807 | E106: 07 02 | F106: 02 П 02 М9903 | G106: 852 | H106: =Январь!H106 -> 3200 | I106: =Январь!I106 -> 0 | J106: =Январь!BH106 -> 0 | K106: =Январь!BJ106 -> 0 | L106: =SUM(M106:AI106) -> 3133 | M106: 3133 | AJ106: =SUM(AK106:BG106) -> 3133 | AM106: 3133 | BH106: 3133 | BI106: =AJ106+Январь!BI106 -> 3133 | BJ106: 0 | BK106: 67 | BM106: -3133
A107: 310 | B107: Увеличение ст-ти ОС | C107: местный | D107: 807 | E107: 07 02 | F107: 02 П 02 М9903 | G107: 852 | H107: =Январь!H107 -> 0 | I107: =Январь!I107 -> 0 | J107: =Январь!BH107 -> 0 | K107: =Январь!BJ107 -> 0 | L107: =SUM(L108:L111) -> 0 | M107: 0 | N107: 0 | O107: 0 | P107: 0 | Q107: 0 | R107: 0 | S107: 0 | T107: 0 | U107: 0 | V107: 0 | W107: 0 | X107: 0 | Y107: 0 | Z107: 0 | AA107: 0 | AB107: 0 | AC107: 0 | AD107: 0 | AE107: 0 | AF107: 0 | AG107: 0 | AH107: 0 | AI107: 0 | AJ107: 0 | AK107: 0 | AL107: 0 | AM107: 0 | AN107: 0 | AO107: 0 | AP107: 0 | AQ107: 0 | AR107: 0 | AS107: 0 | AT107: 0 | AU107: 0 | AV107: 0 | AW107: 0 | AX107: 0 | AY107: 0 | AZ107: 0 | BA107: 0 | BB107: 0 | BC107: 0 | BD107: 0 | BE107: 0 | BF107: 0 | BG107: 0 | BH107: 0 | BI107: =AJ107+Январь!BI107 -> 0 | BJ107: 0 | BK107: 0 | BL107: =SUM(BL108:BL111) -> 0 | BM107: 0
A108: 310.01 | B108: мягкий инвентарь | C108: местный | D108: 807 | E108: 07 02 | F108: 02 П 02 М9903 | G108: 852 | H108: =Январь!H108 -> 0 | I108: =Январь!I108 -> 0 | J108: =Январь!BH108 -> 0 | K108: =Январь!BJ108 -> 0 | L108: =SUM(M108:AI108) -> 0 | AJ108: =SUM(AK108:BG108) -> 0 | BH108: 0 | BI108: =AJ108+Январь!BI108 -> 0 | BJ108: 0 | BK108: 0 | BM108: 0
A109: 310.02 | B109: расх. матер больше года | C109: местный | D109: 807 | E109: 07 02 | F109: 02 П 02 М9903 | G109: 852 | H109: =Январь!H109 -> 0 | I109: =Январь!I109 -> 0 | J109: =Январь!BH109 -> 0 | K109: =Январь!BJ109 -> 0 | L109: =SUM(M109:AI109) -> 0 | AJ109: =SUM(AK109:BG109) -> 0 | BH109: 0 | BI109: =AJ109+Январь!BI109 -> 0 | BJ109: 0 | BK109: 0 | BM109: 0
A110: 310.03 | B110: приобретение предм. дл. польз. | C110: местный | D110: 807 | E110: 07 02 | F110: 02 П 02 М9903 | G110: 852 | H110: =Январь!H110 -> 0 | I110: =Январь!I110 -> 0 | J110: =Январь!BH110 -> 0 | K110: =Январь!BJ110 -> 0 | L110: =SUM(M110:AI110) -> 0 | AJ110: =SUM(AK110:BG110) -> 0 | BH110: 0 | BI110: =AJ110+Январь!BI110 -> 0 | BJ110: 0 | BK110: 0 | BM110: 0
A111: 310.04 | B111: капитальное стр-во | C111: местный | D111: 807 | E111: 07 02 | F111: 02 П 02 М9903 | G111: 852 | H111: =Январь!H111 -> 0 | I111: =Январь!I111 -> 0 | J111: =Январь!BH111 -> 0 | K111: =Январь!BJ111 -> 0 | L111: =SUM(M111:AI111) -> 0 | AJ111: =SUM(AK111:BG111) -> 0 | BH111: 0 | BI111: =AJ111+Январь!BI111 -> 0 | BJ111: 0 | BK111: 0 | BM111: 0
A112: 320 | B112: Увеличение ст-ти немат. активов | C112: местный | D112: 807 | E112: 07 02 | F112: 02 П 02 М9903 | G112: 852 | H112: =Январь!H112 -> 0 | I112: =Январь!I112 -> 0 | J112: =Январь!BH112 -> 0 | K112: =Январь!BJ112 -> 0 | L112: =SUM(M112:AI112) -> 0 | AJ112: =SUM(AK112:BG112) -> 0 | BH112: 0 | BI112: =AJ112+Январь!BI112 -> 0 | BJ112: 0 | BK112: 0 | BM112: 0
A113: 340 | B113: Увеличение мат. запасов | C113: местный | D113: 807 | E113: 07 02 | F113: 02 П 02 М9903 | G113: 852 | H113: =Январь!H113 -> 0 | I113: =Январь!I113 -> 0 | J113: =Январь!BH113 -> 0 | K113: =Январь!BJ113 -> 0 | L113: =SUM(L114:L118) -> 0 | M113: 0 | N113: 0 | O113: 0 | P113: 0 | Q113: 0 | R113: 0 | S113: 0 | T113: 0 | U113: 0 | V113: 0 | W113: 0 | X113: 0 | Y113: 0 | Z113: 0 | AA113: 0 | AB113: 0 | AC113: 0 | AD113: 0 | AE113: 0 | AF113: 0 | AG113: 0 | AH113: 0 | AI113: 0 | AJ113: 0 | AK113: 0 | AL113: 0 | AM113: 0 | AN113: 0 | AO113: 0 | AP113: 0 | AQ113: 0 | AR113: 0 | AS113: 0 | AT113: 0 | AU113: 0 | AV113: 0 | AW113: 0 | AX113: 0 | AY113: 0 | AZ113: 0 | BA113: 0 | BB113: 0 | BC113: 0 | BD113: 0 | BE113: 0 | BF113: 0 | BG113: 0 | BH113: 0 | BI113: =AJ113+Январь!BI113 -> 0 | BJ113: 0 | BK113: 0 | BL113: =SUM(BL114:BL118) -> 0 | BM113: 0
A114: 340.01 | B114: медикаменды | C114: местный | D114: 807 | E114: 07 02 | F114: 02 П 02 М9903 | G114: 852 | H114: =Январь!H114 -> 0 | I114: =Январь!I114 -> 0 | J114: =Январь!BH114 -> 0 | K114: =Январь!BJ114 -> 0 | L114: =SUM(M114:AI114) -> 0 | AJ114: =SUM(AK114:BG114) -> 0 | BH114: 0 | BI114: =AJ114+Январь!BI114 -> 0 | BJ114: 0 | BK114: 0 | BM114: 0
A115: 340.02 | B115: продукты питания | C115: =C114 -> местный | D115: 807 | E115: 07 02 | F115: 02 П 02 М9903 | G115: 852 | H115: =Январь!H115 -> 0 | I115: =Январь!I115 -> 0 | J115: =Январь!BH115 -> 0 | K115: =Январь!BJ115 -> 0 | L115: =SUM(M115:AI115) -> 0 | AJ115: =SUM(AK115:BG115) -> 0 | BH115: 0 | BI115: =AJ115+Январь!BI115 -> 0 | BJ115: 0 | BK115: 0 | BM115: 0
A116: 340.03 | B116: ГСМ | C116: местный | D116: 807 | E116: 07 02 | F116: 02 П 02 М9903 | G116: 852 | H116: =Январь!H116 -> 0 | I116: =Январь!I116 -> 0 | J116: =Январь!BH116 -> 0 | K116: =Январь!BJ116 -> 0 | L116: =SUM(M116:AI116) -> 0 | AJ116: =SUM(AK116:BG116) -> 0 | BH116: 0 | BI116: =AJ116+Январь!BI116 -> 0 | BJ116: 0 | BK116: 0 | BM116: 0
A117: 340.04 | B117: Оплата котел. топлива | C117: местный | D117: 807 | E117: 07 02 | F117: 02 П 02 М9903 | G117: 852 | H117: =Январь!H117 -> 0 | I117: =Январь!I117 -> 0 | J117: =Январь!BH117 -> 0 | K117: =Январь!BJ117 -> 0 | L117: =SUM(M117:AI117) -> 0 | AJ117: =SUM(AK117:BG117) -> 0 | BH117: 0 | BI117: =AJ117+Январь!BI117 -> 0 | BJ117: 0 | BK117: 0 | BM117: 0
A118: 340.05 | B118: Прочее | C118: местный | D118: 807 | E118: 07 02 | F118: 02 П 02 М9903 | G118: 852 | H118: =Январь!H118 -> 0 | I118: =Январь!I118 -> 0 | J118: =Январь!BH118 -> 0 | K118: =Январь!BJ118 -> 0 | L118: =SUM(M118:AI118) -> 0 | AJ118: =SUM(AK118:BG118) -> 0 | BH118: 0 | BI118: =AJ118+Январь!BI118 -> 0 | BJ118: 0 | BK118: 0 | BM118: 0
A119: ИТОГО | B119: Итого расходов | C119: местный | D119: 807 | E119: 07 02 | F119: 02 П 02 М9903 | H119: =Январь!H119 -> 17185300 | I119: =Январь!I119 -> 0 | J119: =Январь!BH119 -> 2145245.39 | K119: =Январь!BJ119 -> 0 | L119: =L65+L68+L75+L78+L79+L82+L87+L88+L92+L95+L96+L97+L98+L99+L103+L104+L107+L112+L113 -> 1979207.29 | M119: 1979207.29 | N119: 0 | O119: 0 | P119: 0 | Q119: 0 | R119: 0 | S119: 0 | T119: 0 | U119: 0 | V119: 0 | W119: 0 | X119: 0 | Y119: 0 | Z119: 0 | AA119: 0 | AB119: 0 | AC119: 0 | AD119: 0 | AE119: 0 | AF119: 0 | AG119: 0 | AH119: 0 | AI119: 0 | AJ119: 1979207.29 | AK119: 0 | AL119: 0 | AM119: 1838419.5 | AN119: 0 | AO119: 0 | AP119: 140787.79 | AQ119: 0 | AR119: 0 | AS119: 0 | AT119: 0 | AU119: 0 | AV119: 0 | AW119: 0 | AX119: 0 | AY119: 0 | AZ119: 0 | BA119: 0 | BB119: 0 | BC119: 0 | BD119: 0 | BE119: 0 | BF119: 0 | BG119: 0 | BH119: 4124452.68 | BI119: =AJ119+Январь!BI119 -> 4124452.68 | BJ119: 0 | BK119: 13060847.32 | BL119: =BL65+BL68+BL75+BL78+BL79+BL82+BL87+BL88+BL92+BL95+BL96+BL97+BL98+BL99+BL103+BL104+BL107+BL112+BL113 -> 0 | BM119: -4124452.68
C120: =Январь!C120 -> 26020 | D120: =Январь!D120 -> 807 | E120: =Январь!E120 -> 07 09 | F120: =Январь!F120 -> 02 1 04 80130 | G120: =Январь!G120 -> 244 | BN120: =BN64+1 -> 3
A121: 211 | B121: оплата труда | C121: =C120 -> 26020 | D121: =D120 -> 807 | E121: 07 09 | F121: 02 1 04 80130 | G121: 244 | H121: =Январь!H121 -> 0 | I121: =Январь!I121 -> 0 | J121: =Январь!BH121 -> 0 | K121: =Январь!BJ121 -> 0 | L121: =SUM(L122:L123) -> 0 | M121: 0 | N121: 0 | O121: 0 | P121: 0 | Q121: 0 | R121: 0 | S121: 0 | T121: 0 | U121: 0 | V121: 0 | W121: 0 | X121: 0 | Y121: 0 | Z121: 0 | AA121: 0 | AB121: 0 | AC121: 0 | AD121: 0 | AE121: 0 | AF121: 0 | AG121: 0 | AH121: 0 | AI121: 0 | AJ121: 0 | AK121: 0 | AL121: 0 | AM121: 0 | AN121: 0 | AO121: 0 | AP121: 0 | AQ121: 0 | AR121: 0 | AS121: 0 | AT121: 0 | AU121: 0 | AV121: 0 | AW121: 0 | AX121: 0 | AY121: 0 | AZ121: 0 | BA121: 0 | BB121: 0 | BC121: 0 | BD121: 0 | BE121: 0 | BF121: 0 | BG121: 0 | BH121: =J121+L121 -> 0 | BI121: =AJ121+Январь!BI121 -> 0 | BJ121: =K121+L121-AJ121 -> 0 | BK121: =H121-BH121 -> 0 | BL121: =SUM(BL122:BL123) -> 0 | BM121: =I121-BH121 -> 0
A122: 211.01 | B122: Основная з/пл | C122: 26020 | D122: 807 | E122: 07 09 | F122: 02 1 04 80130 | G122: 244 | H122: =Январь!H122 -> 0 | I122: =Январь!I122 -> 0 | J122: =Январь!BH122 -> 0 | K122: =Январь!BJ122 -> 0 | L122: =SUM(M122:AI122) -> 0 | AJ122: =SUM(AK122:BG122) -> 0 | BH122: =J122+L122 -> 0 | BI122: =AJ122+Январь!BI122 -> 0 | BJ122: 0 | BK122: 0 | BM122: =I122-BH122 -> 0
A123: 211.02 | B123: Кл. руководство | C123: 26020 | D123: 807 | E123: 07 09 | F123: 02 1 04 80130 | G123: 244 | H123: =Январь!H123 -> 0 | I123: =Январь!I123 -> 0 | J123: =Январь!BH123 -> 0 | K123: =Январь!BJ123 -> 0 | L123: =SUM(M123:AI123) -> 0 | AJ123: =SUM(AK123:BG123) -> 0 | BH123: 0 | BI123: =AJ123+Январь!BI123 -> 0 | BJ123: 0 | BK123: 0 | BM123: 0
A124: 212 | B124: Всего проч. | C124: 26020 | D124: 807 | E124: 07 09 | F124: 02 1 04 80130 | G124: 244 | H124: =Январь!H124 -> 0 | I124: =Январь!I124 -> 0 | J124: =Январь!BH124 -> 0 | K124: =Январь!BJ124 -> 0 | L124: =SUM(L125:L130) -> 0 | M124: 0 | N124: 0 | O124: 0 | P124: 0 | Q124: 0 | R124: 0 | S124: 0 | T124: 0 | U124: 0 | V124: 0 | W124: 0 | X124: 0 | Y124: 0 | Z124: 0 | AA124: 0 | AB124: 0 | AC124: 0 | AD124: 0 | AE124: 0 | AF124: 0 | AG124: 0 | AH124: 0 | AI124: 0 | AJ124: 0 | AK124: 0 | AL124: 0 | AM124: 0 | AN124: 0 | AO124: 0 | AP124: 0 | AQ124: 0 | AR124: 0 | AS124: 0 | AT124: 0 | AU124: 0 | AV124: 0 | AW124: 0 | AX124: 0 | AY124: 0 | AZ124: 0 | BA124: 0 | BB124: 0 | BC124: 0 | BD124: 0 | BE124: 0 | BF124: 0 | BG124: 0 | BH124: 0 | BI124: =AJ124+Январь!BI124 -> 0 | BJ124: 0 | BK124: 0 | BL124: =SUM(BL125:BL130) -> 0 | BM124: 0
A125: 212.01 | B125: суточные | C125: 26020 | D125: 807 | E125: 07 09 | F125: 02 1 04 80130 | G125: 244 | H125: =Январь!H125 -> 0 | I125: =Январь!I125 -> 0 | J125: =Январь!BH125 -> 0 | K125: =Январь!BJ125 -> 0 | L125: =SUM(M125:AI125) -> 0 | AJ125: =SUM(AK125:BG125) -> 0 | BH125: 0 | BI125: =AJ125+Январь!BI125 -> 0 | BJ125: 0 | BK125: 0 | BM125: 0
A126: 212.02 | B126: книги | C126: 26020 | D126: 807 | E126: 07 09 | F126: 02 1 04 80130 | G126: 244 | H126: =Январь!H126 -> 0 | I126: =Январь!I126 -> 0 | J126: =Январь!BH126 -> 0 | K126: =Январь!BJ126 -> 0 | L126: 0 | AJ126: 0 | BH126: 0 | BI126: =AJ126+Январь!BI126 -> 0 | BJ126: 0 | BK126: 0 | BM126: 0
A127: 212.03 | B127: СКЛ | C127: 26020 | D127: 807 | E127: 07 09 | F127: 02 1 04 80130 | G127: 244 | H127: =Январь!H127 -> 0 | I127: =Январь!I127 -> 0 | J127: =Январь!BH127 -> 0 | K127: =Январь!BJ127 -> 0 | L127: 0 | AJ127: 0 | BH127: 0 | BI127: =AJ127+Январь!BI127 -> 0 | BJ127: 0 | BK127: 0 | BM127: 0
A128: 212.04 | B128: проезд в отпуск | C128: 26020 | D128: 807 | E128: 07 09 | F128: 02 1 04 80130 | G128: 244 | H128: =Январь!H128 -> 0 | I128: =Январь!I128 -> 0 | J128: =Январь!BH128 -> 0 | K128: =Январь!BJ128 -> 0 | L128: 0 | AJ128: 0 | BH128: 0 | BI128: =AJ128+Январь!BI128 -> 0 | BJ128: 0 | BK128: 0 | BM128: 0
A129: 212.05 | B129: соц.помощь | C129: 26020 | D129: 807 | E129: 07 09 | F129: 02 1 04 80130 | G129: 244 | H129: =Январь!H129 -> 0 | I129: =Январь!I129 -> 0 | J129: =Январь!BH129 -> 0 | K129: =Январь!BJ129 -> 0 | L129: 0 | AJ129: 0 | BH129: 0 | BI129: =AJ129+Январь!BI129 -> 0 | BJ129: 0 | BK129: 0 | BM129: 0
A130: 212.06 | B130: СКЛ | C130: 26020 | D130: 807 | E130: 07 09 | F130: 02 1 04 80130 | G130: 244 | H130: =Январь!H130 -> 0 | I130: =Январь!I130 -> 0 | J130: =Январь!BH130 -> 0 | K130: =Январь!BJ130 -> 0 | L130: 0 | AJ130: 0 | BH130: 0 | BI130: =AJ130+Январь!BI130 -> 0 | BJ130: 0 | BK130: 0 | BM130: 0
A131: 213 | B131: ЕСН | C131: 26020 | D131: 807 | E131: 07 09 | F131: 02 1 04 80130 | G131: 244 | H131: =Январь!H131 -> 0 | I131: =Январь!I131 -> 0 | J131: =Январь!BH131 -> 0 | K131: =Январь!BJ131 -> 0 | L131: =SUM(L132:L133) -> 0 | M131: 0 | N131: 0 | O131: 0 | P131: 0 | Q131: 0 | R131: 0 | S131: 0 | T131: 0 | U131: 0 | V131: 0 | W131: 0 | X131: 0 | Y131: 0 | Z131: 0 | AA131: 0 | AB131: 0 | AC131: 0 | AD131: 0 | AE131: 0 | AF131: 0 | AG131: 0 | AH131: 0 | AI131: 0 | AJ131: 0 | AK131: 0 | AL131: 0 | AM131: 0 | AN131: 0 | AO131: 0 | AP131: 0 | AQ131: 0 | AR131: 0 | AS131: 0 | AT131: 0 | AU131: 0 | AV131: 0 | AW131: 0 | AX131: 0 | AY131: 0 | AZ131: 0 | BA131: 0 | BB131: 0 | BC131: 0 | BD131: 0 | BE131: 0 | BF131: 0 | BG131: 0 | BH131: 0 | BI131: =AJ131+Январь!BI131 -> 0 | BJ131: 0 | BK131: 0 | BL131: =SUM(BL132:BL133) -> 0 | BM131: 0
A132: 213.01 | B132: ЕСН основ. | C132: 26020 | D132: 807 | E132: 07 09 | F132: 02 1 04 80130 | G132: 244 | H132: =Январь!H132 -> 0 | I132: =Январь!I132 -> 0 | J132: =Январь!BH132 -> 0 | K132: =Январь!BJ132 -> 0 | L132: =SUM(M132:AI132) -> 0 | AJ132: =SUM(AK132:BG132) -> 0 | BH132: 0 | BI132: =AJ132+Январь!BI132 -> 0 | BJ132: 0 | BK132: 0 | BM132: 0
A133: 213.02 | B133: ЕСН кл. рук. | C133: 26020 | D133: 807 | E133: 07 09 | F133: 02 1 04 80130 | G133: 244 | H133: =Январь!H133 -> 0 | I133: =Январь!I133 -> 0 | J133: =Январь!BH133 -> 0 | K133: =Январь!BJ133 -> 0 | L133: =SUM(M133:AI133) -> 0 | AJ133: =SUM(AK133:BG133) -> 0 | BH133: 0 | BI133: =AJ133+Январь!BI133 -> 0 | BJ133: 0 | BK133: 0 | BM133: 0
A134: 221 | B134: связь | C134: 26020 | D134: 807 | E134: 07 09 | F134: 02 1 04 80130 | G134: 244 | H134: =Январь!H134 -> 0 | I134: =Январь!I134 -> 0 | J134: =Январь!BH134 -> 0 | K134: =Январь!BJ134 -> 0 | L134: =SUM(M134:AI134) -> 0 | AJ134: =SUM(AK134:BG134) -> 0 | BH134: 0 | BI134: =AJ134+Январь!BI134 -> 0 | BJ134: 0 | BK134: 0 | BM134: 0
A135: 222 | B135: Всего тран. | C135: 26020 | D135: 807 | E135: 07 09 | F135: 02 1 04 80130 | G135: 244 | H135: =Январь!H135 -> 0 | I135: =Январь!I135 -> 0 | J135: =Январь!BH135 -> 0 | K135: =Январь!BJ135 -> 0 | L135: =SUM(L136:L137) -> 0 | M135: 0 | N135: 0 | O135: 0 | P135: 0 | Q135: 0 | R135: 0 | S135: 0 | T135: 0 | U135: 0 | V135: 0 | W135: 0 | X135: 0 | Y135: 0 | Z135: 0 | AA135: 0 | AB135: 0 | AC135: 0 | AD135: 0 | AE135: 0 | AF135: 0 | AG135: 0 | AH135: 0 | AI135: 0 | AJ135: 0 | AK135: 0 | AL135: 0 | AM135: 0 | AN135: 0 | AO135: 0 | AP135: 0 | AQ135: 0 | AR135: 0 | AS135: 0 | AT135: 0 | AU135: 0 | AV135: 0 | AW135: 0 | AX135: 0 | AY135: 0 | AZ135: 0 | BA135: 0 | BB135: 0 | BC135: 0 | BD135: 0 | BE135: 0 | BF135: 0 | BG135: 0 | BH135: 0 | BI135: =AJ135+Январь!BI135 -> 0 | BJ135: 0 | BK135: 0 | BL135: =SUM(BL136:BL137) -> 0 | BM135: 0
A136: 222.01 | B136: проезд команд. | C136: 26020 | D136: 807 | E136: 07 09 | F136: 02 1 04 80130 | G136: 244 | H136: =Январь!H136 -> 0 | I136: =Январь!I136 -> 0 | J136: =Январь!BH136 -> 0 | K136: =Январь!BJ136 -> 0 | L136: =SUM(M136:AI136) -> 0 | AJ136: =SUM(AK136:BG136) -> 0 | BH136: 0 | BI136: =AJ136+Январь!BI136 -> 0 | BJ136: 0 | BK136: 0 | BM136: 0
A137: 222.02 | B137: транспортные усл | C137: 26020 | D137: =D136 -> 807 | E137: 07 09 | F137: 02 1 04 80130 | G137: 244 | H137: =Январь!H137 -> 0 | I137: =Январь!I137 -> 0 | J137: =Январь!BH137 -> 0 | K137: =Январь!BJ137 -> 0 | L137: =SUM(M137:AI137) -> 0 | AJ137: =SUM(AK137:BG137) -> 0 | BH137: 0 | BI137: =AJ137+Январь!BI137 -> 0 | BJ137: 0 | BK137: 0 | BM137: 0
A138: 223 | B138: Всего ком. усл. | C138: 26020 | D138: 807 | E138: 07 09 | F138: 02 1 04 80130 | G138: 244 | H138: =Январь!H138 -> 0 | I138: =Январь!I138 -> 0 | J138: =Январь!BH138 -> 0 | K138: =Январь!BJ138 -> 0 | L138: =SUM(L139:L142) -> 0 | M138: 0 | N138: 0 | O138: 0 | P138: 0 | Q138: 0 | R138: 0 | S138: 0 | T138: 0 | U138: 0 | V138: 0 | W138: 0 | X138: 0 | Y138: 0 | Z138: 0 | AA138: 0 | AB138: 0 | AC138: 0 | AD138: 0 | AE138: 0 | AF138: 0 | AG138: 0 | AH138: 0 | AI138: 0 | AJ138: 0 | AK138: 0 | AL138: 0 | AM138: 0 | AN138: 0 | AO138: 0 | AP138: 0 | AQ138: 0 | AR138: 0 | AS138: 0 | AT138: 0 | AU138: 0 | AV138: 0 | AW138: 0 | AX138: 0 | AY138: 0 | AZ138: 0 | BA138: 0 | BB138: 0 | BC138: 0 | BD138: 0 | BE138: 0 | BF138: 0 | BG138: 0 | BH138: 0 | BI138: =AJ138+Январь!BI138 -> 0 | BJ138: 0 | BK138: 0 | BL138: =SUM(BL139:BL142) -> 0 | BM138: 0
A139: 223.01 | B139: отопление | C139: =C138 -> 26020 | D139: 807 | E139: 07 09 | F139: 02 1 04 80130 | G139: 244 | H139: =Январь!H139 -> 0 | I139: =Январь!I139 -> 0 | J139: =Январь!BH139 -> 0 | K139: =Январь!BJ139 -> 0 | L139: =SUM(M139:AI139) -> 0 | AJ139: =SUM(AK139:BG139) -> 0 | BH139: 0 | BI139: =AJ139+Январь!BI139 -> 0 | BJ139: 0 | BK139: 0 | BM139: 0
A140: 223.02 | B140: потребление газа | C140: 26020 | D140: 807 | E140: 07 09 | F140: 02 1 04 80130 | G140: 244 | H140: =Январь!H140 -> 0 | I140: =Январь!I140 -> 0 | J140: =Январь!BH140 -> 0 | K140: =Январь!BJ140 -> 0 | L140: =SUM(M140:AI140) -> 0 | AJ140: =SUM(AK140:BG140) -> 0 | BH140: 0 | BI140: =AJ140+Январь!BI140 -> 0 | BJ140: 0 | BK140: 0 | BM140: 0
A141: 223.03 | B141: электроэнергия | C141: 26020 | D141: 807 | E141: 07 09 | F141: 02 1 04 80130 | G141: 244 | H141: =Январь!H141 -> 0 | I141: =Январь!I141 -> 0 | J141: =Январь!BH141 -> 0 | K141: =Январь!BJ141 -> 0 | L141: =SUM(M141:AI141) -> 0 | AJ141: =SUM(AK141:BG141) -> 0 | BH141: 0 | BI141: =AJ141+Январь!BI141 -> 0 | BJ141: 0 | BK141: 0 | BM141: 0
A142: 223.04 | B142: водоснабжение | C142: 26020 | D142: 807 | E142: 07 09 | F142: 02 1 04 80130 | G142: 244 | H142: =Январь!H142 -> 0 | I142: =Январь!I142 -> 0 | J142: =Январь!BH142 -> 0 | K142: =Январь!BJ142 -> 0 | L142: =SUM(M142:AI142) -> 0 | AJ142: =SUM(AK142:BG142) -> 0 | BH142: 0 | BI142: =AJ142+Январь!BI142 -> 0 | BJ142: 0 | BK142: 0 | BM142: 0
A143: 224 | B143: аренда | C143: 26020 | D143: 807 | E143: 07 09 | F143: 02 1 04 80130 | G143: 244 | H143: =Январь!H143 -> 0 | I143: =Январь!I143 -> 0 | J143: =Январь!BH143 -> 0 | K143: =Январь!BJ143 -> 0 | L143: =SUM(M143:AI143) -> 0 | AJ143: =SUM(AK143:BG143) -> 0 | BH143: 0 | BI143: =AJ143+Январь!BI143 -> 0 | BJ143: 0 | BK143: 0 | BM143: 0
A144: 225 | B144: Всего содер. Имущ. | C144: 26020 | D144: 807 | E144: 07 09 | F144: 02 1 04 80130 | G144: 244 | H144: =Январь!H144 -> 0 | I144: =Январь!I144 -> 0 | J144: =Январь!BH144 -> 0 | K144: =Январь!BJ144 -> 0 | L144: =SUM(L145:L147) -> 0 | M144: 0 | N144: 0 | O144: 0 | P144: 0 | Q144: 0 | R144: 0 | S144: 0 | T144: 0 | U144: 0 | V144: 0 | W144: 0 | X144: 0 | Y144: 0 | Z144: 0 | AA144: 0 | AB144: 0 | AC144: 0 | AD144: 0 | AE144: 0 | AF144: 0 | AG144: 0 | AH144: 0 | AI144: 0 | AJ144: 0 | AK144: 0 | AL144: 0 | AM144: 0 | AN144: 0 | AO144: 0 | AP144: 0 | AQ144: 0 | AR144: 0 | AS144: 0 | AT144: 0 | AU144: 0 | AV144: 0 | AW144: 0 | AX144: 0 | AY144: 0 | AZ144: 0 | BA144: 0 | BB144: 0 | BC144: 0 | BD144: 0 | BE144: 0 | BF144: 0 | BG144: 0 | BH144: 0 | BI144: =AJ144+Январь!BI144 -> 0 | BJ144: 0 | BK144: 0 | BL144: =SUM(BL145:BL147) -> 0 | BM144: 0
A145: 225.01 | B145: ремонт зд. и сооруж. | C145: 26020 | D145: 807 | E145: 07 09 | F145: 02 1 04 80130 | G145: 244 | H145: =Январь!H145 -> 0 | I145: =Январь!I145 -> 0 | J145: =Январь!BH145 -> 0 | K145: =Январь!BJ145 -> 0 | L145: =SUM(M145:AI145) -> 0 | AJ145: =SUM(AK145:BG145) -> 0 | BH145: 0 | BI145: =AJ145+Январь!BI145 -> 0 | BJ145: 0 | BK145: 0 | BM145: 0
A146: 225.02 | B146: вывоз мусора | C146: 26020 | D146: 807 | E146: 07 09 | F146: 02 1 04 80130 | G146: 244 | H146: =Январь!H146 -> 0 | I146: =Январь!I146 -> 0 | J146: =Январь!BH146 -> 0 | K146: =Январь!BJ146 -> 0 | L146: =SUM(M146:AI146) -> 0 | AJ146: =SUM(AK146:BG146) -> 0 | BH146: 0 | BI146: =AJ146+Январь!BI146 -> 0 | BJ146: 0 | BK146: 0 | BM146: 0
A147: 225.03 | B147: прочие ком. услуги | C147: 26020 | D147: 807 | E147: 07 09 | F147: 02 1 04 80130 | G147: 244 | H147: =Январь!H147 -> 0 | I147: =Январь!I147 -> 0 | J147: =Январь!BH147 -> 0 | K147: =Январь!BJ147 -> 0 | L147: =SUM(M147:AI147) -> 0 | AJ147: =SUM(AK147:BG147) -> 0 | BH147: 0 | BI147: =AJ147+Январь!BI147 -> 0 | BJ147: 0 | BK147: 0 | BM147: 0
A148: 226 | B148: Прочие услуги | C148: 26020 | D148: 807 | E148: 07 09 | F148: 02 1 04 80130 | G148: 244 | H148: =Январь!H148 -> 0 | I148: =Январь!I148 -> 0 | J148: =Январь!BH148 -> 0 | K148: =Январь!BJ148 -> 0 | L148: =SUM(L149:L150) -> 0 | M148: 0 | N148: 0 | O148: 0 | P148: 0 | Q148: 0 | R148: 0 | S148: 0 | T148: 0 | U148: 0 | V148: 0 | W148: 0 | X148: 0 | Y148: 0 | Z148: 0 | AA148: 0 | AB148: 0 | AC148: 0 | AD148: 0 | AE148: 0 | AF148: 0 | AG148: 0 | AH148: 0 | AI148: 0 | AJ148: 0 | AK148: 0 | AL148: 0 | AM148: 0 | AN148: 0 | AO148: 0 | AP148: 0 | AQ148: 0 | AR148: 0 | AS148: 0 | AT148: 0 | AU148: 0 | AV148: 0 | AW148: 0 | AX148: 0 | AY148: 0 | AZ148: 0 | BA148: 0 | BB148: 0 | BC148: 0 | BD148: 0 | BE148: 0 | BF148: 0 | BG148: 0 | BH148: 0 | BI148: =AJ148+Январь!BI148 -> 0 | BJ148: 0 | BK148: 0 | BL148: =SUM(BL149:BL150) -> 0 | BM148: 0
A149: 226.01 | B149: Коман. (проживание) | C149: 26020 | D149: 807 | E149: 07 09 | F149: 02 1 04 80130 | G149: 244 | H149: =Январь!H149 -> 0 | I149: =Январь!I149 -> 0 | J149: =Январь!BH149 -> 0 | K149: =Январь!BJ149 -> 0 | L149: =SUM(M149:AI149) -> 0 | AJ149: =SUM(AK149:BG149) -> 0 | BH149: 0 | BI149: =AJ149+Январь!BI149 -> 0 | BJ149: 0 | BK149: 0 | BM149: 0
A150: 226.02 | B150: проч. услуги | C150: 26020 | D150: 807 | E150: 07 09 | F150: 02 1 04 80130 | G150: 244 | H150: =Январь!H150 -> 0 | I150: =Январь!I150 -> 0 | J150: =Январь!BH150 -> 0 | K150: =Январь!BJ150 -> 0 | L150: 0 | AJ150: 0 | BH150: 0 | BI150: =AJ150+Январь!BI150 -> 0 | BJ150: 0 | BK150: 0 | BM150: 0
A151: 241 | B151: Содержание гостиницы | C151: 26020 | D151: 807 | E151: 07 09 | F151: 02 1 04 80130 | G151: 244 | H151: =Январь!H151 -> 0 | I151: =Январь!I151 -> 0 | J151: =Январь!BH151 -> 0 | K151: =Январь!BJ151 -> 0 | L151: 0 | AJ151: 0 | BH151: 0 | BI151: =AJ151+Январь!BI151 -> 0 | BJ151: 0 | BK151: 0 | BM151: 0
A152: 252 | B152: Переч. наднац. орг. | C152: 26020 | D152: 807 | E152: 07 09 | F152: 02 1 04 80130 | G152: 244 | H152: =Январь!H152 -> 0 | I152: =Январь!I152 -> 0 | J152: =Январь!BH152 -> 0 | K152: =Январь!BJ152 -> 0 | L152: 0 | AJ152: 0 | BH152: 0 | BI152: =AJ152+Январь!BI152 -> 0 | BJ152: 0 | BK152: 0 | BM152: 0
A153: 253 | B153: перечисл. междунар. орган | C153: 26020 | D153: 807 | E153: 07 09 | F153: 02 1 04 80130 | G153: 244 | H153: =Январь!H153 -> 0 | I153: =Январь!I153 -> 0 | J153: =Январь!BH153 -> 0 | K153: =Январь!BJ153 -> 0 | L153: 0 | AJ153: 0 | BH153: 0 | BI153: =AJ153+Январь!BI153 -> 0 | BJ153: 0 | BK153: 0 | BM153: 0
A154: 261 | B154: Пособие по соц. Страх. населения | C154: 26020 | D154: 807 | E154: 07 09 | F154: 02 1 04 80130 | G154: 244 | H154: =Январь!H154 -> 0 | I154: =Январь!I154 -> 0 | J154: =Январь!BH154 -> 0 | K154: =Январь!BJ154 -> 0 | L154: 0 | AJ154: 0 | BH154: 0 | BI154: =AJ154+Январь!BI154 -> 0 | BJ154: 0 | BK154: 0 | BM154: 0
A155: 262 | B155: Пособие по соц. пом. населению | C155: =C154 -> 26020 | D155: 807 | E155: 07 09 | F155: 02 1 04 80130 | G155: 244 | H155: =Январь!H155 -> 0 | I155: =Январь!I155 -> 0 | J155: =Январь!BH155 -> 0 | K155: =Январь!BJ155 -> 0 | L155: =SUM(L156:L158) -> 0 | M155: 0 | N155: 0 | O155: 0 | P155: 0 | Q155: 0 | R155: 0 | S155: 0 | T155: 0 | U155: 0 | V155: 0 | W155: 0 | X155: 0 | Y155: 0 | Z155: 0 | AA155: 0 | AB155: 0 | AC155: 0 | AD155: 0 | AE155: 0 | AF155: 0 | AG155: 0 | AH155: 0 | AI155: 0 | AJ155: 0 | AK155: 0 | AL155: 0 | AM155: 0 | AN155: 0 | AO155: 0 | AP155: 0 | AQ155: 0 | AR155: 0 | AS155: 0 | AT155: 0 | AU155: 0 | AV155: 0 | AW155: 0 | AX155: 0 | AY155: 0 | AZ155: 0 | BA155: 0 | BB155: 0 | BC155: 0 | BD155: 0 | BE155: 0 | BF155: 0 | BG155: 0 | BH155: 0 | BI155: =AJ155+Январь!BI155 -> 0 | BJ155: 0 | BK155: 0 | BL155: =SUM(BL156:BL158) -> 0 | BM155: 0
A156: 262.01 | B156: льгота по к/услугам | C156: 26020 | D156: 807 | E156: 07 09 | F156: 02 1 04 80130 | G156: 244 | H156: =Январь!H156 -> 0 | I156: =Январь!I156 -> 0 | J156: =Январь!BH156 -> 0 | K156: =Январь!BJ156 -> 0 | L156: =SUM(M156:AI156) -> 0 | AJ156: =SUM(AK156:BG156) -> 0 | BH156: 0 | BI156: =AJ156+Январь!BI156 -> 0 | BJ156: 0 | BK156: 0 | BM156: 0
A157: 262.02 | B157: прочее | C157: 26020 | D157: 807 | E157: 07 09 | F157: 02 1 04 80130 | G157: 244 | H157: =Январь!H157 -> 0 | I157: =Январь!I157 -> 0 | J157: =Январь!BH157 -> 0 | K157: =Январь!BJ157 -> 0 | L157: =SUM(M157:AI157) -> 0 | AJ157: =SUM(AK157:BG157) -> 0 | BH157: 0 | BI157: =AJ157+Январь!BI157 -> 0 | BJ157: 0 | BK157: 0 | BM157: 0
A158: 262.03 | B158: прочее | C158: 26020 | D158: 807 | E158: 07 09 | F158: 02 1 04 80130 | G158: 244 | H158: =Январь!H158 -> 0 | I158: =Январь!I158 -> 0 | J158: =Январь!BH158 -> 0 | K158: =Январь!BJ158 -> 0 | L158: =SUM(M158:AI158) -> 0 | AJ158: =SUM(AK158:BG158) -> 0 | BH158: 0 | BI158: =AJ158+Январь!BI158 -> 0 | BJ158: 0 | BK158: 0 | BM158: 0
A159: 263 | B159: Соц. пособ. Выпл. орган. сектора гос. управ. | C159: 26020 | D159: 807 | E159: 07 09 | F159: 02 1 04 80130 | G159: 244 | H159: =Январь!H159 -> 0 | I159: =Январь!I159 -> 0 | J159: =Январь!BH159 -> 0 | K159: =Январь!BJ159 -> 0 | L159: =SUM(M159:AI159) -> 0 | AJ159: =SUM(AK159:BG159) -> 0 | BH159: 0 | BI159: =AJ159+Январь!BI159 -> 0 | BJ159: 0 | BK159: 0 | BM159: 0
A160: 290 | B160: Прочие расходы | C160: 26020 | D160: 807 | E160: 07 09 | F160: 02 1 04 80130 | G160: 244 | H160: =Январь!H160 -> 0 | I160: =Январь!I160 -> 0 | J160: =Январь!BH160 -> 0 | K160: =Январь!BJ160 -> 0 | L160: =SUM(L161:L162) -> 0 | M160: 0 | N160: 0 | O160: 0 | P160: 0 | Q160: 0 | R160: 0 | S160: 0 | T160: 0 | U160: 0 | V160: 0 | W160: 0 | X160: 0 | Y160: 0 | Z160: 0 | AA160: 0 | AB160: 0 | AC160: 0 | AD160: 0 | AE160: 0 | AF160: 0 | AG160: 0 | AH160: 0 | AI160: 0 | AJ160: 0 | AK160: 0 | AL160: 0 | AM160: 0 | AN160: 0 | AO160: 0 | AP160: 0 | AQ160: 0 | AR160: 0 | AS160: 0 | AT160: 0 | AU160: 0 | AV160: 0 | AW160: 0 | AX160: 0 | AY160: 0 | AZ160: 0 | BA160: 0 | BB160: 0 | BC160: 0 | BD160: 0 | BE160: 0 | BF160: 0 | BG160: 0 | BH160: 0 | BI160: =AJ160+Январь!BI160 -> 0 | BJ160: 0 | BK160: 0 | BL160: =SUM(BL161:BL162) -> 0 | BM160: 0
A161: 290.03 | B161: Налог на имущество | C161: 26020 | D161: 807 | E161: 07 09 | F161: 02 1 04 80130 | G161: 244 | H161: =Январь!H161 -> 0 | I161: =Январь!I161 -> 0 | J161: =Январь!BH161 -> 0 | K161: =Январь!BJ161 -> 0 | L161: =SUM(M161:AI161) -> 0 | AJ161: =SUM(AK161:BG161) -> 0 | BH161: 0 | BI161: =AJ161+Январь!BI161 -> 0 | BJ161: 0 | BK161: 0 | BM161: 0
A162: 290.02 | B162: проч. расходы | C162: 26020 | D162: 807 | E162: 07 09 | F162: 02 1 04 80130 | G162: 244 | H162: =Январь!H162 -> 0 | I162: =Январь!I162 -> 0 | J162: =Январь!BH162 -> 0 | K162: =Январь!BJ162 -> 0 | L162: =SUM(M162:AI162) -> 0 | AJ162: =SUM(AK162:BG162) -> 0 | BH162: 0 | BI162: =AJ162+Январь!BI162 -> 0 | BJ162: 0 | BK162: 0 | BM162: 0
A163: 310 | B163: Увеличение ст-ти ОС(26020) | C163: 26020 | D163: 807 | E163: 07 09 | F163: 02 1 04 80130 | G163: 244 | H163: =Январь!H163 -> 20000 | I163: =Январь!I163 -> 0 | J163: =Январь!BH163 -> 0 | K163: =Январь!BJ163 -> 0 | L163: =SUM(L164:L167) -> 0 | M163: 0 | N163: 0 | O163: 0 | P163: 0 | Q163: 0 | R163: 0 | S163: 0 | T163: 0 | U163: 0 | V163: 0 | W163: 0 | X163: 0 | Y163: 0 | Z163: 0 | AA163: 0 | AB163: 0 | AC163: 0 | AD163: 0 | AE163: 0 | AF163: 0 | AG163: 0 | AH163: 0 | AI163: 0 | AJ163: 0 | AK163: 0 | AL163: 0 | AM163: 0 | AN163: 0 | AO163: 0 | AP163: 0 | AQ163: 0 | AR163: 0 | AS163: 0 | AT163: 0 | AU163: 0 | AV163: 0 | AW163: 0 | AX163: 0 | AY163: 0 | AZ163: 0 | BA163: 0 | BB163: 0 | BC163: 0 | BD163: 0 | BE163: 0 | BF163: 0 | BG163: 0 | BH163: 0 | BI163: =AJ163+Январь!BI163 -> 0 | BJ163: 0 | BK163: 20000 | BL163: =SUM(BL164:BL167) -> 0 | BM163: 0
A164: 310 | B164: Учебники | C164: 26020 | D164: 807 | E164: 07 09 | F164: 02 1 04 80130 | G164: 244 | H164: =Январь!H164 -> 20000 | I164: =Январь!I164 -> 0 | J164: =Январь!BH164 -> 0 | K164: =Январь!BJ164 -> 0 | L164: =SUM(M164:AI164) -> 0 | AJ164: =SUM(AK164:BG164) -> 0 | BH164: 0 | BI164: =AJ164+Январь!BI164 -> 0 | BJ164: 0 | BK164: 20000 | BM164: 0
A165: 310.02 | B165: расх. матер больше года | C165: 26020 | D165: 807 | E165: 07 09 | F165: 02 1 04 80130 | G165: 244 | H165: =Январь!H165 -> 0 | I165: =Январь!I165 -> 0 | J165: =Январь!BH165 -> 0 | K165: =Январь!BJ165 -> 0 | L165: =SUM(M165:AI165) -> 0 | AJ165: =SUM(AK165:BG165) -> 0 | BH165: 0 | BI165: =AJ165+Январь!BI165 -> 0 | BJ165: 0 | BK165: 0 | BM165: 0
A166: 310.03 | B166: приобретение предм. дл. польз. | C166: 26020 | D166: 807 | E166: 07 09 | F166: 02 1 04 80130 | G166: 244 | H166: =Январь!H166 -> 0 | I166: =Январь!I166 -> 0 | J166: =Январь!BH166 -> 0 | K166: =Январь!BJ166 -> 0 | L166: =SUM(M166:AI166) -> 0 | AJ166: =SUM(AK166:BG166) -> 0 | BH166: 0 | BI166: =AJ166+Январь!BI166 -> 0 | BJ166: 0 | BK166: 0 | BM166: 0
A167: 310.04 | B167: капитальное стр-во | C167: 26020 | D167: 807 | E167: 07 09 | F167: 02 1 04 80130 | G167: 244 | H167: =Январь!H167 -> 0 | I167: =Январь!I167 -> 0 | J167: =Январь!BH167 -> 0 | K167: =Январь!BJ167 -> 0 | L167: =SUM(M167:AI167) -> 0 | AJ167: =SUM(AK167:BG167) -> 0 | BH167: 0 | BI167: =AJ167+Январь!BI167 -> 0 | BJ167: 0 | BK167: 0 | BM167: 0
A168: 320 | B168: Увеличение ст-ти немат. активов | C168: 26020 | D168: 807 | E168: 07 09 | F168: 02 1 04 80130 | G168: 244 | H168: =Январь!H168 -> 0 | I168: =Январь!I168 -> 0 | J168: =Январь!BH168 -> 0 | K168: =Январь!BJ168 -> 0 | L168: =SUM(M168:AI168) -> 0 | AJ168: =SUM(AK168:BG168) -> 0 | BH168: 0 | BI168: =AJ168+Январь!BI168 -> 0 | BJ168: 0 | BK168: 0 | BM168: 0
A169: 340 | B169: Увеличение мат. запасов | C169: 26020 | D169: 807 | E169: 07 09 | F169: 02 1 04 80130 | G169: 244 | H169: =Январь!H169 -> 0 | I169: =Январь!I169 -> 0 | J169: =Январь!BH169 -> 0 | K169: =Январь!BJ169 -> 0 | L169: =SUM(L170:L174) -> 0 | M169: 0 | N169: 0 | O169: 0 | P169: 0 | Q169: 0 | R169: 0 | S169: 0 | T169: 0 | U169: 0 | V169: 0 | W169: 0 | X169: 0 | Y169: 0 | Z169: 0 | AA169: 0 | AB169: 0 | AC169: 0 | AD169: 0 | AE169: 0 | AF169: 0 | AG169: 0 | AH169: 0 | AI169: 0 | AJ169: 0 | AK169: 0 | AL169: 0 | AM169: 0 | AN169: 0 | AO169: 0 | AP169: 0 | AQ169: 0 | AR169: 0 | AS169: 0 | AT169: 0 | AU169: 0 | AV169: 0 | AW169: 0 | AX169: 0 | AY169: 0 | AZ169: 0 | BA169: 0 | BB169: 0 | BC169: 0 | BD169: 0 | BE169: 0 | BF169: 0 | BG169: 0 | BH169: 0 | BI169: =AJ169+Январь!BI169 -> 0 | BJ169: 0 | BK169: 0 | BL169: =SUM(BL170:BL174) -> 0 | BM169: 0
A170: 340.01 | B170: медикаменды | C170: 26020 | D170: 807 | E170: 07 09 | F170: 02 1 04 80130 | G170: 244 | H170: =Январь!H170 -> 0 | I170: =Январь!I170 -> 0 | J170: =Январь!BH170 -> 0 | K170: =Январь!BJ170 -> 0 | L170: =SUM(M170:AI170) -> 0 | AJ170: =SUM(AK170:BG170) -> 0 | BH170: 0 | BI170: =AJ170+Январь!BI170 -> 0 | BJ170: 0 | BK170: 0 | BM170: 0
A171: 340.02 | B171: продукты питания | C171: =C170 -> 26020 | D171: 807 | E171: 07 09 | F171: 02 1 04 80130 | G171: 244 | H171: =Январь!H171 -> 0 | I171: =Январь!I171 -> 0 | J171: =Январь!BH171 -> 0 | K171: =Январь!BJ171 -> 0 | L171: =SUM(M171:AI171) -> 0 | AJ171: =SUM(AK171:BG171) -> 0 | BH171: 0 | BI171: =AJ171+Январь!BI171 -> 0 | BJ171: 0 | BK171: 0 | BM171: 0
A172: 340.03 | B172: ГСМ | C172: 26020 | D172: 807 | E172: 07 09 | F172: 02 1 04 80130 | G172: 244 | H172: =Январь!H172 -> 0 | I172: =Январь!I172 -> 0 | J172: =Январь!BH172 -> 0 | K172: =Январь!BJ172 -> 0 | L172: =SUM(M172:AI172) -> 0 | AJ172: =SUM(AK172:BG172) -> 0 | BH172: 0 | BI172: =AJ172+Январь!BI172 -> 0 | BJ172: 0 | BK172: 0 | BM172: 0
A173: 340.04 | B173: Оплата котел. топлива | C173: 26020 | D173: 807 | E173: 07 09 | F173: 02 1 04 80130 | G173: 244 | H173: =Январь!H173 -> 0 | I173: =Январь!I173 -> 0 | J173: =Январь!BH173 -> 0 | K173: =Январь!BJ173 -> 0 | L173: =SUM(M173:AI173) -> 0 | AJ173: =SUM(AK173:BG173) -> 0 | BH173: 0 | BI173: =AJ173+Январь!BI173 -> 0 | BJ173: 0 | BK173: 0 | BM173: 0
A174: 340.05 | B174: Прочее | C174: 26020 | D174: 807 | E174: 07 09 | F174: 02 1 04 80130 | G174: 244 | H174: =Январь!H174 -> 0 | I174: =Январь!I174 -> 0 | J174: =Январь!BH174 -> 0 | K174: =Январь!BJ174 -> 0 | L174: =SUM(M174:AI174) -> 0 | AJ174: =SUM(AK174:BG174) -> 0 | BH174: 0 | BI174: =AJ174+Январь!BI174 -> 0 | BJ174: 0 | BK174: 0 | BM174: 0
A175: ИТОГО | B175: Итого расходов | C175: 26020 | D175: 807 | E175: 07 09 | F175: 02 1 04 80130 | G175: 244 | H175: =Январь!H175 -> 20000 | I175: =Январь!I175 -> 0 | J175: =Январь!BH175 -> 0 | K175: =Январь!BJ175 -> 0 | L175: =L121+L124+L131+L134+L135+L138+L143+L144+L148+L151+L152+L153+L154+L155+L159+L160+L163+L168+L169 -> 0 | M175: 0 | N175: 0 | O175: 0 | P175: 0 | Q175: 0 | R175: 0 | S175: 0 | T175: 0 | U175: 0 | V175: 0 | W175: 0 | X175: 0 | Y175: 0 | Z175: 0 | AA175: 0 | AB175: 0 | AC175: 0 | AD175: 0 | AE175: 0 | AF175: 0 | AG175: 0 | AH175: 0 | AI175: 0 | AJ175: 0 | AK175: 0 | AL175: 0 | AM175: 0 | AN175: 0 | AO175: 0 | AP175: 0 | AQ175: 0 | AR175: 0 | AS175: 0 | AT175: 0 | AU175: 0 | AV175: 0 | AW175: 0 | AX175: 0 | AY175: 0 | AZ175: 0 | BA175: 0 | BB175: 0 | BC175: 0 | BD175: 0 | BE175: 0 | BF175: 0 | BG175: 0 | BH175: 0 | BI175: =AJ175+Январь!BI175 -> 0 | BJ175: 0 | BK175: 20000 | BL175: =BL121+BL124+BL131+BL134+BL135+BL138+BL143+BL144+BL148+BL151+BL152+BL153+BL154+BL155+BL159+BL160+BL163+BL168+BL169 -> 0 | BM175: 0
C176: =Январь!C176 -> 22-53040 | D176: =Январь!D176 -> 807 | E176: =Январь!E176 -> 07 02 | F176: =Январь!F176 -> 02 П 02 R3040 | G176: =Январь!G176 -> 244 | BN176: =BN120+1 -> 4
A177: 211 | B177: оплата труда | C177: =C176 -> 22-53040 | D177: =D176 -> 807 | E177: 07 02 | F177: 02 П 02 R3040 | G177: 244 | H177: =Январь!H177 -> 0 | I177: =Январь!I177 -> 0 | J177: =Январь!BH177 -> 0 | K177: =Январь!BJ177 -> 0 | L177: =SUM(L178:L179) -> 0 | M177: 0 | N177: 0 | O177: 0 | P177: 0 | Q177: 0 | R177: 0 | S177: 0 | T177: 0 | U177: 0 | V177: 0 | W177: 0 | X177: 0 | Y177: 0 | Z177: 0 | AA177: 0 | AB177: 0 | AC177: 0 | AD177: 0 | AE177: 0 | AF177: 0 | AG177: 0 | AH177: 0 | AI177: 0 | AJ177: 0 | AK177: 0 | AL177: 0 | AM177: 0 | AN177: 0 | AO177: 0 | AP177: 0 | AQ177: 0 | AR177: 0 | AS177: 0 | AT177: 0 | AU177: 0 | AV177: 0 | AW177: 0 | AX177: 0 | AY177: 0 | AZ177: 0 | BA177: 0 | BB177: 0 | BC177: 0 | BD177: 0 | BE177: 0 | BF177: 0 | BG177: 0 | BH177: =J177+L177 -> 0 | BI177: =AJ177+Январь!BI177 -> 0 | BJ177: =K177+L177-AJ177 -> 0 | BK177: =H177-BH177 -> 0 | BL177: =SUM(BL178:BL179) -> 0 | BM177: =I177-BH177 -> 0
A178: 211.01 | B178: Основная з/пл | C178: 22-53040 | D178: 807 | E178: 07 02 | F178: 02 П 02 R3040 | G178: 244 | H178: =Январь!H178 -> 0 | I178: =Январь!I178 -> 0 | J178: =Январь!BH178 -> 0 | K178: =Январь!BJ178 -> 0 | L178: =SUM(M178:AI178) -> 0 | AJ178: =SUM(AK178:BG178) -> 0 | BH178: =J178+L178 -> 0 | BI178: =AJ178+Январь!BI178 -> 0 | BJ178: 0 | BK178: 0 | BM178: =I178-BH178 -> 0
A179: 211.02 | B179: Кл. руководство | C179: 22-53040 | D179: 807 | E179: 07 02 | F179: 02 П 02 R3040 | G179: 244 | H179: =Январь!H179 -> 0 | I179: =Январь!I179 -> 0 | J179: =Январь!BH179 -> 0 | K179: =Январь!BJ179 -> 0 | L179: =SUM(M179:AI179) -> 0 | AJ179: =SUM(AK179:BG179) -> 0 | BH179: 0 | BI179: =AJ179+Январь!BI179 -> 0 | BJ179: 0 | BK179: 0 | BM179: 0
A180: 212 | B180: Всего проч. | C180: 22-53040 | D180: 807 | E180: 07 02 | F180: 02 П 02 R3040 | G180: 244 | H180: =Январь!H180 -> 0 | I180: =Январь!I180 -> 0 | J180: =Январь!BH180 -> 0 | K180: =Январь!BJ180 -> 0 | L180: =SUM(L181:L186) -> 0 | M180: 0 | N180: 0 | O180: 0 | P180: 0 | Q180: 0 | R180: 0 | S180: 0 | T180: 0 | U180: 0 | V180: 0 | W180: 0 | X180: 0 | Y180: 0 | Z180: 0 | AA180: 0 | AB180: 0 | AC180: 0 | AD180: 0 | AE180: 0 | AF180: 0 | AG180: 0 | AH180: 0 | AI180: 0 | AJ180: 0 | AK180: 0 | AL180: 0 | AM180: 0 | AN180: 0 | AO180: 0 | AP180: 0 | AQ180: 0 | AR180: 0 | AS180: 0 | AT180: 0 | AU180: 0 | AV180: 0 | AW180: 0 | AX180: 0 | AY180: 0 | AZ180: 0 | BA180: 0 | BB180: 0 | BC180: 0 | BD180: 0 | BE180: 0 | BF180: 0 | BG180: 0 | BH180: 0 | BI180: =AJ180+Январь!BI180 -> 0 | BJ180: 0 | BK180: 0 | BL180: =SUM(BL181:BL186) -> 0 | BM180: 0
A181: 212.01 | B181: суточные | C181: 22-53040 | D181: 807 | E181: 07 02 | F181: 02 П 02 R3040 | G181: 244 | H181: =Январь!H181 -> 0 | I181: =Январь!I181 -> 0 | J181: =Январь!BH181 -> 0 | K181: =Январь!BJ181 -> 0 | L181: =SUM(M181:AI181) -> 0 | AJ181: =SUM(AK181:BG181) -> 0 | BH181: 0 | BI181: =AJ181+Январь!BI181 -> 0 | BJ181: 0 | BK181: 0 | BM181: 0
A182: 212.02 | B182: книги | C182: 22-53040 | D182: 807 | E182: 07 02 | F182: 02 П 02 R3040 | G182: 244 | H182: =Январь!H182 -> 0 | I182: =Январь!I182 -> 0 | J182: =Январь!BH182 -> 0 | K182: =Январь!BJ182 -> 0 | L182: 0 | AJ182: 0 | BH182: 0 | BI182: =AJ182+Январь!BI182 -> 0 | BJ182: 0 | BK182: 0 | BM182: 0
A183: 212 | B183: завоз вывоз | C183: 26009 | D183: 807 | E183: 07 02 | F183: 02 П 02 R3040 | G183: 244 | H183: =Январь!H183 -> 0 | I183: =Январь!I183 -> 0 | J183: =Январь!BH183 -> 0 | K183: =Январь!BJ183 -> 0 | L183: 0 | AJ183: 0 | BH183: 0 | BI183: =AJ183+Январь!BI183 -> 0 | BJ183: 0 | BK183: 0 | BM183: 0
A184: 212 | B184: проезд в отпуск | C184: 26002 | D184: 807 | E184: 07 02 | F184: 02 П 02 R3040 | G184: 244 | H184: =Январь!H184 -> 0 | I184: =Январь!I184 -> 0 | J184: =Январь!BH184 -> 0 | K184: =Январь!BJ184 -> 0 | L184: 0 | AJ184: 0 | BH184: 0 | BI184: =AJ184+Январь!BI184 -> 0 | BJ184: 0 | BK184: 0 | BM184: 0
A185: 212.05 | B185: соц.помощь | C185: 26002 | D185: 807 | E185: 07 02 | F185: 02 П 02 R3040 | G185: 244 | H185: =Январь!H185 -> 0 | I185: =Январь!I185 -> 0 | J185: =Январь!BH185 -> 0 | K185: =Январь!BJ185 -> 0 | L185: 0 | AJ185: 0 | BH185: 0 | BI185: =AJ185+Январь!BI185 -> 0 | BJ185: 0 | BK185: 0 | BM185: 0
A186: 212.06 | B186: СКЛ | C186: 26002 | D186: 807 | E186: 07 02 | F186: 02 П 02 R3040 | G186: 244 | H186: =Январь!H186 -> 0 | I186: =Январь!I186 -> 0 | J186: =Январь!BH186 -> 0 | K186: =Январь!BJ186 -> 0 | L186: 0 | AJ186: 0 | BH186: 0 | BI186: =AJ186+Январь!BI186 -> 0 | BJ186: 0 | BK186: 0 | BM186: 0
A187: 213 | B187: ЕСН | C187: 26002 | D187: 807 | E187: 07 02 | F187: 02 П 02 R3040 | G187: 244 | H187: =Январь!H187 -> 0 | I187: =Январь!I187 -> 0 | J187: =Январь!BH187 -> 0 | K187: =Январь!BJ187 -> 0 | L187: =SUM(L188:L189) -> 0 | M187: 0 | N187: 0 | O187: 0 | P187: 0 | Q187: 0 | R187: 0 | S187: 0 | T187: 0 | U187: 0 | V187: 0 | W187: 0 | X187: 0 | Y187: 0 | Z187: 0 | AA187: 0 | AB187: 0 | AC187: 0 | AD187: 0 | AE187: 0 | AF187: 0 | AG187: 0 | AH187: 0 | AI187: 0 | AJ187: 0 | AK187: 0 | AL187: 0 | AM187: 0 | AN187: 0 | AO187: 0 | AP187: 0 | AQ187: 0 | AR187: 0 | AS187: 0 | AT187: 0 | AU187: 0 | AV187: 0 | AW187: 0 | AX187: 0 | AY187: 0 | AZ187: 0 | BA187: 0 | BB187: 0 | BC187: 0 | BD187: 0 | BE187: 0 | BF187: 0 | BG187: 0 | BH187: 0 | BI187: =AJ187+Январь!BI187 -> 0 | BJ187: 0 | BK187: 0 | BL187: =SUM(BL188:BL189) -> 0 | BM187: 0
A188: 213.01 | B188: ЕСН основ. | C188: 26002 | D188: 807 | E188: 07 02 | F188: 02 П 02 R3040 | G188: 244 | H188: =Январь!H188 -> 0 | I188: =Январь!I188 -> 0 | J188: =Январь!BH188 -> 0 | K188: =Январь!BJ188 -> 0 | L188: =SUM(M188:AI188) -> 0 | AJ188: =SUM(AK188:BG188) -> 0 | BH188: 0 | BI188: =AJ188+Январь!BI188 -> 0 | BJ188: 0 | BK188: 0 | BM188: 0
A189: 213.02 | B189: ЕСН кл. рук. | C189: 26002 | D189: 807 | E189: 07 02 | F189: 02 П 02 R3040 | G189: 244 | H189: =Январь!H189 -> 0 | I189: =Январь!I189 -> 0 | J189: =Январь!BH189 -> 0 | K189: =Январь!BJ189 -> 0 | L189: =SUM(M189:AI189) -> 0 | AJ189: =SUM(AK189:BG189) -> 0 | BH189: 0 | BI189: =AJ189+Январь!BI189 -> 0 | BJ189: 0 | BK189: 0 | BM189: 0
A190: 221 | B190: связь | C190: 26002 | D190: 807 | E190: 07 02 | F190: 02 П 02 R3040 | G190: 244 | H190: =Январь!H190 -> 0 | I190: =Январь!I190 -> 0 | J190: =Январь!BH190 -> 0 | K190: =Январь!BJ190 -> 0 | L190: =SUM(M190:AI190) -> 0 | AJ190: =SUM(AK190:BG190) -> 0 | BH190: 0 | BI190: =AJ190+Январь!BI190 -> 0 | BJ190: 0 | BK190: 0 | BM190: 0
A191: 222 | B191: Всего тран. | C191: 26002 | D191: 807 | E191: 07 02 | F191: 02 П 02 R3040 | G191: 244 | H191: =Январь!H191 -> 0 | I191: =Январь!I191 -> 0 | J191: =Январь!BH191 -> 0 | K191: =Январь!BJ191 -> 0 | L191: =SUM(L192:L193) -> 0 | M191: 0 | N191: 0 | O191: 0 | P191: 0 | Q191: 0 | R191: 0 | S191: 0 | T191: 0 | U191: 0 | V191: 0 | W191: 0 | X191: 0 | Y191: 0 | Z191: 0 | AA191: 0 | AB191: 0 | AC191: 0 | AD191: 0 | AE191: 0 | AF191: 0 | AG191: 0 | AH191: 0 | AI191: 0 | AJ191: 0 | AK191: 0 | AL191: 0 | AM191: 0 | AN191: 0 | AO191: 0 | AP191: 0 | AQ191: 0 | AR191: 0 | AS191: 0 | AT191: 0 | AU191: 0 | AV191: 0 | AW191: 0 | AX191: 0 | AY191: 0 | AZ191: 0 | BA191: 0 | BB191: 0 | BC191: 0 | BD191: 0 | BE191: 0 | BF191: 0 | BG191: 0 | BH191: 0 | BI191: =AJ191+Январь!BI191 -> 0 | BJ191: 0 | BK191: 0 | BL191: =SUM(BL192:BL193) -> 0 | BM191: 0
A192: 222.01 | B192: проезд команд. | C192: 26002 | D192: 807 | E192: 07 02 | F192: 02 П 02 R3040 | G192: 244 | H192: =Январь!H192 -> 0 | I192: =Январь!I192 -> 0 | J192: =Январь!BH192 -> 0 | K192: =Январь!BJ192 -> 0 | L192: =SUM(M192:AI192) -> 0 | AJ192: =SUM(AK192:BG192) -> 0 | BH192: 0 | BI192: =AJ192+Январь!BI192 -> 0 | BJ192: 0 | BK192: 0 | BM192: 0
A193: 222.02 | B193: транспортные усл | C193: 26002 | D193: =D192 -> 807 | E193: 07 02 | F193: 02 П 02 R3040 | G193: 244 | H193: =Январь!H193 -> 0 | I193: =Январь!I193 -> 0 | J193: =Январь!BH193 -> 0 | K193: =Январь!BJ193 -> 0 | L193: =SUM(M193:AI193) -> 0 | AJ193: =SUM(AK193:BG193) -> 0 | BH193: 0 | BI193: =AJ193+Январь!BI193 -> 0 | BJ193: 0 | BK193: 0 | BM193: 0
A194: 223 | B194: Всего ком. усл. | C194: 26002 | D194: 807 | E194: 07 02 | F194: 02 П 02 R3040 | G194: 244 | H194: =Январь!H194 -> 0 | I194: =Январь!I194 -> 0 | J194: =Январь!BH194 -> 0 | K194: =Январь!BJ194 -> 0 | L194: =SUM(L195:L198) -> 0 | M194: 0 | N194: 0 | O194: 0 | P194: 0 | Q194: 0 | R194: 0 | S194: 0 | T194: 0 | U194: 0 | V194: 0 | W194: 0 | X194: 0 | Y194: 0 | Z194: 0 | AA194: 0 | AB194: 0 | AC194: 0 | AD194: 0 | AE194: 0 | AF194: 0 | AG194: 0 | AH194: 0 | AI194: 0 | AJ194: 0 | AK194: 0 | AL194: 0 | AM194: 0 | AN194: 0 | AO194: 0 | AP194: 0 | AQ194: 0 | AR194: 0 | AS194: 0 | AT194: 0 | AU194: 0 | AV194: 0 | AW194: 0 | AX194: 0 | AY194: 0 | AZ194: 0 | BA194: 0 | BB194: 0 | BC194: 0 | BD194: 0 | BE194: 0 | BF194: 0 | BG194: 0 | BH194: 0 | BI194: =AJ194+Январь!BI194 -> 0 | BJ194: 0 | BK194: 0 | BL194: =SUM(BL195:BL198) -> 0 | BM194: 0
A195: 223.01 | B195: отопление | C195: =C194 -> 26002 | D195: 807 | E195: 07 02 | F195: 02 П 02 R3040 | G195: 244 | H195: =Январь!H195 -> 0 | I195: =Январь!I195 -> 0 | J195: =Январь!BH195 -> 0 | K195: =Январь!BJ195 -> 0 | L195: =SUM(M195:AI195) -> 0 | AJ195: =SUM(AK195:BG195) -> 0 | BH195: 0 | BI195: =AJ195+Январь!BI195 -> 0 | BJ195: 0 | BK195: 0 | BM195: 0
A196: 223.02 | B196: потребление газа | C196: 26002 | D196: 807 | E196: 07 02 | F196: 02 П 02 R3040 | G196: 244 | H196: =Январь!H196 -> 0 | I196: =Январь!I196 -> 0 | J196: =Январь!BH196 -> 0 | K196: =Январь!BJ196 -> 0 | L196: =SUM(M196:AI196) -> 0 | AJ196: =SUM(AK196:BG196) -> 0 | BH196: 0 | BI196: =AJ196+Январь!BI196 -> 0 | BJ196: 0 | BK196: 0 | BM196: 0
A197: 223.03 | B197: электроэнергия | C197: 26002 | D197: 807 | E197: 07 02 | F197: 02 П 02 R3040 | G197: 244 | H197: =Январь!H197 -> 0 | I197: =Январь!I197 -> 0 | J197: =Январь!BH197 -> 0 | K197: =Январь!BJ197 -> 0 | L197: =SUM(M197:AI197) -> 0 | AJ197: =SUM(AK197:BG197) -> 0 | BH197: 0 | BI197: =AJ197+Январь!BI197 -> 0 | BJ197: 0 | BK197: 0 | BM197: 0
A198: 223.04 | B198: водоснабжение | C198: 26002 | D198: 807 | E198: 07 02 | F198: 02 П 02 R3040 | G198: 244 | H198: =Январь!H198 -> 0 | I198: =Январь!I198 -> 0 | J198: =Январь!BH198 -> 0 | K198: =Январь!BJ198 -> 0 | L198: =SUM(M198:AI198) -> 0 | AJ198: =SUM(AK198:BG198) -> 0 | BH198: 0 | BI198: =AJ198+Январь!BI198 -> 0 | BJ198: 0 | BK198: 0 | BM198: 0
A199: 224 | B199: аренда | C199: 26002 | D199: 807 | E199: 07 02 | F199: 02 П 02 R3040 | G199: 244 | H199: =Январь!H199 -> 0 | I199: =Январь!I199 -> 0 | J199: =Январь!BH199 -> 0 | K199: =Январь!BJ199 -> 0 | L199: =SUM(M199:AI199) -> 0 | AJ199: =SUM(AK199:BG199) -> 0 | BH199: 0 | BI199: =AJ199+Январь!BI199 -> 0 | BJ199: 0 | BK199: 0 | BM199: 0
A200: 225 | B200: Всего содер. Имущ. | C200: 26002 | D200: 807 | E200: 07 02 | F200: 02 П 02 R3040 | G200: 244 | H200: =Январь!H200 -> 0 | I200: =Январь!I200 -> 0 | J200: =Январь!BH200 -> 0 | K200: =Январь!BJ200 -> 0 | L200: =SUM(L201:L203) -> 0 | M200: 0 | N200: 0 | O200: 0 | P200: 0 | Q200: 0 | R200: 0 | S200: 0 | T200: 0 | U200: 0 | V200: 0 | W200: 0 | X200: 0 | Y200: 0 | Z200: 0 | AA200: 0 | AB200: 0 | AC200: 0 | AD200: 0 | AE200: 0 | AF200: 0 | AG200: 0 | AH200: 0 | AI200: 0 | AJ200: 0 | AK200: 0 | AL200: 0 | AM200: 0 | AN200: 0 | AO200: 0 | AP200: 0 | AQ200: 0 | AR200: 0 | AS200: 0 | AT200: 0 | AU200: 0 | AV200: 0 | AW200: 0 | AX200: 0 | AY200: 0 | AZ200: 0 | BA200: 0 | BB200: 0 | BC200: 0 | BD200: 0 | BE200: 0 | BF200: 0 | BG200: 0 | BH200: 0 | BI200: =AJ200+Январь!BI200 -> 0 | BJ200: 0 | BK200: 0 | BL200: =SUM(BL201:BL203) -> 0 | BM200: 0
A201: 225.01 | B201: ремонт зд. и сооруж. | C201: 26002 | D201: 807 | E201: 07 02 | F201: 02 П 02 R3040 | G201: 244 | H201: =Январь!H201 -> 0 | I201: =Январь!I201 -> 0 | J201: =Январь!BH201 -> 0 | K201: =Январь!BJ201 -> 0 | L201: =SUM(M201:AI201) -> 0 | AJ201: =SUM(AK201:BG201) -> 0 | BH201: 0 | BI201: =AJ201+Январь!BI201 -> 0 | BJ201: 0 | BK201: 0 | BM201: 0
A202: 225.02 | B202: вывоз мусора | C202: 26002 | D202: 807 | E202: 07 02 | F202: 02 П 02 R3040 | G202: 244 | H202: =Январь!H202 -> 0 | I202: =Январь!I202 -> 0 | J202: =Январь!BH202 -> 0 | K202: =Январь!BJ202 -> 0 | L202: =SUM(M202:AI202) -> 0 | AJ202: =SUM(AK202:BG202) -> 0 | BH202: 0 | BI202: =AJ202+Январь!BI202 -> 0 | BJ202: 0 | BK202: 0 | BM202: 0
A203: 225.03 | B203: прочие ком. услуги | C203: 26002 | D203: 807 | E203: 07 02 | F203: 02 П 02 R3040 | G203: 244 | H203: =Январь!H203 -> 0 | I203: =Январь!I203 -> 0 | J203: =Январь!BH203 -> 0 | K203: =Январь!BJ203 -> 0 | L203: =SUM(M203:AI203) -> 0 | AJ203: =SUM(AK203:BG203) -> 0 | BH203: 0 | BI203: =AJ203+Январь!BI203 -> 0 | BJ203: 0 | BK203: 0 | BM203: 0
... 920 more rows

Sheet Март
A1: КАРТОЧКА АНАЛИТИЧЕСКОГО УЧЕТА КАССОВЫХ РАСХОДОВ
A3: МАРТ
A5: Статьи | C5: Подразделение | D5: ГЛ | E5: РП | F5: ЦС | G5: ВР | H5: Утверждено на год | I5: Квартал | J5: Профинансировано на начало месяца | K5: Остаток на счете на начало месяца | L5: Поступило за месяц | M5: 2022-03-14 | N5: 2022-03-16 | O5: 2022-03-24 | P5: 2022-03-25 | Q5: 2022-03-31 | AJ5: Расход за месяц | AK5: 2021-03-03 | AL5: 2021-03-09 | AM5: 2022-03-15 | AN5: 2022-03-16 | AO5: 2022-03-17 | AP5: 2022-03-18 | AQ5: 2022-03-23 | AR5: 2022-03-24 | AS5: 2022-03-28 | BH5: Профинансировано с начала года | BI5: Расход с начала года | BJ5: Остаток на счете на конец месяца | BK5: Остаток лимита год | BL5: Справочно:
BL6: профинансировано за 1 квартал | BM6: остаток лимита 1 квартала
C8: =Февраль!C8 -> субвенция | D8: =Февраль!D8 -> 807 | E8: =Февраль!E8 -> 07 02 | F8: =Февраль!F8 -> 02 П 02 С9903 | G8: =Февраль!G8 -> 111 | BN8: 1
A9: 211 | B9: оплата труда | C9: =C8 -> субвенция | D9: =D8 -> 807 | E9: 07 02 | F9: 02 П 02 С9903 | G9: 111 | H9: =Февраль!H9 -> 44000000 | I9: =Февраль!I9 -> 0 | J9: =Февраль!BH9 -> 9000000 | K9: =Февраль!BJ9 -> 4585091.63 | L9: =SUM(L10:L11) -> 5000000 | M9: 1000000 | N9: 0 | O9: 0 | P9: 4000000 | Q9: 0 | R9: 0 | S9: 0 | T9: 0 | U9: 0 | V9: 0 | W9: 0 | X9: 0 | Y9: 0 | Z9: 0 | AA9: 0 | AB9: 0 | AC9: 0 | AD9: 0 | AE9: 0 | AF9: 0 | AG9: 0 | AH9: 0 | AI9: 0 | AJ9: 4190570.62 | AK9: 3117512.06 | AL9: 0 | AM9: 0 | AN9: 0 | AO9: 0 | AP9: 1073058.56 | AQ9: 0 | AR9: 0 | AS9: 0 | AT9: 0 | AU9: 0 | AV9: 0 | AW9: 0 | AX9: 0 | AY9: 0 | AZ9: 0 | BA9: 0 | BB9: 0 | BC9: 0 | BD9: 0 | BE9: 0 | BF9: 0 | BG9: 0 | BH9: =J9+L9 -> 14000000 | BI9: =AJ9+Февраль!BI9 -> 8605478.99 | BJ9: =K9+L9-AJ9 -> 5394521.01 | BK9: =H9-BH9 -> 30000000 | BL9: 0 | BM9: =I9-BH9 -> -14000000
A10: 211.01 | B10: Основная з/пл | C10: субвенция | D10: 807 | E10: 07 02 | F10: 02 П 02 С9903 | G10: 111 | H10: =Февраль!H10 -> 44000000 | I10: =Февраль!I10 -> 0 | J10: =Февраль!BH10 -> 9000000 | K10: =Февраль!BJ10 -> 4585091.63 | L10: =SUM(M10:AI10) -> 5000000 | M10: 1000000 | P10: 4000000 | AJ10: =SUM(AK10:BG10) -> 4190570.62 | AK10: 3117512.06 | AP10: 1073058.56 | BH10: =J10+L10 -> 14000000 | BI10: =AJ10+Февраль!BI10 -> 8605478.99 | BJ10: =K10+L10-AJ10 -> 5394521.01 | BK10: =H10-BH10 -> 30000000 | BM10: =I10-BH10 -> -14000000
A11: 211.02 | B11: Кл. руководство | C11: субвенция | D11: 807 | E11: 07 02 | F11: 02 П 02 С9903 | G11: 111 | H11: =Февраль!H11 -> 0 | I11: =Февраль!I11 -> 0 | J11: =Февраль!BH11 -> 0 | K11: =Февраль!BJ11 -> 0 | L11: =SUM(M11:AI11) -> 0 | AJ11: =SUM(AK11:BG11) -> 0 | BH11: 0 | BI11: =AJ11+Февраль!BI11 -> 0 | BJ11: 0 | BK11: 0 | BM11: 0
A12: 266 | B12: Всего проч. | C12: субвенция | D12: 807 | E12: 07 02 | F12: 02 П 02 С9903 | G12: 111 | H12: =Февраль!H12 -> 100000 | I12: =Февраль!I12 -> 0 | J12: =Февраль!BH12 -> 23795.16 | K12: =Февраль!BJ12 -> 23795.16 | L12: =SUM(L13:L18) -> 12796.38 | M12: 12796.38 | N12: 0 | O12: 0 | P12: 0 | Q12: 0 | R12: 0 | S12: 0 | T12: 0 | U12: 0 | V12: 0 | W12: 0 | X12: 0 | Y12: 0 | Z12: 0 | AA12: 0 | AB12: 0 | AC12: 0 | AD12: 0 | AE12: 0 | AF12: 0 | AG12: 0 | AH12: 0 | AI12: 0 | AJ12: 36591.54 | AK12: 36591.54 | AL12: 0 | AM12: 0 | AN12: 0 | AO12: 0 | AP12: 0 | AQ12: 0 | AR12: 0 | AS12: 0 | AT12: 0 | AU12: 0 | AV12: 0 | AW12: 0 | AX12: 0 | AY12: 0 | AZ12: 0 | BA12: 0 | BB12: 0 | BC12: 0 | BD12: 0 | BE12: 0 | BF12: 0 | BG12: 0 | BH12: 36591.54 | BI12: =AJ12+Февраль!BI12 -> 36591.54 | BJ12: 0 | BK12: 63408.46 | BL12: 0 | BM12: -36591.54
A13: 266 | B13: суточные | C13: субвенция | D13: 807 | E13: 07 02 | F13: 02 П 02 С9903 | G13: 111 | H13: =Февраль!H13 -> 100000 | I13: =Февраль!I13 -> 0 | J13: =Февраль!BH13 -> 23795.16 | K13: =Февраль!BJ13 -> 23795.16 | L13: =SUM(M13:AI13) -> 12796.38 | M13: 12796.38 | AJ13: =SUM(AK13:BG13) -> 36591.54 | AK13: 36591.54 | BH13: 36591.54 | BI13: =AJ13+Февраль!BI13 -> 36591.54 | BJ13: 0 | BK13: 63408.46 | BM13: -36591.54
A14: 212.02 | B14: книги | C14: субвенция | D14: 807 | E14: 07 02 | F14: 02 П 02 С9903 | G14: 111 | H14: =Февраль!H14 -> 0 | I14: =Февраль!I14 -> 0 | J14: =Февраль!BH14 -> 0 | K14: =Февраль!BJ14 -> 0 | L14: 0 | AJ14: 0 | BH14: 0 | BI14: =AJ14+Февраль!BI14 -> 0 | BJ14: 0 | BK14: 0 | BM14: 0
A15: 266 | B15: СКЛ | C15: субвенция | D15: 807 | E15: 07 02 | F15: 02 П 02 С9903 | G15: 112 | H15: =Февраль!H15 -> 0 | I15: =Февраль!I15 -> 0 | J15: =Февраль!BH15 -> 0 | K15: =Февраль!BJ15 -> 0 | L15: 0 | AJ15: 0 | BH15: 0 | BI15: =AJ15+Февраль!BI15 -> 0 | BJ15: 0 | BK15: 0 | BM15: 0
A16: 212.04 | B16: проезд в отпуск | C16: субвенция | D16: 807 | E16: 07 02 | F16: 02 П 02 С9903 | G16: 112 | H16: =Февраль!H16 -> 0 | I16: =Февраль!I16 -> 0 | J16: =Февраль!BH16 -> 0 | K16: =Февраль!BJ16 -> 0 | L16: 0 | AJ16: 0 | BH16: 0 | BI16: =AJ16+Февраль!BI16 -> 0 | BJ16: 0 | BK16: 0 | BM16: 0
A17: 212.05 | B17: соц.помощь | C17: субвенция | D17: 807 | E17: 07 02 | F17: 02 П 02 С9903 | G17: 112 | H17: =Февраль!H17 -> 0 | I17: =Февраль!I17 -> 0 | J17: =Февраль!BH17 -> 0 | K17: =Февраль!BJ17 -> 0 | L17: 0 | AJ17: 0 | BH17: 0 | BI17: =AJ17+Февраль!BI17 -> 0 | BJ17: 0 | BK17: 0 | BM17: 0
A18: 212.06 | B18: СКЛ | C18: субвенция | D18: 807 | E18: 07 02 | F18: 02 П 02 С9903 | G18: 112 | H18: =Февраль!H18 -> 0 | I18: =Февраль!I18 -> 0 | J18: =Февраль!BH18 -> 0 | K18: =Февраль!BJ18 -> 0 | L18: 0 | AJ18: 0 | BH18: 0 | BI18: =AJ18+Февраль!BI18 -> 0 | BJ18: 0 | BK18: 0 | BM18: 0
A19: 213 | B19: ЕСН | C19: субвенция | D19: 807 | E19: 07 02 | F19: 02 П 02 С9903 | G19: 119 | H19: =Февраль!H19 -> 13252600 | I19: =Февраль!I19 -> 0 | J19: =Февраль!BH19 -> 2200000 | K19: =Февраль!BJ19 -> 1120180.75 | L19: =SUM(L20:L21) -> 1297200 | M19: 100000 | N19: 0 | O19: 0 | P19: 1197200 | Q19: 0 | R19: 0 | S19: 0 | T19: 0 | U19: 0 | V19: 0 | W19: 0 | X19: 0 | Y19: 0 | Z19: 0 | AA19: 0 | AB19: 0 | AC19: 0 | AD19: 0 | AE19: 0 | AF19: 0 | AG19: 0 | AH19: 0 | AI19: 0 | AJ19: 1192195.98 | AK19: 1192195.98 | AL19: 0 | AM19: 0 | AN19: 0 | AO19: 0 | AP19: 0 | AQ19: 0 | AR19: 0 | AS19: 0 | AT19: 0 | AU19: 0 | AV19: 0 | AW19: 0 | AX19: 0 | AY19: 0 | AZ19: 0 | BA19: 0 | BB19: 0 | BC19: 0 | BD19: 0 | BE19: 0 | BF19: 0 | BG19: 0 | BH19: 3497200 | BI19: =AJ19+Февраль!BI19 -> 2272015.23 | BJ19: 1225184.77 | BK19: 9755400 | BL19: 0 | BM19: -3497200
A20: 213.01 | B20: ЕСН основ. | C20: субвенция | D20: 807 | E20: 07 02 | F20: 02 П 02 С9903 | G20: 119 | H20: =Февраль!H20 -> 13252600 | I20: =Февраль!I20 -> 0 | J20: =Февраль!BH20 -> 2200000 | K20: =Февраль!BJ20 -> 1120180.75 | L20: =SUM(M20:AI20) -> 1297200 | M20: 100000 | P20: 1197200 | AJ20: =SUM(AK20:BG20) -> 1192195.98 | AK20: 1192195.98 | BH20: 3497200 | BI20: =AJ20+Февраль!BI20 -> 2272015.23 | BJ20: 1225184.77 | BK20: 9755400 | BM20: -3497200
A21: 213.02 | B21: ЕСН кл. рук. | C21: субвенция | D21: 807 | E21: 07 02 | F21: 02 П 02 С9903 | G21: 119 | H21: =Февраль!H21 -> 0 | I21: =Февраль!I21 -> 0 | J21: =Февраль!BH21 -> 0 | K21: =Февраль!BJ21 -> 0 | L21: =SUM(M21:AI21) -> 0 | AJ21: =SUM(AK21:BG21) -> 0 | BH21: 0 | BI21: =AJ21+Февраль!BI21 -> 0 | BJ21: 0 | BK21: 0 | BM21: 0
A22: 221 | B22: связь | C22: субвенция | D22: 807 | E22: 07 02 | F22: 02 П 02 С9903 | G22: 244 | H22: =Февраль!H22 -> 64400 | I22: =Февраль!I22 -> 0 | J22: =Февраль!BH22 -> 5443.2 | K22: =Февраль!BJ22 -> 2721.6 | L22: =SUM(M22:AI22) -> 2721.6 | N22: 2721.6 | AJ22: =SUM(AK22:BG22) -> 5443.2 | AL22: 2721.6 | AP22: 2721.6 | BH22: 8164.8 | BI22: =AJ22+Февраль!BI22 -> 8164.8 | BJ22: 0 | BK22: 56235.2 | BM22: -8164.8
A23: 222 | B23: Всего тран. | C23: субвенция | D23: 807 | E23: 07 02 | F23: 02 П 02 С9903 | G23: 244 | H23: =Февраль!H23 -> 113100 | I23: =Февраль!I23 -> 0 | J23: =Февраль!BH23 -> 33000 | K23: =Февраль!BJ23 -> 16500 | L23: =SUM(L24:L25) -> 16500 | M23: 0 | N23: 16500 | O23: 0 | P23: 0 | Q23: 0 | R23: 0 | S23: 0 | T23: 0 | U23: 0 | V23: 0 | W23: 0 | X23: 0 | Y23: 0 | Z23: 0 | AA23: 0 | AB23: 0 | AC23: 0 | AD23: 0 | AE23: 0 | AF23: 0 | AG23: 0 | AH23: 0 | AI23: 0 | AJ23: 33000 | AK23: 0 | AL23: 16500 | AM23: 0 | AN23: 0 | AO23: 0 | AP23: 16500 | AQ23: 0 | AR23: 0 | AS23: 0 | AT23: 0 | AU23: 0 | AV23: 0 | AW23: 0 | AX23: 0 | AY23: 0 | AZ23: 0 | BA23: 0 | BB23: 0 | BC23: 0 | BD23: 0 | BE23: 0 | BF23: 0 | BG23: 0 | BH23: 49500 | BI23: =AJ23+Февраль!BI23 -> 49500 | BJ23: 0 | BK23: 63600 | BL23: 0 | BM23: -49500
A24: 222.01 | B24: проезд команд. | C24: субвенция | D24: 807 | E24: 07 02 | F24: 02 П 02 С9903 | G24: 244 | H24: =Февраль!H24 -> 0 | I24: =Февраль!I24 -> 0 | J24: =Февраль!BH24 -> 0 | K24: =Февраль!BJ24 -> 0 | L24: =SUM(M24:AI24) -> 0 | AJ24: =SUM(AK24:BG24) -> 0 | BH24: 0 | BI24: =AJ24+Февраль!BI24 -> 0 | BJ24: 0 | BK24: 0 | BM24: 0
A25: 222.02 | B25: транспортные усл | C25: субвенция | D25: =D24 -> 807 | E25: 07 02 | F25: 02 П 02 С9903 | G25: 244 | H25: =Февраль!H25 -> 113100 | I25: =Февраль!I25 -> 0 | J25: =Февраль!BH25 -> 33000 | K25: =Февраль!BJ25 -> 16500 | L25: =SUM(M25:AI25) -> 16500 | N25: 16500 | AJ25: =SUM(AK25:BG25) -> 33000 | AL25: 16500 | AP25: 16500 | BH25: 49500 | BI25: =AJ25+Февраль!BI25 -> 49500 | BJ25: 0 | BK25: 63600 | BM25: -49500
A26: 223 | B26: Всего ком. усл. | C26: субвенция | D26: 807 | E26: 07 02 | F26: 02 П 02 С9903 | G26: 244 | H26: =Февраль!H26 -> 3800 | I26: =Февраль!I26 -> 0 | J26: =Февраль!BH26 -> 0 | K26: =Февраль!BJ26 -> 0 | L26: =SUM(L27:L30) -> 0 | M26: 0 | N26: 0 | O26: 0 | P26: 0 | Q26: 0 | R26: 0 | S26: 0 | T26: 0 | U26: 0 | V26: 0 | W26: 0 | X26: 0 | Y26: 0 | Z26: 0 | AA26: 0 | AB26: 0 | AC26: 0 | AD26: 0 | AE26: 0 | AF26: 0 | AG26: 0 | AH26: 0 | AI26: 0 | AJ26: 0 | AK26: 0 | AL26: 0 | AM26: 0 | AN26: 0 | AO26: 0 | AP26: 0 | AQ26: 0 | AR26: 0 | AS26: 0 | AT26: 0 | AU26: 0 | AV26: 0 | AW26: 0 | AX26: 0 | AY26: 0 | AZ26: 0 | BA26: 0 | BB26: 0 | BC26: 0 | BD26: 0 | BE26: 0 | BF26: 0 | BG26: 0 | BH26: 0 | BI26: =AJ26+Февраль!BI26 -> 0 | BJ26: 0 | BK26: 3800 | BL26: 0 | BM26: 0
A27: 223.01 | B27: отопление | C27: =C26 -> субвенция | D27: 807 | E27: 07 02 | F27: 02 П 02 С9903 | G27: 244 | H27: =Февраль!H27 -> 3800 | I27: =Февраль!I27 -> 0 | J27: =Февраль!BH27 -> 0 | K27: =Февраль!BJ27 -> 0 | L27: =SUM(M27:AI27) -> 0 | AJ27: =SUM(AK27:BG27) -> 0 | BH27: 0 | BI27: =AJ27+Февраль!BI27 -> 0 | BJ27: 0 | BK27: 3800 | BM27: 0
A28: 223.02 | B28: потребление газа | C28: субвенция | D28: 807 | E28: 07 02 | F28: 02 П 02 С9903 | G28: 244 | H28: =Февраль!H28 -> 0 | I28: =Февраль!I28 -> 0 | J28: =Февраль!BH28 -> 0 | K28: =Февраль!BJ28 -> 0 | L28: =SUM(M28:AI28) -> 0 | AJ28: =SUM(AK28:BG28) -> 0 | BH28: 0 | BI28: =AJ28+Февраль!BI28 -> 0 | BJ28: 0 | BK28: 0 | BM28: 0
A29: 223.03 | B29: электроэнергия | C29: субвенция | D29: 807 | E29: 07 02 | F29: 02 П 02 С9903 | G29: 244 | H29: =Февраль!H29 -> 0 | I29: =Февраль!I29 -> 0 | J29: =Февраль!BH29 -> 0 | K29: =Февраль!BJ29 -> 0 | L29: =SUM(M29:AI29) -> 0 | AJ29: =SUM(AK29:BG29) -> 0 | BH29: 0 | BI29: =AJ29+Февраль!BI29 -> 0 | BJ29: 0 | BK29: 0 | BM29: 0
A30: 223.04 | B30: водоснабжение | C30: субвенция | D30: 807 | E30: 07 02 | F30: 02 П 02 С9903 | G30: 244 | H30: =Февраль!H30 -> 0 | I30: =Февраль!I30 -> 0 | J30: =Февраль!BH30 -> 0 | K30: =Февраль!BJ30 -> 0 | L30: =SUM(M30:AI30) -> 0 | AJ30: =SUM(AK30:BG30) -> 0 | BH30: 0 | BI30: =AJ30+Февраль!BI30 -> 0 | BJ30: 0 | BK30: 0 | BM30: 0
A31: 224 | B31: аренда | C31: субвенция | D31: 807 | E31: 07 02 | F31: 02 П 02 С9903 | G31: 244 | H31: =Февраль!H31 -> 0 | I31: =Февраль!I31 -> 0 | J31: =Февраль!BH31 -> 0 | K31: =Февраль!BJ31 -> 0 | L31: =SUM(M31:AI31) -> 0 | AJ31: =SUM(AK31:BG31) -> 0 | BH31: 0 | BI31: =AJ31+Февраль!BI31 -> 0 | BJ31: 0 | BK31: 0 | BM31: 0
A32: 225 | B32: Всего содер. Имущ. | C32: субвенция | D32: 807 | E32: 07 02 | F32: 02 П 02 С9903 | G32: 244 | H32: =Февраль!H32 -> 112600 | I32: =Февраль!I32 -> 0 | J32: =Февраль!BH32 -> 0 | K32: =Февраль!BJ32 -> 0 | L32: =SUM(L33:L35) -> 0 | M32: 0 | N32: 0 | O32: 0 | P32: 0 | Q32: 0 | R32: 0 | S32: 0 | T32: 0 | U32: 0 | V32: 0 | W32: 0 | X32: 0 | Y32: 0 | Z32: 0 | AA32: 0 | AB32: 0 | AC32: 0 | AD32: 0 | AE32: 0 | AF32: 0 | AG32: 0 | AH32: 0 | AI32: 0 | AJ32: 0 | AK32: 0 | AL32: 0 | AM32: 0 | AN32: 0 | AO32: 0 | AP32: 0 | AQ32: 0 | AR32: 0 | AS32: 0 | AT32: 0 | AU32: 0 | AV32: 0 | AW32: 0 | AX32: 0 | AY32: 0 | AZ32: 0 | BA32: 0 | BB32: 0 | BC32: 0 | BD32: 0 | BE32: 0 | BF32: 0 | BG32: 0 | BH32: 0 | BI32: =AJ32+Февраль!BI32 -> 0 | BJ32: 0 | BK32: 112600 | BL32: 0 | BM32: 0
A33: 225.01 | B33: ремонт зд. и сооруж. | C33: субвенция | D33: 807 | E33: 07 02 | F33: 02 П 02 С9903 | G33: 244 | H33: =Февраль!H33 -> 112600 | I33: =Февраль!I33 -> 0 | J33: =Февраль!BH33 -> 0 | K33: =Февраль!BJ33 -> 0 | L33: =SUM(M33:AI33) -> 0 | AJ33: =SUM(AK33:BG33) -> 0 | BH33: 0 | BI33: =AJ33+Февраль!BI33 -> 0 | BJ33: 0 | BK33: 112600 | BM33: 0
A34: 225.02 | B34: вывоз мусора | C34: субвенция | D34: 807 | E34: 07 02 | F34: 02 П 02 С9903 | G34: 244 | H34: =Февраль!H34 -> 0 | I34: =Февраль!I34 -> 0 | J34: =Февраль!BH34 -> 0 | K34: =Февраль!BJ34 -> 0 | L34: =SUM(M34:AI34) -> 0 | AJ34: =SUM(AK34:BG34) -> 0 | BH34: 0 | BI34: =AJ34+Февраль!BI34 -> 0 | BJ34: 0 | BK34: 0 | BM34: 0
A35: 225.03 | B35: прочие ком. услуги | C35: субвенция | D35: 807 | E35: 07 02 | F35: 02 П 02 С9903 | G35: 244 | H35: =Февраль!H35 -> 0 | I35: =Февраль!I35 -> 0 | J35: =Февраль!BH35 -> 0 | K35: =Февраль!BJ35 -> 0 | L35: =SUM(M35:AI35) -> 0 | AJ35: =SUM(AK35:BG35) -> 0 | BH35: 0 | BI35: =AJ35+Февраль!BI35 -> 0 | BJ35: 0 | BK35: 0 | BM35: 0
A36: 226 | B36: Прочие услуги | C36: субвенция | D36: 807 | E36: 07 02 | F36: 02 П 02 С9903 | G36: 244 | H36: =Февраль!H36 -> 462500 | I36: =Февраль!I36 -> 0 | J36: =Февраль!BH36 -> 172971.29 | K36: =Февраль!BJ36 -> 87072 | L36: =SUM(L37:L38) -> 0 | M36: 0 | N36: 0 | O36: 0 | P36: 0 | Q36: 0 | R36: 0 | S36: 0 | T36: 0 | U36: 0 | V36: 0 | W36: 0 | X36: 0 | Y36: 0 | Z36: 0 | AA36: 0 | AB36: 0 | AC36: 0 | AD36: 0 | AE36: 0 | AF36: 0 | AG36: 0 | AH36: 0 | AI36: 0 | AJ36: 87072 | AK36: 0 | AL36: 87072 | AM36: 0 | AN36: 0 | AO36: 0 | AP36: 0 | AQ36: 0 | AR36: 0 | AS36: 0 | AT36: 0 | AU36: 0 | AV36: 0 | AW36: 0 | AX36: 0 | AY36: 0 | AZ36: 0 | BA36: 0 | BB36: 0 | BC36: 0 | BD36: 0 | BE36: 0 | BF36: 0 | BG36: 0 | BH36: 172971.29 | BI36: =AJ36+Февраль!BI36 -> 172971.29 | BJ36: 0 | BK36: 289528.71 | BL36: 0 | BM36: -172971.29
A37: 226.01 | B37: Коман. (проживание) | C37: субвенция | D37: 807 | E37: 07 02 | F37: 02 П 02 С9903 | G37: 244 | H37: =Февраль!H37 -> 462500 | I37: =Февраль!I37 -> 0 | J37: =Февраль!BH37 -> 172971.29 | K37: =Февраль!BJ37 -> 87072 | L37: =SUM(M37:AI37) -> 0 | AJ37: =SUM(AK37:BG37) -> 87072 | AL37: 87072 | BH37: 172971.29 | BI37: =AJ37+Февраль!BI37 -> 172971.29 | BJ37: 0 | BK37: 289528.71 | BM37: -172971.29
A38: 226.02 | B38: проч. услуги | C38: субвенция | D38: 807 | E38: 07 02 | F38: 02 П 02 С9903 | G38: 244 | H38: =Февраль!H38 -> 0 | I38: =Февраль!I38 -> 0 | J38: =Февраль!BH38 -> 0 | K38: =Февраль!BJ38 -> 0 | L38: 0 | AJ38: 0 | BH38: 0 | BI38: =AJ38+Февраль!BI38 -> 0 | BJ38: 0 | BK38: 0 | BM38: 0
A39: 241 | B39: Содержание гостиницы | C39: субвенция | D39: 807 | E39: 07 02 | F39: 02 П 02 С9903 | G39: 244 | H39: =Февраль!H39 -> 0 | I39: =Февраль!I39 -> 0 | J39: =Февраль!BH39 -> 0 | K39: =Февраль!BJ39 -> 0 | L39: 0 | AJ39: 0 | BH39: 0 | BI39: =AJ39+Февраль!BI39 -> 0 | BJ39: 0 | BK39: 0 | BM39: 0
A40: 252 | B40: Переч. наднац. орг. | C40: субвенция | D40: 807 | E40: 07 02 | F40: 02 П 02 С9903 | G40: 244 | H40: =Февраль!H40 -> 0 | I40: =Февраль!I40 -> 0 | J40: =Февраль!BH40 -> 0 | K40: =Февраль!BJ40 -> 0 | L40: 0 | AJ40: 0 | BH40: 0 | BI40: =AJ40+Февраль!BI40 -> 0 | BJ40: 0 | BK40: 0 | BM40: 0
A41: 253 | B41: перечисл. междунар. орган | C41: субвенция | D41: 807 | E41: 07 02 | F41: 02 П 02 С9903 | G41: 244 | H41: =Февраль!H41 -> 0 | I41: =Февраль!I41 -> 0 | J41: =Февраль!BH41 -> 0 | K41: =Февраль!BJ41 -> 0 | L41: 0 | AJ41: 0 | BH41: 0 | BI41: =AJ41+Февраль!BI41 -> 0 | BJ41: 0 | BK41: 0 | BM41: 0
A42: 261 | B42: Пособие по соц. Страх. населения | C42: субвенция | D42: 807 | E42: 07 02 | F42: 02 П 02 С9903 | G42: 244 | H42: =Февраль!H42 -> 0 | I42: =Февраль!I42 -> 0 | J42: =Февраль!BH42 -> 0 | K42: =Февраль!BJ42 -> 0 | L42: 0 | AJ42: 0 | BH42: 0 | BI42: =AJ42+Февраль!BI42 -> 0 | BJ42: 0 | BK42: 0 | BM42: 0
A43: 262 | B43: Пособие по соц. пом. населению | C43: =C42 -> субвенция | D43: 807 | E43: 07 02 | F43: 02 П 02 С9903 | G43: 244 | H43: =Февраль!H43 -> 0 | I43: =Февраль!I43 -> 0 | J43: =Февраль!BH43 -> 0 | K43: =Февраль!BJ43 -> 0 | L43: =SUM(L44:L46) -> 0 | M43: 0 | N43: 0 | O43: 0 | P43: 0 | Q43: 0 | R43: 0 | S43: 0 | T43: 0 | U43: 0 | V43: 0 | W43: 0 | X43: 0 | Y43: 0 | Z43: 0 | AA43: 0 | AB43: 0 | AC43: 0 | AD43: 0 | AE43: 0 | AF43: 0 | AG43: 0 | AH43: 0 | AI43: 0 | AJ43: 0 | AK43: 0 | AL43: 0 | AM43: 0 | AN43: 0 | AO43: 0 | AP43: 0 | AQ43: 0 | AR43: 0 | AS43: 0 | AT43: 0 | AU43: 0 | AV43: 0 | AW43: 0 | AX43: 0 | AY43: 0 | AZ43: 0 | BA43: 0 | BB43: 0 | BC43: 0 | BD43: 0 | BE43: 0 | BF43: 0 | BG43: 0 | BH43: 0 | BI43: =AJ43+Февраль!BI43 -> 0 | BJ43: 0 | BK43: 0 | BL43: =SUM(BL44:BL46) -> 0 | BM43: 0
A44: 262.01 | B44: льгота по к/услугам | C44: субвенция | D44: 807 | E44: 07 02 | F44: 02 П 02 С9903 | G44: 244 | H44: =Февраль!H44 -> 0 | I44: =Февраль!I44 -> 0 | J44: =Февраль!BH44 -> 0 | K44: =Февраль!BJ44 -> 0 | L44: =SUM(M44:AI44) -> 0 | AJ44: =SUM(AK44:BG44) -> 0 | BH44: 0 | BI44: =AJ44+Февраль!BI44 -> 0 | BJ44: 0 | BK44: 0 | BM44: 0
A45: 262.02 | B45: прочее | C45: субвенция | D45: 807 | E45: 07 02 | F45: 02 П 02 С9903 | G45: 244 | H45: =Февраль!H45 -> 0 | I45: =Февраль!I45 -> 0 | J45: =Февраль!BH45 -> 0 | K45: =Февраль!BJ45 -> 0 | L45: =SUM(M45:AI45) -> 0 | AJ45: =SUM(AK45:BG45) -> 0 | BH45: 0 | BI45: =AJ45+Февраль!BI45 -> 0 | BJ45: 0 | BK45: 0 | BM45: 0
A46: 262.03 | B46: прочее | C46: субвенция | D46: 807 | E46: 07 02 | F46: 02 П 02 С9903 | G46: 244 | H46: =Февраль!H46 -> 0 | I46: =Февраль!I46 -> 0 | J46: =Февраль!BH46 -> 0 | K46: =Февраль!BJ46 -> 0 | L46: =SUM(M46:AI46) -> 0 | AJ46: =SUM(AK46:BG46) -> 0 | BH46: 0 | BI46: =AJ46+Февраль!BI46 -> 0 | BJ46: 0 | BK46: 0 | BM46: 0
A47: 263 | B47: Соц. пособ. Выпл. орган. сектора гос. управ. | C47: субвенция | D47: 807 | E47: 07 02 | F47: 02 П 02 С9903 | G47: 244 | H47: =Февраль!H47 -> 0 | I47: =Февраль!I47 -> 0 | J47: =Февраль!BH47 -> 0 | K47: =Февраль!BJ47 -> 0 | L47: =SUM(M47:AI47) -> 0 | AJ47: =SUM(AK47:BG47) -> 0 | BH47: 0 | BI47: =AJ47+Февраль!BI47 -> 0 | BJ47: 0 | BK47: 0 | BM47: 0
A48: 290 | B48: Прочие расходы | C48: субвенция | D48: 807 | E48: 07 02 | F48: 02 П 02 С9903 | G48: 244 | H48: =Февраль!H48 -> 26900 | I48: =Февраль!I48 -> 0 | J48: =Февраль!BH48 -> 0 | K48: =Февраль!BJ48 -> 0 | L48: =SUM(L49:L50) -> 0 | M48: 0 | N48: 0 | O48: 0 | P48: 0 | Q48: 0 | R48: 0 | S48: 0 | T48: 0 | U48: 0 | V48: 0 | W48: 0 | X48: 0 | Y48: 0 | Z48: 0 | AA48: 0 | AB48: 0 | AC48: 0 | AD48: 0 | AE48: 0 | AF48: 0 | AG48: 0 | AH48: 0 | AI48: 0 | AJ48: 0 | AK48: 0 | AL48: 0 | AM48: 0 | AN48: 0 | AO48: 0 | AP48: 0 | AQ48: 0 | AR48: 0 | AS48: 0 | AT48: 0 | AU48: 0 | AV48: 0 | AW48: 0 | AX48: 0 | AY48: 0 | AZ48: 0 | BA48: 0 | BB48: 0 | BC48: 0 | BD48: 0 | BE48: 0 | BF48: 0 | BG48: 0 | BH48: 0 | BI48: =AJ48+Февраль!BI48 -> 0 | BJ48: 0 | BK48: 26900 | BL48: 0 | BM48: 0
A49: 290.03 | B49: Налог на имущество | C49: субвенция | D49: 807 | E49: 07 02 | F49: 02 П 02 С9903 | G49: 244 | H49: =Февраль!H49 -> 0 | I49: =Февраль!I49 -> 0 | J49: =Февраль!BH49 -> 0 | K49: =Февраль!BJ49 -> 0 | L49: =SUM(M49:AI49) -> 0 | AJ49: =SUM(AK49:BG49) -> 0 | BH49: 0 | BI49: =AJ49+Февраль!BI49 -> 0 | BJ49: 0 | BK49: 0 | BM49: 0
A50: 290.02 | B50: проч. расходы | C50: субвенция | D50: 807 | E50: 07 02 | F50: 02 П 02 С9903 | G50: 244 | H50: =Февраль!H50 -> 26900 | I50: =Февраль!I50 -> 0 | J50: =Февраль!BH50 -> 0 | K50: =Февраль!BJ50 -> 0 | L50: =SUM(M50:AI50) -> 0 | AJ50: =SUM(AK50:BG50) -> 0 | BH50: 0 | BI50: =AJ50+Февраль!BI50 -> 0 | BJ50: 0 | BK50: 26900 | BM50: 0
A51: 310 | B51: Увеличение ст-ти ОС | C51: субвенция | D51: 807 | E51: 07 02 | F51: 02 П 02 С9903 | G51: 244 | H51: =Февраль!H51 -> 208000 | I51: =Февраль!I51 -> 0 | J51: =Февраль!BH51 -> 57469 | K51: =Февраль!BJ51 -> 0 | L51: =SUM(L52:L55) -> 50845 | M51: 50845 | N51: 0 | O51: 0 | P51: 0 | Q51: 0 | R51: 0 | S51: 0 | T51: 0 | U51: 0 | V51: 0 | W51: 0 | X51: 0 | Y51: 0 | Z51: 0 | AA51: 0 | AB51: 0 | AC51: 0 | AD51: 0 | AE51: 0 | AF51: 0 | AG51: 0 | AH51: 0 | AI51: 0 | AJ51: 50845 | AK51: 0 | AL51: 0 | AM51: 0 | AN51: 50845 | AO51: 0 | AP51: 0 | AQ51: 0 | AR51: 0 | AS51: 0 | AT51: 0 | AU51: 0 | AV51: 0 | AW51: 0 | AX51: 0 | AY51: 0 | AZ51: 0 | BA51: 0 | BB51: 0 | BC51: 0 | BD51: 0 | BE51: 0 | BF51: 0 | BG51: 0 | BH51: 108314 | BI51: =AJ51+Февраль!BI51 -> 108314 | BJ51: 0 | BK51: 99686 | BL51: 0 | BM51: -108314
A52: 310.01 | B52: мягкий инвентарь | C52: субвенция | D52: 807 | E52: 07 02 | F52: 02 П 02 С9903 | G52: 244 | H52: =Февраль!H52 -> 208000 | I52: =Февраль!I52 -> 0 | J52: =Февраль!BH52 -> 57469 | K52: =Февраль!BJ52 -> 0 | L52: =SUM(M52:AI52) -> 50845 | M52: 50845 | AJ52: =SUM(AK52:BG52) -> 50845 | AN52: 50845 | BH52: 108314 | BI52: =AJ52+Февраль!BI52 -> 108314 | BJ52: 0 | BK52: 99686 | BM52: -108314
A53: 310.02 | B53: расх. матер больше года | C53: субвенция | D53: 807 | E53: 07 02 | F53: 02 П 02 С9903 | G53: 244 | H53: =Февраль!H53 -> 0 | I53: =Февраль!I53 -> 0 | J53: =Февраль!BH53 -> 0 | K53: =Февраль!BJ53 -> 0 | L53: =SUM(M53:AI53) -> 0 | AJ53: =SUM(AK53:BG53) -> 0 | BH53: 0 | BI53: =AJ53+Февраль!BI53 -> 0 | BJ53: 0 | BK53: 0 | BM53: 0
A54: 310.03 | B54: приобретение предм. дл. польз. | C54: субвенция | D54: 807 | E54: 07 02 | F54: 02 П 02 С9903 | G54: 244 | H54: =Февраль!H54 -> 0 | I54: =Февраль!I54 -> 0 | J54: =Февраль!BH54 -> 0 | K54: =Февраль!BJ54 -> 0 | L54: =SUM(M54:AI54) -> 0 | AJ54: =SUM(AK54:BG54) -> 0 | BH54: 0 | BI54: =AJ54+Февраль!BI54 -> 0 | BJ54: 0 | BK54: 0 | BM54: 0
A55: 310.04 | B55: капитальное стр-во | C55: субвенция | D55: 807 | E55: 07 02 | F55: 02 П 02 С9903 | G55: 244 | H55: =Февраль!H55 -> 0 | I55: =Февраль!I55 -> 0 | J55: =Февраль!BH55 -> 0 | K55: =Февраль!BJ55 -> 0 | L55: =SUM(M55:AI55) -> 0 | AJ55: =SUM(AK55:BG55) -> 0 | BH55: 0 | BI55: =AJ55+Февраль!BI55 -> 0 | BJ55: 0 | BK55: 0 | BM55: 0
A56: 320 | B56: Увеличение ст-ти немат. активов | C56: субвенция | D56: 807 | E56: 07 02 | F56: 02 П 02 С9903 | G56: 244 | H56: =Февраль!H56 -> 0 | I56: =Февраль!I56 -> 0 | J56: =Февраль!BH56 -> 0 | K56: =Февраль!BJ56 -> 0 | L56: =SUM(M56:AI56) -> 0 | AJ56: =SUM(AK56:BG56) -> 0 | BH56: 0 | BI56: =AJ56+Февраль!BI56 -> 0 | BJ56: 0 | BK56: 0 | BM56: 0
A57: 340 | B57: Увеличение мат. запасов | C57: субвенция | D57: 807 | E57: 07 02 | F57: 02 П 02 С9903 | G57: 244 | H57: =Февраль!H57 -> 6993100 | I57: =Февраль!I57 -> 0 | J57: =Февраль!BH57 -> 1212920.64 | K57: =Февраль!BJ57 -> 182451.84 | L57: =SUM(L58:L62) -> 939943.3 | M57: 906673.3 | N57: 33270 | O57: 0 | P57: 0 | Q57: 0 | R57: 0 | S57: 0 | T57: 0 | U57: 0 | V57: 0 | W57: 0 | X57: 0 | Y57: 0 | Z57: 0 | AA57: 0 | AB57: 0 | AC57: 0 | AD57: 0 | AE57: 0 | AF57: 0 | AG57: 0 | AH57: 0 | AI57: 0 | AJ57: 897395.14 | AK57: 0 | AL57: 182451.84 | AM57: 0 | AN57: 217520 | AO57: 722423.3 | AP57: 0 | AQ57: 0 | AR57: 0 | AS57: -225000 | AT57: 0 | AU57: 0 | AV57: 0 | AW57: 0 | AX57: 0 | AY57: 0 | AZ57: 0 | BA57: 0 | BB57: 0 | BC57: 0 | BD57: 0 | BE57: 0 | BF57: 0 | BG57: 0 | BH57: 2152863.94 | BI57: =AJ57+Февраль!BI57 -> 1927863.94 | BJ57: 225000 | BK57: 4840236.06 | BL57: 0 | BM57: -2152863.94
A58: 341 | B58: медикаменды | C58: субвенция | D58: 807 | E58: 07 02 | F58: 02 П 02 С9903 | G58: 244 | H58: =Февраль!H58 -> 6000 | I58: =Февраль!I58 -> 0 | J58: =Февраль!BH58 -> 0 | K58: =Февраль!BJ58 -> 0 | L58: =SUM(M58:AI58) -> 0 | AJ58: =SUM(AK58:BG58) -> 0 | BH58: 0 | BI58: =AJ58+Февраль!BI58 -> 0 | BJ58: 0 | BK58: 6000 | BM58: 0
A59: 342 | B59: продукты питания | C59: =C58 -> субвенция | D59: 807 | E59: 07 02 | F59: 02 П 02 С9903 | G59: 244 | H59: =Февраль!H59 -> 5808600 | I59: =Февраль!I59 -> 0 | J59: =Февраль!BH59 -> 1103278.7 | K59: =Февраль!BJ59 -> 179028.9 | L59: =SUM(M59:AI59) -> 711023.3 | M59: 689153.3 | N59: 21870 | AJ59: =SUM(AK59:BG59) -> 665052.2 | AL59: 179028.9 | AO59: 711023.3 | AS59: -225000 | BH59: 1814302 | BI59: =AJ59+Февраль!BI59 -> 1589302 | BJ59: 225000 | BK59: 3994298 | BM59: -1814302
A60: 345 | B60: ГСМ | C60: субвенция | D60: 807 | E60: 07 02 | F60: 02 П 02 С9903 | G60: 244 | H60: =Февраль!H60 -> 0 | I60: =Февраль!I60 -> 0 | J60: =Февраль!BH60 -> 0 | K60: =Февраль!BJ60 -> 0 | L60: =SUM(M60:AI60) -> 0 | AJ60: =SUM(AK60:BG60) -> 0 | BH60: 0 | BI60: =AJ60+Февраль!BI60 -> 0 | BJ60: 0 | BK60: 0 | BM60: 0
A61: 346 | B61: Оплата котел. топлива | C61: субвенция | D61: 807 | E61: 07 02 | F61: 02 П 02 С9903 | G61: 244 | H61: =Февраль!H61 -> 1175000 | I61: =Февраль!I61 -> 0 | J61: =Февраль!BH61 -> 106219 | K61: =Февраль!BJ61 -> 0 | L61: =SUM(M61:AI61) -> 228920 | M61: 217520 | N61: 11400 | AJ61: =SUM(AK61:BG61) -> 228920 | AN61: 217520 | AO61: 11400 | BH61: 335139 | BI61: =AJ61+Февраль!BI61 -> 335139 | BJ61: 0 | BK61: 839861 | BM61: -335139
A62: 349 | B62: Прочее | C62: субвенция | D62: 807 | E62: 07 02 | F62: 02 П 02 С9903 | G62: 244 | H62: =Февраль!H62 -> 3500 | I62: =Февраль!I62 -> 0 | J62: =Февраль!BH62 -> 3422.94 | K62: =Февраль!BJ62 -> 3422.94 | L62: =SUM(M62:AI62) -> 0 | AJ62: =SUM(AK62:BG62) -> 3422.94 | AL62: 3422.94 | BH62: 3422.94 | BI62: =AJ62+Февраль!BI62 -> 3422.94 | BJ62: 0 | BK62: 77.06 | BM62: -3422.94
A63: ИТОГО | B63: Итого расходов | C63: субвенция | D63: 807 | E63: 07 02 | F63: 02 П 02 С9903 | G63: 244 | H63: =Февраль!H63 -> 65337000 | I63: =Февраль!I63 -> 0 | J63: =Февраль!BH63 -> 12705599.29 | K63: =Февраль!BJ63 -> 6017812.98 | L63: =L9+L12+L19+L22+L23+L26+L31+L32+L36+L39+L40+L41+L42+L43+L47+L48+L51+L56+L57 -> 7320006.28 | M63: 2070314.68 | N63: 52491.6 | O63: 0 | P63: 5197200 | Q63: 0 | R63: 0 | S63: 0 | T63: 0 | U63: 0 | V63: 0 | W63: 0 | X63: 0 | Y63: 0 | Z63: 0 | AA63: 0 | AB63: 0 | AC63: 0 | AD63: 0 | AE63: 0 | AF63: 0 | AG63: 0 | AH63: 0 | AI63: 0 | AJ63: 6493113.48 | AK63: 4346299.58 | AL63: 288745.44 | AM63: 0 | AN63: 268365 | AO63: 722423.3 | AP63: 1092280.16 | AQ63: 0 | AR63: 0 | AS63: -225000 | AT63: 0 | AU63: 0 | AV63: 0 | AW63: 0 | AX63: 0 | AY63: 0 | AZ63: 0 | BA63: 0 | BB63: 0 | BC63: 0 | BD63: 0 | BE63: 0 | BF63: 0 | BG63: 0 | BH63: 20025605.57 | BI63: =AJ63+Февраль!BI63 -> 13180899.79 | BJ63: 6844705.78 | BK63: 45311394.43 | BL63: 0 | BM63: -20025605.57
C64: =Февраль!C64 -> местный | D64: =Февраль!D64 -> 807 | E64: =Февраль!E64 -> 07 02 | F64: =Февраль!F64 -> 02 П 02 М9903 | G64: =Февраль!G64 -> 244 | BN64: =BN8+1 -> 2
A65: 211 | B65: оплата труда | C65: =C64 -> местный | D65: =D64 -> 807 | E65: 07 02 | F65: 02 П 02 М9903 | G65: 244 | H65: =Февраль!H65 -> 0 | I65: =Февраль!I65 -> 0 | J65: =Февраль!BH65 -> 0 | K65: =Февраль!BJ65 -> 0 | L65: =SUM(L66:L67) -> 0 | M65: 0 | N65: 0 | O65: 0 | P65: 0 | Q65: 0 | R65: 0 | S65: 0 | T65: 0 | U65: 0 | V65: 0 | W65: 0 | X65: 0 | Y65: 0 | Z65: 0 | AA65: 0 | AB65: 0 | AC65: 0 | AD65: 0 | AE65: 0 | AF65: 0 | AG65: 0 | AH65: 0 | AI65: 0 | AJ65: 0 | AK65: 0 | AL65: 0 | AM65: 0 | AN65: 0 | AO65: 0 | AP65: 0 | AQ65: 0 | AR65: 0 | AS65: 0 | AT65: 0 | AU65: 0 | AV65: 0 | AW65: 0 | AX65: 0 | AY65: 0 | AZ65: 0 | BA65: 0 | BB65: 0 | BC65: 0 | BD65: 0 | BE65: 0 | BF65: 0 | BG65: 0 | BH65: =J65+L65 -> 0 | BI65: =AJ65+Февраль!BI65 -> 0 | BJ65: =K65+L65-AJ65 -> 0 | BK65: =H65-BH65 -> 0 | BL65: =SUM(BL66:BL67) -> 0 | BM65: =I65-BH65 -> 0
A66: 211.01 | B66: Основная з/пл | C66: местный | D66: 807 | E66: 07 02 | F66: 02 П 02 М9903 | G66: 244 | H66: =Февраль!H66 -> 0 | I66: =Февраль!I66 -> 0 | J66: =Февраль!BH66 -> 0 | K66: =Февраль!BJ66 -> 0 | L66: =SUM(M66:AI66) -> 0 | AJ66: =SUM(AK66:BG66) -> 0 | BH66: =J66+L66 -> 0 | BI66: =AJ66+Февраль!BI66 -> 0 | BJ66: 0 | BK66: 0 | BM66: =I66-BH66 -> 0
A67: 211.02 | B67: Кл. руководство | C67: местный | D67: 807 | E67: 07 02 | F67: 02 П 02 М9903 | G67: 244 | H67: =Февраль!H67 -> 0 | I67: =Февраль!I67 -> 0 | J67: =Февраль!BH67 -> 0 | K67: =Февраль!BJ67 -> 0 | L67: =SUM(M67:AI67) -> 0 | AJ67: =SUM(AK67:BG67) -> 0 | BH67: 0 | BI67: =AJ67+Февраль!BI67 -> 0 | BJ67: 0 | BK67: 0 | BM67: 0
A68: 212 | B68: Всего проч. | C68: местный | D68: 807 | E68: 07 02 | F68: 02 П 02 М9903 | G68: 244 | H68: =Февраль!H68 -> 0 | I68: =Февраль!I68 -> 0 | J68: =Февраль!BH68 -> 0 | K68: =Февраль!BJ68 -> 0 | L68: =SUM(L69:L74) -> 0 | M68: 0 | N68: 0 | O68: 0 | P68: 0 | Q68: 0 | R68: 0 | S68: 0 | T68: 0 | U68: 0 | V68: 0 | W68: 0 | X68: 0 | Y68: 0 | Z68: 0 | AA68: 0 | AB68: 0 | AC68: 0 | AD68: 0 | AE68: 0 | AF68: 0 | AG68: 0 | AH68: 0 | AI68: 0 | AJ68: 0 | AK68: 0 | AL68: 0 | AM68: 0 | AN68: 0 | AO68: 0 | AP68: 0 | AQ68: 0 | AR68: 0 | AS68: 0 | AT68: 0 | AU68: 0 | AV68: 0 | AW68: 0 | AX68: 0 | AY68: 0 | AZ68: 0 | BA68: 0 | BB68: 0 | BC68: 0 | BD68: 0 | BE68: 0 | BF68: 0 | BG68: 0 | BH68: 0 | BI68: =AJ68+Февраль!BI68 -> 0 | BJ68: 0 | BK68: 0 | BL68: =SUM(BL69:BL74) -> 0 | BM68: 0
A69: 212.01 | B69: суточные | C69: местный | D69: 807 | E69: 07 02 | F69: 02 П 02 М9903 | G69: 244 | H69: =Февраль!H69 -> 0 | I69: =Февраль!I69 -> 0 | J69: =Февраль!BH69 -> 0 | K69: =Февраль!BJ69 -> 0 | L69: =SUM(M69:AI69) -> 0 | AJ69: =SUM(AK69:BG69) -> 0 | BH69: 0 | BI69: =AJ69+Февраль!BI69 -> 0 | BJ69: 0 | BK69: 0 | BM69: 0
A70: 212.02 | B70: книги | C70: местный | D70: 807 | E70: 07 02 | F70: 02 П 02 М9903 | G70: 244 | H70: =Февраль!H70 -> 0 | I70: =Февраль!I70 -> 0 | J70: =Февраль!BH70 -> 0 | K70: =Февраль!BJ70 -> 0 | L70: 0 | AJ70: 0 | BH70: 0 | BI70: =AJ70+Февраль!BI70 -> 0 | BJ70: 0 | BK70: 0 | BM70: 0
A71: 212.03 | B71: СКЛ | C71: местный | D71: 807 | E71: 07 02 | F71: 02 П 02 М9903 | G71: 244 | H71: =Февраль!H71 -> 0 | I71: =Февраль!I71 -> 0 | J71: =Февраль!BH71 -> 0 | K71: =Февраль!BJ71 -> 0 | L71: 0 | AJ71: 0 | BH71: 0 | BI71: =AJ71+Февраль!BI71 -> 0 | BJ71: 0 | BK71: 0 | BM71: 0
A72: 212.04 | B72: проезд в отпуск | C72: местный | D72: 807 | E72: 07 02 | F72: 02 П 02 М9903 | G72: 244 | H72: =Февраль!H72 -> 0 | I72: =Февраль!I72 -> 0 | J72: =Февраль!BH72 -> 0 | K72: =Февраль!BJ72 -> 0 | L72: 0 | AJ72: 0 | BH72: 0 | BI72: =AJ72+Февраль!BI72 -> 0 | BJ72: 0 | BK72: 0 | BM72: 0
A73: 212.05 | B73: соц.помощь | C73: местный | D73: 807 | E73: 07 02 | F73: 02 П 02 М9903 | G73: 244 | H73: =Февраль!H73 -> 0 | I73: =Февраль!I73 -> 0 | J73: =Февраль!BH73 -> 0 | K73: =Февраль!BJ73 -> 0 | L73: 0 | AJ73: 0 | BH73: 0 | BI73: =AJ73+Февраль!BI73 -> 0 | BJ73: 0 | BK73: 0 | BM73: 0
A74: 212.06 | B74: СКЛ | C74: местный | D74: 807 | E74: 07 02 | F74: 02 П 02 М9903 | G74: 244 | H74: =Февраль!H74 -> 0 | I74: =Февраль!I74 -> 0 | J74: =Февраль!BH74 -> 0 | K74: =Февраль!BJ74 -> 0 | L74: 0 | AJ74: 0 | BH74: 0 | BI74: =AJ74+Февраль!BI74 -> 0 | BJ74: 0 | BK74: 0 | BM74: 0
A75: 213 | B75: ЕСН | C75: местный | D75: 807 | E75: 07 02 | F75: 02 П 02 М9903 | G75: 244 | H75: =Февраль!H75 -> 0 | I75: =Февраль!I75 -> 0 | J75: =Февраль!BH75 -> 0 | K75: =Февраль!BJ75 -> 0 | L75: =SUM(L76:L77) -> 0 | M75: 0 | N75: 0 | O75: 0 | P75: 0 | Q75: 0 | R75: 0 | S75: 0 | T75: 0 | U75: 0 | V75: 0 | W75: 0 | X75: 0 | Y75: 0 | Z75: 0 | AA75: 0 | AB75: 0 | AC75: 0 | AD75: 0 | AE75: 0 | AF75: 0 | AG75: 0 | AH75: 0 | AI75: 0 | AJ75: 0 | AK75: 0 | AL75: 0 | AM75: 0 | AN75: 0 | AO75: 0 | AP75: 0 | AQ75: 0 | AR75: 0 | AS75: 0 | AT75: 0 | AU75: 0 | AV75: 0 | AW75: 0 | AX75: 0 | AY75: 0 | AZ75: 0 | BA75: 0 | BB75: 0 | BC75: 0 | BD75: 0 | BE75: 0 | BF75: 0 | BG75: 0 | BH75: 0 | BI75: =AJ75+Февраль!BI75 -> 0 | BJ75: 0 | BK75: 0 | BL75: =SUM(BL76:BL77) -> 0 | BM75: 0
A76: 213.01 | B76: ЕСН основ. | C76: местный | D76: 807 | E76: 07 02 | F76: 02 П 02 М9903 | G76: 244 | H76: =Февраль!H76 -> 0 | I76: =Февраль!I76 -> 0 | J76: =Февраль!BH76 -> 0 | K76: =Февраль!BJ76 -> 0 | L76: =SUM(M76:AI76) -> 0 | AJ76: =SUM(AK76:BG76) -> 0 | BH76: 0 | BI76: =AJ76+Февраль!BI76 -> 0 | BJ76: 0 | BK76: 0 | BM76: 0
A77: 213.02 | B77: ЕСН кл. рук. | C77: местный | D77: 807 | E77: 07 02 | F77: 02 П 02 М9903 | G77: 244 | H77: =Февраль!H77 -> 0 | I77: =Февраль!I77 -> 0 | J77: =Февраль!BH77 -> 0 | K77: =Февраль!BJ77 -> 0 | L77: =SUM(M77:AI77) -> 0 | AJ77: =SUM(AK77:BG77) -> 0 | BH77: 0 | BI77: =AJ77+Февраль!BI77 -> 0 | BJ77: 0 | BK77: 0 | BM77: 0
A78: 221 | B78: связь | C78: местный | D78: 807 | E78: 07 02 | F78: 02 П 02 М9903 | G78: 244 | H78: =Февраль!H78 -> 0 | I78: =Февраль!I78 -> 0 | J78: =Февраль!BH78 -> 0 | K78: =Февраль!BJ78 -> 0 | L78: =SUM(M78:AI78) -> 0 | AJ78: =SUM(AK78:BG78) -> 0 | BH78: 0 | BI78: =AJ78+Февраль!BI78 -> 0 | BJ78: 0 | BK78: 0 | BM78: 0
A79: 222 | B79: Всего тран. | C79: местный | D79: 807 | E79: 07 02 | F79: 02 П 02 М9903 | G79: 244 | H79: =Февраль!H79 -> 0 | I79: =Февраль!I79 -> 0 | J79: =Февраль!BH79 -> 0 | K79: =Февраль!BJ79 -> 0 | L79: =SUM(L80:L81) -> 0 | M79: 0 | N79: 0 | O79: 0 | P79: 0 | Q79: 0 | R79: 0 | S79: 0 | T79: 0 | U79: 0 | V79: 0 | W79: 0 | X79: 0 | Y79: 0 | Z79: 0 | AA79: 0 | AB79: 0 | AC79: 0 | AD79: 0 | AE79: 0 | AF79: 0 | AG79: 0 | AH79: 0 | AI79: 0 | AJ79: 0 | AK79: 0 | AL79: 0 | AM79: 0 | AN79: 0 | AO79: 0 | AP79: 0 | AQ79: 0 | AR79: 0 | AS79: 0 | AT79: 0 | AU79: 0 | AV79: 0 | AW79: 0 | AX79: 0 | AY79: 0 | AZ79: 0 | BA79: 0 | BB79: 0 | BC79: 0 | BD79: 0 | BE79: 0 | BF79: 0 | BG79: 0 | BH79: 0 | BI79: =AJ79+Февраль!BI79 -> 0 | BJ79: 0 | BK79: 0 | BL79: =SUM(BL80:BL81) -> 0 | BM79: 0
A80: 222.01 | B80: проезд команд. | C80: местный | D80: 807 | E80: 07 02 | F80: 02 П 02 М9903 | G80: 244 | H80: =Февраль!H80 -> 0 | I80: =Февраль!I80 -> 0 | J80: =Февраль!BH80 -> 0 | K80: =Февраль!BJ80 -> 0 | L80: =SUM(M80:AI80) -> 0 | AJ80: =SUM(AK80:BG80) -> 0 | BH80: 0 | BI80: =AJ80+Февраль!BI80 -> 0 | BJ80: 0 | BK80: 0 | BM80: 0
A81: 222.02 | B81: транспортные усл | C81: местный | D81: =D80 -> 807 | E81: 07 02 | F81: 02 П 02 М9903 | G81: 244 | H81: =Февраль!H81 -> 0 | I81: =Февраль!I81 -> 0 | J81: =Февраль!BH81 -> 0 | K81: =Февраль!BJ81 -> 0 | L81: =SUM(M81:AI81) -> 0 | AJ81: =SUM(AK81:BG81) -> 0 | BH81: 0 | BI81: =AJ81+Февраль!BI81 -> 0 | BJ81: 0 | BK81: 0 | BM81: 0
A82: 223 | B82: Всего ком. усл. | C82: местный | D82: 807 | E82: 07 02 | F82: 02 П 02 М9903 | G82: 244 | H82: =Февраль!H82 -> 14937100 | I82: =Февраль!I82 -> 0 | J82: =Февраль!BH82 -> 3600770.68 | K82: =Февраль!BJ82 -> 0 | L82: =SUM(L83:L86) -> 1852934.81 | M82: 1852934.81 | N82: 0 | O82: 0 | P82: 0 | Q82: 0 | R82: 0 | S82: 0 | T82: 0 | U82: 0 | V82: 0 | W82: 0 | X82: 0 | Y82: 0 | Z82: 0 | AA82: 0 | AB82: 0 | AC82: 0 | AD82: 0 | AE82: 0 | AF82: 0 | AG82: 0 | AH82: 0 | AI82: 0 | AJ82: 1852934.81 | AK82: 0 | AL82: 0 | AM82: 1852934.81 | AN82: 0 | AO82: 0 | AP82: 0 | AQ82: 0 | AR82: 0 | AS82: 0 | AT82: 0 | AU82: 0 | AV82: 0 | AW82: 0 | AX82: 0 | AY82: 0 | AZ82: 0 | BA82: 0 | BB82: 0 | BC82: 0 | BD82: 0 | BE82: 0 | BF82: 0 | BG82: 0 | BH82: 5453705.49 | BI82: =AJ82+Февраль!BI82 -> 5453705.49 | BJ82: 0 | BK82: 9483394.51 | BL82: =SUM(BL83:BL86) -> 0 | BM82: -5453705.49
A83: 223.01 | B83: отопление | C83: =C82 -> местный | D83: 807 | E83: 07 02 | F83: 02 П 02 М9903 | G83: 244 | H83: =Февраль!H83 -> 7103300 | I83: =Февраль!I83 -> 0 | J83: =Февраль!BH83 -> 118778.91 | K83: =Февраль!BJ83 -> 0 | L83: =SUM(M83:AI83) -> 123450.72 | M83: 123450.72 | AJ83: =SUM(AK83:BG83) -> 123450.72 | AM83: 123450.72 | BH83: 242229.63 | BI83: =AJ83+Февраль!BI83 -> 242229.63 | BJ83: 0 | BK83: 6861070.37 | BM83: -242229.63
A84: 223.02 | B84: водосн. | C84: местный | D84: 807 | E84: 07 02 | F84: 02 П 02 М9903 | G84: 244 | H84: =Февраль!H84 -> 7833800 | I84: =Февраль!I84 -> 0 | J84: =Февраль!BH84 -> 3481991.77 | K84: =Февраль!BJ84 -> 0 | L84: =SUM(M84:AI84) -> 1729484.09 | M84: 1729484.09 | AJ84: =SUM(AK84:BG84) -> 1729484.09 | AM84: 1729484.09 | BH84: 5211475.86 | BI84: =AJ84+Февраль!BI84 -> 5211475.86 | BJ84: 0 | BK84: 2622324.14 | BM84: -5211475.86
A85: 223.03 | B85: электроэнергия | C85: местный | D85: 807 | E85: 07 02 | F85: 02 П 02 М9903 | G85: 244 | H85: =Февраль!H85 -> 0 | I85: =Февраль!I85 -> 0 | J85: =Февраль!BH85 -> 0 | K85: =Февраль!BJ85 -> 0 | L85: =SUM(M85:AI85) -> 0 | AJ85: =SUM(AK85:BG85) -> 0 | BH85: 0 | BI85: =AJ85+Февраль!BI85 -> 0 | BJ85: 0 | BK85: 0 | BM85: 0
A86: 223.04 | B86: водоснабжение | C86: местный | D86: 807 | E86: 07 02 | F86: 02 П 02 М9903 | G86: 244 | H86: =Февраль!H86 -> 0 | I86: =Февраль!I86 -> 0 | J86: =Февраль!BH86 -> 0 | K86: =Февраль!BJ86 -> 0 | L86: =SUM(M86:AI86) -> 0 | AJ86: =SUM(AK86:BG86) -> 0 | BH86: 0 | BI86: =AJ86+Февраль!BI86 -> 0 | BJ86: 0 | BK86: 0 | BM86: 0
A87: 224 | B87: аренда | C87: местный | D87: 807 | E87: 07 02 | F87: 02 П 02 М9903 | G87: 244 | H87: =Февраль!H87 -> 0 | I87: =Февраль!I87 -> 0 | J87: =Февраль!BH87 -> 0 | K87: =Февраль!BJ87 -> 0 | L87: =SUM(M87:AI87) -> 0 | AJ87: =SUM(AK87:BG87) -> 0 | BH87: 0 | BI87: =AJ87+Февраль!BI87 -> 0 | BJ87: 0 | BK87: 0 | BM87: 0
A88: 225 | B88: Всего содер. Имущ. | C88: местный | D88: 807 | E88: 07 02 | F88: 02 П 02 М9903 | G88: 244 | H88: =Февраль!H88 -> 88000 | I88: =Февраль!I88 -> 0 | J88: =Февраль!BH88 -> 0 | K88: =Февраль!BJ88 -> 0 | L88: =SUM(L89:L91) -> 0 | M88: 0 | N88: 0 | O88: 0 | P88: 0 | Q88: 0 | R88: 0 | S88: 0 | T88: 0 | U88: 0 | V88: 0 | W88: 0 | X88: 0 | Y88: 0 | Z88: 0 | AA88: 0 | AB88: 0 | AC88: 0 | AD88: 0 | AE88: 0 | AF88: 0 | AG88: 0 | AH88: 0 | AI88: 0 | AJ88: 0 | AK88: 0 | AL88: 0 | AM88: 0 | AN88: 0 | AO88: 0 | AP88: 0 | AQ88: 0 | AR88: 0 | AS88: 0 | AT88: 0 | AU88: 0 | AV88: 0 | AW88: 0 | AX88: 0 | AY88: 0 | AZ88: 0 | BA88: 0 | BB88: 0 | BC88: 0 | BD88: 0 | BE88: 0 | BF88: 0 | BG88: 0 | BH88: 0 | BI88: =AJ88+Февраль!BI88 -> 0 | BJ88: 0 | BK88: 88000 | BL88: =SUM(BL89:BL91) -> 0 | BM88: 0
A89: 225.01 | B89: ремонт зд. и сооруж. | C89: местный | D89: 807 | E89: 07 02 | F89: 02 П 02 М9903 | G89: 244 | H89: =Февраль!H89 -> 88000 | I89: =Февраль!I89 -> 0 | J89: =Февраль!BH89 -> 0 | K89: =Февраль!BJ89 -> 0 | L89: =SUM(M89:AI89) -> 0 | AJ89: =SUM(AK89:BG89) -> 0 | BH89: 0 | BI89: =AJ89+Февраль!BI89 -> 0 | BJ89: 0 | BK89: 88000 | BM89: 0
A90: 225.02 | B90: вывоз мусора | C90: местный | D90: 807 | E90: 07 02 | F90: 02 П 02 М9903 | G90: 244 | H90: =Февраль!H90 -> 0 | I90: =Февраль!I90 -> 0 | J90: =Февраль!BH90 -> 0 | K90: =Февраль!BJ90 -> 0 | L90: =SUM(M90:AI90) -> 0 | AJ90: =SUM(AK90:BG90) -> 0 | BH90: 0 | BI90: =AJ90+Февраль!BI90 -> 0 | BJ90: 0 | BK90: 0 | BM90: 0
A91: 225.03 | B91: прочие ком. услуги | C91: местный | D91: 807 | E91: 07 02 | F91: 02 П 02 М9903 | G91: 244 | H91: =Февраль!H91 -> 0 | I91: =Февраль!I91 -> 0 | J91: =Февраль!BH91 -> 0 | K91: =Февраль!BJ91 -> 0 | L91: =SUM(M91:AI91) -> 0 | AJ91: =SUM(AK91:BG91) -> 0 | BH91: 0 | BI91: =AJ91+Февраль!BI91 -> 0 | BJ91: 0 | BK91: 0 | BM91: 0
A92: 226 | B92: Прочие услуги | C92: местный | D92: 807 | E92: 07 02 | F92: 02 П 02 М9903 | G92: 244 | H92: =Февраль!H92 -> 8000 | I92: =Февраль!I92 -> 0 | J92: =Февраль!BH92 -> 0 | K92: =Февраль!BJ92 -> 0 | L92: =SUM(L93:L94) -> 0 | M92: 0 | N92: 0 | O92: 0 | P92: 0 | Q92: 0 | R92: 0 | S92: 0 | T92: 0 | U92: 0 | V92: 0 | W92: 0 | X92: 0 | Y92: 0 | Z92: 0 | AA92: 0 | AB92: 0 | AC92: 0 | AD92: 0 | AE92: 0 | AF92: 0 | AG92: 0 | AH92: 0 | AI92: 0 | AJ92: 0 | AK92: 0 | AL92: 0 | AM92: 0 | AN92: 0 | AO92: 0 | AP92: 0 | AQ92: 0 | AR92: 0 | AS92: 0 | AT92: 0 | AU92: 0 | AV92: 0 | AW92: 0 | AX92: 0 | AY92: 0 | AZ92: 0 | BA92: 0 | BB92: 0 | BC92: 0 | BD92: 0 | BE92: 0 | BF92: 0 | BG92: 0 | BH92: 0 | BI92: =AJ92+Февраль!BI92 -> 0 | BJ92: 0 | BK92: 8000 | BL92: =SUM(BL93:BL94) -> 0 | BM92: 0
A93: 226.01 | B93: Коман. (проживание) | C93: местный | D93: 807 | E93: 07 02 | F93: 02 П 02 М9903 | G93: 244 | H93: =Февраль!H93 -> 8000 | I93: =Февраль!I93 -> 0 | J93: =Февраль!BH93 -> 0 | K93: =Февраль!BJ93 -> 0 | L93: =SUM(M93:AI93) -> 0 | AJ93: =SUM(AK93:BG93) -> 0 | BH93: 0 | BI93: =AJ93+Февраль!BI93 -> 0 | BJ93: 0 | BK93: 8000 | BM93: 0
A94: 226.02 | B94: проч. услуги | C94: местный | D94: 807 | E94: 07 02 | F94: 02 П 02 М9903 | G94: 244 | H94: =Февраль!H94 -> 0 | I94: =Февраль!I94 -> 0 | J94: =Февраль!BH94 -> 0 | K94: =Февраль!BJ94 -> 0 | L94: 0 | AJ94: 0 | BH94: 0 | BI94: =AJ94+Февраль!BI94 -> 0 | BJ94: 0 | BK94: 0 | BM94: 0
A95: 241 | B95: Содержание гостиницы | C95: местный | D95: 807 | E95: 07 02 | F95: 02 П 02 М9903 | G95: 244 | H95: =Февраль!H95 -> 0 | I95: =Февраль!I95 -> 0 | J95: =Февраль!BH95 -> 0 | K95: =Февраль!BJ95 -> 0 | L95: 0 | AJ95: 0 | BH95: 0 | BI95: =AJ95+Февраль!BI95 -> 0 | BJ95: 0 | BK95: 0 | BM95: 0
A96: 252 | B96: Переч. наднац. орг. | C96: местный | D96: 807 | E96: 07 02 | F96: 02 П 02 М9903 | G96: 244 | H96: =Февраль!H96 -> 0 | I96: =Февраль!I96 -> 0 | J96: =Февраль!BH96 -> 0 | K96: =Февраль!BJ96 -> 0 | L96: 0 | AJ96: 0 | BH96: 0 | BI96: =AJ96+Февраль!BI96 -> 0 | BJ96: 0 | BK96: 0 | BM96: 0
A97: 253 | B97: перечисл. междунар. орган | C97: местный | D97: 807 | E97: 07 02 | F97: 02 П 02 М9903 | G97: 244 | H97: =Февраль!H97 -> 0 | I97: =Февраль!I97 -> 0 | J97: =Февраль!BH97 -> 0 | K97: =Февраль!BJ97 -> 0 | L97: 0 | AJ97: 0 | BH97: 0 | BI97: =AJ97+Февраль!BI97 -> 0 | BJ97: 0 | BK97: 0 | BM97: 0
A98: 261 | B98: Пособие по соц. Страх. населения | C98: местный | D98: 807 | E98: 07 02 | F98: 02 П 02 М9903 | G98: 244 | H98: =Февраль!H98 -> 0 | I98: =Февраль!I98 -> 0 | J98: =Февраль!BH98 -> 0 | K98: =Февраль!BJ98 -> 0 | L98: 0 | AJ98: 0 | BH98: 0 | BI98: =AJ98+Февраль!BI98 -> 0 | BJ98: 0 | BK98: 0 | BM98: 0
A99: 262 | B99: Пособие по соц. пом. населению | C99: =C98 -> местный | D99: 807 | E99: 07 02 | F99: 02 П 02 М9903 | G99: 244 | H99: =Февраль!H99 -> 0 | I99: =Февраль!I99 -> 0 | J99: =Февраль!BH99 -> 0 | K99: =Февраль!BJ99 -> 0 | L99: =SUM(L100:L102) -> 0 | M99: 0 | N99: 0 | O99: 0 | P99: 0 | Q99: 0 | R99: 0 | S99: 0 | T99: 0 | U99: 0 | V99: 0 | W99: 0 | X99: 0 | Y99: 0 | Z99: 0 | AA99: 0 | AB99: 0 | AC99: 0 | AD99: 0 | AE99: 0 | AF99: 0 | AG99: 0 | AH99: 0 | AI99: 0 | AJ99: 0 | AK99: 0 | AL99: 0 | AM99: 0 | AN99: 0 | AO99: 0 | AP99: 0 | AQ99: 0 | AR99: 0 | AS99: 0 | AT99: 0 | AU99: 0 | AV99: 0 | AW99: 0 | AX99: 0 | AY99: 0 | AZ99: 0 | BA99: 0 | BB99: 0 | BC99: 0 | BD99: 0 | BE99: 0 | BF99: 0 | BG99: 0 | BH99: 0 | BI99: =AJ99+Февраль!BI99 -> 0 | BJ99: 0 | BK99: 0 | BL99: =SUM(BL100:BL102) -> 0 | BM99: 0
A100: 262.01 | B100: льгота по к/услугам | C100: местный | D100: 807 | E100: 07 02 | F100: 02 П 02 М9903 | G100: 244 | H100: =Февраль!H100 -> 0 | I100: =Февраль!I100 -> 0 | J100: =Февраль!BH100 -> 0 | K100: =Февраль!BJ100 -> 0 | L100: =SUM(M100:AI100) -> 0 | AJ100: =SUM(AK100:BG100) -> 0 | BH100: 0 | BI100: =AJ100+Февраль!BI100 -> 0 | BJ100: 0 | BK100: 0 | BM100: 0
A101: 262.02 | B101: прочее | C101: местный | D101: 807 | E101: 07 02 | F101: 02 П 02 М9903 | G101: 244 | H101: =Февраль!H101 -> 0 | I101: =Февраль!I101 -> 0 | J101: =Февраль!BH101 -> 0 | K101: =Февраль!BJ101 -> 0 | L101: =SUM(M101:AI101) -> 0 | AJ101: =SUM(AK101:BG101) -> 0 | BH101: 0 | BI101: =AJ101+Февраль!BI101 -> 0 | BJ101: 0 | BK101: 0 | BM101: 0
A102: 262.03 | B102: прочее | C102: местный | D102: 807 | E102: 07 02 | F102: 02 П 02 М9903 | G102: 244 | H102: =Февраль!H102 -> 0 | I102: =Февраль!I102 -> 0 | J102: =Февраль!BH102 -> 0 | K102: =Февраль!BJ102 -> 0 | L102: =SUM(M102:AI102) -> 0 | AJ102: =SUM(AK102:BG102) -> 0 | BH102: 0 | BI102: =AJ102+Февраль!BI102 -> 0 | BJ102: 0 | BK102: 0 | BM102: 0
A103: 263 | B103: Соц. пособ. Выпл. орган. сектора гос. управ. | C103: местный | D103: 807 | E103: 07 02 | F103: 02 П 02 М9903 | G103: 244 | H103: =Февраль!H103 -> 0 | I103: =Февраль!I103 -> 0 | J103: =Февраль!BH103 -> 0 | K103: =Февраль!BJ103 -> 0 | L103: =SUM(M103:AI103) -> 0 | AJ103: =SUM(AK103:BG103) -> 0 | BH103: 0 | BI103: =AJ103+Февраль!BI103 -> 0 | BJ103: 0 | BK103: 0 | BM103: 0
A104: 290 | B104: Прочие расходы | C104: местный | D104: 807 | E104: 07 02 | F104: 02 П 02 М9903 | H104: =Февраль!H104 -> 2152200 | I104: =Февраль!I104 -> 0 | J104: =Февраль!BH104 -> 523682 | K104: =Февраль!BJ104 -> 0 | L104: =SUM(L105:L106) -> 0 | M104: 0 | N104: 0 | O104: 0 | P104: 0 | Q104: 0 | R104: 0 | S104: 0 | T104: 0 | U104: 0 | V104: 0 | W104: 0 | X104: 0 | Y104: 0 | Z104: 0 | AA104: 0 | AB104: 0 | AC104: 0 | AD104: 0 | AE104: 0 | AF104: 0 | AG104: 0 | AH104: 0 | AI104: 0 | AJ104: 0 | AK104: 0 | AL104: 0 | AM104: 0 | AN104: 0 | AO104: 0 | AP104: 0 | AQ104: 0 | AR104: 0 | AS104: 0 | AT104: 0 | AU104: 0 | AV104: 0 | AW104: 0 | AX104: 0 | AY104: 0 | AZ104: 0 | BA104: 0 | BB104: 0 | BC104: 0 | BD104: 0 | BE104: 0 | BF104: 0 | BG104: 0 | BH104: 523682 | BI104: =AJ104+Февраль!BI104 -> 523682 | BJ104: 0 | BK104: 1628518 | BL104: =SUM(BL105:BL106) -> 0 | BM104: -523682
A105: 291 | B105: Налог на имущество | C105: местный | D105: 807 | E105: 07 02 | F105: 02 П 02 М9903 | G105: 851 | H105: =Февраль!H105 -> 2149000 | I105: =Февраль!I105 -> 0 | J105: =Февраль!BH105 -> 520549 | K105: =Февраль!BJ105 -> 0 | L105: =SUM(M105:AI105) -> 0 | AJ105: =SUM(AK105:BG105) -> 0 | BH105: 520549 | BI105: =AJ105+Февраль!BI105 -> 520549 | BJ105: 0 | BK105: 1628451 | BM105: -520549
A106: 291 | B106: проч. расходы | C106: местный | D106: 807 | E106: 07 02 | F106: 02 П 02 М9903 | G106: 852 | H106: =Февраль!H106 -> 3200 | I106: =Февраль!I106 -> 0 | J106: =Февраль!BH106 -> 3133 | K106: =Февраль!BJ106 -> 0 | L106: =SUM(M106:AI106) -> 0 | AJ106: =SUM(AK106:BG106) -> 0 | BH106: 3133 | BI106: =AJ106+Февраль!BI106 -> 3133 | BJ106: 0 | BK106: 67 | BM106: -3133
A107: 310 | B107: Увеличение ст-ти ОС | C107: местный | D107: 807 | E107: 07 02 | F107: 02 П 02 М9903 | G107: 852 | H107: =Февраль!H107 -> 0 | I107: =Февраль!I107 -> 0 | J107: =Февраль!BH107 -> 0 | K107: =Февраль!BJ107 -> 0 | L107: =SUM(L108:L111) -> 0 | M107: 0 | N107: 0 | O107: 0 | P107: 0 | Q107: 0 | R107: 0 | S107: 0 | T107: 0 | U107: 0 | V107: 0 | W107: 0 | X107: 0 | Y107: 0 | Z107: 0 | AA107: 0 | AB107: 0 | AC107: 0 | AD107: 0 | AE107: 0 | AF107: 0 | AG107: 0 | AH107: 0 | AI107: 0 | AJ107: 0 | AK107: 0 | AL107: 0 | AM107: 0 | AN107: 0 | AO107: 0 | AP107: 0 | AQ107: 0 | AR107: 0 | AS107: 0 | AT107: 0 | AU107: 0 | AV107: 0 | AW107: 0 | AX107: 0 | AY107: 0 | AZ107: 0 | BA107: 0 | BB107: 0 | BC107: 0 | BD107: 0 | BE107: 0 | BF107: 0 | BG107: 0 | BH107: 0 | BI107: =AJ107+Февраль!BI107 -> 0 | BJ107: 0 | BK107: 0 | BL107: =SUM(BL108:BL111) -> 0 | BM107: 0
A108: 310.01 | B108: мягкий инвентарь | C108: местный | D108: 807 | E108: 07 02 | F108: 02 П 02 М9903 | G108: 852 | H108: =Февраль!H108 -> 0 | I108: =Февраль!I108 -> 0 | J108: =Февраль!BH108 -> 0 | K108: =Февраль!BJ108 -> 0 | L108: =SUM(M108:AI108) -> 0 | AJ108: =SUM(AK108:BG108) -> 0 | BH108: 0 | BI108: =AJ108+Февраль!BI108 -> 0 | BJ108: 0 | BK108: 0 | BM108: 0
A109: 310.02 | B109: расх. матер больше года | C109: местный | D109: 807 | E109: 07 02 | F109: 02 П 02 М9903 | G109: 852 | H109: =Февраль!H109 -> 0 | I109: =Февраль!I109 -> 0 | J109: =Февраль!BH109 -> 0 | K109: =Февраль!BJ109 -> 0 | L109: =SUM(M109:AI109) -> 0 | AJ109: =SUM(AK109:BG109) -> 0 | BH109: 0 | BI109: =AJ109+Февраль!BI109 -> 0 | BJ109: 0 | BK109: 0 | BM109: 0
A110: 310.03 | B110: приобретение предм. дл. польз. | C110: местный | D110: 807 | E110: 07 02 | F110: 02 П 02 М9903 | G110: 852 | H110: =Февраль!H110 -> 0 | I110: =Февраль!I110 -> 0 | J110: =Февраль!BH110 -> 0 | K110: =Февраль!BJ110 -> 0 | L110: =SUM(M110:AI110) -> 0 | AJ110: =SUM(AK110:BG110) -> 0 | BH110: 0 | BI110: =AJ110+Февраль!BI110 -> 0 | BJ110: 0 | BK110: 0 | BM110: 0
A111: 310.04 | B111: капитальное стр-во | C111: местный | D111: 807 | E111: 07 02 | F111: 02 П 02 М9903 | G111: 852 | H111: =Февраль!H111 -> 0 | I111: =Февраль!I111 -> 0 | J111: =Февраль!BH111 -> 0 | K111: =Февраль!BJ111 -> 0 | L111: =SUM(M111:AI111) -> 0 | AJ111: =SUM(AK111:BG111) -> 0 | BH111: 0 | BI111: =AJ111+Февраль!BI111 -> 0 | BJ111: 0 | BK111: 0 | BM111: 0
A112: 320 | B112: Увеличение ст-ти немат. активов | C112: местный | D112: 807 | E112: 07 02 | F112: 02 П 02 М9903 | G112: 852 | H112: =Февраль!H112 -> 0 | I112: =Февраль!I112 -> 0 | J112: =Февраль!BH112 -> 0 | K112: =Февраль!BJ112 -> 0 | L112: =SUM(M112:AI112) -> 0 | AJ112: =SUM(AK112:BG112) -> 0 | BH112: 0 | BI112: =AJ112+Февраль!BI112 -> 0 | BJ112: 0 | BK112: 0 | BM112: 0
A113: 340 | B113: Увеличение мат. запасов | C113: местный | D113: 807 | E113: 07 02 | F113: 02 П 02 М9903 | G113: 852 | H113: =Февраль!H113 -> 0 | I113: =Февраль!I113 -> 0 | J113: =Февраль!BH113 -> 0 | K113: =Февраль!BJ113 -> 0 | L113: =SUM(L114:L118) -> 0 | M113: 0 | N113: 0 | O113: 0 | P113: 0 | Q113: 0 | R113: 0 | S113: 0 | T113: 0 | U113: 0 | V113: 0 | W113: 0 | X113: 0 | Y113: 0 | Z113: 0 | AA113: 0 | AB113: 0 | AC113: 0 | AD113: 0 | AE113: 0 | AF113: 0 | AG113: 0 | AH113: 0 | AI113: 0 | AJ113: 0 | AK113: 0 | AL113: 0 | AM113: 0 | AN113: 0 | AO113: 0 | AP113: 0 | AQ113: 0 | AR113: 0 | AS113: 0 | AT113: 0 | AU113: 0 | AV113: 0 | AW113: 0 | AX113: 0 | AY113: 0 | AZ113: 0 | BA113: 0 | BB113: 0 | BC113: 0 | BD113: 0 | BE113: 0 | BF113: 0 | BG113: 0 | BH113: 0 | BI113: =AJ113+Февраль!BI113 -> 0 | BJ113: 0 | BK113: 0 | BL113: =SUM(BL114:BL118) -> 0 | BM113: 0
A114: 340.01 | B114: медикаменды | C114: местный | D114: 807 | E114: 07 02 | F114: 02 П 02 М9903 | G114: 852 | H114: =Февраль!H114 -> 0 | I114: =Февраль!I114 -> 0 | J114: =Февраль!BH114 -> 0 | K114: =Февраль!BJ114 -> 0 | L114: =SUM(M114:AI114) -> 0 | AJ114: =SUM(AK114:BG114) -> 0 | BH114: 0 | BI114: =AJ114+Февраль!BI114 -> 0 | BJ114: 0 | BK114: 0 | BM114: 0
A115: 340.02 | B115: продукты питания | C115: =C114 -> местный | D115: 807 | E115: 07 02 | F115: 02 П 02 М9903 | G115: 852 | H115: =Февраль!H115 -> 0 | I115: =Февраль!I115 -> 0 | J115: =Февраль!BH115 -> 0 | K115: =Февраль!BJ115 -> 0 | L115: =SUM(M115:AI115) -> 0 | AJ115: =SUM(AK115:BG115) -> 0 | BH115: 0 | BI115: =AJ115+Февраль!BI115 -> 0 | BJ115: 0 | BK115: 0 | BM115: 0
A116: 340.03 | B116: ГСМ | C116: местный | D116: 807 | E116: 07 02 | F116: 02 П 02 М9903 | G116: 852 | H116: =Февраль!H116 -> 0 | I116: =Февраль!I116 -> 0 | J116: =Февраль!BH116 -> 0 | K116: =Февраль!BJ116 -> 0 | L116: =SUM(M116:AI116) -> 0 | AJ116: =SUM(AK116:BG116) -> 0 | BH116: 0 | BI116: =AJ116+Февраль!BI116 -> 0 | BJ116: 0 | BK116: 0 | BM116: 0
A117: 340.04 | B117: Оплата котел. топлива | C117: местный | D117: 807 | E117: 07 02 | F117: 02 П 02 М9903 | G117: 852 | H117: =Февраль!H117 -> 0 | I117: =Февраль!I117 -> 0 | J117: =Февраль!BH117 -> 0 | K117: =Февраль!BJ117 -> 0 | L117: =SUM(M117:AI117) -> 0 | AJ117: =SUM(AK117:BG117) -> 0 | BH117: 0 | BI117: =AJ117+Февраль!BI117 -> 0 | BJ117: 0 | BK117: 0 | BM117: 0
A118: 340.05 | B118: Прочее | C118: местный | D118: 807 | E118: 07 02 | F118: 02 П 02 М9903 | G118: 852 | H118: =Февраль!H118 -> 0 | I118: =Февраль!I118 -> 0 | J118: =Февраль!BH118 -> 0 | K118: =Февраль!BJ118 -> 0 | L118: =SUM(M118:AI118) -> 0 | AJ118: =SUM(AK118:BG118) -> 0 | BH118: 0 | BI118: =AJ118+Февраль!BI118 -> 0 | BJ118: 0 | BK118: 0 | BM118: 0
A119: ИТОГО | B119: Итого расходов | C119: местный | D119: 807 | E119: 07 02 | F119: 02 П 02 М9903 | H119: =Февраль!H119 -> 17185300 | I119: =Февраль!I119 -> 0 | J119: =Февраль!BH119 -> 4124452.68 | K119: =Февраль!BJ119 -> 0 | L119: =L65+L68+L75+L78+L79+L82+L87+L88+L92+L95+L96+L97+L98+L99+L103+L104+L107+L112+L113 -> 1852934.81 | M119: 1852934.81 | N119: 0 | O119: 0 | P119: 0 | Q119: 0 | R119: 0 | S119: 0 | T119: 0 | U119: 0 | V119: 0 | W119: 0 | X119: 0 | Y119: 0 | Z119: 0 | AA119: 0 | AB119: 0 | AC119: 0 | AD119: 0 | AE119: 0 | AF119: 0 | AG119: 0 | AH119: 0 | AI119: 0 | AJ119: 1852934.81 | AK119: 0 | AL119: 0 | AM119: 1852934.81 | AN119: 0 | AO119: 0 | AP119: 0 | AQ119: 0 | AR119: 0 | AS119: 0 | AT119: 0 | AU119: 0 | AV119: 0 | AW119: 0 | AX119: 0 | AY119: 0 | AZ119: 0 | BA119: 0 | BB119: 0 | BC119: 0 | BD119: 0 | BE119: 0 | BF119: 0 | BG119: 0 | BH119: 5977387.49 | BI119: =AJ119+Февраль!BI119 -> 5977387.49 | BJ119: 0 | BK119: 11207912.51 | BL119: =BL65+BL68+BL75+BL78+BL79+BL82+BL87+BL88+BL92+BL95+BL96+BL97+BL98+BL99+BL103+BL104+BL107+BL112+BL113 -> 0 | BM119: -5977387.49
C120: =Февраль!C120 -> 26020 | D120: =Февраль!D120 -> 807 | E120: =Февраль!E120 -> 07 09 | F120: =Февраль!F120 -> 02 1 04 80130 | G120: =Февраль!G120 -> 244 | BN120: =BN64+1 -> 3
A121: 211 | B121: оплата труда | C121: =C120 -> 26020 | D121: =D120 -> 807 | E121: 07 09 | F121: 02 1 04 80130 | G121: 244 | H121: =Февраль!H121 -> 0 | I121: =Февраль!I121 -> 0 | J121: =Февраль!BH121 -> 0 | K121: =Февраль!BJ121 -> 0 | L121: =SUM(L122:L123) -> 0 | M121: 0 | N121: 0 | O121: 0 | P121: 0 | Q121: 0 | R121: 0 | S121: 0 | T121: 0 | U121: 0 | V121: 0 | W121: 0 | X121: 0 | Y121: 0 | Z121: 0 | AA121: 0 | AB121: 0 | AC121: 0 | AD121: 0 | AE121: 0 | AF121: 0 | AG121: 0 | AH121: 0 | AI121: 0 | AJ121: 0 | AK121: 0 | AL121: 0 | AM121: 0 | AN121: 0 | AO121: 0 | AP121: 0 | AQ121: 0 | AR121: 0 | AS121: 0 | AT121: 0 | AU121: 0 | AV121: 0 | AW121: 0 | AX121: 0 | AY121: 0 | AZ121: 0 | BA121: 0 | BB121: 0 | BC121: 0 | BD121: 0 | BE121: 0 | BF121: 0 | BG121: 0 | BH121: =J121+L121 -> 0 | BI121: =AJ121+Февраль!BI121 -> 0 | BJ121: =K121+L121-AJ121 -> 0 | BK121: =H121-BH121 -> 0 | BL121: =SUM(BL122:BL123) -> 0 | BM121: =I121-BH121 -> 0
A122: 211.01 | B122: Основная з/пл | C122: 26020 | D122: 807 | E122: 07 09 | F122: 02 1 04 80130 | G122: 244 | H122: =Февраль!H122 -> 0 | I122: =Февраль!I122 -> 0 | J122: =Февраль!BH122 -> 0 | K122: =Февраль!BJ122 -> 0 | L122: =SUM(M122:AI122) -> 0 | AJ122: =SUM(AK122:BG122) -> 0 | BH122: =J122+L122 -> 0 | BI122: =AJ122+Февраль!BI122 -> 0 | BJ122: 0 | BK122: 0 | BM122: =I122-BH122 -> 0
A123: 211.02 | B123: Кл. руководство | C123: 26020 | D123: 807 | E123: 07 09 | F123: 02 1 04 80130 | G123: 244 | H123: =Февраль!H123 -> 0 | I123: =Февраль!I123 -> 0 | J123: =Февраль!BH123 -> 0 | K123: =Февраль!BJ123 -> 0 | L123: =SUM(M123:AI123) -> 0 | AJ123: =SUM(AK123:BG123) -> 0 | BH123: 0 | BI123: =AJ123+Февраль!BI123 -> 0 | BJ123: 0 | BK123: 0 | BM123: 0
A124: 212 | B124: Всего проч. | C124: 26020 | D124: 807 | E124: 07 09 | F124: 02 1 04 80130 | G124: 244 | H124: =Февраль!H124 -> 0 | I124: =Февраль!I124 -> 0 | J124: =Февраль!BH124 -> 0 | K124: =Февраль!BJ124 -> 0 | L124: =SUM(L125:L130) -> 0 | M124: 0 | N124: 0 | O124: 0 | P124: 0 | Q124: 0 | R124: 0 | S124: 0 | T124: 0 | U124: 0 | V124: 0 | W124: 0 | X124: 0 | Y124: 0 | Z124: 0 | AA124: 0 | AB124: 0 | AC124: 0 | AD124: 0 | AE124: 0 | AF124: 0 | AG124: 0 | AH124: 0 | AI124: 0 | AJ124: 0 | AK124: 0 | AL124: 0 | AM124: 0 | AN124: 0 | AO124: 0 | AP124: 0 | AQ124: 0 | AR124: 0 | AS124: 0 | AT124: 0 | AU124: 0 | AV124: 0 | AW124: 0 | AX124: 0 | AY124: 0 | AZ124: 0 | BA124: 0 | BB124: 0 | BC124: 0 | BD124: 0 | BE124: 0 | BF124: 0 | BG124: 0 | BH124: 0 | BI124: =AJ124+Февраль!BI124 -> 0 | BJ124: 0 | BK124: 0 | BL124: =SUM(BL125:BL130) -> 0 | BM124: 0
A125: 212.01 | B125: суточные | C125: 26020 | D125: 807 | E125: 07 09 | F125: 02 1 04 80130 | G125: 244 | H125: =Февраль!H125 -> 0 | I125: =Февраль!I125 -> 0 | J125: =Февраль!BH125 -> 0 | K125: =Февраль!BJ125 -> 0 | L125: =SUM(M125:AI125) -> 0 | AJ125: =SUM(AK125:BG125) -> 0 | BH125: 0 | BI125: =AJ125+Февраль!BI125 -> 0 | BJ125: 0 | BK125: 0 | BM125: 0
A126: 212.02 | B126: книги | C126: 26020 | D126: 807 | E126: 07 09 | F126: 02 1 04 80130 | G126: 244 | H126: =Февраль!H126 -> 0 | I126: =Февраль!I126 -> 0 | J126: =Февраль!BH126 -> 0 | K126: =Февраль!BJ126 -> 0 | L126: 0 | AJ126: 0 | BH126: 0 | BI126: =AJ126+Февраль!BI126 -> 0 | BJ126: 0 | BK126: 0 | BM126: 0
A127: 212.03 | B127: СКЛ | C127: 26020 | D127: 807 | E127: 07 09 | F127: 02 1 04 80130 | G127: 244 | H127: =Февраль!H127 -> 0 | I127: =Февраль!I127 -> 0 | J127: =Февраль!BH127 -> 0 | K127: =Февраль!BJ127 -> 0 | L127: 0 | AJ127: 0 | BH127: 0 | BI127: =AJ127+Февраль!BI127 -> 0 | BJ127: 0 | BK127: 0 | BM127: 0
A128: 212.04 | B128: проезд в отпуск | C128: 26020 | D128: 807 | E128: 07 09 | F128: 02 1 04 80130 | G128: 244 | H128: =Февраль!H128 -> 0 | I128: =Февраль!I128 -> 0 | J128: =Февраль!BH128 -> 0 | K128: =Февраль!BJ128 -> 0 | L128: 0 | AJ128: 0 | BH128: 0 | BI128: =AJ128+Февраль!BI128 -> 0 | BJ128: 0 | BK128: 0 | BM128: 0
A129: 212.05 | B129: соц.помощь | C129: 26020 | D129: 807 | E129: 07 09 | F129: 02 1 04 80130 | G129: 244 | H129: =Февраль!H129 -> 0 | I129: =Февраль!I129 -> 0 | J129: =Февраль!BH129 -> 0 | K129: =Февраль!BJ129 -> 0 | L129: 0 | AJ129: 0 | BH129: 0 | BI129: =AJ129+Февраль!BI129 -> 0 | BJ129: 0 | BK129: 0 | BM129: 0
A130: 212.06 | B130: СКЛ | C130: 26020 | D130: 807 | E130: 07 09 | F130: 02 1 04 80130 | G130: 244 | H130: =Февраль!H130 -> 0 | I130: =Февраль!I130 -> 0 | J130: =Февраль!BH130 -> 0 | K130: =Февраль!BJ130 -> 0 | L130: 0 | AJ130: 0 | BH130: 0 | BI130: =AJ130+Февраль!BI130 -> 0 | BJ130: 0 | BK130: 0 | BM130: 0
A131: 213 | B131: ЕСН | C131: 26020 | D131: 807 | E131: 07 09 | F131: 02 1 04 80130 | G131: 244 | H131: =Февраль!H131 -> 0 | I131: =Февраль!I131 -> 0 | J131: =Февраль!BH131 -> 0 | K131: =Февраль!BJ131 -> 0 | L131: =SUM(L132:L133) -> 0 | M131: 0 | N131: 0 | O131: 0 | P131: 0 | Q131: 0 | R131: 0 | S131: 0 | T131: 0 | U131: 0 | V131: 0 | W131: 0 | X131: 0 | Y131: 0 | Z131: 0 | AA131: 0 | AB131: 0 | AC131: 0 | AD131: 0 | AE131: 0 | AF131: 0 | AG131: 0 | AH131: 0 | AI131: 0 | AJ131: 0 | AK131: 0 | AL131: 0 | AM131: 0 | AN131: 0 | AO131: 0 | AP131: 0 | AQ131: 0 | AR131: 0 | AS131: 0 | AT131: 0 | AU131: 0 | AV131: 0 | AW131: 0 | AX131: 0 | AY131: 0 | AZ131: 0 | BA131: 0 | BB131: 0 | BC131: 0 | BD131: 0 | BE131: 0 | BF131: 0 | BG131: 0 | BH131: 0 | BI131: =AJ131+Февраль!BI131 -> 0 | BJ131: 0 | BK131: 0 | BL131: =SUM(BL132:BL133) -> 0 | BM131: 0
A132: 213.01 | B132: ЕСН основ. | C132: 26020 | D132: 807 | E132: 07 09 | F132: 02 1 04 80130 | G132: 244 | H132: =Февраль!H132 -> 0 | I132: =Февраль!I132 -> 0 | J132: =Февраль!BH132 -> 0 | K132: =Февраль!BJ132 -> 0 | L132: =SUM(M132:AI132) -> 0 | AJ132: =SUM(AK132:BG132) -> 0 | BH132: 0 | BI132: =AJ132+Февраль!BI132 -> 0 | BJ132: 0 | BK132: 0 | BM132: 0
A133: 213.02 | B133: ЕСН кл. рук. | C133: 26020 | D133: 807 | E133: 07 09 | F133: 02 1 04 80130 | G133: 244 | H133: =Февраль!H133 -> 0 | I133: =Февраль!I133 -> 0 | J133: =Февраль!BH133 -> 0 | K133: =Февраль!BJ133 -> 0 | L133: =SUM(M133:AI133) -> 0 | AJ133: =SUM(AK133:BG133) -> 0 | BH133: 0 | BI133: =AJ133+Февраль!BI133 -> 0 | BJ133: 0 | BK133: 0 | BM133: 0
A134: 221 | B134: связь | C134: 26020 | D134: 807 | E134: 07 09 | F134: 02 1 04 80130 | G134: 244 | H134: =Февраль!H134 -> 0 | I134: =Февраль!I134 -> 0 | J134: =Февраль!BH134 -> 0 | K134: =Февраль!BJ134 -> 0 | L134: =SUM(M134:AI134) -> 0 | AJ134: =SUM(AK134:BG134) -> 0 | BH134: 0 | BI134: =AJ134+Февраль!BI134 -> 0 | BJ134: 0 | BK134: 0 | BM134: 0
A135: 222 | B135: Всего тран. | C135: 26020 | D135: 807 | E135: 07 09 | F135: 02 1 04 80130 | G135: 244 | H135: =Февраль!H135 -> 0 | I135: =Февраль!I135 -> 0 | J135: =Февраль!BH135 -> 0 | K135: =Февраль!BJ135 -> 0 | L135: =SUM(L136:L137) -> 0 | M135: 0 | N135: 0 | O135: 0 | P135: 0 | Q135: 0 | R135: 0 | S135: 0 | T135: 0 | U135: 0 | V135: 0 | W135: 0 | X135: 0 | Y135: 0 | Z135: 0 | AA135: 0 | AB135: 0 | AC135: 0 | AD135: 0 | AE135: 0 | AF135: 0 | AG135: 0 | AH135: 0 | AI135: 0 | AJ135: 0 | AK135: 0 | AL135: 0 | AM135: 0 | AN135: 0 | AO135: 0 | AP135: 0 | AQ135: 0 | AR135: 0 | AS135: 0 | AT135: 0 | AU135: 0 | AV135: 0 | AW135: 0 | AX135: 0 | AY135: 0 | AZ135: 0 | BA135: 0 | BB135: 0 | BC135: 0 | BD135: 0 | BE135: 0 | BF135: 0 | BG135: 0 | BH135: 0 | BI135: =AJ135+Февраль!BI135 -> 0 | BJ135: 0 | BK135: 0 | BL135: =SUM(BL136:BL137) -> 0 | BM135: 0
A136: 222.01 | B136: проезд команд. | C136: 26020 | D136: 807 | E136: 07 09 | F136: 02 1 04 80130 | G136: 244 | H136: =Февраль!H136 -> 0 | I136: =Февраль!I136 -> 0 | J136: =Февраль!BH136 -> 0 | K136: =Февраль!BJ136 -> 0 | L136: =SUM(M136:AI136) -> 0 | AJ136: =SUM(AK136:BG136) -> 0 | BH136: 0 | BI136: =AJ136+Февраль!BI136 -> 0 | BJ136: 0 | BK136: 0 | BM136: 0
A137: 222.02 | B137: транспортные усл | C137: 26020 | D137: =D136 -> 807 | E137: 07 09 | F137: 02 1 04 80130 | G137: 244 | H137: =Февраль!H137 -> 0 | I137: =Февраль!I137 -> 0 | J137: =Февраль!BH137 -> 0 | K137: =Февраль!BJ137 -> 0 | L137: =SUM(M137:AI137) -> 0 | AJ137: =SUM(AK137:BG137) -> 0 | BH137: 0 | BI137: =AJ137+Февраль!BI137 -> 0 | BJ137: 0 | BK137: 0 | BM137: 0
A138: 223 | B138: Всего ком. усл. | C138: 26020 | D138: 807 | E138: 07 09 | F138: 02 1 04 80130 | G138: 244 | H138: =Февраль!H138 -> 0 | I138: =Февраль!I138 -> 0 | J138: =Февраль!BH138 -> 0 | K138: =Февраль!BJ138 -> 0 | L138: =SUM(L139:L142) -> 0 | M138: 0 | N138: 0 | O138: 0 | P138: 0 | Q138: 0 | R138: 0 | S138: 0 | T138: 0 | U138: 0 | V138: 0 | W138: 0 | X138: 0 | Y138: 0 | Z138: 0 | AA138: 0 | AB138: 0 | AC138: 0 | AD138: 0 | AE138: 0 | AF138: 0 | AG138: 0 | AH138: 0 | AI138: 0 | AJ138: 0 | AK138: 0 | AL138: 0 | AM138: 0 | AN138: 0 | AO138: 0 | AP138: 0 | AQ138: 0 | AR138: 0 | AS138: 0 | AT138: 0 | AU138: 0 | AV138: 0 | AW138: 0 | AX138: 0 | AY138: 0 | AZ138: 0 | BA138: 0 | BB138: 0 | BC138: 0 | BD138: 0 | BE138: 0 | BF138: 0 | BG138: 0 | BH138: 0 | BI138: =AJ138+Февраль!BI138 -> 0 | BJ138: 0 | BK138: 0 | BL138: =SUM(BL139:BL142) -> 0 | BM138: 0
A139: 223.01 | B139: отопление | C139: =C138 -> 26020 | D139: 807 | E139: 07 09 | F139: 02 1 04 80130 | G139: 244 | H139: =Февраль!H139 -> 0 | I139: =Февраль!I139 -> 0 | J139: =Февраль!BH139 -> 0 | K139: =Февраль!BJ139 -> 0 | L139: =SUM(M139:AI139) -> 0 | AJ139: =SUM(AK139:BG139) -> 0 | BH139: 0 | BI139: =AJ139+Февраль!BI139 -> 0 | BJ139: 0 | BK139: 0 | BM139: 0
A140: 223.02 | B140: потребление газа | C140: 26020 | D140: 807 | E140: 07 09 | F140: 02 1 04 80130 | G140: 244 | H140: =Февраль!H140 -> 0 | I140: =Февраль!I140 -> 0 | J140: =Февраль!BH140 -> 0 | K140: =Февраль!BJ140 -> 0 | L140: =SUM(M140:AI140) -> 0 | AJ140: =SUM(AK140:BG140) -> 0 | BH140: 0 | BI140: =AJ140+Февраль!BI140 -> 0 | BJ140: 0 | BK140: 0 | BM140: 0
A141: 223.03 | B141: электроэнергия | C141: 26020 | D141: 807 | E141: 07 09 | F141: 02 1 04 80130 | G141: 244 | H141: =Февраль!H141 -> 0 | I141: =Февраль!I141 -> 0 | J141: =Февраль!BH141 -> 0 | K141: =Февраль!BJ141 -> 0 | L141: =SUM(M141:AI141) -> 0 | AJ141: =SUM(AK141:BG141) -> 0 | BH141: 0 | BI141: =AJ141+Февраль!BI141 -> 0 | BJ141: 0 | BK141: 0 | BM141: 0
A142: 223.04 | B142: водоснабжение | C142: 26020 | D142: 807 | E142: 07 09 | F142: 02 1 04 80130 | G142: 244 | H142: =Февраль!H142 -> 0 | I142: =Февраль!I142 -> 0 | J142: =Февраль!BH142 -> 0 | K142: =Февраль!BJ142 -> 0 | L142: =SUM(M142:AI142) -> 0 | AJ142: =SUM(AK142:BG142) -> 0 | BH142: 0 | BI142: =AJ142+Февраль!BI142 -> 0 | BJ142: 0 | BK142: 0 | BM142: 0
A143: 224 | B143: аренда | C143: 26020 | D143: 807 | E143: 07 09 | F143: 02 1 04 80130 | G143: 244 | H143: =Февраль!H143 -> 0 | I143: =Февраль!I143 -> 0 | J143: =Февраль!BH143 -> 0 | K143: =Февраль!BJ143 -> 0 | L143: =SUM(M143:AI143) -> 0 | AJ143: =SUM(AK143:BG143) -> 0 | BH143: 0 | BI143: =AJ143+Февраль!BI143 -> 0 | BJ143: 0 | BK143: 0 | BM143: 0
A144: 225 | B144: Всего содер. Имущ. | C144: 26020 | D144: 807 | E144: 07 09 | F144: 02 1 04 80130 | G144: 244 | H144: =Февраль!H144 -> 0 | I144: =Февраль!I144 -> 0 | J144: =Февраль!BH144 -> 0 | K144: =Февраль!BJ144 -> 0 | L144: =SUM(L145:L147) -> 0 | M144: 0 | N144: 0 | O144: 0 | P144: 0 | Q144: 0 | R144: 0 | S144: 0 | T144: 0 | U144: 0 | V144: 0 | W144: 0 | X144: 0 | Y144: 0 | Z144: 0 | AA144: 0 | AB144: 0 | AC144: 0 | AD144: 0 | AE144: 0 | AF144: 0 | AG144: 0 | AH144: 0 | AI144: 0 | AJ144: 0 | AK144: 0 | AL144: 0 | AM144: 0 | AN144: 0 | AO144: 0 | AP144: 0 | AQ144: 0 | AR144: 0 | AS144: 0 | AT144: 0 | AU144: 0 | AV144: 0 | AW144: 0 | AX144: 0 | AY144: 0 | AZ144: 0 | BA144: 0 | BB144: 0 | BC144: 0 | BD144: 0 | BE144: 0 | BF144: 0 | BG144: 0 | BH144: 0 | BI144: =AJ144+Февраль!BI144 -> 0 | BJ144: 0 | BK144: 0 | BL144: =SUM(BL145:BL147) -> 0 | BM144: 0
A145: 225.01 | B145: ремонт зд. и сооруж. | C145: 26020 | D145: 807 | E145: 07 09 | F145: 02 1 04 80130 | G145: 244 | H145: =Февраль!H145 -> 0 | I145: =Февраль!I145 -> 0 | J145: =Февраль!BH145 -> 0 | K145: =Февраль!BJ145 -> 0 | L145: =SUM(M145:AI145) -> 0 | AJ145: =SUM(AK145:BG145) -> 0 | BH145: 0 | BI145: =AJ145+Февраль!BI145 -> 0 | BJ145: 0 | BK145: 0 | BM145: 0
A146: 225.02 | B146: вывоз мусора | C146: 26020 | D146: 807 | E146: 07 09 | F146: 02 1 04 80130 | G146: 244 | H146: =Февраль!H146 -> 0 | I146: =Февраль!I146 -> 0 | J146: =Февраль!BH146 -> 0 | K146: =Февраль!BJ146 -> 0 | L146: =SUM(M146:AI146) -> 0 | AJ146: =SUM(AK146:BG146) -> 0 | BH146: 0 | BI146: =AJ146+Февраль!BI146 -> 0 | BJ146: 0 | BK146: 0 | BM146: 0
A147: 225.03 | B147: прочие ком. услуги | C147: 26020 | D147: 807 | E147: 07 09 | F147: 02 1 04 80130 | G147: 244 | H147: =Февраль!H147 -> 0 | I147: =Февраль!I147 -> 0 | J147: =Февраль!BH147 -> 0 | K147: =Февраль!BJ147 -> 0 | L147: =SUM(M147:AI147) -> 0 | AJ147: =SUM(AK147:BG147) -> 0 | BH147: 0 | BI147: =AJ147+Февраль!BI147 -> 0 | BJ147: 0 | BK147: 0 | BM147: 0
A148: 226 | B148: Прочие услуги | C148: 26020 | D148: 807 | E148: 07 09 | F148: 02 1 04 80130 | G148: 244 | H148: =Февраль!H148 -> 0 | I148: =Февраль!I148 -> 0 | J148: =Февраль!BH148 -> 0 | K148: =Февраль!BJ148 -> 0 | L148: =SUM(L149:L150) -> 0 | M148: 0 | N148: 0 | O148: 0 | P148: 0 | Q148: 0 | R148: 0 | S148: 0 | T148: 0 | U148: 0 | V148: 0 | W148: 0 | X148: 0 | Y148: 0 | Z148: 0 | AA148: 0 | AB148: 0 | AC148: 0 | AD148: 0 | AE148: 0 | AF148: 0 | AG148: 0 | AH148: 0 | AI148: 0 | AJ148: 0 | AK148: 0 | AL148: 0 | AM148: 0 | AN148: 0 | AO148: 0 | AP148: 0 | AQ148: 0 | AR148: 0 | AS148: 0 | AT148: 0 | AU148: 0 | AV148: 0 | AW148: 0 | AX148: 0 | AY148: 0 | AZ148: 0 | BA148: 0 | BB148: 0 | BC148: 0 | BD148: 0 | BE148: 0 | BF148: 0 | BG148: 0 | BH148: 0 | BI148: =AJ148+Февраль!BI148 -> 0 | BJ148: 0 | BK148: 0 | BL148: =SUM(BL149:BL150) -> 0 | BM148: 0
A149: 226.01 | B149: Коман. (проживание) | C149: 26020 | D149: 807 | E149: 07 09 | F149: 02 1 04 80130 | G149: 244 | H149: =Февраль!H149 -> 0 | I149: =Февраль!I149 -> 0 | J149: =Февраль!BH149 -> 0 | K149: =Февраль!BJ149 -> 0 | L149: =SUM(M149:AI149) -> 0 | AJ149: =SUM(AK149:BG149) -> 0 | BH149: 0 | BI149: =AJ149+Февраль!BI149 -> 0 | BJ149: 0 | BK149: 0 | BM149: 0
A150: 226.02 | B150: проч. услуги | C150: 26020 | D150: 807 | E150: 07 09 | F150: 02 1 04 80130 | G150: 244 | H150: =Февраль!H150 -> 0 | I150: =Февраль!I150 -> 0 | J150: =Февраль!BH150 -> 0 | K150: =Февраль!BJ150 -> 0 | L150: 0 | AJ150: 0 | BH150: 0 | BI150: =AJ150+Февраль!BI150 -> 0 | BJ150: 0 | BK150: 0 | BM150: 0
A151: 241 | B151: Содержание гостиницы | C151: 26020 | D151: 807 | E151: 07 09 | F151: 02 1 04 80130 | G151: 244 | H151: =Февраль!H151 -> 0 | I151: =Февраль!I151 -> 0 | J151: =Февраль!BH151 -> 0 | K151: =Февраль!BJ151 -> 0 | L151: 0 | AJ151: 0 | BH151: 0 | BI151: =AJ151+Февраль!BI151 -> 0 | BJ151: 0 | BK151: 0 | BM151: 0
A152: 252 | B152: Переч. наднац. орг. | C152: 26020 | D152: 807 | E152: 07 09 | F152: 02 1 04 80130 | G152: 244 | H152: =Февраль!H152 -> 0 | I152: =Февраль!I152 -> 0 | J152: =Февраль!BH152 -> 0 | K152: =Февраль!BJ152 -> 0 | L152: 0 | AJ152: 0 | BH152: 0 | BI152: =AJ152+Февраль!BI152 -> 0 | BJ152: 0 | BK152: 0 | BM152: 0
A153: 253 | B153: перечисл. междунар. орган | C153: 26020 | D153: 807 | E153: 07 09 | F153: 02 1 04 80130 | G153: 244 | H153: =Февраль!H153 -> 0 | I153: =Февраль!I153 -> 0 | J153: =Февраль!BH153 -> 0 | K153: =Февраль!BJ153 -> 0 | L153: 0 | AJ153: 0 | BH153: 0 | BI153: =AJ153+Февраль!BI153 -> 0 | BJ153: 0 | BK153: 0 | BM153: 0
A154: 261 | B154: Пособие по соц. Страх. населения | C154: 26020 | D154: 807 | E154: 07 09 | F154: 02 1 04 80130 | G154: 244 | H154: =Февраль!H154 -> 0 | I154: =Февраль!I154 -> 0 | J154: =Февраль!BH154 -> 0 | K154: =Февраль!BJ154 -> 0 | L154: 0 | AJ154: 0 | BH154: 0 | BI154: =AJ154+Февраль!BI154 -> 0 | BJ154: 0 | BK154: 0 | BM154: 0
A155: 262 | B155: Пособие по соц. пом. населению | C155: =C154 -> 26020 | D155: 807 | E155: 07 09 | F155: 02 1 04 80130 | G155: 244 | H155: =Февраль!H155 -> 0 | I155: =Февраль!I155 -> 0 | J155: =Февраль!BH155 -> 0 | K155: =Февраль!BJ155 -> 0 | L155: =SUM(L156:L158) -> 0 | M155: 0 | N155: 0 | O155: 0 | P155: 0 | Q155: 0 | R155: 0 | S155: 0 | T155: 0 | U155: 0 | V155: 0 | W155: 0 | X155: 0 | Y155: 0 | Z155: 0 | AA155: 0 | AB155: 0 | AC155: 0 | AD155: 0 | AE155: 0 | AF155: 0 | AG155: 0 | AH155: 0 | AI155: 0 | AJ155: 0 | AK155: 0 | AL155: 0 | AM155: 0 | AN155: 0 | AO155: 0 | AP155: 0 | AQ155: 0 | AR155: 0 | AS155: 0 | AT155: 0 | AU155: 0 | AV155: 0 | AW155: 0 | AX155: 0 | AY155: 0 | AZ155: 0 | BA155: 0 | BB155: 0 | BC155: 0 | BD155: 0 | BE155: 0 | BF155: 0 | BG155: 0 | BH155: 0 | BI155: =AJ155+Февраль!BI155 -> 0 | BJ155: 0 | BK155: 0 | BL155: =SUM(BL156:BL158) -> 0 | BM155: 0
A156: 262.01 | B156: льгота по к/услугам | C156: 26020 | D156: 807 | E156: 07 09 | F156: 02 1 04 80130 | G156: 244 | H156: =Февраль!H156 -> 0 | I156: =Февраль!I156 -> 0 | J156: =Февраль!BH156 -> 0 | K156: =Февраль!BJ156 -> 0 | L156: =SUM(M156:AI156) -> 0 | AJ156: =SUM(AK156:BG156) -> 0 | BH156: 0 | BI156: =AJ156+Февраль!BI156 -> 0 | BJ156: 0 | BK156: 0 | BM156: 0
A157: 262.02 | B157: прочее | C157: 26020 | D157: 807 | E157: 07 09 | F157: 02 1 04 80130 | G157: 244 | H157: =Февраль!H157 -> 0 | I157: =Февраль!I157 -> 0 | J157: =Февраль!BH157 -> 0 | K157: =Февраль!BJ157 -> 0 | L157: =SUM(M157:AI157) -> 0 | AJ157: =SUM(AK157:BG157) -> 0 | BH157: 0 | BI157: =AJ157+Февраль!BI157 -> 0 | BJ157: 0 | BK157: 0 | BM157: 0
A158: 262.03 | B158: прочее | C158: 26020 | D158: 807 | E158: 07 09 | F158: 02 1 04 80130 | G158: 244 | H158: =Февраль!H158 -> 0 | I158: =Февраль!I158 -> 0 | J158: =Февраль!BH158 -> 0 | K158: =Февраль!BJ158 -> 0 | L158: =SUM(M158:AI158) -> 0 | AJ158: =SUM(AK158:BG158) -> 0 | BH158: 0 | BI158: =AJ158+Февраль!BI158 -> 0 | BJ158: 0 | BK158: 0 | BM158: 0
A159: 263 | B159: Соц. пособ. Выпл. орган. сектора гос. управ. | C159: 26020 | D159: 807 | E159: 07 09 | F159: 02 1 04 80130 | G159: 244 | H159: =Февраль!H159 -> 0 | I159: =Февраль!I159 -> 0 | J159: =Февраль!BH159 -> 0 | K159: =Февраль!BJ159 -> 0 | L159: =SUM(M159:AI159) -> 0 | AJ159: =SUM(AK159:BG159) -> 0 | BH159: 0 | BI159: =AJ159+Февраль!BI159 -> 0 | BJ159: 0 | BK159: 0 | BM159: 0
A160: 290 | B160: Прочие расходы | C160: 26020 | D160: 807 | E160: 07 09 | F160: 02 1 04 80130 | G160: 244 | H160: =Февраль!H160 -> 0 | I160: =Февраль!I160 -> 0 | J160: =Февраль!BH160 -> 0 | K160: =Февраль!BJ160 -> 0 | L160: =SUM(L161:L162) -> 0 | M160: 0 | N160: 0 | O160: 0 | P160: 0 | Q160: 0 | R160: 0 | S160: 0 | T160: 0 | U160: 0 | V160: 0 | W160: 0 | X160: 0 | Y160: 0 | Z160: 0 | AA160: 0 | AB160: 0 | AC160: 0 | AD160: 0 | AE160: 0 | AF160: 0 | AG160: 0 | AH160: 0 | AI160: 0 | AJ160: 0 | AK160: 0 | AL160: 0 | AM160: 0 | AN160: 0 | AO160: 0 | AP160: 0 | AQ160: 0 | AR160: 0 | AS160: 0 | AT160: 0 | AU160: 0 | AV160: 0 | AW160: 0 | AX160: 0 | AY160: 0 | AZ160: 0 | BA160: 0 | BB160: 0 | BC160: 0 | BD160: 0 | BE160: 0 | BF160: 0 | BG160: 0 | BH160: 0 | BI160: =AJ160+Февраль!BI160 -> 0 | BJ160: 0 | BK160: 0 | BL160: =SUM(BL161:BL162) -> 0 | BM160: 0
A161: 290.03 | B161: Налог на имущество | C161: 26020 | D161: 807 | E161: 07 09 | F161: 02 1 04 80130 | G161: 244 | H161: =Февраль!H161 -> 0 | I161: =Февраль!I161 -> 0 | J161: =Февраль!BH161 -> 0 | K161: =Февраль!BJ161 -> 0 | L161: =SUM(M161:AI161) -> 0 | AJ161: =SUM(AK161:BG161) -> 0 | BH161: 0 | BI161: =AJ161+Февраль!BI161 -> 0 | BJ161: 0 | BK161: 0 | BM161: 0
A162: 290.02 | B162: проч. расходы | C162: 26020 | D162: 807 | E162: 07 09 | F162: 02 1 04 80130 | G162: 244 | H162: =Февраль!H162 -> 0 | I162: =Февраль!I162 -> 0 | J162: =Февраль!BH162 -> 0 | K162: =Февраль!BJ162 -> 0 | L162: =SUM(M162:AI162) -> 0 | AJ162: =SUM(AK162:BG162) -> 0 | BH162: 0 | BI162: =AJ162+Февраль!BI162 -> 0 | BJ162: 0 | BK162: 0 | BM162: 0
A163: 310 | B163: Увеличение ст-ти ОС | C163: 26020 | D163: 807 | E163: 07 09 | F163: 02 1 04 80130 | G163: 244 | H163: =Февраль!H163 -> 20000 | I163: =Февраль!I163 -> 0 | J163: =Февраль!BH163 -> 0 | K163: =Февраль!BJ163 -> 0 | L163: =SUM(L164:L167) -> 0 | M163: 0 | N163: 0 | O163: 0 | P163: 0 | Q163: 0 | R163: 0 | S163: 0 | T163: 0 | U163: 0 | V163: 0 | W163: 0 | X163: 0 | Y163: 0 | Z163: 0 | AA163: 0 | AB163: 0 | AC163: 0 | AD163: 0 | AE163: 0 | AF163: 0 | AG163: 0 | AH163: 0 | AI163: 0 | AJ163: 0 | AK163: 0 | AL163: 0 | AM163: 0 | AN163: 0 | AO163: 0 | AP163: 0 | AQ163: 0 | AR163: 0 | AS163: 0 | AT163: 0 | AU163: 0 | AV163: 0 | AW163: 0 | AX163: 0 | AY163: 0 | AZ163: 0 | BA163: 0 | BB163: 0 | BC163: 0 | BD163: 0 | BE163: 0 | BF163: 0 | BG163: 0 | BH163: 0 | BI163: =AJ163+Февраль!BI163 -> 0 | BJ163: 0 | BK163: 20000 | BL163: =SUM(BL164:BL167) -> 0 | BM163: 0
A164: 310.01 | B164: мягкий инвентарь | C164: 26020 | D164: 807 | E164: 07 09 | F164: 02 1 04 80130 | G164: 244 | H164: =Февраль!H164 -> 20000 | I164: =Февраль!I164 -> 0 | J164: =Февраль!BH164 -> 0 | K164: =Февраль!BJ164 -> 0 | L164: =SUM(M164:AI164) -> 0 | AJ164: =SUM(AK164:BG164) -> 0 | BH164: 0 | BI164: =AJ164+Февраль!BI164 -> 0 | BJ164: 0 | BK164: 20000 | BM164: 0
A165: 310.02 | B165: расх. матер больше года | C165: 26020 | D165: 807 | E165: 07 09 | F165: 02 1 04 80130 | G165: 244 | H165: =Февраль!H165 -> 0 | I165: =Февраль!I165 -> 0 | J165: =Февраль!BH165 -> 0 | K165: =Февраль!BJ165 -> 0 | L165: =SUM(M165:AI165) -> 0 | AJ165: =SUM(AK165:BG165) -> 0 | BH165: 0 | BI165: =AJ165+Февраль!BI165 -> 0 | BJ165: 0 | BK165: 0 | BM165: 0
A166: 310.03 | B166: приобретение предм. дл. польз. | C166: 26020 | D166: 807 | E166: 07 09 | F166: 02 1 04 80130 | G166: 244 | H166: =Февраль!H166 -> 0 | I166: =Февраль!I166 -> 0 | J166: =Февраль!BH166 -> 0 | K166: =Февраль!BJ166 -> 0 | L166: =SUM(M166:AI166) -> 0 | AJ166: =SUM(AK166:BG166) -> 0 | BH166: 0 | BI166: =AJ166+Февраль!BI166 -> 0 | BJ166: 0 | BK166: 0 | BM166: 0
A167: 310.04 | B167: капитальное стр-во | C167: 26020 | D167: 807 | E167: 07 09 | F167: 02 1 04 80130 | G167: 244 | H167: =Февраль!H167 -> 0 | I167: =Февраль!I167 -> 0 | J167: =Февраль!BH167 -> 0 | K167: =Февраль!BJ167 -> 0 | L167: =SUM(M167:AI167) -> 0 | AJ167: =SUM(AK167:BG167) -> 0 | BH167: 0 | BI167: =AJ167+Февраль!BI167 -> 0 | BJ167: 0 | BK167: 0 | BM167: 0
A168: 320 | B168: Увеличение ст-ти немат. активов | C168: 26020 | D168: 807 | E168: 07 09 | F168: 02 1 04 80130 | G168: 244 | H168: =Февраль!H168 -> 0 | I168: =Февраль!I168 -> 0 | J168: =Февраль!BH168 -> 0 | K168: =Февраль!BJ168 -> 0 | L168: =SUM(M168:AI168) -> 0 | AJ168: =SUM(AK168:BG168) -> 0 | BH168: 0 | BI168: =AJ168+Февраль!BI168 -> 0 | BJ168: 0 | BK168: 0 | BM168: 0
A169: 340 | B169: Увеличение мат. запасов | C169: 26020 | D169: 807 | E169: 07 09 | F169: 02 1 04 80130 | G169: 244 | H169: =Февраль!H169 -> 0 | I169: =Февраль!I169 -> 0 | J169: =Февраль!BH169 -> 0 | K169: =Февраль!BJ169 -> 0 | L169: =SUM(L170:L174) -> 0 | M169: 0 | N169: 0 | O169: 0 | P169: 0 | Q169: 0 | R169: 0 | S169: 0 | T169: 0 | U169: 0 | V169: 0 | W169: 0 | X169: 0 | Y169: 0 | Z169: 0 | AA169: 0 | AB169: 0 | AC169: 0 | AD169: 0 | AE169: 0 | AF169: 0 | AG169: 0 | AH169: 0 | AI169: 0 | AJ169: 0 | AK169: 0 | AL169: 0 | AM169: 0 | AN169: 0 | AO169: 0 | AP169: 0 | AQ169: 0 | AR169: 0 | AS169: 0 | AT169: 0 | AU169: 0 | AV169: 0 | AW169: 0 | AX169: 0 | AY169: 0 | AZ169: 0 | BA169: 0 | BB169: 0 | BC169: 0 | BD169: 0 | BE169: 0 | BF169: 0 | BG169: 0 | BH169: 0 | BI169: =AJ169+Февраль!BI169 -> 0 | BJ169: 0 | BK169: 0 | BL169: =SUM(BL170:BL174) -> 0 | BM169: 0
A170: 340.01 | B170: медикаменды | C170: 26020 | D170: 807 | E170: 07 09 | F170: 02 1 04 80130 | G170: 244 | H170: =Февраль!H170 -> 0 | I170: =Февраль!I170 -> 0 | J170: =Февраль!BH170 -> 0 | K170: =Февраль!BJ170 -> 0 | L170: =SUM(M170:AI170) -> 0 | AJ170: =SUM(AK170:BG170) -> 0 | BH170: 0 | BI170: =AJ170+Февраль!BI170 -> 0 | BJ170: 0 | BK170: 0 | BM170: 0
A171: 340.02 | B171: продукты питания | C171: =C170 -> 26020 | D171: 807 | E171: 07 09 | F171: 02 1 04 80130 | G171: 244 | H171: =Февраль!H171 -> 0 | I171: =Февраль!I171 -> 0 | J171: =Февраль!BH171 -> 0 | K171: =Февраль!BJ171 -> 0 | L171: =SUM(M171:AI171) -> 0 | AJ171: =SUM(AK171:BG171) -> 0 | BH171: 0 | BI171: =AJ171+Февраль!BI171 -> 0 | BJ171: 0 | BK171: 0 | BM171: 0
A172: 340.03 | B172: ГСМ | C172: 26020 | D172: 807 | E172: 07 09 | F172: 02 1 04 80130 | G172: 244 | H172: =Февраль!H172 -> 0 | I172: =Февраль!I172 -> 0 | J172: =Февраль!BH172 -> 0 | K172: =Февраль!BJ172 -> 0 | L172: =SUM(M172:AI172) -> 0 | AJ172: =SUM(AK172:BG172) -> 0 | BH172: 0 | BI172: =AJ172+Февраль!BI172 -> 0 | BJ172: 0 | BK172: 0 | BM172: 0
A173: 340.04 | B173: Оплата котел. топлива | C173: 26020 | D173: 807 | E173: 07 09 | F173: 02 1 04 80130 | G173: 244 | H173: =Февраль!H173 -> 0 | I173: =Февраль!I173 -> 0 | J173: =Февраль!BH173 -> 0 | K173: =Февраль!BJ173 -> 0 | L173: =SUM(M173:AI173) -> 0 | AJ173: =SUM(AK173:BG173) -> 0 | BH173: 0 | BI173: =AJ173+Февраль!BI173 -> 0 | BJ173: 0 | BK173: 0 | BM173: 0
A174: 340.05 | B174: Прочее | C174: 26020 | D174: 807 | E174: 07 09 | F174: 02 1 04 80130 | G174: 244 | H174: =Февраль!H174 -> 0 | I174: =Февраль!I174 -> 0 | J174: =Февраль!BH174 -> 0 | K174: =Февраль!BJ174 -> 0 | L174: =SUM(M174:AI174) -> 0 | AJ174: =SUM(AK174:BG174) -> 0 | BH174: 0 | BI174: =AJ174+Февраль!BI174 -> 0 | BJ174: 0 | BK174: 0 | BM174: 0
A175: ИТОГО | B175: Итого расходов | C175: 26020 | D175: 807 | E175: 07 09 | F175: 02 1 04 80130 | G175: 244 | H175: =Февраль!H175 -> 20000 | I175: =Февраль!I175 -> 0 | J175: =Февраль!BH175 -> 0 | K175: =Февраль!BJ175 -> 0 | L175: =L121+L124+L131+L134+L135+L138+L143+L144+L148+L151+L152+L153+L154+L155+L159+L160+L163+L168+L169 -> 0 | M175: 0 | N175: 0 | O175: 0 | P175: 0 | Q175: 0 | R175: 0 | S175: 0 | T175: 0 | U175: 0 | V175: 0 | W175: 0 | X175: 0 | Y175: 0 | Z175: 0 | AA175: 0 | AB175: 0 | AC175: 0 | AD175: 0 | AE175: 0 | AF175: 0 | AG175: 0 | AH175: 0 | AI175: 0 | AJ175: 0 | AK175: 0 | AL175: 0 | AM175: 0 | AN175: 0 | AO175: 0 | AP175: 0 | AQ175: 0 | AR175: 0 | AS175: 0 | AT175: 0 | AU175: 0 | AV175: 0 | AW175: 0 | AX175: 0 | AY175: 0 | AZ175: 0 | BA175: 0 | BB175: 0 | BC175: 0 | BD175: 0 | BE175: 0 | BF175: 0 | BG175: 0 | BH175: 0 | BI175: =AJ175+Февраль!BI175 -> 0 | BJ175: 0 | BK175: 20000 | BL175: =BL121+BL124+BL131+BL134+BL135+BL138+BL143+BL144+BL148+BL151+BL152+BL153+BL154+BL155+BL159+BL160+BL163+BL168+BL169 -> 0 | BM175: 0
C176: =Февраль!C176 -> 22-53040 | D176: =Февраль!D176 -> 807 | E176: =Февраль!E176 -> 07 02 | F176: =Февраль!F176 -> 02 П 02 R3040 | G176: =Февраль!G176 -> 244 | BN176: =BN120+1 -> 4
A177: 211 | B177: оплата труда | C177: =C176 -> 22-53040 | D177: =D176 -> 807 | E177: 07 02 | F177: 02 П 02 R3040 | G177: 244 | H177: =Февраль!H177 -> 0 | I177: =Февраль!I177 -> 0 | J177: =Февраль!BH177 -> 0 | K177: =Февраль!BJ177 -> 0 | L177: =SUM(L178:L179) -> 0 | M177: 0 | N177: 0 | O177: 0 | P177: 0 | Q177: 0 | R177: 0 | S177: 0 | T177: 0 | U177: 0 | V177: 0 | W177: 0 | X177: 0 | Y177: 0 | Z177: 0 | AA177: 0 | AB177: 0 | AC177: 0 | AD177: 0 | AE177: 0 | AF177: 0 | AG177: 0 | AH177: 0 | AI177: 0 | AJ177: 0 | AK177: 0 | AL177: 0 | AM177: 0 | AN177: 0 | AO177: 0 | AP177: 0 | AQ177: 0 | AR177: 0 | AS177: 0 | AT177: 0 | AU177: 0 | AV177: 0 | AW177: 0 | AX177: 0 | AY177: 0 | AZ177: 0 | BA177: 0 | BB177: 0 | BC177: 0 | BD177: 0 | BE177: 0 | BF177: 0 | BG177: 0 | BH177: =J177+L177 -> 0 | BI177: =AJ177+Февраль!BI177 -> 0 | BJ177: =K177+L177-AJ177 -> 0 | BK177: =H177-BH177 -> 0 | BL177: =SUM(BL178:BL179) -> 0 | BM177: =I177-BH177 -> 0
A178: 211.01 | B178: Основная з/пл | C178: 22-53040 | D178: 807 | E178: 07 02 | F178: 02 П 02 R3040 | G178: 244 | H178: =Февраль!H178 -> 0 | I178: =Февраль!I178 -> 0 | J178: =Февраль!BH178 -> 0 | K178: =Февраль!BJ178 -> 0 | L178: =SUM(M178:AI178) -> 0 | AJ178: =SUM(AK178:BG178) -> 0 | BH178: =J178+L178 -> 0 | BI178: =AJ178+Февраль!BI178 -> 0 | BJ178: 0 | BK178: 0 | BM178: =I178-BH178 -> 0
A179: 211.02 | B179: Кл. руководство | C179: 22-53040 | D179: 807 | E179: 07 02 | F179: 02 П 02 R3040 | G179: 244 | H179: =Февраль!H179 -> 0 | I179: =Февраль!I179 -> 0 | J179: =Февраль!BH179 -> 0 | K179: =Февраль!BJ179 -> 0 | L179: =SUM(M179:AI179) -> 0 | AJ179: =SUM(AK179:BG179) -> 0 | BH179: 0 | BI179: =AJ179+Февраль!BI179 -> 0 | BJ179: 0 | BK179: 0 | BM179: 0
A180: 212 | B180: Всего проч. | C180: 22-53040 | D180: 807 | E180: 07 02 | F180: 02 П 02 R3040 | G180: 244 | H180: =Февраль!H180 -> 0 | I180: =Февраль!I180 -> 0 | J180: =Февраль!BH180 -> 0 | K180: =Февраль!BJ180 -> 0 | L180: =SUM(L181:L186) -> 0 | M180: 0 | N180: 0 | O180: 0 | P180: 0 | Q180: 0 | R180: 0 | S180: 0 | T180: 0 | U180: 0 | V180: 0 | W180: 0 | X180: 0 | Y180: 0 | Z180: 0 | AA180: 0 | AB180: 0 | AC180: 0 | AD180: 0 | AE180: 0 | AF180: 0 | AG180: 0 | AH180: 0 | AI180: 0 | AJ180: 0 | AK180: 0 | AL180: 0 | AM180: 0 | AN180: 0 | AO180: 0 | AP180: 0 | AQ180: 0 | AR180: 0 | AS180: 0 | AT180: 0 | AU180: 0 | AV180: 0 | AW180: 0 | AX180: 0 | AY180: 0 | AZ180: 0 | BA180: 0 | BB180: 0 | BC180: 0 | BD180: 0 | BE180: 0 | BF180: 0 | BG180: 0 | BH180: 0 | BI180: =AJ180+Февраль!BI180 -> 0 | BJ180: 0 | BK180: 0 | BL180: =SUM(BL181:BL186) -> 0 | BM180: 0
A181: 212.01 | B181: суточные | C181: 22-53040 | D181: 807 | E181: 07 02 | F181: 02 П 02 R3040 | G181: 244 | H181: =Февраль!H181 -> 0 | I181: =Февраль!I181 -> 0 | J181: =Февраль!BH181 -> 0 | K181: =Февраль!BJ181 -> 0 | L181: =SUM(M181:AI181) -> 0 | AJ181: =SUM(AK181:BG181) -> 0 | BH181: 0 | BI181: =AJ181+Февраль!BI181 -> 0 | BJ181: 0 | BK181: 0 | BM181: 0
A182: 212.02 | B182: книги | C182: 22-53040 | D182: 807 | E182: 07 02 | F182: 02 П 02 R3040 | G182: 244 | H182: =Февраль!H182 -> 0 | I182: =Февраль!I182 -> 0 | J182: =Февраль!BH182 -> 0 | K182: =Февраль!BJ182 -> 0 | L182: 0 | AJ182: 0 | BH182: 0 | BI182: =AJ182+Февраль!BI182 -> 0 | BJ182: 0 | BK182: 0 | BM182: 0
A183: 212.03 | B183: СКЛ | C183: 22-53040 | D183: 807 | E183: 07 02 | F183: 02 П 02 R3040 | G183: 244 | H183: =Февраль!H183 -> 0 | I183: =Февраль!I183 -> 0 | J183: =Февраль!BH183 -> 0 | K183: =Февраль!BJ183 -> 0 | L183: 0 | AJ183: 0 | BH183: 0 | BI183: =AJ183+Февраль!BI183 -> 0 | BJ183: 0 | BK183: 0 | BM183: 0
A184: 212.04 | B184: проезд в отпуск | C184: 22-53040 | D184: 807 | E184: 07 02 | F184: 02 П 02 R3040 | G184: 244 | H184: =Февраль!H184 -> 0 | I184: =Февраль!I184 -> 0 | J184: =Февраль!BH184 -> 0 | K184: =Февраль!BJ184 -> 0 | L184: 0 | AJ184: 0 | BH184: 0 | BI184: =AJ184+Февраль!BI184 -> 0 | BJ184: 0 | BK184: 0 | BM184: 0
A185: 212.05 | B185: соц.помощь | C185: 22-53040 | D185: 807 | E185: 07 02 | F185: 02 П 02 R3040 | G185: 244 | H185: =Февраль!H185 -> 0 | I185: =Февраль!I185 -> 0 | J185: =Февраль!BH185 -> 0 | K185: =Февраль!BJ185 -> 0 | L185: 0 | AJ185: 0 | BH185: 0 | BI185: =AJ185+Февраль!BI185 -> 0 | BJ185: 0 | BK185: 0 | BM185: 0
A186: 212.06 | B186: СКЛ | C186: 22-53040 | D186: 807 | E186: 07 02 | F186: 02 П 02 R3040 | G186: 244 | H186: =Февраль!H186 -> 0 | I186: =Февраль!I186 -> 0 | J186: =Февраль!BH186 -> 0 | K186: =Февраль!BJ186 -> 0 | L186: 0 | AJ186: 0 | BH186: 0 | BI186: =AJ186+Февраль!BI186 -> 0 | BJ186: 0 | BK186: 0 | BM186: 0
A187: 213 | B187: ЕСН | C187: 22-53040 | D187: 807 | E187: 07 02 | F187: 02 П 02 R3040 | G187: 244 | H187: =Февраль!H187 -> 0 | I187: =Февраль!I187 -> 0 | J187: =Февраль!BH187 -> 0 | K187: =Февраль!BJ187 -> 0 | L187: =SUM(L188:L189) -> 0 | M187: 0 | N187: 0 | O187: 0 | P187: 0 | Q187: 0 | R187: 0 | S187: 0 | T187: 0 | U187: 0 | V187: 0 | W187: 0 | X187: 0 | Y187: 0 | Z187: 0 | AA187: 0 | AB187: 0 | AC187: 0 | AD187: 0 | AE187: 0 | AF187: 0 | AG187: 0 | AH187: 0 | AI187: 0 | AJ187: 0 | AK187: 0 | AL187: 0 | AM187: 0 | AN187: 0 | AO187: 0 | AP187: 0 | AQ187: 0 | AR187: 0 | AS187: 0 | AT187: 0 | AU187: 0 | AV187: 0 | AW187: 0 | AX187: 0 | AY187: 0 | AZ187: 0 | BA187: 0 | BB187: 0 | BC187: 0 | BD187: 0 | BE187: 0 | BF187: 0 | BG187: 0 | BH187: 0 | BI187: =AJ187+Февраль!BI187 -> 0 | BJ187: 0 | BK187: 0 | BL187: =SUM(BL188:BL189) -> 0 | BM187: 0
A188: 213.01 | B188: ЕСН основ. | C188: 22-53040 | D188: 807 | E188: 07 02 | F188: 02 П 02 R3040 | G188: 244 | H188: =Февраль!H188 -> 0 | I188: =Февраль!I188 -> 0 | J188: =Февраль!BH188 -> 0 | K188: =Февраль!BJ188 -> 0 | L188: =SUM(M188:AI188) -> 0 | AJ188: =SUM(AK188:BG188) -> 0 | BH188: 0 | BI188: =AJ188+Февраль!BI188 -> 0 | BJ188: 0 | BK188: 0 | BM188: 0
A189: 213.02 | B189: ЕСН кл. рук. | C189: 22-53040 | D189: 807 | E189: 07 02 | F189: 02 П 02 R3040 | G189: 244 | H189: =Февраль!H189 -> 0 | I189: =Февраль!I189 -> 0 | J189: =Февраль!BH189 -> 0 | K189: =Февраль!BJ189 -> 0 | L189: =SUM(M189:AI189) -> 0 | AJ189: =SUM(AK189:BG189) -> 0 | BH189: 0 | BI189: =AJ189+Февраль!BI189 -> 0 | BJ189: 0 | BK189: 0 | BM189: 0
A190: 221 | B190: связь | C190: 22-53040 | D190: 807 | E190: 07 02 | F190: 02 П 02 R3040 | G190: 244 | H190: =Февраль!H190 -> 0 | I190: =Февраль!I190 -> 0 | J190: =Февраль!BH190 -> 0 | K190: =Февраль!BJ190 -> 0 | L190: =SUM(M190:AI190) -> 0 | AJ190: =SUM(AK190:BG190) -> 0 | BH190: 0 | BI190: =AJ190+Февраль!BI190 -> 0 | BJ190: 0 | BK190: 0 | BM190: 0
A191: 222 | B191: Всего тран. | C191: 22-53040 | D191: 807 | E191: 07 02 | F191: 02 П 02 R3040 | G191: 244 | H191: =Февраль!H191 -> 0 | I191: =Февраль!I191 -> 0 | J191: =Февраль!BH191 -> 0 | K191: =Февраль!BJ191 -> 0 | L191: =SUM(L192:L193) -> 0 | M191: 0 | N191: 0 | O191: 0 | P191: 0 | Q191: 0 | R191: 0 | S191: 0 | T191: 0 | U191: 0 | V191: 0 | W191: 0 | X191: 0 | Y191: 0 | Z191: 0 | AA191: 0 | AB191: 0 | AC191: 0 | AD191: 0 | AE191: 0 | AF191: 0 | AG191: 0 | AH191: 0 | AI191: 0 | AJ191: 0 | AK191: 0 | AL191: 0 | AM191: 0 | AN191: 0 | AO191: 0 | AP191: 0 | AQ191: 0 | AR191: 0 | AS191: 0 | AT191: 0 | AU191: 0 | AV191: 0 | AW191: 0 | AX191: 0 | AY191: 0 | AZ191: 0 | BA191: 0 | BB191: 0 | BC191: 0 | BD191: 0 | BE191: 0 | BF191: 0 | BG191: 0 | BH191: 0 | BI191: =AJ191+Февраль!BI191 -> 0 | BJ191: 0 | BK191: 0 | BL191: =SUM(BL192:BL193) -> 0 | BM191: 0
A192: 222.01 | B192: проезд команд. | C192: 22-53040 | D192: 807 | E192: 07 02 | F192: 02 П 02 R3040 | G192: 244 | H192: =Февраль!H192 -> 0 | I192: =Февраль!I192 -> 0 | J192: =Февраль!BH192 -> 0 | K192: =Февраль!BJ192 -> 0 | L192: =SUM(M192:AI192) -> 0 | AJ192: =SUM(AK192:BG192) -> 0 | BH192: 0 | BI192: =AJ192+Февраль!BI192 -> 0 | BJ192: 0 | BK192: 0 | BM192: 0
A193: 222.02 | B193: транспортные усл | C193: 22-53040 | D193: =D192 -> 807 | E193: 07 02 | F193: 02 П 02 R3040 | G193: 244 | H193: =Февраль!H193 -> 0 | I193: =Февраль!I193 -> 0 | J193: =Февраль!BH193 -> 0 | K193: =Февраль!BJ193 -> 0 | L193: =SUM(M193:AI193) -> 0 | AJ193: =SUM(AK193:BG193) -> 0 | BH193: 0 | BI193: =AJ193+Февраль!BI193 -> 0 | BJ193: 0 | BK193: 0 | BM193: 0
A194: 223 | B194: Всего ком. усл. | C194: 22-53040 | D194: 807 | E194: 07 02 | F194: 02 П 02 R3040 | G194: 244 | H194: =Февраль!H194 -> 0 | I194: =Февраль!I194 -> 0 | J194: =Февраль!BH194 -> 0 | K194: =Февраль!BJ194 -> 0 | L194: =SUM(L195:L198) -> 0 | M194: 0 | N194: 0 | O194: 0 | P194: 0 | Q194: 0 | R194: 0 | S194: 0 | T194: 0 | U194: 0 | V194: 0 | W194: 0 | X194: 0 | Y194: 0 | Z194: 0 | AA194: 0 | AB194: 0 | AC194: 0 | AD194: 0 | AE194: 0 | AF194: 0 | AG194: 0 | AH194: 0 | AI194: 0 | AJ194: 0 | AK194: 0 | AL194: 0 | AM194: 0 | AN194: 0 | AO194: 0 | AP194: 0 | AQ194: 0 | AR194: 0 | AS194: 0 | AT194: 0 | AU194: 0 | AV194: 0 | AW194: 0 | AX194: 0 | AY194: 0 | AZ194: 0 | BA194: 0 | BB194: 0 | BC194: 0 | BD194: 0 | BE194: 0 | BF194: 0 | BG194: 0 | BH194: 0 | BI194: =AJ194+Февраль!BI194 -> 0 | BJ194: 0 | BK194: 0 | BL194: =SUM(BL195:BL198) -> 0 | BM194: 0
A195: 223.01 | B195: отопление | C195: =C194 -> 22-53040 | D195: 807 | E195: 07 02 | F195: 02 П 02 R3040 | G195: 244 | H195: =Февраль!H195 -> 0 | I195: =Февраль!I195 -> 0 | J195: =Февраль!BH195 -> 0 | K195: =Февраль!BJ195 -> 0 | L195: =SUM(M195:AI195) -> 0 | AJ195: =SUM(AK195:BG195) -> 0 | BH195: 0 | BI195: =AJ195+Февраль!BI195 -> 0 | BJ195: 0 | BK195: 0 | BM195: 0
A196: 223.02 | B196: потребление газа | C196: 22-53040 | D196: 807 | E196: 07 02 | F196: 02 П 02 R3040 | G196: 244 | H196: =Февраль!H196 -> 0 | I196: =Февраль!I196 -> 0 | J196: =Февраль!BH196 -> 0 | K196: =Февраль!BJ196 -> 0 | L196: =SUM(M196:AI196) -> 0 | AJ196: =SUM(AK196:BG196) -> 0 | BH196: 0 | BI196: =AJ196+Февраль!BI196 -> 0 | BJ196: 0 | BK196: 0 | BM196: 0
A197: 223.03 | B197: электроэнергия | C197: 22-53040 | D197: 807 | E197: 07 02 | F197: 02 П 02 R3040 | G197: 244 | H197: =Февраль!H197 -> 0 | I197: =Февраль!I197 -> 0 | J197: =Февраль!BH197 -> 0 | K197: =Февраль!BJ197 -> 0 | L197: =SUM(M197:AI197) -> 0 | AJ197: =SUM(AK197:BG197) -> 0 | BH197: 0 | BI197: =AJ197+Февраль!BI197 -> 0 | BJ197: 0 | BK197: 0 | BM197: 0
A198: 223.04 | B198: водоснабжение | C198: 22-53040 | D198: 807 | E198: 07 02 | F198: 02 П 02 R3040 | G198: 244 | H198: =Февраль!H198 -> 0 | I198: =Февраль!I198 -> 0 | J198: =Февраль!BH198 -> 0 | K198: =Февраль!BJ198 -> 0 | L198: =SUM(M198:AI198) -> 0 | AJ198: =SUM(AK198:BG198) -> 0 | BH198: 0 | BI198: =AJ198+Февраль!BI198 -> 0 | BJ198: 0 | BK198: 0 | BM198: 0
A199: 224 | B199: аренда | C199: 22-53040 | D199: 807 | E199: 07 02 | F199: 02 П 02 R3040 | G199: 244 | H199: =Февраль!H199 -> 0 | I199: =Февраль!I199 -> 0 | J199: =Февраль!BH199 -> 0 | K199: =Февраль!BJ199 -> 0 | L199: =SUM(M199:AI199) -> 0 | AJ199: =SUM(AK199:BG199) -> 0 | BH199: 0 | BI199: =AJ199+Февраль!BI199 -> 0 | BJ199: 0 | BK199: 0 | BM199: 0
A200: 225 | B200: Всего содер. Имущ. | C200: 22-53040 | D200: 807 | E200: 07 02 | F200: 02 П 02 R3040 | G200: 244 | H200: =Февраль!H200 -> 0 | I200: =Февраль!I200 -> 0 | J200: =Февраль!BH200 -> 0 | K200: =Февраль!BJ200 -> 0 | L200: =SUM(L201:L203) -> 0 | M200: 0 | N200: 0 | O200: 0 | P200: 0 | Q200: 0 | R200: 0 | S200: 0 | T200: 0 | U200: 0 | V200: 0 | W200: 0 | X200: 0 | Y200: 0 | Z200: 0 | AA200: 0 | AB200: 0 | AC200: 0 | AD200: 0 | AE200: 0 | AF200: 0 | AG200: 0 | AH200: 0 | AI200: 0 | AJ200: 0 | AK200: 0 | AL200: 0 | AM200: 0 | AN200: 0 | AO200: 0 | AP200: 0 | AQ200: 0 | AR200: 0 | AS200: 0 | AT200: 0 | AU200: 0 | AV200: 0 | AW200: 0 | AX200: 0 | AY200: 0 | AZ200: 0 | BA200: 0 | BB200: 0 | BC200: 0 | BD200: 0 | BE200: 0 | BF200: 0 | BG200: 0 | BH200: 0 | BI200: =AJ200+Февраль!BI200 -> 0 | BJ200: 0 | BK200: 0 | BL200: =SUM(BL201:BL203) -> 0 | BM200: 0
A201: 225.01 | B201: ремонт зд. и сооруж. | C201: 22-53040 | D201: 807 | E201: 07 02 | F201: 02 П 02 R3040 | G201: 244 | H201: =Февраль!H201 -> 0 | I201: =Февраль!I201 -> 0 | J201: =Февраль!BH201 -> 0 | K201: =Февраль!BJ201 -> 0 | L201: =SUM(M201:AI201) -> 0 | AJ201: =SUM(AK201:BG201) -> 0 | BH201: 0 | BI201: =AJ201+Февраль!BI201 -> 0 | BJ201: 0 | BK201: 0 | BM201: 0
A202: 225.02 | B202: вывоз мусора | C202: 22-53040 | D202: 807 | E202: 07 02 | F202: 02 П 02 R3040 | G202: 244 | H202: =Февраль!H202 -> 0 | I202: =Февраль!I202 -> 0 | J202: =Февраль!BH202 -> 0 | K202: =Февраль!BJ202 -> 0 | L202: =SUM(M202:AI202) -> 0 | AJ202: =SUM(AK202:BG202) -> 0 | BH202: 0 | BI202: =AJ202+Февраль!BI202 -> 0 | BJ202: 0 | BK202: 0 | BM202: 0
A203: 225.03 | B203: прочие ком. услуги | C203: 22-53040 | D203: 807 | E203: 07 02 | F203: 02 П 02 R3040 | G203: 244 | H203: =Февраль!H203 -> 0 | I203: =Февраль!I203 -> 0 | J203: =Февраль!BH203 -> 0 | K203: =Февраль!BJ203 -> 0 | L203: =SUM(M203:AI203) -> 0 | AJ203: =SUM(AK203:BG203) -> 0 | BH203: 0 | BI203: =AJ203+Февраль!BI203 -> 0 | BJ203: 0 | BK203: 0 | BM203: 0
... 922 more rows

Sheet Апрель
A1: КАРТОЧКА АНАЛИТИЧЕСКОГО УЧЕТА КАССОВЫХ РАСХОДОВ
A3: АПРЕЛЬ
A5: Статьи | C5: Подразделение | D5: ГЛ | E5: РП | F5: ЦС | G5: ВР | H5: Утверждено на год | I5: Квартал | J5: Профинансировано на начало месяца | K5: Остаток на счете на начало месяца | L5: Поступило за месяц | M5: 2021-04-07 | N5: 2022-04-12 | O5: 2022-04-19 | P5: 2022-04-25 | AJ5: Расход за месяц | AK5: 2022-04-01 | AL5: 2022-04-07 | AM5: 2022-04-08 | AN5: 2022-04-11 | AO5: 2022-04-12 | AP5: 2022-04-18 | AQ5: 2022-04-20 | AR5: 2022-04-25 | AS5: 2022-04-29 | BH5: Профинансировано с начала года | BI5: Расход с начала года | BJ5: Остаток на счете на конец месяца | BK5: Остаток лимита год | BL5: Справочно:
BL6: профинансировано за 2 квартал | BM6: остаток лимита 1 и 2 кварталов
C8: =Март!C8 -> субвенция | D8: =Март!D8 -> 807 | E8: =Март!E8 -> 07 02 | F8: =Март!F8 -> 02 П 02 С9903 | G8: =Март!G8 -> 111 | BN8: 1
A9: 211 | B9: оплата труда | C9: =C8 -> субвенция | D9: =D8 -> 807 | E9: 07 02 | F9: 02 П 02 С9903 | G9: 111 | H9: =Март!H9 -> 44000000 | I9: =SUM(I10:I11) -> 0 | J9: =Март!BH9 -> 14000000 | K9: =Март!BJ9 -> 5394521.01 | L9: =SUM(L10:L11) -> 1300000 | M9: 0 | N9: 0 | O9: 0 | P9: 1300000 | Q9: 0 | R9: 0 | S9: 0 | T9: 0 | U9: 0 | V9: 0 | W9: 0 | X9: 0 | Y9: 0 | Z9: 0 | AA9: 0 | AB9: 0 | AC9: 0 | AD9: 0 | AE9: 0 | AF9: 0 | AG9: 0 | AH9: 0 | AI9: 0 | AJ9: 6399383.83 | AK9: 2493302.96 | AL9: 0 | AM9: 88 | AN9: 0 | AO9: 0 | AP9: 871000 | AQ9: 0 | AR9: 563026.4 | AS9: 2545624.02 | AT9: -73657.55 | AU9: 0 | AV9: 0 | AW9: 0 | AX9: 0 | AY9: 0 | AZ9: 0 | BA9: 0 | BB9: 0 | BC9: 0 | BD9: 0 | BE9: 0 | BF9: 0 | BG9: 0 | BH9: =J9+L9 -> 15300000 | BI9: =AJ9+Март!BI9 -> 15004862.82 | BJ9: =K9+L9-AJ9 -> 295137.18 | BK9: =H9-BH9 -> 28700000 | BL9: 0 | BM9: =Март!I9+Апрель!I9-Апрель!BH9 -> -15300000
A10: 211.01 | B10: Основная з/пл | C10: субвенция | D10: 807 | E10: 07 02 | F10: 02 П 02 С9903 | G10: 111 | H10: =Март!H10 -> 44000000 | J10: =Март!BH10 -> 14000000 | K10: =Март!BJ10 -> 5394521.01 | L10: =SUM(M10:AI10) -> 1300000 | P10: 1300000 | AJ10: =SUM(AK10:BG10) -> 6399383.83 | AK10: 2493302.96 | AM10: 88 | AP10: 871000 | AR10: 563026.4 | AS10: 2545624.02 | AT10: -73657.55 | BH10: =J10+L10 -> 15300000 | BI10: =AJ10+Март!BI10 -> 15004862.82 | BJ10: =K10+L10-AJ10 -> 295137.18 | BK10: =H10-BH10 -> 28700000 | BM10: =Март!I10+Апрель!I10-Апрель!BH10 -> -15300000
A11: 211.02 | B11: Кл. руководство | C11: субвенция | D11: 807 | E11: 07 02 | F11: 02 П 02 С9903 | G11: 111 | H11: =Март!H11 -> 0 | J11: =Март!BH11 -> 0 | K11: =Март!BJ11 -> 0 | L11: =SUM(M11:AI11) -> 0 | AJ11: =SUM(AK11:BG11) -> 0 | BH11: 0 | BI11: =AJ11+Март!BI11 -> 0 | BJ11: 0 | BK11: 0 | BM11: =Март!I11+Апрель!I11-Апрель!BH11 -> 0
A12: 266 | B12: Всего проч. | C12: субвенция | D12: 807 | E12: 07 02 | F12: 02 П 02 С9903 | G12: 111 | H12: =Март!H12 -> 100000 | I12: =SUM(I13:I18) -> 0 | J12: =Март!BH12 -> 36591.54 | K12: =Март!BJ12 -> 0 | L12: =SUM(L13:L18) -> 0 | M12: 0 | N12: 0 | O12: 0 | P12: 0 | Q12: 0 | R12: 0 | S12: 0 | T12: 0 | U12: 0 | V12: 0 | W12: 0 | X12: 0 | Y12: 0 | Z12: 0 | AA12: 0 | AB12: 0 | AC12: 0 | AD12: 0 | AE12: 0 | AF12: 0 | AG12: 0 | AH12: 0 | AI12: 0 | AJ12: 15194.46 | AK12: 0 | AL12: 0 | AM12: 0 | AN12: 0 | AO12: 0 | AP12: 0 | AQ12: 0 | AR12: 0 | AS12: 15194.46 | AT12: 0 | AU12: 0 | AV12: 0 | AW12: 0 | AX12: 0 | AY12: 0 | AZ12: 0 | BA12: 0 | BB12: 0 | BC12: 0 | BD12: 0 | BE12: 0 | BF12: 0 | BG12: 0 | BH12: 36591.54 | BI12: =AJ12+Март!BI12 -> 51786 | BJ12: -15194.46 | BK12: 63408.46 | BL12: 0 | BM12: =Март!I12+Апрель!I12-Апрель!BH12 -> -36591.54
A13: 266 | B13: суточные | C13: субвенция | D13: 807 | E13: 07 02 | F13: 02 П 02 С9903 | G13: 111 | H13: =Март!H13 -> 100000 | J13: =Март!BH13 -> 36591.54 | K13: =Март!BJ13 -> 0 | L13: =SUM(M13:AI13) -> 0 | AJ13: =SUM(AK13:BG13) -> 15194.46 | AS13: 15194.46 | BH13: 36591.54 | BI13: =AJ13+Март!BI13 -> 51786 | BJ13: -15194.46 | BK13: 63408.46 | BM13: =Март!I13+Апрель!I13-Апрель!BH13 -> -36591.54
A14: 212.02 | B14: книги | C14: субвенция | D14: 807 | E14: 07 02 | F14: 02 П 02 С9903 | G14: 111 | H14: =Март!H14 -> 0 | J14: =Март!BH14 -> 0 | K14: =Март!BJ14 -> 0 | L14: 0 | AJ14: 0 | BH14: 0 | BI14: =AJ14+Март!BI14 -> 0 | BJ14: 0 | BK14: 0 | BM14: =Март!I14+Апрель!I14-Апрель!BH14 -> 0
A15: 266 | B15: СКЛ | C15: субвенция | D15: 807 | E15: 07 02 | F15: 02 П 02 С9903 | G15: 112 | H15: =Март!H15 -> 0 | J15: =Март!BH15 -> 0 | K15: =Март!BJ15 -> 0 | L15: 0 | AJ15: 0 | BH15: 0 | BI15: =AJ15+Март!BI15 -> 0 | BJ15: 0 | BK15: 0 | BM15: =Март!I15+Апрель!I15-Апрель!BH15 -> 0
A16: 212.04 | B16: проезд в отпуск | C16: субвенция | D16: 807 | E16: 07 02 | F16: 02 П 02 С9903 | G16: 112 | H16: =Март!H16 -> 0 | J16: =Март!BH16 -> 0 | K16: =Март!BJ16 -> 0 | L16: 0 | AJ16: 0 | BH16: 0 | BI16: =AJ16+Март!BI16 -> 0 | BJ16: 0 | BK16: 0 | BM16: =Март!I16+Апрель!I16-Апрель!BH16 -> 0
A17: 212.05 | B17: соц.помощь | C17: субвенция | D17: 807 | E17: 07 02 | F17: 02 П 02 С9903 | G17: 112 | H17: =Март!H17 -> 0 | J17: =Март!BH17 -> 0 | K17: =Март!BJ17 -> 0 | L17: 0 | AJ17: 0 | BH17: 0 | BI17: =AJ17+Март!BI17 -> 0 | BJ17: 0 | BK17: 0 | BM17: =Март!I17+Апрель!I17-Апрель!BH17 -> 0
A18: 212.06 | B18: СКЛ | C18: субвенция | D18: 807 | E18: 07 02 | F18: 02 П 02 С9903 | G18: 112 | H18: =Март!H18 -> 0 | J18: =Март!BH18 -> 0 | K18: =Март!BJ18 -> 0 | L18: 0 | AJ18: 0 | BH18: 0 | BI18: =AJ18+Март!BI18 -> 0 | BJ18: 0 | BK18: 0 | BM18: =Март!I18+Апрель!I18-Апрель!BH18 -> 0
A19: 213 | B19: ЕСН | C19: субвенция | D19: 807 | E19: 07 02 | F19: 02 П 02 С9903 | G19: 119 | H19: =Март!H19 -> 13252600 | I19: =SUM(I20:I21) -> 0 | J19: =Март!BH19 -> 3497200 | K19: =Март!BJ19 -> 1225184.77 | L19: =SUM(L20:L21) -> 1100000 | M19: 0 | N19: 0 | O19: 0 | P19: 1100000 | Q19: 0 | R19: 0 | S19: 0 | T19: 0 | U19: 0 | V19: 0 | W19: 0 | X19: 0 | Y19: 0 | Z19: 0 | AA19: 0 | AB19: 0 | AC19: 0 | AD19: 0 | AE19: 0 | AF19: 0 | AG19: 0 | AH19: 0 | AI19: 0 | AJ19: 2261173.16 | AK19: 1066880.74 | AL19: 0 | AM19: 2240.72 | AN19: 0 | AO19: 0 | AP19: 0 | AQ19: 0 | AR19: 0 | AS19: 1192051.7 | AT19: 0 | AU19: 0 | AV19: 0 | AW19: 0 | AX19: 0 | AY19: 0 | AZ19: 0 | BA19: 0 | BB19: 0 | BC19: 0 | BD19: 0 | BE19: 0 | BF19: 0 | BG19: 0 | BH19: 4597200 | BI19: =AJ19+Март!BI19 -> 4533188.39 | BJ19: 64011.61 | BK19: 8655400 | BL19: 0 | BM19: =Март!I19+Апрель!I19-Апрель!BH19 -> -4597200
A20: 213.01 | B20: ЕСН основ. | C20: субвенция | D20: 807 | E20: 07 02 | F20: 02 П 02 С9903 | G20: 119 | H20: =Март!H20 -> 13252600 | J20: =Март!BH20 -> 3497200 | K20: =Март!BJ20 -> 1225184.77 | L20: =SUM(M20:AI20) -> 1100000 | P20: 1100000 | AJ20: =SUM(AK20:BG20) -> 2261173.16 | AK20: 1066880.74 | AM20: 2240.72 | AS20: 1192051.7 | BH20: 4597200 | BI20: =AJ20+Март!BI20 -> 4533188.39 | BJ20: 64011.61 | BK20: 8655400 | BM20: =Март!I20+Апрель!I20-Апрель!BH20 -> -4597200
A21: 213.02 | B21: ЕСН кл. рук. | C21: субвенция | D21: 807 | E21: 07 02 | F21: 02 П 02 С9903 | G21: 119 | H21: =Март!H21 -> 0 | J21: =Март!BH21 -> 0 | K21: =Март!BJ21 -> 0 | L21: =SUM(M21:AI21) -> 0 | AJ21: =SUM(AK21:BG21) -> 0 | BH21: 0 | BI21: =AJ21+Март!BI21 -> 0 | BJ21: 0 | BK21: 0 | BM21: =Март!I21+Апрель!I21-Апрель!BH21 -> 0
A22: 221 | B22: связь | C22: субвенция | D22: 807 | E22: 07 02 | F22: 02 П 02 С9903 | G22: 244 | H22: =Март!H22 -> 64400 | J22: =Март!BH22 -> 8164.8 | K22: =Март!BJ22 -> 0 | L22: =SUM(M22:AI22) -> 4741.6 | O22: 4741.6 | AJ22: =SUM(AK22:BG22) -> 4741.6 | AQ22: 4741.6 | BH22: 12906.4 | BI22: =AJ22+Март!BI22 -> 12906.4 | BJ22: 0 | BK22: 51493.6 | BM22: =Март!I22+Апрель!I22-Апрель!BH22 -> -12906.4
A23: 222 | B23: Всего тран. | C23: субвенция | D23: 807 | E23: 07 02 | F23: 02 П 02 С9903 | G23: 244 | H23: =Март!H23 -> 113100 | I23: =SUM(I24:I25) -> 0 | J23: =Март!BH23 -> 49500 | K23: =Март!BJ23 -> 0 | L23: =SUM(L24:L25) -> 16500 | M23: 0 | N23: 0 | O23: 16500 | P23: 0 | Q23: 0 | R23: 0 | S23: 0 | T23: 0 | U23: 0 | V23: 0 | W23: 0 | X23: 0 | Y23: 0 | Z23: 0 | AA23: 0 | AB23: 0 | AC23: 0 | AD23: 0 | AE23: 0 | AF23: 0 | AG23: 0 | AH23: 0 | AI23: 0 | AJ23: 16500 | AK23: 0 | AL23: 0 | AM23: 0 | AN23: 0 | AO23: 0 | AP23: 0 | AQ23: 16500 | AR23: 0 | AS23: 0 | AT23: 0 | AU23: 0 | AV23: 0 | AW23: 0 | AX23: 0 | AY23: 0 | AZ23: 0 | BA23: 0 | BB23: 0 | BC23: 0 | BD23: 0 | BE23: 0 | BF23: 0 | BG23: 0 | BH23: 66000 | BI23: =AJ23+Март!BI23 -> 66000 | BJ23: 0 | BK23: 47100 | BL23: 0 | BM23: =Март!I23+Апрель!I23-Апрель!BH23 -> -66000
A24: 222.01 | B24: проезд команд. | C24: субвенция | D24: 807 | E24: 07 02 | F24: 02 П 02 С9903 | G24: 244 | H24: =Март!H24 -> 0 | J24: =Март!BH24 -> 0 | K24: =Март!BJ24 -> 0 | L24: =SUM(M24:AI24) -> 0 | AJ24: =SUM(AK24:BG24) -> 0 | BH24: 0 | BI24: =AJ24+Март!BI24 -> 0 | BJ24: 0 | BK24: 0 | BM24: =Март!I24+Апрель!I24-Апрель!BH24 -> 0
A25: 222.02 | B25: транспортные усл | C25: субвенция | D25: =D24 -> 807 | E25: 07 02 | F25: 02 П 02 С9903 | G25: 244 | H25: =Март!H25 -> 113100 | J25: =Март!BH25 -> 49500 | K25: =Март!BJ25 -> 0 | L25: =SUM(M25:AI25) -> 16500 | O25: 16500 | AJ25: =SUM(AK25:BG25) -> 16500 | AQ25: 16500 | BH25: 66000 | BI25: =AJ25+Март!BI25 -> 66000 | BJ25: 0 | BK25: 47100 | BM25: =Март!I25+Апрель!I25-Апрель!BH25 -> -66000
A26: 212 | B26: Всего ком. усл. | C26: субвенция | D26: 807 | E26: 07 02 | F26: 02 П 02 С9903 | G26: 244 | H26: =Март!H26 -> 3800 | I26: =SUM(I27:I30) -> 0 | J26: =Март!BH26 -> 0 | K26: =Март!BJ26 -> 0 | L26: =SUM(L27:L30) -> 0 | M26: 0 | N26: 0 | O26: 0 | P26: 0 | Q26: 0 | R26: 0 | S26: 0 | T26: 0 | U26: 0 | V26: 0 | W26: 0 | X26: 0 | Y26: 0 | Z26: 0 | AA26: 0 | AB26: 0 | AC26: 0 | AD26: 0 | AE26: 0 | AF26: 0 | AG26: 0 | AH26: 0 | AI26: 0 | AJ26: 0 | AK26: 0 | AL26: 0 | AM26: 0 | AN26: 0 | AO26: 0 | AP26: 0 | AQ26: 0 | AR26: 0 | AS26: 0 | AT26: 0 | AU26: 0 | AV26: 0 | AW26: 0 | AX26: 0 | AY26: 0 | AZ26: 0 | BA26: 0 | BB26: 0 | BC26: 0 | BD26: 0 | BE26: 0 | BF26: 0 | BG26: 0 | BH26: 0 | BI26: =AJ26+Март!BI26 -> 0 | BJ26: 0 | BK26: 3800 | BL26: 0 | BM26: =Март!I26+Апрель!I26-Апрель!BH26 -> 0
A27: 223.01 | B27: отопление | C27: =C26 -> субвенция | D27: 807 | E27: 07 02 | F27: 02 П 02 С9903 | G27: 244 | H27: =Март!H27 -> 3800 | J27: =Март!BH27 -> 0 | K27: =Март!BJ27 -> 0 | L27: =SUM(M27:AI27) -> 0 | AJ27: =SUM(AK27:BG27) -> 0 | BH27: 0 | BI27: =AJ27+Март!BI27 -> 0 | BJ27: 0 | BK27: 3800 | BM27: =Март!I27+Апрель!I27-Апрель!BH27 -> 0
A28: 223.02 | B28: потребление газа | C28: субвенция | D28: 807 | E28: 07 02 | F28: 02 П 02 С9903 | G28: 244 | H28: =Март!H28 -> 0 | J28: =Март!BH28 -> 0 | K28: =Март!BJ28 -> 0 | L28: =SUM(M28:AI28) -> 0 | AJ28: =SUM(AK28:BG28) -> 0 | BH28: 0 | BI28: =AJ28+Март!BI28 -> 0 | BJ28: 0 | BK28: 0 | BM28: =Март!I28+Апрель!I28-Апрель!BH28 -> 0
A29: 223.03 | B29: электроэнергия | C29: субвенция | D29: 807 | E29: 07 02 | F29: 02 П 02 С9903 | G29: 244 | H29: =Март!H29 -> 0 | J29: =Март!BH29 -> 0 | K29: =Март!BJ29 -> 0 | L29: =SUM(M29:AI29) -> 0 | AJ29: =SUM(AK29:BG29) -> 0 | BH29: 0 | BI29: =AJ29+Март!BI29 -> 0 | BJ29: 0 | BK29: 0 | BM29: =Март!I29+Апрель!I29-Апрель!BH29 -> 0
A30: 223.04 | B30: водоснабжение | C30: субвенция | D30: 807 | E30: 07 02 | F30: 02 П 02 С9903 | G30: 244 | H30: =Март!H30 -> 0 | J30: =Март!BH30 -> 0 | K30: =Март!BJ30 -> 0 | L30: =SUM(M30:AI30) -> 0 | AJ30: =SUM(AK30:BG30) -> 0 | BH30: 0 | BI30: =AJ30+Март!BI30 -> 0 | BJ30: 0 | BK30: 0 | BM30: =Март!I30+Апрель!I30-Апрель!BH30 -> 0
A31: 224 | B31: аренда | C31: субвенция | D31: 807 | E31: 07 02 | F31: 02 П 02 С9903 | G31: 244 | H31: =Март!H31 -> 0 | J31: =Март!BH31 -> 0 | K31: =Март!BJ31 -> 0 | L31: =SUM(M31:AI31) -> 0 | AJ31: =SUM(AK31:BG31) -> 0 | BH31: 0 | BI31: =AJ31+Март!BI31 -> 0 | BJ31: 0 | BK31: 0 | BM31: =Март!I31+Апрель!I31-Апрель!BH31 -> 0
A32: 225 | B32: Всего содер. Имущ. | C32: субвенция | D32: 807 | E32: 07 02 | F32: 02 П 02 С9903 | G32: 244 | H32: =Март!H32 -> 112600 | I32: =SUM(I33:I35) -> 0 | J32: =Март!BH32 -> 0 | K32: =Март!BJ32 -> 0 | L32: =SUM(L33:L35) -> 0 | M32: 0 | N32: 0 | O32: 0 | P32: 0 | Q32: 0 | R32: 0 | S32: 0 | T32: 0 | U32: 0 | V32: 0 | W32: 0 | X32: 0 | Y32: 0 | Z32: 0 | AA32: 0 | AB32: 0 | AC32: 0 | AD32: 0 | AE32: 0 | AF32: 0 | AG32: 0 | AH32: 0 | AI32: 0 | AJ32: 0 | AK32: 0 | AL32: 0 | AM32: 0 | AN32: 0 | AO32: 0 | AP32: 0 | AQ32: 0 | AR32: 0 | AS32: 0 | AT32: 0 | AU32: 0 | AV32: 0 | AW32: 0 | AX32: 0 | AY32: 0 | AZ32: 0 | BA32: 0 | BB32: 0 | BC32: 0 | BD32: 0 | BE32: 0 | BF32: 0 | BG32: 0 | BH32: 0 | BI32: =AJ32+Март!BI32 -> 0 | BJ32: 0 | BK32: 112600 | BL32: 0 | BM32: =Март!I32+Апрель!I32-Апрель!BH32 -> 0
A33: 225.01 | B33: ремонт зд. и сооруж. | C33: субвенция | D33: 807 | E33: 07 02 | F33: 02 П 02 С9903 | G33: 244 | H33: =Март!H33 -> 112600 | J33: =Март!BH33 -> 0 | K33: =Март!BJ33 -> 0 | L33: =SUM(M33:AI33) -> 0 | AJ33: =SUM(AK33:BG33) -> 0 | BH33: 0 | BI33: =AJ33+Март!BI33 -> 0 | BJ33: 0 | BK33: 112600 | BM33: =Март!I33+Апрель!I33-Апрель!BH33 -> 0
A34: 225.02 | B34: вывоз мусора | C34: субвенция | D34: 807 | E34: 07 02 | F34: 02 П 02 С9903 | G34: 244 | H34: =Март!H34 -> 0 | J34: =Март!BH34 -> 0 | K34: =Март!BJ34 -> 0 | L34: =SUM(M34:AI34) -> 0 | AJ34: =SUM(AK34:BG34) -> 0 | BH34: 0 | BI34: =AJ34+Март!BI34 -> 0 | BJ34: 0 | BK34: 0 | BM34: =Март!I34+Апрель!I34-Апрель!BH34 -> 0
A35: 225.03 | B35: прочие ком. услуги | C35: субвенция | D35: 807 | E35: 07 02 | F35: 02 П 02 С9903 | G35: 244 | H35: =Март!H35 -> 0 | J35: =Март!BH35 -> 0 | K35: =Март!BJ35 -> 0 | L35: =SUM(M35:AI35) -> 0 | AJ35: =SUM(AK35:BG35) -> 0 | BH35: 0 | BI35: =AJ35+Март!BI35 -> 0 | BJ35: 0 | BK35: 0 | BM35: =Март!I35+Апрель!I35-Апрель!BH35 -> 0
A36: 226 | B36: Прочие услуги | C36: субвенция | D36: 807 | E36: 07 02 | F36: 02 П 02 С9903 | G36: 244 | H36: =Март!H36 -> 462500 | I36: =SUM(I37:I38) -> 0 | J36: =Март!BH36 -> 172971.29 | K36: =Март!BJ36 -> 0 | L36: =SUM(L37:L38) -> 235028.4 | M36: 55000 | N36: 0 | O36: 180028.4 | P36: 0 | Q36: 0 | R36: 0 | S36: 0 | T36: 0 | U36: 0 | V36: 0 | W36: 0 | X36: 0 | Y36: 0 | Z36: 0 | AA36: 0 | AB36: 0 | AC36: 0 | AD36: 0 | AE36: 0 | AF36: 0 | AG36: 0 | AH36: 0 | AI36: 0 | AJ36: 107428.4 | AK36: 0 | AL36: 0 | AM36: 0 | AN36: 0 | AO36: 55000 | AP36: 0 | AQ36: 180028.4 | AR36: 0 | AS36: 0 | AT36: 0 | AU36: -127600 | AV36: 0 | AW36: 0 | AX36: 0 | AY36: 0 | AZ36: 0 | BA36: 0 | BB36: 0 | BC36: 0 | BD36: 0 | BE36: 0 | BF36: 0 | BG36: 0 | BH36: 407999.69 | BI36: =AJ36+Март!BI36 -> 280399.69 | BJ36: 127600 | BK36: 54500.31 | BL36: 0 | BM36: =Март!I36+Апрель!I36-Апрель!BH36 -> -407999.69
A37: 226.01 | B37: Коман. (проживание) | C37: субвенция | D37: 807 | E37: 07 02 | F37: 02 П 02 С9903 | G37: 244 | H37: =Март!H37 -> 462500 | J37: =Март!BH37 -> 172971.29 | K37: =Март!BJ37 -> 0 | L37: =SUM(M37:AI37) -> 235028.4 | M37: 55000 | O37: 180028.4 | AJ37: =SUM(AK37:BG37) -> 107428.4 | AO37: 55000 | AQ37: 180028.4 | AU37: -127600 | BH37: 407999.69 | BI37: =AJ37+Март!BI37 -> 280399.69 | BJ37: 127600 | BK37: 54500.31 | BM37: =Март!I37+Апрель!I37-Апрель!BH37 -> -407999.69
A38: 226.02 | B38: проч. услуги | C38: субвенция | D38: 807 | E38: 07 02 | F38: 02 П 02 С9903 | G38: 244 | H38: =Март!H38 -> 0 | J38: =Март!BH38 -> 0 | K38: =Март!BJ38 -> 0 | L38: 0 | AJ38: 0 | BH38: 0 | BI38: =AJ38+Март!BI38 -> 0 | BJ38: 0 | BK38: 0 | BM38: =Март!I38+Апрель!I38-Апрель!BH38 -> 0
A39: 241 | B39: Содержание гостиницы | C39: субвенция | D39: 807 | E39: 07 02 | F39: 02 П 02 С9903 | G39: 244 | H39: =Март!H39 -> 0 | J39: =Март!BH39 -> 0 | K39: =Март!BJ39 -> 0 | L39: 0 | AJ39: 0 | BH39: 0 | BI39: =AJ39+Март!BI39 -> 0 | BJ39: 0 | BK39: 0 | BM39: =Март!I39+Апрель!I39-Апрель!BH39 -> 0
A40: 252 | B40: Переч. наднац. орг. | C40: субвенция | D40: 807 | E40: 07 02 | F40: 02 П 02 С9903 | G40: 244 | H40: =Март!H40 -> 0 | J40: =Март!BH40 -> 0 | K40: =Март!BJ40 -> 0 | L40: 0 | AJ40: 0 | BH40: 0 | BI40: =AJ40+Март!BI40 -> 0 | BJ40: 0 | BK40: 0 | BM40: =Март!I40+Апрель!I40-Апрель!BH40 -> 0
A41: 253 | B41: перечисл. междунар. орган | C41: субвенция | D41: 807 | E41: 07 02 | F41: 02 П 02 С9903 | G41: 244 | H41: =Март!H41 -> 0 | J41: =Март!BH41 -> 0 | K41: =Март!BJ41 -> 0 | L41: 0 | AJ41: 0 | BH41: 0 | BI41: =AJ41+Март!BI41 -> 0 | BJ41: 0 | BK41: 0 | BM41: =Март!I41+Апрель!I41-Апрель!BH41 -> 0
A42: 261 | B42: Пособие по соц. Страх. населения | C42: субвенция | D42: 807 | E42: 07 02 | F42: 02 П 02 С9903 | G42: 244 | H42: =Март!H42 -> 0 | J42: =Март!BH42 -> 0 | K42: =Март!BJ42 -> 0 | L42: 0 | AJ42: 0 | BH42: 0 | BI42: =AJ42+Март!BI42 -> 0 | BJ42: 0 | BK42: 0 | BM42: =Март!I42+Апрель!I42-Апрель!BH42 -> 0
A43: 262 | B43: Пособие по соц. пом. населению | C43: =C42 -> субвенция | D43: 807 | E43: 07 02 | F43: 02 П 02 С9903 | G43: 244 | H43: =Март!H43 -> 0 | I43: =SUM(I44:I46) -> 0 | J43: =Март!BH43 -> 0 | K43: =Март!BJ43 -> 0 | L43: =SUM(L44:L46) -> 0 | M43: 0 | N43: 0 | O43: 0 | P43: 0 | Q43: 0 | R43: 0 | S43: 0 | T43: 0 | U43: 0 | V43: 0 | W43: 0 | X43: 0 | Y43: 0 | Z43: 0 | AA43: 0 | AB43: 0 | AC43: 0 | AD43: 0 | AE43: 0 | AF43: 0 | AG43: 0 | AH43: 0 | AI43: 0 | AJ43: 0 | AK43: 0 | AL43: 0 | AM43: 0 | AN43: 0 | AO43: 0 | AP43: 0 | AQ43: 0 | AR43: 0 | AS43: 0 | AT43: 0 | AU43: 0 | AV43: 0 | AW43: 0 | AX43: 0 | AY43: 0 | AZ43: 0 | BA43: 0 | BB43: 0 | BC43: 0 | BD43: 0 | BE43: 0 | BF43: 0 | BG43: 0 | BH43: 0 | BI43: =AJ43+Март!BI43 -> 0 | BJ43: 0 | BK43: 0 | BL43: =SUM(BL44:BL46) -> 0 | BM43: =Март!I43+Апрель!I43-Апрель!BH43 -> 0
A44: 262.01 | B44: льгота по к/услугам | C44: субвенция | D44: 807 | E44: 07 02 | F44: 02 П 02 С9903 | G44: 244 | H44: =Март!H44 -> 0 | J44: =Март!BH44 -> 0 | K44: =Март!BJ44 -> 0 | L44: =SUM(M44:AI44) -> 0 | AJ44: =SUM(AK44:BG44) -> 0 | BH44: 0 | BI44: =AJ44+Март!BI44 -> 0 | BJ44: 0 | BK44: 0 | BM44: =Март!I44+Апрель!I44-Апрель!BH44 -> 0
A45: 262.02 | B45: прочее | C45: субвенция | D45: 807 | E45: 07 02 | F45: 02 П 02 С9903 | G45: 244 | H45: =Март!H45 -> 0 | J45: =Март!BH45 -> 0 | K45: =Март!BJ45 -> 0 | L45: =SUM(M45:AI45) -> 0 | AJ45: =SUM(AK45:BG45) -> 0 | BH45: 0 | BI45: =AJ45+Март!BI45 -> 0 | BJ45: 0 | BK45: 0 | BM45: =Март!I45+Апрель!I45-Апрель!BH45 -> 0
A46: 262.03 | B46: прочее | C46: субвенция | D46: 807 | E46: 07 02 | F46: 02 П 02 С9903 | G46: 244 | H46: =Март!H46 -> 0 | J46: =Март!BH46 -> 0 | K46: =Март!BJ46 -> 0 | L46: =SUM(M46:AI46) -> 0 | AJ46: =SUM(AK46:BG46) -> 0 | BH46: 0 | BI46: =AJ46+Март!BI46 -> 0 | BJ46: 0 | BK46: 0 | BM46: =Март!I46+Апрель!I46-Апрель!BH46 -> 0
A47: 263 | B47: Соц. пособ. Выпл. орган. сектора гос. управ. | C47: субвенция | D47: 807 | E47: 07 02 | F47: 02 П 02 С9903 | G47: 244 | H47: =Март!H47 -> 0 | J47: =Март!BH47 -> 0 | K47: =Март!BJ47 -> 0 | L47: =SUM(M47:AI47) -> 0 | AJ47: =SUM(AK47:BG47) -> 0 | BH47: 0 | BI47: =AJ47+Март!BI47 -> 0 | BJ47: 0 | BK47: 0 | BM47: =Март!I47+Апрель!I47-Апрель!BH47 -> 0
A48: 290 | B48: Прочие расходы | C48: субвенция | D48: 807 | E48: 07 02 | F48: 02 П 02 С9903 | G48: 244 | H48: =Март!H48 -> 26900 | I48: =SUM(I49:I50) -> 0 | J48: =Март!BH48 -> 0 | K48: =Март!BJ48 -> 0 | L48: =SUM(L49:L50) -> 0 | M48: 0 | N48: 0 | O48: 0 | P48: 0 | Q48: 0 | R48: 0 | S48: 0 | T48: 0 | U48: 0 | V48: 0 | W48: 0 | X48: 0 | Y48: 0 | Z48: 0 | AA48: 0 | AB48: 0 | AC48: 0 | AD48: 0 | AE48: 0 | AF48: 0 | AG48: 0 | AH48: 0 | AI48: 0 | AJ48: 0 | AK48: 0 | AL48: 0 | AM48: 0 | AN48: 0 | AO48: 0 | AP48: 0 | AQ48: 0 | AR48: 0 | AS48: 0 | AT48: 0 | AU48: 0 | AV48: 0 | AW48: 0 | AX48: 0 | AY48: 0 | AZ48: 0 | BA48: 0 | BB48: 0 | BC48: 0 | BD48: 0 | BE48: 0 | BF48: 0 | BG48: 0 | BH48: 0 | BI48: =AJ48+Март!BI48 -> 0 | BJ48: 0 | BK48: 26900 | BL48: 0 | BM48: =Март!I48+Апрель!I48-Апрель!BH48 -> 0
A49: 290.03 | B49: Налог на имущество | C49: субвенция | D49: 807 | E49: 07 02 | F49: 02 П 02 С9903 | G49: 244 | H49: =Март!H49 -> 0 | J49: =Март!BH49 -> 0 | K49: =Март!BJ49 -> 0 | L49: =SUM(M49:AI49) -> 0 | AJ49: =SUM(AK49:BG49) -> 0 | BH49: 0 | BI49: =AJ49+Март!BI49 -> 0 | BJ49: 0 | BK49: 0 | BM49: =Март!I49+Апрель!I49-Апрель!BH49 -> 0
A50: 290.02 | B50: проч. расходы | C50: субвенция | D50: 807 | E50: 07 02 | F50: 02 П 02 С9903 | G50: 244 | H50: =Март!H50 -> 26900 | J50: =Март!BH50 -> 0 | K50: =Март!BJ50 -> 0 | L50: =SUM(M50:AI50) -> 0 | AJ50: =SUM(AK50:BG50) -> 0 | BH50: 0 | BI50: =AJ50+Март!BI50 -> 0 | BJ50: 0 | BK50: 26900 | BM50: =Март!I50+Апрель!I50-Апрель!BH50 -> 0
A51: 310 | B51: Увеличение ст-ти ОС | C51: субвенция | D51: 807 | E51: 07 02 | F51: 02 П 02 С9903 | G51: 244 | H51: =Март!H51 -> 208000 | I51: =SUM(I52:I55) -> 0 | J51: =Март!BH51 -> 108314 | K51: =Март!BJ51 -> 0 | L51: =SUM(L52:L55) -> 99548 | M51: 0 | N51: 0 | O51: 99548 | P51: 0 | Q51: 0 | R51: 0 | S51: 0 | T51: 0 | U51: 0 | V51: 0 | W51: 0 | X51: 0 | Y51: 0 | Z51: 0 | AA51: 0 | AB51: 0 | AC51: 0 | AD51: 0 | AE51: 0 | AF51: 0 | AG51: 0 | AH51: 0 | AI51: 0 | AJ51: 99548 | AK51: 0 | AL51: 0 | AM51: 0 | AN51: 0 | AO51: 0 | AP51: 0 | AQ51: 99548 | AR51: 0 | AS51: 0 | AT51: 0 | AU51: 0 | AV51: 0 | AW51: 0 | AX51: 0 | AY51: 0 | AZ51: 0 | BA51: 0 | BB51: 0 | BC51: 0 | BD51: 0 | BE51: 0 | BF51: 0 | BG51: 0 | BH51: 207862 | BI51: =AJ51+Март!BI51 -> 207862 | BJ51: 0 | BK51: 138 | BL51: 0 | BM51: =Март!I51+Апрель!I51-Апрель!BH51 -> -207862
A52: 310.01 | B52: мягкий инвентарь | C52: субвенция | D52: 807 | E52: 07 02 | F52: 02 П 02 С9903 | G52: 244 | H52: =Март!H52 -> 208000 | J52: =Март!BH52 -> 108314 | K52: =Март!BJ52 -> 0 | L52: =SUM(M52:AI52) -> 99548 | O52: 99548 | AJ52: =SUM(AK52:BG52) -> 99548 | AQ52: 99548 | BH52: 207862 | BI52: =AJ52+Март!BI52 -> 207862 | BJ52: 0 | BK52: 138 | BM52: =Март!I52+Апрель!I52-Апрель!BH52 -> -207862
A53: 310.02 | B53: расх. матер больше года | C53: субвенция | D53: 807 | E53: 07 02 | F53: 02 П 02 С9903 | G53: 244 | H53: =Март!H53 -> 0 | J53: =Март!BH53 -> 0 | K53: =Март!BJ53 -> 0 | L53: =SUM(M53:AI53) -> 0 | AJ53: =SUM(AK53:BG53) -> 0 | BH53: 0 | BI53: =AJ53+Март!BI53 -> 0 | BJ53: 0 | BK53: 0 | BM53: =Март!I53+Апрель!I53-Апрель!BH53 -> 0
A54: 310.03 | B54: приобретение предм. дл. польз. | C54: субвенция | D54: 807 | E54: 07 02 | F54: 02 П 02 С9903 | G54: 244 | H54: =Март!H54 -> 0 | J54: =Март!BH54 -> 0 | K54: =Март!BJ54 -> 0 | L54: =SUM(M54:AI54) -> 0 | AJ54: =SUM(AK54:BG54) -> 0 | BH54: 0 | BI54: =AJ54+Март!BI54 -> 0 | BJ54: 0 | BK54: 0 | BM54: =Март!I54+Апрель!I54-Апрель!BH54 -> 0
A55: 310.04 | B55: капитальное стр-во | C55: субвенция | D55: 807 | E55: 07 02 | F55: 02 П 02 С9903 | G55: 244 | H55: =Март!H55 -> 0 | J55: =Март!BH55 -> 0 | K55: =Март!BJ55 -> 0 | L55: =SUM(M55:AI55) -> 0 | AJ55: =SUM(AK55:BG55) -> 0 | BH55: 0 | BI55: =AJ55+Март!BI55 -> 0 | BJ55: 0 | BK55: 0 | BM55: =Март!I55+Апрель!I55-Апрель!BH55 -> 0
A56: 320 | B56: Увеличение ст-ти немат. активов | C56: субвенция | D56: 807 | E56: 07 02 | F56: 02 П 02 С9903 | G56: 244 | H56: =Март!H56 -> 0 | J56: =Март!BH56 -> 0 | K56: =Март!BJ56 -> 0 | L56: =SUM(M56:AI56) -> 0 | AJ56: =SUM(AK56:BG56) -> 0 | BH56: 0 | BI56: =AJ56+Март!BI56 -> 0 | BJ56: 0 | BK56: 0 | BM56: =Март!I56+Апрель!I56-Апрель!BH56 -> 0
A57: 340 | B57: Увеличение мат. запасов | C57: субвенция | D57: 807 | E57: 07 02 | F57: 02 П 02 С9903 | G57: 244 | H57: =Март!H57 -> 6993100 | I57: =SUM(I58:I62) -> 0 | J57: =Март!BH57 -> 2152863.94 | K57: =Март!BJ57 -> 225000 | L57: =SUM(L58:L62) -> 1024483.4 | M57: 874299.4 | N57: 0 | O57: 150184 | P57: 0 | Q57: 0 | R57: 0 | S57: 0 | T57: 0 | U57: 0 | V57: 0 | W57: 0 | X57: 0 | Y57: 0 | Z57: 0 | AA57: 0 | AB57: 0 | AC57: 0 | AD57: 0 | AE57: 0 | AF57: 0 | AG57: 0 | AH57: 0 | AI57: 0 | AJ57: 1239478.4 | AK57: 0 | AL57: 198495 | AM57: 213690 | AN57: 26425 | AO57: 490474.4 | AP57: 0 | AQ57: 310394 | AR57: 0 | AS57: 0 | AT57: 0 | AU57: 0 | AV57: 0 | AW57: 0 | AX57: 0 | AY57: 0 | AZ57: 0 | BA57: 0 | BB57: 0 | BC57: 0 | BD57: 0 | BE57: 0 | BF57: 0 | BG57: 0 | BH57: 3177347.34 | BI57: =AJ57+Март!BI57 -> 3167342.34 | BJ57: 10005 | BK57: 3815752.66 | BL57: 0 | BM57: =Март!I57+Апрель!I57-Апрель!BH57 -> -3177347.34
A58: 341 | B58: медикаменды | C58: субвенция | D58: 807 | E58: 07 02 | F58: 02 П 02 С9903 | G58: 244 | H58: =Март!H58 -> 6000 | J58: =Март!BH58 -> 0 | K58: =Март!BJ58 -> 0 | L58: =SUM(M58:AI58) -> 0 | AJ58: =SUM(AK58:BG58) -> 0 | BH58: 0 | BI58: =AJ58+Март!BI58 -> 0 | BJ58: 0 | BK58: 6000 | BM58: =Март!I58+Апрель!I58-Апрель!BH58 -> 0
A59: 342 | B59: продукты питания | C59: =C58 -> субвенция | D59: 807 | E59: 07 02 | F59: 02 П 02 С9903 | G59: 244 | H59: =Март!H59 -> 5808600 | J59: =Март!BH59 -> 1814302 | K59: =Март!BJ59 -> 225000 | L59: =SUM(M59:AI59) -> 184654.4 | M59: 153054.4 | O59: 31600 | AJ59: =SUM(AK59:BG59) -> 409654.4 | AL59: 198495 | AN59: 26425 | AO59: 153054.4 | AQ59: 31680 | BH59: 1998956.4 | BI59: =AJ59+Март!BI59 -> 1998956.4 | BJ59: 0 | BK59: 3809643.6 | BM59: =Март!I59+Апрель!I59-Апрель!BH59 -> -1998956.4
A60: 345 | B60: мягкий инвентарь | C60: субвенция | D60: 807 | E60: 07 02 | F60: 02 П 02 С9903 | G60: 244 | H60: =Март!H60 -> 0 | J60: =Март!BH60 -> 0 | K60: =Март!BJ60 -> 0 | L60: =SUM(M60:AI60) -> 0 | AJ60: =SUM(AK60:BG60) -> 0 | BH60: 0 | BI60: =AJ60+Март!BI60 -> 0 | BJ60: 0 | BK60: 0 | BM60: =Март!I60+Апрель!I60-Апрель!BH60 -> 0
A61: 346 | B61: =Январь!B61 -> материал.запасы | C61: субвенция | D61: 807 | E61: 07 02 | F61: 02 П 02 С9903 | G61: 244 | H61: =Март!H61 -> 1175000 | J61: =Март!BH61 -> 335139 | K61: =Март!BJ61 -> 0 | L61: =SUM(M61:AI61) -> 839829 | M61: 721245 | O61: 118584 | AJ61: =SUM(AK61:BG61) -> 829824 | AM61: 213690 | AO61: 337420 | AQ61: 278714 | BH61: 1174968 | BI61: =AJ61+Март!BI61 -> 1164963 | BJ61: 10005 | BK61: 32 | BM61: =Март!I61+Апрель!I61-Апрель!BH61 -> -1174968
A62: 349 | B62: =Январь!B62 -> МЗ однократного использования | C62: субвенция | D62: 807 | E62: 07 02 | F62: 02 П 02 С9903 | G62: 244 | H62: =Март!H62 -> 3500 | J62: =Март!BH62 -> 3422.94 | K62: =Март!BJ62 -> 0 | L62: =SUM(M62:AI62) -> 0 | AJ62: =SUM(AK62:BG62) -> 0 | BH62: 3422.94 | BI62: =AJ62+Март!BI62 -> 3422.94 | BJ62: 0 | BK62: 77.06 | BM62: =Март!I62+Апрель!I62-Апрель!BH62 -> -3422.94
A63: ИТОГО | B63: Итого расходов | C63: субвенция | D63: 807 | E63: 07 02 | F63: 02 П 02 С9903 | G63: 244 | H63: =Март!H63 -> 65337000 | I63: =I9+I12+I19+I22+I23+I26+I31+I32+I36+I39+I40+I41+I42+I43+I47+I48+I51+I56+I57 -> 0 | J63: =Март!BH63 -> 20025605.57 | K63: =Март!BJ63 -> 6844705.78 | L63: =L9+L12+L19+L22+L23+L26+L31+L32+L36+L39+L40+L41+L42+L43+L47+L48+L51+L56+L57 -> 3780301.4 | M63: 929299.4 | N63: 0 | O63: 451002 | P63: 2400000 | Q63: 0 | R63: 0 | S63: 0 | T63: 0 | U63: 0 | V63: 0 | W63: 0 | X63: 0 | Y63: 0 | Z63: 0 | AA63: 0 | AB63: 0 | AC63: 0 | AD63: 0 | AE63: 0 | AF63: 0 | AG63: 0 | AH63: 0 | AI63: 0 | AJ63: 10143447.85 | AK63: 3560183.7 | AL63: 198495 | AM63: 216018.72 | AN63: 26425 | AO63: 545474.4 | AP63: 871000 | AQ63: 611212 | AR63: 563026.4 | AS63: 3752870.18 | AT63: -73657.55 | AU63: -127600 | AV63: 0 | AW63: 0 | AX63: 0 | AY63: 0 | AZ63: 0 | BA63: 0 | BB63: 0 | BC63: 0 | BD63: 0 | BE63: 0 | BF63: 0 | BG63: 0 | BH63: 23805906.97 | BI63: =AJ63+Март!BI63 -> 23324347.64 | BJ63: 481559.33 | BK63: 41531093.03 | BL63: 0 | BM63: =Март!I63+Апрель!I63-Апрель!BH63 -> -23805906.97
C64: =Март!C64 -> местный | D64: =Март!D64 -> 807 | E64: =Март!E64 -> 07 02 | F64: =Март!F64 -> 02 П 02 М9903 | G64: =Март!G64 -> 244 | BN64: =BN8+1 -> 2
A65: 211 | B65: оплата труда | C65: =C64 -> местный | D65: =D64 -> 807 | E65: 07 02 | F65: 02 П 02 М9903 | G65: 244 | H65: =Март!H65 -> 0 | I65: =SUM(I66:I67) -> 0 | J65: =Март!BH65 -> 0 | K65: =Март!BJ65 -> 0 | L65: =SUM(L66:L67) -> 0 | M65: 0 | N65: 0 | O65: 0 | P65: 0 | Q65: 0 | R65: 0 | S65: 0 | T65: 0 | U65: 0 | V65: 0 | W65: 0 | X65: 0 | Y65: 0 | Z65: 0 | AA65: 0 | AB65: 0 | AC65: 0 | AD65: 0 | AE65: 0 | AF65: 0 | AG65: 0 | AH65: 0 | AI65: 0 | AJ65: 0 | AK65: 0 | AL65: 0 | AM65: 0 | AN65: 0 | AO65: 0 | AP65: 0 | AQ65: 0 | AR65: 0 | AS65: 0 | AT65: 0 | AU65: 0 | AV65: 0 | AW65: 0 | AX65: 0 | AY65: 0 | AZ65: 0 | BA65: 0 | BB65: 0 | BC65: 0 | BD65: 0 | BE65: 0 | BF65: 0 | BG65: 0 | BH65: =J65+L65 -> 0 | BI65: =AJ65+Март!BI65 -> 0 | BJ65: =K65+L65-AJ65 -> 0 | BK65: =H65-BH65 -> 0 | BL65: =SUM(BL66:BL67) -> 0 | BM65: =Март!I65+Апрель!I65-Апрель!BH65 -> 0
A66: 211.01 | B66: Основная з/пл | C66: местный | D66: 807 | E66: 07 02 | F66: 02 П 02 М9903 | G66: 244 | H66: =Март!H66 -> 0 | J66: =Март!BH66 -> 0 | K66: =Март!BJ66 -> 0 | L66: =SUM(M66:AI66) -> 0 | AJ66: =SUM(AK66:BG66) -> 0 | BH66: =J66+L66 -> 0 | BI66: =AJ66+Март!BI66 -> 0 | BJ66: =K66+L66-AJ66 -> 0 | BK66: =H66-BH66 -> 0 | BM66: =Март!I66+Апрель!I66-Апрель!BH66 -> 0
A67: 211.02 | B67: Кл. руководство | C67: местный | D67: 807 | E67: 07 02 | F67: 02 П 02 М9903 | G67: 244 | H67: =Март!H67 -> 0 | J67: =Март!BH67 -> 0 | K67: =Март!BJ67 -> 0 | L67: =SUM(M67:AI67) -> 0 | AJ67: =SUM(AK67:BG67) -> 0 | BH67: 0 | BI67: =AJ67+Март!BI67 -> 0 | BJ67: 0 | BK67: 0 | BM67: =Март!I67+Апрель!I67-Апрель!BH67 -> 0
A68: 212 | B68: Всего проч. | C68: местный | D68: 807 | E68: 07 02 | F68: 02 П 02 М9903 | G68: 244 | H68: =Март!H68 -> 0 | I68: =SUM(I69:I74) -> 0 | J68: =Март!BH68 -> 0 | K68: =Март!BJ68 -> 0 | L68: =SUM(L69:L74) -> 0 | M68: 0 | N68: 0 | O68: 0 | P68: 0 | Q68: 0 | R68: 0 | S68: 0 | T68: 0 | U68: 0 | V68: 0 | W68: 0 | X68: 0 | Y68: 0 | Z68: 0 | AA68: 0 | AB68: 0 | AC68: 0 | AD68: 0 | AE68: 0 | AF68: 0 | AG68: 0 | AH68: 0 | AI68: 0 | AJ68: 0 | AK68: 0 | AL68: 0 | AM68: 0 | AN68: 0 | AO68: 0 | AP68: 0 | AQ68: 0 | AR68: 0 | AS68: 0 | AT68: 0 | AU68: 0 | AV68: 0 | AW68: 0 | AX68: 0 | AY68: 0 | AZ68: 0 | BA68: 0 | BB68: 0 | BC68: 0 | BD68: 0 | BE68: 0 | BF68: 0 | BG68: 0 | BH68: 0 | BI68: =AJ68+Март!BI68 -> 0 | BJ68: 0 | BK68: 0 | BL68: =SUM(BL69:BL74) -> 0 | BM68: =Март!I68+Апрель!I68-Апрель!BH68 -> 0
A69: 212.01 | B69: суточные | C69: местный | D69: 807 | E69: 07 02 | F69: 02 П 02 М9903 | G69: 244 | H69: =Март!H69 -> 0 | J69: =Март!BH69 -> 0 | K69: =Март!BJ69 -> 0 | L69: =SUM(M69:AI69) -> 0 | AJ69: =SUM(AK69:BG69) -> 0 | BH69: 0 | BI69: =AJ69+Март!BI69 -> 0 | BJ69: 0 | BK69: 0 | BM69: =Март!I69+Апрель!I69-Апрель!BH69 -> 0
A70: 212.02 | B70: книги | C70: местный | D70: 807 | E70: 07 02 | F70: 02 П 02 М9903 | G70: 244 | H70: =Март!H70 -> 0 | J70: =Март!BH70 -> 0 | K70: =Март!BJ70 -> 0 | L70: 0 | AJ70: 0 | BH70: 0 | BI70: =AJ70+Март!BI70 -> 0 | BJ70: 0 | BK70: 0 | BM70: =Март!I70+Апрель!I70-Апрель!BH70 -> 0
A71: 212.03 | B71: СКЛ | C71: местный | D71: 807 | E71: 07 02 | F71: 02 П 02 М9903 | G71: 244 | H71: =Март!H71 -> 0 | J71: =Март!BH71 -> 0 | K71: =Март!BJ71 -> 0 | L71: 0 | AJ71: 0 | BH71: 0 | BI71: =AJ71+Март!BI71 -> 0 | BJ71: 0 | BK71: 0 | BM71: =Март!I71+Апрель!I71-Апрель!BH71 -> 0
A72: 212.04 | B72: проезд в отпуск | C72: местный | D72: 807 | E72: 07 02 | F72: 02 П 02 М9903 | G72: 244 | H72: =Март!H72 -> 0 | J72: =Март!BH72 -> 0 | K72: =Март!BJ72 -> 0 | L72: 0 | AJ72: 0 | BH72: 0 | BI72: =AJ72+Март!BI72 -> 0 | BJ72: 0 | BK72: 0 | BM72: =Март!I72+Апрель!I72-Апрель!BH72 -> 0
A73: 212.05 | B73: соц.помощь | C73: местный | D73: 807 | E73: 07 02 | F73: 02 П 02 М9903 | G73: 244 | H73: =Март!H73 -> 0 | J73: =Март!BH73 -> 0 | K73: =Март!BJ73 -> 0 | L73: 0 | AJ73: 0 | BH73: 0 | BI73: =AJ73+Март!BI73 -> 0 | BJ73: 0 | BK73: 0 | BM73: =Март!I73+Апрель!I73-Апрель!BH73 -> 0
A74: 212.06 | B74: СКЛ | C74: местный | D74: 807 | E74: 07 02 | F74: 02 П 02 М9903 | G74: 244 | H74: =Март!H74 -> 0 | J74: =Март!BH74 -> 0 | K74: =Март!BJ74 -> 0 | L74: 0 | AJ74: 0 | BH74: 0 | BI74: =AJ74+Март!BI74 -> 0 | BJ74: 0 | BK74: 0 | BM74: =Март!I74+Апрель!I74-Апрель!BH74 -> 0
A75: 213 | B75: ЕСН | C75: местный | D75: 807 | E75: 07 02 | F75: 02 П 02 М9903 | G75: 244 | H75: =Март!H75 -> 0 | I75: =SUM(I76:I77) -> 0 | J75: =Март!BH75 -> 0 | K75: =Март!BJ75 -> 0 | L75: =SUM(L76:L77) -> 0 | M75: 0 | N75: 0 | O75: 0 | P75: 0 | Q75: 0 | R75: 0 | S75: 0 | T75: 0 | U75: 0 | V75: 0 | W75: 0 | X75: 0 | Y75: 0 | Z75: 0 | AA75: 0 | AB75: 0 | AC75: 0 | AD75: 0 | AE75: 0 | AF75: 0 | AG75: 0 | AH75: 0 | AI75: 0 | AJ75: 0 | AK75: 0 | AL75: 0 | AM75: 0 | AN75: 0 | AO75: 0 | AP75: 0 | AQ75: 0 | AR75: 0 | AS75: 0 | AT75: 0 | AU75: 0 | AV75: 0 | AW75: 0 | AX75: 0 | AY75: 0 | AZ75: 0 | BA75: 0 | BB75: 0 | BC75: 0 | BD75: 0 | BE75: 0 | BF75: 0 | BG75: 0 | BH75: 0 | BI75: =AJ75+Март!BI75 -> 0 | BJ75: 0 | BK75: 0 | BL75: =SUM(BL76:BL77) -> 0 | BM75: =Март!I75+Апрель!I75-Апрель!BH75 -> 0
A76: 213.01 | B76: ЕСН основ. | C76: местный | D76: 807 | E76: 07 02 | F76: 02 П 02 М9903 | G76: 244 | H76: =Март!H76 -> 0 | J76: =Март!BH76 -> 0 | K76: =Март!BJ76 -> 0 | L76: =SUM(M76:AI76) -> 0 | AJ76: =SUM(AK76:BG76) -> 0 | BH76: 0 | BI76: =AJ76+Март!BI76 -> 0 | BJ76: 0 | BK76: 0 | BM76: =Март!I76+Апрель!I76-Апрель!BH76 -> 0
A77: 213.02 | B77: ЕСН кл. рук. | C77: местный | D77: 807 | E77: 07 02 | F77: 02 П 02 М9903 | G77: 244 | H77: =Март!H77 -> 0 | J77: =Март!BH77 -> 0 | K77: =Март!BJ77 -> 0 | L77: =SUM(M77:AI77) -> 0 | AJ77: =SUM(AK77:BG77) -> 0 | BH77: 0 | BI77: =AJ77+Март!BI77 -> 0 | BJ77: 0 | BK77: 0 | BM77: =Март!I77+Апрель!I77-Апрель!BH77 -> 0
A78: 221 | B78: связь | C78: местный | D78: 807 | E78: 07 02 | F78: 02 П 02 М9903 | G78: 244 | H78: =Март!H78 -> 0 | J78: =Март!BH78 -> 0 | K78: =Март!BJ78 -> 0 | L78: =SUM(M78:AI78) -> 0 | AJ78: =SUM(AK78:BG78) -> 0 | BH78: 0 | BI78: =AJ78+Март!BI78 -> 0 | BJ78: 0 | BK78: 0 | BM78: =Март!I78+Апрель!I78-Апрель!BH78 -> 0
A79: 222 | B79: Всего тран. | C79: местный | D79: 807 | E79: 07 02 | F79: 02 П 02 М9903 | G79: 244 | H79: =Март!H79 -> 0 | I79: =SUM(I80:I81) -> 0 | J79: =Март!BH79 -> 0 | K79: =Март!BJ79 -> 0 | L79: =SUM(L80:L81) -> 0 | M79: 0 | N79: 0 | O79: 0 | P79: 0 | Q79: 0 | R79: 0 | S79: 0 | T79: 0 | U79: 0 | V79: 0 | W79: 0 | X79: 0 | Y79: 0 | Z79: 0 | AA79: 0 | AB79: 0 | AC79: 0 | AD79: 0 | AE79: 0 | AF79: 0 | AG79: 0 | AH79: 0 | AI79: 0 | AJ79: 0 | AK79: 0 | AL79: 0 | AM79: 0 | AN79: 0 | AO79: 0 | AP79: 0 | AQ79: 0 | AR79: 0 | AS79: 0 | AT79: 0 | AU79: 0 | AV79: 0 | AW79: 0 | AX79: 0 | AY79: 0 | AZ79: 0 | BA79: 0 | BB79: 0 | BC79: 0 | BD79: 0 | BE79: 0 | BF79: 0 | BG79: 0 | BH79: 0 | BI79: =AJ79+Март!BI79 -> 0 | BJ79: 0 | BK79: 0 | BL79: =SUM(BL80:BL81) -> 0 | BM79: =Март!I79+Апрель!I79-Апрель!BH79 -> 0
A80: 222.01 | B80: проезд команд. | C80: местный | D80: 807 | E80: 07 02 | F80: 02 П 02 М9903 | G80: 244 | H80: =Март!H80 -> 0 | J80: =Март!BH80 -> 0 | K80: =Март!BJ80 -> 0 | L80: =SUM(M80:AI80) -> 0 | AJ80: =SUM(AK80:BG80) -> 0 | BH80: 0 | BI80: =AJ80+Март!BI80 -> 0 | BJ80: 0 | BK80: 0 | BM80: =Март!I80+Апрель!I80-Апрель!BH80 -> 0
A81: 222.02 | B81: транспортные усл | C81: местный | D81: =D80 -> 807 | E81: 07 02 | F81: 02 П 02 М9903 | G81: 244 | H81: =Март!H81 -> 0 | J81: =Март!BH81 -> 0 | K81: =Март!BJ81 -> 0 | L81: =SUM(M81:AI81) -> 0 | AJ81: =SUM(AK81:BG81) -> 0 | BH81: 0 | BI81: =AJ81+Март!BI81 -> 0 | BJ81: 0 | BK81: 0 | BM81: =Март!I81+Апрель!I81-Апрель!BH81 -> 0
A82: 223 | B82: Всего ком. усл. | C82: местный | D82: 807 | E82: 07 02 | F82: 02 П 02 М9903 | G82: 244 | H82: =Март!H82 -> 14937100 | I82: =SUM(I83:I86) -> 0 | J82: =Март!BH82 -> 5453705.49 | K82: =Март!BJ82 -> 0 | L82: =SUM(L83:L86) -> 1189217.38 | M82: 1189217.38 | N82: 0 | O82: 0 | P82: 0 | Q82: 0 | R82: 0 | S82: 0 | T82: 0 | U82: 0 | V82: 0 | W82: 0 | X82: 0 | Y82: 0 | Z82: 0 | AA82: 0 | AB82: 0 | AC82: 0 | AD82: 0 | AE82: 0 | AF82: 0 | AG82: 0 | AH82: 0 | AI82: 0 | AJ82: 1189217.38 | AK82: 0 | AL82: 0 | AM82: 0 | AN82: 0 | AO82: 1189217.38 | AP82: 0 | AQ82: 0 | AR82: 0 | AS82: 0 | AT82: 0 | AU82: 0 | AV82: 0 | AW82: 0 | AX82: 0 | AY82: 0 | AZ82: 0 | BA82: 0 | BB82: 0 | BC82: 0 | BD82: 0 | BE82: 0 | BF82: 0 | BG82: 0 | BH82: 6642922.87 | BI82: =AJ82+Март!BI82 -> 6642922.87 | BJ82: 0 | BK82: 8294177.13 | BL82: =SUM(BL83:BL86) -> 0 | BM82: =Март!I82+Апрель!I82-Апрель!BH82 -> -6642922.87
A83: 223.01 | B83: водоснабжение | C83: =C82 -> местный | D83: 807 | E83: 07 02 | F83: 02 П 02 М9903 | G83: 244 | H83: =Март!H83 -> 7103300 | J83: =Март!BH83 -> 242229.63 | K83: =Март!BJ83 -> 0 | L83: =SUM(M83:AI83) -> 113415.4 | M83: 113415.4 | AJ83: =SUM(AK83:BG83) -> 113415.4 | AO83: 113415.4 | BH83: 355645.03 | BI83: =AJ83+Март!BI83 -> 355645.03 | BJ83: 0 | BK83: 6747654.97 | BM83: =Март!I83+Апрель!I83-Апрель!BH83 -> -355645.03
A84: 223.02 | B84: отопление | C84: местный | D84: 807 | E84: 07 02 | F84: 02 П 02 М9903 | G84: 244 | H84: =Март!H84 -> 7833800 | J84: =Март!BH84 -> 5211475.86 | K84: =Март!BJ84 -> 0 | L84: =SUM(M84:AI84) -> 1075801.98 | M84: 1075801.98 | AJ84: =SUM(AK84:BG84) -> 1075801.98 | AO84: 1075801.98 | BH84: 6287277.84 | BI84: =AJ84+Март!BI84 -> 6287277.84 | BJ84: 0 | BK84: 1546522.16 | BM84: =Март!I84+Апрель!I84-Апрель!BH84 -> -6287277.84
A85: 223.03 | B85: электроэнергия | C85: местный | D85: 807 | E85: 07 02 | F85: 02 П 02 М9903 | G85: 244 | H85: =Март!H85 -> 0 | J85: =Март!BH85 -> 0 | K85: =Март!BJ85 -> 0 | L85: =SUM(M85:AI85) -> 0 | AJ85: =SUM(AK85:BG85) -> 0 | BH85: 0 | BI85: =AJ85+Март!BI85 -> 0 | BJ85: 0 | BK85: 0 | BM85: =Март!I85+Апрель!I85-Апрель!BH85 -> 0
A86: 223.04 | B86: водоснабжение | C86: местный | D86: 807 | E86: 07 02 | F86: 02 П 02 М9903 | G86: 244 | H86: =Март!H86 -> 0 | J86: =Март!BH86 -> 0 | K86: =Март!BJ86 -> 0 | L86: =SUM(M86:AI86) -> 0 | AJ86: =SUM(AK86:BG86) -> 0 | BH86: 0 | BI86: =AJ86+Март!BI86 -> 0 | BJ86: 0 | BK86: 0 | BM86: =Март!I86+Апрель!I86-Апрель!BH86 -> 0
A87: 224 | B87: аренда | C87: местный | D87: 807 | E87: 07 02 | F87: 02 П 02 М9903 | G87: 244 | H87: =Март!H87 -> 0 | J87: =Март!BH87 -> 0 | K87: =Март!BJ87 -> 0 | L87: =SUM(M87:AI87) -> 0 | AJ87: =SUM(AK87:BG87) -> 0 | BH87: 0 | BI87: =AJ87+Март!BI87 -> 0 | BJ87: 0 | BK87: 0 | BM87: =Март!I87+Апрель!I87-Апрель!BH87 -> 0
A88: 225 | B88: Всего содер. Имущ. | C88: местный | D88: 807 | E88: 07 02 | F88: 02 П 02 М9903 | G88: 244 | H88: =Март!H88 -> 88000 | I88: =SUM(I89:I91) -> 0 | J88: =Март!BH88 -> 0 | K88: =Март!BJ88 -> 0 | L88: =SUM(L89:L91) -> 0 | M88: 0 | N88: 0 | O88: 0 | P88: 0 | Q88: 0 | R88: 0 | S88: 0 | T88: 0 | U88: 0 | V88: 0 | W88: 0 | X88: 0 | Y88: 0 | Z88: 0 | AA88: 0 | AB88: 0 | AC88: 0 | AD88: 0 | AE88: 0 | AF88: 0 | AG88: 0 | AH88: 0 | AI88: 0 | AJ88: 0 | AK88: 0 | AL88: 0 | AM88: 0 | AN88: 0 | AO88: 0 | AP88: 0 | AQ88: 0 | AR88: 0 | AS88: 0 | AT88: 0 | AU88: 0 | AV88: 0 | AW88: 0 | AX88: 0 | AY88: 0 | AZ88: 0 | BA88: 0 | BB88: 0 | BC88: 0 | BD88: 0 | BE88: 0 | BF88: 0 | BG88: 0 | BH88: 0 | BI88: =AJ88+Март!BI88 -> 0 | BJ88: 0 | BK88: 88000 | BL88: =SUM(BL89:BL91) -> 0 | BM88: =Март!I88+Апрель!I88-Апрель!BH88 -> 0
A89: 225.01 | B89: ремонт зд. и сооруж. | C89: местный | D89: 807 | E89: 07 02 | F89: 02 П 02 М9903 | G89: 244 | H89: =Март!H89 -> 88000 | J89: =Март!BH89 -> 0 | K89: =Март!BJ89 -> 0 | L89: =SUM(M89:AI89) -> 0 | AJ89: =SUM(AK89:BG89) -> 0 | BH89: 0 | BI89: =AJ89+Март!BI89 -> 0 | BJ89: 0 | BK89: 88000 | BM89: =Март!I89+Апрель!I89-Апрель!BH89 -> 0
A90: 225.02 | B90: вывоз мусора | C90: местный | D90: 807 | E90: 07 02 | F90: 02 П 02 М9903 | G90: 244 | H90: =Март!H90 -> 0 | J90: =Март!BH90 -> 0 | K90: =Март!BJ90 -> 0 | L90: =SUM(M90:AI90) -> 0 | AJ90: =SUM(AK90:BG90) -> 0 | BH90: 0 | BI90: =AJ90+Март!BI90 -> 0 | BJ90: 0 | BK90: 0 | BM90: =Март!I90+Апрель!I90-Апрель!BH90 -> 0
A91: 225.03 | B91: прочие ком. услуги | C91: местный | D91: 807 | E91: 07 02 | F91: 02 П 02 М9903 | G91: 244 | H91: =Март!H91 -> 0 | J91: =Март!BH91 -> 0 | K91: =Март!BJ91 -> 0 | L91: =SUM(M91:AI91) -> 0 | AJ91: =SUM(AK91:BG91) -> 0 | BH91: 0 | BI91: =AJ91+Март!BI91 -> 0 | BJ91: 0 | BK91: 0 | BM91: =Март!I91+Апрель!I91-Апрель!BH91 -> 0
A92: 226 | B92: Прочие услуги | C92: местный | D92: 807 | E92: 07 02 | F92: 02 П 02 М9903 | G92: 244 | H92: =Март!H92 -> 8000 | I92: =SUM(I93:I94) -> 0 | J92: =Март!BH92 -> 0 | K92: =Март!BJ92 -> 0 | L92: =SUM(L93:L94) -> 0 | M92: 0 | N92: 0 | O92: 0 | P92: 0 | Q92: 0 | R92: 0 | S92: 0 | T92: 0 | U92: 0 | V92: 0 | W92: 0 | X92: 0 | Y92: 0 | Z92: 0 | AA92: 0 | AB92: 0 | AC92: 0 | AD92: 0 | AE92: 0 | AF92: 0 | AG92: 0 | AH92: 0 | AI92: 0 | AJ92: 0 | AK92: 0 | AL92: 0 | AM92: 0 | AN92: 0 | AO92: 0 | AP92: 0 | AQ92: 0 | AR92: 0 | AS92: 0 | AT92: 0 | AU92: 0 | AV92: 0 | AW92: 0 | AX92: 0 | AY92: 0 | AZ92: 0 | BA92: 0 | BB92: 0 | BC92: 0 | BD92: 0 | BE92: 0 | BF92: 0 | BG92: 0 | BH92: 0 | BI92: =AJ92+Март!BI92 -> 0 | BJ92: 0 | BK92: 8000 | BL92: =SUM(BL93:BL94) -> 0 | BM92: =Март!I92+Апрель!I92-Апрель!BH92 -> 0
A93: 226.01 | B93: Коман. (проживание) | C93: местный | D93: 807 | E93: 07 02 | F93: 02 П 02 М9903 | G93: 244 | H93: =Март!H93 -> 8000 | J93: =Март!BH93 -> 0 | K93: =Март!BJ93 -> 0 | L93: =SUM(M93:AI93) -> 0 | AJ93: =SUM(AK93:BG93) -> 0 | BH93: 0 | BI93: =AJ93+Март!BI93 -> 0 | BJ93: 0 | BK93: 8000 | BM93: =Март!I93+Апрель!I93-Апрель!BH93 -> 0
A94: 226.02 | B94: проч. услуги | C94: местный | D94: 807 | E94: 07 02 | F94: 02 П 02 М9903 | G94: 244 | H94: =Март!H94 -> 0 | J94: =Март!BH94 -> 0 | K94: =Март!BJ94 -> 0 | L94: 0 | AJ94: 0 | BH94: 0 | BI94: =AJ94+Март!BI94 -> 0 | BJ94: 0 | BK94: 0 | BM94: =Март!I94+Апрель!I94-Апрель!BH94 -> 0
A95: 241 | B95: Содержание гостиницы | C95: местный | D95: 807 | E95: 07 02 | F95: 02 П 02 М9903 | G95: 244 | H95: =Март!H95 -> 0 | J95: =Март!BH95 -> 0 | K95: =Март!BJ95 -> 0 | L95: 0 | AJ95: 0 | BH95: 0 | BI95: =AJ95+Март!BI95 -> 0 | BJ95: 0 | BK95: 0 | BM95: =Март!I95+Апрель!I95-Апрель!BH95 -> 0
A96: 252 | B96: Переч. наднац. орг. | C96: местный | D96: 807 | E96: 07 02 | F96: 02 П 02 М9903 | G96: 244 | H96: =Март!H96 -> 0 | J96: =Март!BH96 -> 0 | K96: =Март!BJ96 -> 0 | L96: 0 | AJ96: 0 | BH96: 0 | BI96: =AJ96+Март!BI96 -> 0 | BJ96: 0 | BK96: 0 | BM96: =Март!I96+Апрель!I96-Апрель!BH96 -> 0
A97: 253 | B97: перечисл. междунар. орган | C97: местный | D97: 807 | E97: 07 02 | F97: 02 П 02 М9903 | G97: 244 | H97: =Март!H97 -> 0 | J97: =Март!BH97 -> 0 | K97: =Март!BJ97 -> 0 | L97: 0 | AJ97: 0 | BH97: 0 | BI97: =AJ97+Март!BI97 -> 0 | BJ97: 0 | BK97: 0 | BM97: =Март!I97+Апрель!I97-Апрель!BH97 -> 0
A98: 261 | B98: Пособие по соц. Страх. населения | C98: местный | D98: 807 | E98: 07 02 | F98: 02 П 02 М9903 | G98: 244 | H98: =Март!H98 -> 0 | J98: =Март!BH98 -> 0 | K98: =Март!BJ98 -> 0 | L98: 0 | AJ98: 0 | BH98: 0 | BI98: =AJ98+Март!BI98 -> 0 | BJ98: 0 | BK98: 0 | BM98: =Март!I98+Апрель!I98-Апрель!BH98 -> 0
A99: 262 | B99: Пособие по соц. пом. населению | C99: =C98 -> местный | D99: 807 | E99: 07 02 | F99: 02 П 02 М9903 | G99: 244 | H99: =Март!H99 -> 0 | I99: =SUM(I100:I102) -> 0 | J99: =Март!BH99 -> 0 | K99: =Март!BJ99 -> 0 | L99: =SUM(L100:L102) -> 0 | M99: 0 | N99: 0 | O99: 0 | P99: 0 | Q99: 0 | R99: 0 | S99: 0 | T99: 0 | U99: 0 | V99: 0 | W99: 0 | X99: 0 | Y99: 0 | Z99: 0 | AA99: 0 | AB99: 0 | AC99: 0 | AD99: 0 | AE99: 0 | AF99: 0 | AG99: 0 | AH99: 0 | AI99: 0 | AJ99: 0 | AK99: 0 | AL99: 0 | AM99: 0 | AN99: 0 | AO99: 0 | AP99: 0 | AQ99: 0 | AR99: 0 | AS99: 0 | AT99: 0 | AU99: 0 | AV99: 0 | AW99: 0 | AX99: 0 | AY99: 0 | AZ99: 0 | BA99: 0 | BB99: 0 | BC99: 0 | BD99: 0 | BE99: 0 | BF99: 0 | BG99: 0 | BH99: 0 | BI99: =AJ99+Март!BI99 -> 0 | BJ99: 0 | BK99: 0 | BL99: =SUM(BL100:BL102) -> 0 | BM99: =Март!I99+Апрель!I99-Апрель!BH99 -> 0
A100: 262.01 | B100: льгота по к/услугам | C100: местный | D100: 807 | E100: 07 02 | F100: 02 П 02 М9903 | G100: 244 | H100: =Март!H100 -> 0 | J100: =Март!BH100 -> 0 | K100: =Март!BJ100 -> 0 | L100: =SUM(M100:AI100) -> 0 | AJ100: =SUM(AK100:BG100) -> 0 | BH100: 0 | BI100: =AJ100+Март!BI100 -> 0 | BJ100: 0 | BK100: 0 | BM100: =Март!I100+Апрель!I100-Апрель!BH100 -> 0
A101: 262.02 | B101: прочее | C101: местный | D101: 807 | E101: 07 02 | F101: 02 П 02 М9903 | G101: 244 | H101: =Март!H101 -> 0 | J101: =Март!BH101 -> 0 | K101: =Март!BJ101 -> 0 | L101: =SUM(M101:AI101) -> 0 | AJ101: =SUM(AK101:BG101) -> 0 | BH101: 0 | BI101: =AJ101+Март!BI101 -> 0 | BJ101: 0 | BK101: 0 | BM101: =Март!I101+Апрель!I101-Апрель!BH101 -> 0
A102: 262.03 | B102: прочее | C102: местный | D102: 807 | E102: 07 02 | F102: 02 П 02 М9903 | G102: 244 | H102: =Март!H102 -> 0 | J102: =Март!BH102 -> 0 | K102: =Март!BJ102 -> 0 | L102: =SUM(M102:AI102) -> 0 | AJ102: =SUM(AK102:BG102) -> 0 | BH102: 0 | BI102: =AJ102+Март!BI102 -> 0 | BJ102: 0 | BK102: 0 | BM102: =Март!I102+Апрель!I102-Апрель!BH102 -> 0
A103: 263 | B103: Соц. пособ. Выпл. орган. сектора гос. управ. | C103: местный | D103: 807 | E103: 07 02 | F103: 02 П 02 М9903 | G103: 244 | H103: =Март!H103 -> 0 | J103: =Март!BH103 -> 0 | K103: =Март!BJ103 -> 0 | L103: =SUM(M103:AI103) -> 0 | AJ103: =SUM(AK103:BG103) -> 0 | BH103: 0 | BI103: =AJ103+Март!BI103 -> 0 | BJ103: 0 | BK103: 0 | BM103: =Март!I103+Апрель!I103-Апрель!BH103 -> 0
A104: 290 | B104: Прочие расходы | C104: местный | D104: 807 | E104: 07 02 | F104: 02 П 02 М9903 | H104: =Март!H104 -> 2152200 | I104: =SUM(I105:I106) -> 0 | J104: =Март!BH104 -> 523682 | K104: =Март!BJ104 -> 0 | L104: =SUM(L105:L106) -> 501554 | M104: 501554 | N104: 0 | O104: 0 | P104: 0 | Q104: 0 | R104: 0 | S104: 0 | T104: 0 | U104: 0 | V104: 0 | W104: 0 | X104: 0 | Y104: 0 | Z104: 0 | AA104: 0 | AB104: 0 | AC104: 0 | AD104: 0 | AE104: 0 | AF104: 0 | AG104: 0 | AH104: 0 | AI104: 0 | AJ104: 501554 | AK104: 0 | AL104: 0 | AM104: 0 | AN104: 0 | AO104: 501554 | AP104: 0 | AQ104: 0 | AR104: 0 | AS104: 0 | AT104: 0 | AU104: 0 | AV104: 0 | AW104: 0 | AX104: 0 | AY104: 0 | AZ104: 0 | BA104: 0 | BB104: 0 | BC104: 0 | BD104: 0 | BE104: 0 | BF104: 0 | BG104: 0 | BH104: 1025236 | BI104: =AJ104+Март!BI104 -> 1025236 | BJ104: 0 | BK104: 1126964 | BL104: =SUM(BL105:BL106) -> 0 | BM104: =Март!I104+Апрель!I104-Апрель!BH104 -> -1025236
A105: 291 | B105: Налог на имущество | C105: местный | D105: 807 | E105: 07 02 | F105: 02 П 02 М9903 | G105: =Март!G105 -> 851 | H105: =Март!H105 -> 2149000 | J105: =Март!BH105 -> 520549 | K105: =Март!BJ105 -> 0 | L105: =SUM(M105:AI105) -> 501554 | M105: 501554 | AJ105: =SUM(AK105:BG105) -> 501554 | AO105: 501554 | BH105: 1022103 | BI105: =AJ105+Март!BI105 -> 1022103 | BJ105: 0 | BK105: 1126897 | BM105: =Март!I105+Апрель!I105-Апрель!BH105 -> -1022103
A106: 291 | B106: =Январь!B106 -> транспортный налог | C106: местный | D106: 807 | E106: 07 02 | F106: 02 П 02 М9903 | G106: =Март!G106 -> 852 | H106: =Март!H106 -> 3200 | J106: =Март!BH106 -> 3133 | K106: =Март!BJ106 -> 0 | L106: =SUM(M106:AI106) -> 0 | AJ106: =SUM(AK106:BG106) -> 0 | BH106: 3133 | BI106: =AJ106+Март!BI106 -> 3133 | BJ106: 0 | BK106: 67 | BM106: =Март!I106+Апрель!I106-Апрель!BH106 -> -3133
A107: 295 | B107: =B108 -> штрафы | C107: местный | D107: 807 | E107: 07 02 | F107: 02 П 02 М9903 | G107: =Январь!G108 -> 853 | H107: =Март!H107 -> 0 | I107: =SUM(I108:I111) -> 0 | J107: =Март!BH107 -> 0 | K107: =Март!BJ107 -> 0 | L107: =SUM(L108:L111) -> 0 | M107: 0 | N107: 0 | O107: 0 | P107: 0 | Q107: 0 | R107: 0 | S107: 0 | T107: 0 | U107: 0 | V107: 0 | W107: 0 | X107: 0 | Y107: 0 | Z107: 0 | AA107: 0 | AB107: 0 | AC107: 0 | AD107: 0 | AE107: 0 | AF107: 0 | AG107: 0 | AH107: 0 | AI107: 0 | AJ107: 0 | AK107: 0 | AL107: 0 | AM107: 0 | AN107: 0 | AO107: 0 | AP107: 0 | AQ107: 0 | AR107: 0 | AS107: 0 | AT107: 0 | AU107: 0 | AV107: 0 | AW107: 0 | AX107: 0 | AY107: 0 | AZ107: 0 | BA107: 0 | BB107: 0 | BC107: 0 | BD107: 0 | BE107: 0 | BF107: 0 | BG107: 0 | BH107: 0 | BI107: =AJ107+Март!BI107 -> 0 | BJ107: 0 | BK107: 0 | BL107: =SUM(BL108:BL111) -> 0 | BM107: =Март!I107+Апрель!I107-Апрель!BH107 -> 0
A108: 295 | B108: =Январь!B108 -> штрафы | C108: местный | D108: 807 | E108: 07 02 | F108: 02 П 02 М9903 | G108: =Январь!G109 -> 244 | H108: =Март!H108 -> 0 | J108: =Март!BH108 -> 0 | K108: =Март!BJ108 -> 0 | L108: =SUM(M108:AI108) -> 0 | AJ108: =SUM(AK108:BG108) -> 0 | BH108: 0 | BI108: =AJ108+Март!BI108 -> 0 | BJ108: 0 | BK108: 0 | BM108: =Март!I108+Апрель!I108-Апрель!BH108 -> 0
A109: 310.02 | B109: расх. матер больше года | C109: местный | D109: 807 | E109: 07 02 | F109: 02 П 02 М9903 | G109: 244 | H109: =Март!H109 -> 0 | J109: =Март!BH109 -> 0 | K109: =Март!BJ109 -> 0 | L109: =SUM(M109:AI109) -> 0 | AJ109: =SUM(AK109:BG109) -> 0 | BH109: 0 | BI109: =AJ109+Март!BI109 -> 0 | BJ109: 0 | BK109: 0 | BM109: =Март!I109+Апрель!I109-Апрель!BH109 -> 0
A110: 310.03 | B110: приобретение предм. дл. польз. | C110: местный | D110: 807 | E110: 07 02 | F110: 02 П 02 М9903 | G110: 244 | H110: =Март!H110 -> 0 | J110: =Март!BH110 -> 0 | K110: =Март!BJ110 -> 0 | L110: =SUM(M110:AI110) -> 0 | AJ110: =SUM(AK110:BG110) -> 0 | BH110: 0 | BI110: =AJ110+Март!BI110 -> 0 | BJ110: 0 | BK110: 0 | BM110: =Март!I110+Апрель!I110-Апрель!BH110 -> 0
A111: 310.04 | B111: капитальное стр-во | C111: местный | D111: 807 | E111: 07 02 | F111: 02 П 02 М9903 | G111: 244 | H111: =Март!H111 -> 0 | J111: =Март!BH111 -> 0 | K111: =Март!BJ111 -> 0 | L111: =SUM(M111:AI111) -> 0 | AJ111: =SUM(AK111:BG111) -> 0 | BH111: 0 | BI111: =AJ111+Март!BI111 -> 0 | BJ111: 0 | BK111: 0 | BM111: =Март!I111+Апрель!I111-Апрель!BH111 -> 0
A112: 320 | B112: Увеличение ст-ти немат. активов | C112: местный | D112: 807 | E112: 07 02 | F112: 02 П 02 М9903 | G112: 244 | H112: =Март!H112 -> 0 | J112: =Март!BH112 -> 0 | K112: =Март!BJ112 -> 0 | L112: =SUM(M112:AI112) -> 0 | AJ112: =SUM(AK112:BG112) -> 0 | BH112: 0 | BI112: =AJ112+Март!BI112 -> 0 | BJ112: 0 | BK112: 0 | BM112: =Март!I112+Апрель!I112-Апрель!BH112 -> 0
A113: 340 | B113: Увеличение мат. запасов | C113: местный | D113: 807 | E113: 07 02 | F113: 02 П 02 М9903 | G113: 244 | H113: =Март!H113 -> 0 | I113: =SUM(I114:I118) -> 0 | J113: =Март!BH113 -> 0 | K113: =Март!BJ113 -> 0 | L113: =SUM(L114:L118) -> 0 | M113: 0 | N113: 0 | O113: 0 | P113: 0 | Q113: 0 | R113: 0 | S113: 0 | T113: 0 | U113: 0 | V113: 0 | W113: 0 | X113: 0 | Y113: 0 | Z113: 0 | AA113: 0 | AB113: 0 | AC113: 0 | AD113: 0 | AE113: 0 | AF113: 0 | AG113: 0 | AH113: 0 | AI113: 0 | AJ113: 0 | AK113: 0 | AL113: 0 | AM113: 0 | AN113: 0 | AO113: 0 | AP113: 0 | AQ113: 0 | AR113: 0 | AS113: 0 | AT113: 0 | AU113: 0 | AV113: 0 | AW113: 0 | AX113: 0 | AY113: 0 | AZ113: 0 | BA113: 0 | BB113: 0 | BC113: 0 | BD113: 0 | BE113: 0 | BF113: 0 | BG113: 0 | BH113: 0 | BI113: =AJ113+Март!BI113 -> 0 | BJ113: 0 | BK113: 0 | BL113: =SUM(BL114:BL118) -> 0 | BM113: =Март!I113+Апрель!I113-Апрель!BH113 -> 0
A114: 340.01 | B114: медикаменды | C114: местный | D114: 807 | E114: 07 02 | F114: 02 П 02 М9903 | G114: 244 | H114: =Март!H114 -> 0 | J114: =Март!BH114 -> 0 | K114: =Март!BJ114 -> 0 | L114: =SUM(M114:AI114) -> 0 | AJ114: =SUM(AK114:BG114) -> 0 | BH114: 0 | BI114: =AJ114+Март!BI114 -> 0 | BJ114: 0 | BK114: 0 | BM114: =Март!I114+Апрель!I114-Апрель!BH114 -> 0
A115: 340.02 | B115: продукты питания | C115: =C114 -> местный | D115: 807 | E115: 07 02 | F115: 02 П 02 М9903 | G115: 244 | H115: =Март!H115 -> 0 | J115: =Март!BH115 -> 0 | K115: =Март!BJ115 -> 0 | L115: =SUM(M115:AI115) -> 0 | AJ115: =SUM(AK115:BG115) -> 0 | BH115: 0 | BI115: =AJ115+Март!BI115 -> 0 | BJ115: 0 | BK115: 0 | BM115: =Март!I115+Апрель!I115-Апрель!BH115 -> 0
A116: 340.03 | B116: ГСМ | C116: местный | D116: 807 | E116: 07 02 | F116: 02 П 02 М9903 | G116: 244 | H116: =Март!H116 -> 0 | J116: =Март!BH116 -> 0 | K116: =Март!BJ116 -> 0 | L116: =SUM(M116:AI116) -> 0 | AJ116: =SUM(AK116:BG116) -> 0 | BH116: 0 | BI116: =AJ116+Март!BI116 -> 0 | BJ116: 0 | BK116: 0 | BM116: =Март!I116+Апрель!I116-Апрель!BH116 -> 0
A117: 340.04 | B117: Оплата котел. топлива | C117: местный | D117: 807 | E117: 07 02 | F117: 02 П 02 М9903 | G117: 244 | H117: =Март!H117 -> 0 | J117: =Март!BH117 -> 0 | K117: =Март!BJ117 -> 0 | L117: =SUM(M117:AI117) -> 0 | AJ117: =SUM(AK117:BG117) -> 0 | BH117: 0 | BI117: =AJ117+Март!BI117 -> 0 | BJ117: 0 | BK117: 0 | BM117: =Март!I117+Апрель!I117-Апрель!BH117 -> 0
A118: 340.05 | B118: Прочее | C118: местный | D118: 807 | E118: 07 02 | F118: 02 П 02 М9903 | G118: 244 | H118: =Март!H118 -> 0 | J118: =Март!BH118 -> 0 | K118: =Март!BJ118 -> 0 | L118: =SUM(M118:AI118) -> 0 | AJ118: =SUM(AK118:BG118) -> 0 | BH118: 0 | BI118: =AJ118+Март!BI118 -> 0 | BJ118: 0 | BK118: 0 | BM118: =Март!I118+Апрель!I118-Апрель!BH118 -> 0
A119: ИТОГО | B119: Итого расходов | C119: местный | D119: 807 | E119: 07 02 | F119: 02 П 02 М9903 | H119: =Март!H119 -> 17185300 | I119: =I65+I68+I75+I78+I79+I82+I87+I88+I92+I95+I96+I97+I98+I99+I103+I104+I107+I112+I113 -> 0 | J119: =Март!BH119 -> 5977387.49 | K119: =Март!BJ119 -> 0 | L119: =L65+L68+L75+L78+L79+L82+L87+L88+L92+L95+L96+L97+L98+L99+L103+L104+L107+L112+L113 -> 1690771.38 | M119: 1690771.38 | N119: 0 | O119: 0 | P119: 0 | Q119: 0 | R119: 0 | S119: 0 | T119: 0 | U119: 0 | V119: 0 | W119: 0 | X119: 0 | Y119: 0 | Z119: 0 | AA119: 0 | AB119: 0 | AC119: 0 | AD119: 0 | AE119: 0 | AF119: 0 | AG119: 0 | AH119: 0 | AI119: 0 | AJ119: 1690771.38 | AK119: 0 | AL119: 0 | AM119: 0 | AN119: 0 | AO119: 1690771.38 | AP119: 0 | AQ119: 0 | AR119: 0 | AS119: 0 | AT119: 0 | AU119: 0 | AV119: 0 | AW119: 0 | AX119: 0 | AY119: 0 | AZ119: 0 | BA119: 0 | BB119: 0 | BC119: 0 | BD119: 0 | BE119: 0 | BF119: 0 | BG119: 0 | BH119: 7668158.87 | BI119: =AJ119+Март!BI119 -> 7668158.87 | BJ119: 0 | BK119: 9517141.13 | BL119: =BL65+BL68+BL75+BL78+BL79+BL82+BL87+BL88+BL92+BL95+BL96+BL97+BL98+BL99+BL103+BL104+BL107+BL112+BL113 -> 0 | BM119: =Март!I119+Апрель!I119-Апрель!BH119 -> -7668158.87
C120: =Март!C120 -> 26020 | D120: =Март!D120 -> 807 | E120: =Март!E120 -> 07 09 | F120: =Март!F120 -> 02 1 04 80130 | G120: =Март!G120 -> 244 | BN120: =BN64+1 -> 3
A121: 211 | B121: оплата труда | C121: =C120 -> 26020 | D121: =D120 -> 807 | E121: 07 09 | F121: 02 1 04 80130 | G121: 244 | H121: =Март!H121 -> 0 | I121: =SUM(I122:I123) -> 0 | J121: =Март!BH121 -> 0 | K121: =Март!BJ121 -> 0 | L121: =SUM(L122:L123) -> 0 | M121: 0 | N121: 0 | O121: 0 | P121: 0 | Q121: 0 | R121: 0 | S121: 0 | T121: 0 | U121: 0 | V121: 0 | W121: 0 | X121: 0 | Y121: 0 | Z121: 0 | AA121: 0 | AB121: 0 | AC121: 0 | AD121: 0 | AE121: 0 | AF121: 0 | AG121: 0 | AH121: 0 | AI121: 0 | AJ121: 0 | AK121: 0 | AL121: 0 | AM121: 0 | AN121: 0 | AO121: 0 | AP121: 0 | AQ121: 0 | AR121: 0 | AS121: 0 | AT121: 0 | AU121: 0 | AV121: 0 | AW121: 0 | AX121: 0 | AY121: 0 | AZ121: 0 | BA121: 0 | BB121: 0 | BC121: 0 | BD121: 0 | BE121: 0 | BF121: 0 | BG121: 0 | BH121: =J121+L121 -> 0 | BI121: =AJ121+Март!BI121 -> 0 | BJ121: =K121+L121-AJ121 -> 0 | BK121: =H121-BH121 -> 0 | BL121: =SUM(BL122:BL123) -> 0 | BM121: =Март!I121+Апрель!I121-Апрель!BH121 -> 0
A122: 211.01 | B122: Основная з/пл | C122: 26020 | D122: 807 | E122: 07 09 | F122: 02 1 04 80130 | G122: 244 | H122: =Март!H122 -> 0 | J122: =Март!BH122 -> 0 | K122: =Март!BJ122 -> 0 | L122: =SUM(M122:AI122) -> 0 | AJ122: =SUM(AK122:BG122) -> 0 | BH122: =J122+L122 -> 0 | BI122: =AJ122+Март!BI122 -> 0 | BJ122: =K122+L122-AJ122 -> 0 | BK122: =H122-BH122 -> 0 | BM122: =Март!I122+Апрель!I122-Апрель!BH122 -> 0
A123: 211.02 | B123: Кл. руководство | C123: 26020 | D123: 807 | E123: 07 09 | F123: 02 1 04 80130 | G123: 244 | H123: =Март!H123 -> 0 | J123: =Март!BH123 -> 0 | K123: =Март!BJ123 -> 0 | L123: =SUM(M123:AI123) -> 0 | AJ123: =SUM(AK123:BG123) -> 0 | BH123: 0 | BI123: =AJ123+Март!BI123 -> 0 | BJ123: 0 | BK123: 0 | BM123: =Март!I123+Апрель!I123-Апрель!BH123 -> 0
A124: 212 | B124: Всего проч. | C124: 26020 | D124: 807 | E124: 07 09 | F124: 02 1 04 80130 | G124: 244 | H124: =Март!H124 -> 0 | I124: =SUM(I125:I130) -> 0 | J124: =Март!BH124 -> 0 | K124: =Март!BJ124 -> 0 | L124: =SUM(L125:L130) -> 0 | M124: 0 | N124: 0 | O124: 0 | P124: 0 | Q124: 0 | R124: 0 | S124: 0 | T124: 0 | U124: 0 | V124: 0 | W124: 0 | X124: 0 | Y124: 0 | Z124: 0 | AA124: 0 | AB124: 0 | AC124: 0 | AD124: 0 | AE124: 0 | AF124: 0 | AG124: 0 | AH124: 0 | AI124: 0 | AJ124: 0 | AK124: 0 | AL124: 0 | AM124: 0 | AN124: 0 | AO124: 0 | AP124: 0 | AQ124: 0 | AR124: 0 | AS124: 0 | AT124: 0 | AU124: 0 | AV124: 0 | AW124: 0 | AX124: 0 | AY124: 0 | AZ124: 0 | BA124: 0 | BB124: 0 | BC124: 0 | BD124: 0 | BE124: 0 | BF124: 0 | BG124: 0 | BH124: 0 | BI124: =AJ124+Март!BI124 -> 0 | BJ124: 0 | BK124: 0 | BL124: =SUM(BL125:BL130) -> 0 | BM124: =Март!I124+Апрель!I124-Апрель!BH124 -> 0
A125: 212.01 | B125: суточные | C125: 26020 | D125: 807 | E125: 07 09 | F125: 02 1 04 80130 | G125: 244 | H125: =Март!H125 -> 0 | J125: =Март!BH125 -> 0 | K125: =Март!BJ125 -> 0 | L125: =SUM(M125:AI125) -> 0 | AJ125: =SUM(AK125:BG125) -> 0 | BH125: 0 | BI125: =AJ125+Март!BI125 -> 0 | BJ125: 0 | BK125: 0 | BM125: =Март!I125+Апрель!I125-Апрель!BH125 -> 0
A126: 212.02 | B126: книги | C126: 26020 | D126: 807 | E126: 07 09 | F126: 02 1 04 80130 | G126: 244 | H126: =Март!H126 -> 0 | J126: =Март!BH126 -> 0 | K126: =Март!BJ126 -> 0 | L126: 0 | AJ126: 0 | BH126: 0 | BI126: =AJ126+Март!BI126 -> 0 | BJ126: 0 | BK126: 0 | BM126: =Март!I126+Апрель!I126-Апрель!BH126 -> 0
A127: 212.03 | B127: СКЛ | C127: 26020 | D127: 807 | E127: 07 09 | F127: 02 1 04 80130 | G127: 244 | H127: =Март!H127 -> 0 | J127: =Март!BH127 -> 0 | K127: =Март!BJ127 -> 0 | L127: 0 | AJ127: 0 | BH127: 0 | BI127: =AJ127+Март!BI127 -> 0 | BJ127: 0 | BK127: 0 | BM127: =Март!I127+Апрель!I127-Апрель!BH127 -> 0
